Workbook

Sheet Menu
B3: PigBal 5
B4: A model for estimating piggery waste production
B6: General instructions:
B7: The user can navigate through the various worksheets, numbered 1 to 20, by using the scroll bar below.
B8: Alternatively, the user can click on the links in the Table of Contents below. A 'Menu' link is provided in the upper left-hand corner of the relevant worksheets, to allow the user to return to this menu worksheet and navigate to the next relevant tab using the Table of Contents.
B9: Data may be entered in each of the worksheets having yellow or green highlighted labels.
B10: Note the green tabs are new worksheets that have been added since the last version PigBal 4).
B11: The worksheets having grey shading provide output data, graphs and details of some of the model calculations.
B12: Most users will progress through the worksheets in numerical order, entering relevant data in the grey shaded cells, as shown to the right. | K12: Data entry cell
B13: All other cells are locked to prevent data entry and to protect the underlying calculations.
B14: All cells with red triangles in the upper-right-hand corners, as shown to the right, contain explanatory comments to assist the user in selecting appropriate input values. | K14: Explanatory comments
B15: Some of the explanatory comments include typical / default data values and ranges.
B16: The explanatory comments can be viewed by resting the pointer over these cells.
B17: More comprehensive instructions are provided in the Technical manual (McGahan et al., 2025).
B19: Table of Contents
B21: 1. Cover | E21: 11. Pond design
B22: 2. User licence | E22: 12. Diet ingredients
B23: 3. Herd Input | E23: 13. Diet input
B24: 4. Growth chart | E24: 14. DM DAMP
B25: 5. Herd details | E25: 15. Output summary
B26: 6. Deep litter | E26: 16. Nutrient and solids flow
B27: 7. Assumptions | E27: 17. GHG Input
B28: 8. Feed details | E28: 18. GHG Output - Scope 1 & 2
B29: 9. Water | E29: 19. CAP Methane Potential
B30: 10. Effluent pre-treatment | E30: 20. References

Sheet 1. Cover
A1: Menu | I1: Department of Primary Industries (Qld)
A3: 1. Cover
B5: PigBal 5
B6: A model for estimating piggery waste production
B7: Version 5.02 - 24th June 2025
B9: The PigBal 5 model uses a mass balance approach to estimate piggery waste production (solids and nutrients) based on detailed dietary data.
B10: PigBal 5 modelling results are typically used for:
B11: — Designing piggery effluent treatment and reuse systems. — Estimating the energy output and economic viability of piggery biogas collection and use systems. — Estimating piggery GHG emissions for statutory reporting purposes. — Preparing applications for new and expanding piggery developments.
B12: PigBal 5 was developed by Eugene McGahan (Agricultural Engineer) and Mary-Frances Copley (Integrity Ag) Sara Willis (DPI (Qld), and Alan Skerman (formerly DPI, Qld), with funding assistance from Australian Pork Limited (APL) under Project No 2025/0044: Future proofing PigBal. It supersedes PigBal 4.
B13: PigBal 4 was developed by Alan Skerman, Sara Willis, Brendan Marquardt of DAF (Queensland), and Eugene McGahan (Agricultural Engineer).
B14: PigBal 4 superseded the original version of the model which was developed by Casey, K.D., McGahan, E.J., Atzeni, M.A., Gardner, E.A. and Frizzo, R.E. (1996) PigBal version 1.0 - A nutrient mass balance model for intensive piggeries, DPI (Queensland).
B15: Detailed guidance on the use of this model is provided in the Technical Manual (McGahan et al., 2025).
B17: Enquiries:
B18: Phone: | D18: DAF Customer Service Centre 13 25 23

Sheet 2. User licence
A1: Menu
A2: 2. PigBal user licence
B5: Acknowledgements
C7: PigBal consists of an updated software program and user technical manual developed from the existing Queensland Government PigBal program (PigBal). PigBal is jointly owned by the State of Queensland through the Department of Primary Industries (DPI) and Australian Pork Limited (APL) (together, the Joint Owners), and is distributed through the APL website.
B9: Grant of licence
B11: 1. | C11: PigBal is provided to you, the user, under the terms and conditions of this licence agreement (Licence). By using and exercising any of the rights granted by this Licence, you accept and agree to be bound by its terms and conditions. The Joint Owners grant you the rights contained in clause 2 of this Licence in consideration of your acceptance of the terms and conditions of this Licence.
B13: 2. | C13: The Joint Owners hereby grant you, the user, a world-wide, royalty-free, non-exclusive licence to use PigBal on the terms and conditions of this Licence.
B15: Restrictions on Use
B17: 3. | C17: You must not, and must not authorise others to:
C19: (a) | D19: use PigBal for unlawful purposes, misuse PigBal, or use PigBal with the intention of encroaching upon the privacy of an individual or company or other organisation;
C20: (b) | D20: sell, rent, lease, or sub-licence PigBal; or
C21: (c) | D21: engineer, decompile, disassemble or create modified or adapted derivative versions from PigBal.
B23: 4. | C23: You may distribute unaltered copies of PigBal provided each copy includes these intact Licence terms including the attribution and acknowledgement of ownership of PigBal by the Joint Owners, the disclaimers and the below copyright notices of the Joint Owners.
C25: © 2025 The State of Queensland, Department of Primary Industries ABN 66 934 348 189
C26: © 2025 Australian Pork Limited ABN 83 092 783 278
B28: Proprietary Notices
B30: 5. | C30: All intellectual property rights in PigBal are retained by the Joint Owners. You acknowledge and agree that you have no rights of ownership in PigBal and all intellectual property rights in PigBal are retained by the Joint Owners.
B32: Copyright
B34: 6. | C34: PigBal software, user and technical manual are protected by Copyright Act 1968 (Cth). Copyright in PigBal resides with the Joint Owners. Any use of PigBal other than as authorised under this Licence or Copyright Act 1968 (Cth) is prohibited.
B36: Use of names
B38: 7. | C38: Unless otherwise permitted by this Licence, you must not without written permission:
C40: (a) | D40: use the name or any trade mark or logo DPI or APL; or
C41: (b) | D41: claim any sponsorship, endorsement, approval, affiliation or other association with DPI or APL.
B43: Term
B45: 8. | C45: Your rights under this Licence will terminate automatically and with immediate effect if:
C47: (a) | D47: all copies of PigBal in your possession are destroyed; or
C48: (b) | D48: you fail to adhere to the conditions of this Licence or the provisions of the Copyright Act 1968 (Cth).
B50: 9. | C50: Upon termination of this Licence, you must cease all use of PigBal and destroy all copies, full or partial, of PigBal in your possession.
B52: Disclaimers
B54: 10. | C54: PigBal has been developed to assist users to identify issues and efficiencies involved in their commercial and government businesses. You are responsible for determining that PigBal is suitable for your own use or purpose. PigBal must not be used or relied upon by you for any purpose which may expose you or any other person to loss or damage. You should conduct your own inquiries and rely on your own independent professional advice. Whilst every care has been taken in preparing PigBal and its supporting documentation, the Joint Owners accept no responsibility for decisions or actions taken as a result of any data, information, design, statement or report, express or implied, contained in or derived from PigBal.
B56: 11. | C56: You accept sole responsibility and risk associated with your use of PigBal and your use of reports, data or any other results produced by PigBal, irrespective of the purpose to which such use, reports, data or results are applied.
B58: Liability, indemnity and limited warranty
B60: 12. | C60: Subject to clause 13, you (the user of PigBal, or the user of the data contained in PigBal) acknowledge and agree that:
C62: (a) | D62: neither DAF nor APL make any representations or warranties in relation to PigBal; and
C63: (b) | D63: to the extent permitted by law, all warranties relating to accuracy, reliability, completeness, currency or suitability for any particular purpose and all liability for any loss, damage or costs (including consequential damage) incurred in any way (including but not limited to that arising from negligence) in connection with any use of or reliance on PigBal are excluded.
B65: 13. | C65: The Competition and Consumer Act 2010 (Cth) may confer conditions, warranties, rights, guarantees and remedies on you in relation to the provision by the Joint Owners of goods and services, which cannot be excluded, restricted or modified. To the extent permitted by law, liability under any condition, warranty, right, guarantee or remedy which cannot legally be excluded is limited to:
C67: (a) | D67: in the case of goods:
D69: i. | E69: the replacement of the goods or the supply of equivalent goods; or
D70: ii. | E70: the repair of the goods; and
C72: (b) | D72: in the case of services, supplying the services again.
C74: All other statutory or implied terms, conditions, warranties and guarantees are excluded to the extent permitted by law.
B76: 14. | C76: Except for rights, guarantees and remedies which cannot be excluded, the Joint Owner's are not liable to you or to any third party for any losses, costs or expenses, including any direct or indirect, incidental, consequential, special or exemplary damages or lost profit, resulting from any use or misuse of PigBal or the information contained on PigBal.
B78: 15. | C78: You agree to indemnify DAF and APL and their officers and employees against any loss, cost, expense, damage and liability of any kind (including consequential damage and liability in negligence) arising directly or indirectly from or related to any claim relating to your use of PigBal or any product made from your use of PigBal.
B80: 16. | C80: Your liability to indemnify DAF will be reduced proportionally to the extent that any negligent act or omission or breach of this licence by DAF caused the loss or liability. Your liability to indemnify APL will be reduced proportionally to the extent that any negligent act or omission or breach of this licence by APL caused the loss or liability.
B82: General
B84: 17. | C84: The Joint Owners reserve the right at any time to vary this Licence. Such variations will be effective immediately and incorporated into this Licence.
B86: 18. | C86: You must not assign this Licence or any part of it or in any way deal with this Licence without obtaining the prior written consent of the Joint Owners.
B88: 19. | C88: Any term which is held to be illegal, invalid or unenforceable will be severable and will not affect or impair the legality, validity or enforceability of the remaining terms.
B90: 20. | C90: This Licence is governed by the laws of the State of Queensland, Australia.
B92: 21. | C92: This Licence constitutes the entire agreement between the Joint Owners and you in relation to the subject matter it deals with, and supersedes all previous agreements or understandings between the parties in connection with its subject matter.
B94: Privacy
B96: 22. | C96: The Joint Owners are committed to protecting user privacy as specified under the Information Privacy Act 2009 (Qld) and Privacy Act 1988 (Cth). The Joint Owners understand and appreciate that users of PigBal are concerned about their privacy and the confidentiality and security of information they provide to the Joint Owners and will collect, use, disclose and handle your information in accordance with relevant privacy legislation.

Sheet 3. Herd Input
A1: Menu
A2: 3. Herd input
B5: Piggery owner(s):
B7: Piggery name and locality:
B9: PigBal run description: | C9: 1000 sow farrow to finish example
B11: Breeder herd | C11: Value | D11: Units | F11: Grower herd | G11: Value | H11: Units
B13: Number of sows | C13: 1000 | D13: sows | F13: Pig ages (at the end of each stage)
B14: Number of boars | C14: 10 | D14: boars | F14: Sucker | G14: =C38 -> 24 | H14: days
F15: Birth | G15: 0 | H15: weeks | M15: Entered pig class | N15: Entered exit age (wk) | O15: Entered exit live weight (kg) | R15: NEGP exit live weight (kg) | S15: NEGP pig class | U15: Combined pig class | V15: Exit live weight (kg) | X15: Exit age (wk) | Y15: Time (wk/stage) | Z15: Mortality rate (%)
B16: Sow culling percentage | C16: 50 | D16: % | F16: Sucker | G16: =G14/7 -> 3.428571429 | H16: weeks | M16: Suckers | N16: =G16 -> 3.428571429 | O16: =G31 -> 7 | R16: =O35 -> 8 | S16: =M35 -> NEGP Sucker | U16: =VLOOKUP(V16, R$16:S$27,2,FALSE) -> Unallocated | V16: =SMALL(R$16:R$27,1) -> 0 | W16: =VLOOKUP(U16,M$16:N$27,2, FALSE) -> 0 | X16: =IF(W16=0, X15+(W17-X15)*(V16-V15)/(V17-V15), W16) ->  | Y16: =X16 ->  | Z16: =G51 -> 12
B17: Boar working life | C17: 1.5 | D17: years | F17: Weaner | G17: 10 | H17: weeks | L17: Weaner 1 | M17: =IF(F17<>"", F17, "Unallocated") -> Weaner | N17: =G17 -> 10 | O17: =G32 -> 35 | R17: =O36 -> 25 | S17: =M36 -> NEGP Weaner | U17: Unallocated | V17: =SMALL(R$16:R$27,2) -> 0 | W17: =VLOOKUP(U17,M$16:N$27,2, FALSE) -> 0 | X17: =IF(W17=0, W16+(W18-W16)*(V17-V16)/(V18-V16), W17) -> 0 | Y17: =X17-X16 ->  | Z17: =G$52*Y17/(X$27-X$16) -> 
B18: Breeder mortalities | C18: 7.8 | D18: % | F18: Porker | G18: 14 | H18: weeks | L18: Weaner 2 | M18: Porker | N18: 14 | O18: 60 | R18: =O37 -> 55 | S18: =M37 -> NEGP Grower | U18: Suckers | V18: =SMALL(R$16:R$27,3) -> 7 | W18: 3.428571429 | X18: 3.428571429 | Y18: =X18-X17 -> 3.428571429 | Z18: =G$52*Y18/(X$27-X$16) -> 
B19: Gilt waste rate | C19: 14 | D19: % | F19: Grower | G19: 18 | H19: weeks | L19: Grower 1 | M19: Grower | N19: 18 | O19: 85 | R19: =O38 -> 100 | S19: =M38 -> NEGP Finisher | U19: NEGP Sucker | V19: =SMALL(R$16:R$27,4) -> 8 | W19: 0 | X19: 3.238095238 | Y19: -0.1904761905
F20: Finisher | G20: 22 | H20: weeks | L20: Grower 2 | M20: Finisher | N20: 22 | O20: 110 | R20: =O39 -> 130 | S20: =M39 -> NEGP Heavy finisher | U20: NEGP Weaner | V20: =SMALL(R$16:R$27,5) -> 25 | W20: 0 | X20: 6.296296296 | Y20: 3.058201058
B21: Percent gilts purchased | C21: 0 | D21: % | F21: Unallocated | H21: weeks | L21: Finisher 1 | M21: Unallocated | N21: 0 | O21: 0 | R21: =O16 -> 7 | S21: =M16 -> Suckers | U21: Weaner | V21: =SMALL(R$16:R$27,6) -> 35 | W21: 10 | X21: 10 | Y21: 3.703703704
B22: Percent boars purchased | C22: 0 | D22: % | F22: Unallocated | H22: weeks | L22: Finisher 2 | M22: Unallocated | N22: 0 | O22: 0 | R22: 35 | S22: Weaner | U22: NEGP Grower | V22: =SMALL(R$16:R$27,7) -> 55 | W22: 0 | X22: 13.2 | Y22: 3.2
M23: =M35 -> NEGP Sucker | N23: 0 | R23: 60 | S23: Porker | U23: Porker | V23: =SMALL(R$16:R$27,8) -> 60 | W23: 14 | X23: 14 | Y23: 0.8
B24: Farrowing rate | C24: 84.6 | D24: % | F24: Average daily live weight gain (ADG) | M24: =M36 -> NEGP Weaner | N24: 0 | R24: 85 | S24: Grower | U24: Grower | V24: =SMALL(R$16:R$27,9) -> 85 | W24: 18 | X24: 18 | Y24: 4
B25: Farrowing index | C25: 2.28 | D25: farrowings. sow-1. yr-1 | F25: Average daily live weight gain (ADG) | G25: 675 | H25: g. day-1 [birth to 100 kg live weight] | M25: =M37 -> NEGP Grower | N25: 0 | R25: 110 | S25: Finisher | U25: NEGP Finisher | V25: =SMALL(R$16:R$27,10) -> 100 | W25: 0 | X25: 20.4 | Y25: 2.4
F26: Weight gain rating | G26: =IF(G25<600, "Outside normal range", IF(G25<'Growth curve sheet'!U21, 'Growth curve sheet'!S21,IF(G25<'Growth curve sheet'!U22,'Growth curve sheet'!S22,IF(G25<'Growth curve sheet'!U23, 'Growth curve sheet'!S23,IF(G25>850, "Outside normal range", 'Growth curve sheet'!S24))))) -> Average | M26: =M38 -> NEGP Finisher | N26: 0 | R26: 0 | S26: Unallocated | U26: Finisher | V26: =SMALL(R$16:R$27,11) -> 110 | W26: 22 | X26: 22 | Y26: 1.6
B27: No of piglets born alive per litter | C27: 11.8 | D27: pigs. litter-1 | F27: Average age at 100 kg live weight | G27: =1000*(100-1.4)/(7*G25) -> 20.86772487 | H27: weeks | M27: =M39 -> NEGP Heavy finisher | N27: 0 | R27: 0 | S27: Unallocated | U27: NEGP Heavy finisher | V27: =SMALL(R$16:R$27,12) -> 130 | W27: 0 | X27: 26 | Y27: 4
B28: No of piglets stillborn per litter | C28: 0.88 | D28: pigs. litter-1
F29: Pig live weights (at the end of each stage) | I29: Predicted | Z29: =SUM(Z17:Z27) -> 
B30: Gilt age at selection / purchase | C30: 22 | D30: weeks | F30: Birth | G30: 1.4 | H30: kg. pig-1 | I30: 1.4 | L30: =G19*7 -> 126
B31: Boar age at selection / purchase | C31: 22 | D31: weeks | F31: Sucker | G31: 7 | H31: kg. pig-1 | I31: ='Growth curve sheet'!V7 -> 6.481609075 | L31: =I34/L30*1000 -> 649.4017434
B32: Gilt age at mating | C32: 30 | D32: weeks | F32: =M17 -> Weaner | G32: 35 | H32: kg. pig-1 | I32: ='Growth curve sheet'!V8 -> 32.7899479
B33: Sow live weight at mating | C33: 145 | D33: kg | F33: Porker | G33: 60 | H33: kg. pig-1 | I33: ='Growth curve sheet'!V9 -> 56.29322295 | M33: National Environmental Guidelines for Piggeries: Table 4.1
B34: Sow live weight at farrowing | C34: 200 | D34: kg | F34: Grower | G34: 85 | H34: kg. pig-1 | I34: ='Growth curve sheet'!V10 -> 81.82461967 | M34: NEGP pig class | N34: NEGP Entry live weight (kg) | O34: NEGP exit live weight (kg) | P34: SPU factor (SPU/pig)
B35: Boar live weight at turnoff | C35: 300 | D35: kg | F35: Finisher | G35: 110 | H35: kg. pig-1 | I35: ='Growth curve sheet'!V11 -> 106.3868116 | M35: NEGP Sucker | N35: 1.4 | O35: 8 | P35: 0.1
B36: Average cull sow dressed weight | C36: 130 | D36: kg | F36: Unallocated | H36: kg. pig-1 | I36: ='Growth curve sheet'!V12 ->  | M36: NEGP Weaner | N36: 8 | O36: 25 | P36: 0.5
F37: Unallocated | H37: kg. pig-1 | I37: ='Growth curve sheet'!V13 ->  | M37: NEGP Grower | N37: 25 | O37: 55 | P37: 1
B38: Lactation duration | C38: 24 | D38: days | M38: NEGP Finisher | N38: 55 | O38: 100 | P38: 1.6
F39: Pig purchases (Enter values for the START of each stage) | M39: NEGP Heavy finisher | N39: 100 | O39: 130 | P39: 1.8
B40: Dressing percentage of progeny | C40: 76 | D40: % | F40: No of pigs purchased per year
F41: Gilts | G41: ='3. Herd Input'!C21*'3. Herd Input'!C59/100 -> 0 | H41: pigs. year-1
B42: Herd performance indicators | F42: Boars | G42: ='3. Herd Input'!C61*'3. Herd Input'!C22/100 -> 0 | H42: pigs. year-1
B43: Farrowing interval | C43: =IF(C25=0, 0, 365/C25) -> 160.0877193 | D43: days | F43: =M17 -> Weaner | H43: pigs. year-1
B44: Empty days | C44: =IF(C43=0, 0, C43-('7. Assumptions'!D25+C38)) -> 22.0877193 | D44: days | F44: Porker | H44: pigs. year-1
B45: Matings per 4 weeks | C45: =IF(C24=0, 0, C13*C25/(C24/100)/(365/(7*4))) -> 206.7424463 | D45: matings | F45: Grower | H45: pigs. year-1
B46: Farrowings per 4 weeks | C46: =C13*C25/(365/(7*4)) -> 174.9041096 | D46: farrowings | F46: Finisher | H46: pigs. year-1
B47: Farrowings per year | C47: =C13*C25 -> 2280 | D47: farrowings. yr-1 | F47: Unallocated | H47: pigs. year-1
B48: Piglets born per litter | C48: =C27+C28 -> 12.68 | D48: piglets. litter-1 | F48: Unallocated | H48: pigs. year-1
B49: Piglets born per sow per year | C49: =C48*C25 -> 28.9104 | D49: piglets. sow-1. yr-1
B50: Piglets stillborn per year | C50: ='3. Herd Input'!C47*'3. Herd Input'!C28 -> 2006.4 | D50: piglets. yr-1 | F50: Pig mortalities
B51: Pigs weaned per litter | C51: =C27-('5. Herd details'!X34/100*C27) -> 10.384 | D51: pigs. litter-1 | F51: Pre-weaning | G51: 12 | H51: %
B52: Pigs weaned per sow per year | C52: =C51*C25 -> 23.67552 | D52: pigs. sow-1. yr-1 | F52: Post-weaning | G52: 5 | H52: %
B53: Pigs reared per litter | C53: =C51* (100 -G52)/100 -> 9.8648 | D53: pigs. litter-1 | F53: =M17 -> Weaner | G53: =IF(G17="",0,G$52*(G17-G16)/(MAX(G$17:G$22)-G$16)) -> 1.769230769 | H53: %
B54: Pigs reared per sow per year | C54: =C53*C25 -> 22.491744 | D54: pigs. sow-1. yr-1 | F54: Porker | G54: 1.076923077 | H54: %
F55: Grower | G55: 1.076923077 | H55: %
B56: Sow deaths | C56: ='5. Herd details'!E31+'5. Herd details'!E32 -> 78.06837001 | D56: sows. yr-1 | F56: Finisher | G56: 1.076923077 | H56: %
B57: Sow culling | C57: =C16*C13/100 -> 500 | D57: sows. yr-1 | F57: Unallocated | G57: 0 | H57: %
B58: Gilt wastage | C58: =C19*(C56+C57)/100 -> 80.9295718 | D58: gilts. yr-1 | F58: Unallocated | G58: 0 | H58: %
B59: Gilts required per year | C59: =SUM(C56:C58) -> 658.9979418 | D59: gilts. yr-1
F60: Pig sales
B61: Boars required per year | C61: =IF(C14=0, 0, C14/C17) -> 6.666666667 | D61: boars | F61: % pigs sold at the END of each stage: | H61: %
B62: Pigs sold per litter | C62: =IF(C13=0, 0, C51-((((C59*(100-C21)/100)+(C61*(100-C22)/100))/(C13*C25))+(('5. Herd details'!E35+'5. Herd details'!E37+'5. Herd details'!E39)/(C46*365/(7*4))))) -> 9.799658704 | D62: pigs | F62: Sucker | G62: 0 | H62: %
B63: Pigs sold per sow per year | C63: =C62*C25 -> 22.34322185 | D63: pigs | F63: =M17 -> Weaner | G63: 0 | H63: %
B64: Average parity | C64: =IF(C16=0, 0,C25/(C16/100)) -> 4.56 | D64: farrowings. sow-1 | F64: Porker | G64: 0 | H64: %
B65: Sow : Boar ratio | C65: =IF(C14=0, 0, C13/C14) -> 100 | F65: Grower | G65: 0 | H65: %
F66: Finisher | G66: 100 | H66: %
B67: Backfatters sold per year | C67: ='5. Herd details'!G29+'5. Herd details'!G30+'5. Herd details'!G31 -> 587.1375962 | D67: pigs. year-1 | F67: Unallocated | H67: %
F68: Unallocated | H68: %
B71: Piggery examples: | F71: Most recent example entered:
F72: 1000 sow farrow to finish

Sheet Growth curve sheet (hidden)
A1: Growth curve sheet | D1: Standard values | E1: ADG 550 g/day | F1: ADG 600 g/day | G1: ADG 650 g/day | H1: ADG 700 g/day | I1: ADG 750 g/day | J1: ADG 800 g/day | L1: Entered value
A2: Average daily growth (ADG) - birth to 100 kg (g/day) | D2: 500 | E2: 550 | F2: 600 | G2: 650 | H2: 700 | I2: 750 | J2: 800 | L2: ='3. Herd Input'!G25 -> 675 | N2: y = -0.00006x2 + 0.0334x + 0.1301
A3: Interpolated age at 100 kg live weight (weeks) | D3: =VLOOKUP(100,D7:M202,10,TRUE) -> 28 | E3: =VLOOKUP(100,E7:N202,9,TRUE) -> 25.57142857 | F3: =VLOOKUP(100,F7:O202,8,TRUE) -> 23.42857143 | G3: =VLOOKUP(100,G7:S202,7,TRUE) -> 21.57142857 | H3: =VLOOKUP(100,H7:T202,6,TRUE) -> 20.14285714 | I3: =VLOOKUP(100,I7:U202,5,TRUE) -> 18.71428571 | J3: =VLOOKUP(100,J7:V202,4,TRUE) -> 17.42857143 | L3: =VLOOKUP(100,L7:X202,2,TRUE) -> 20.85714286
A4: Interpolated ADG - birth to 100 kg (g/day) | D4: =1000*(100-1.4)/(D3*7) -> 503.0612245 | E4: 550.8379888 | F4: 601.2195122 | G4: 652.9801325 | H4: 699.2907801 | I4: 752.6717557 | J4: 808.1967213 | L4: =1000*(100-1.4)/(L3*7) -> 675.3424658
U5: Table lookup | V5: Equation
A6: Age (days) | B6: Age (weeks) | F6: Pig live weight (kg) | L6: Pig live weight (kg) | M6: Age (weeks) | N6: Feed ingested (kg/day) | O6: S Feed ingested (kg) | P6: S Feed fed (kg) | Q6: S Feed wasted (kg) | S6: ='3. Herd Input'!F30 -> Birth | T6: Entered age (weeks) | U6: Est live weight (kg)
A7: 1 | B7: =A7/7 -> 0.1428571429 | D7: =(-0.00003006*D$2 + 0.0124848506)*$B7^3+(-0.000000811*D$2^2 + 0.0020904273*D$2 - 0.6502866461)*$B7^2+(0.000000029*D$2^3 - 0.000042999*D$2^2 + 0.0194860819*D$2 - 2.5845091041)*$B7+(-0.0000000384*D$2^3 + 0.000053716*D$2^2 - 0.0223500993*D$2 + 4.9852264783) -> 2.447917366 | E7: 2.551066693 | F7: 2.609378265 | G7: 2.597159225 | H7: =(-0.00003006*H$2 + 0.0124848506)*$B7^3+(-0.000000811*H$2^2 + 0.0020904273*H$2 - 0.6502866461)*$B7^2+(0.000000029*H$2^3 - 0.000042999*H$2^2 + 0.0194860819*H$2 - 2.5845091041)*$B7+(-0.0000000384*H$2^3 + 0.000053716*H$2^2 - 0.0223500993*H$2 + 4.9852264783) -> 2.488716715 | I7: =(-0.00003006*I$2 + 0.0124848506)*$B7^3+(-0.000000811*I$2^2 + 0.0020904273*I$2 - 0.6502866461)*$B7^2+(0.000000029*I$2^3 - 0.000042999*I$2^2 + 0.0194860819*I$2 - 2.5845091041)*$B7+(-0.0000000384*I$2^3 + 0.000053716*I$2^2 - 0.0223500993*I$2 + 4.9852264783) -> 2.258357879 | J7: 1.880389859 | L7: =(-0.00003006*L$2 + 0.0124848506)*$B7^3+(-0.000000811*L$2^2 + 0.0020904273*L$2 - 0.6502866461)*$B7^2+(0.000000029*L$2^3 - 0.000042999*L$2^2 + 0.0194860819*L$2 - 2.5845091041)*$B7+(-0.0000000384*L$2^3 + 0.000053716*L$2^2 - 0.0223500993*L$2 + 4.9852264783) -> 2.556571707 | M7: =B7 -> 0.1428571429 | N7: =-0.00006*L7^2 + 0.0334*L7 + 0.1301 -> 0.2150973315 | O7: =N7 -> 0.2150973315 | P7: =O7/(1-U$56) -> 0.2495290274 | Q7: =P7-O7 -> 0.03443169589 | S7: ='3. Herd Input'!F31 -> Sucker | T7: =IF('3. Herd Input'!G16="", "", '3. Herd Input'!G16) -> 3.428571429 | U7: =IF(T7="","",VLOOKUP(T7,B$7:L$230,11,TRUE)) -> 6.491486881 | V7: =IF(T7="", "", (-0.0000300671*L$2 + 0.0124897547)*T7^3+(-0.0000008113*L$2^2 + 0.0020909087*L$2 - 0.65050342)*T7^2+(0.000000029*L$2^3 - 0.0000430323*L$2^2 + 0.0195041468*L$2 - 2.587606895)*T7+(-0.0000000384*L$2^3 + 0.0000537791*L$2^2 - 0.0223853981*L$2 + 4.991589155)) -> 6.481609075
A8: 2 | B8: =A8/7 -> 0.2857142857 | D8: 2.464457341 | E8: 2.55947299 | F8: 2.612867618 | G8: 2.602055512 | H8: =(-0.00003006*H$2 + 0.0124848506)*$B8^3+(-0.000000811*H$2^2 + 0.0020904273*H$2 - 0.6502866461)*$B8^2+(0.000000029*H$2^3 - 0.000042999*H$2^2 + 0.0194860819*H$2 - 2.5845091041)*$B8+(-0.0000000384*H$2^3 + 0.000053716*H$2^2 - 0.0223500993*H$2 + 4.9852264783) -> 2.504450956 | I8: 2.297468238 | J8: 1.958521642 | L8: 2.565513897 | M8: 0.2857142857 | N8: =-0.00006*L8^2 + 0.0334*L8 + 0.1301 -> 0.2153932525 | O8: =O7+N8 -> 0.430490584 | P8: 0.4994013453 | Q8: =P8-O8 -> 0.06891076132 | S8: ='3. Herd Input'!F32 -> Weaner | T8: =IF('3. Herd Input'!G17="", "", '3. Herd Input'!G17) -> 10 | U8: =IF(T8="","",VLOOKUP(T8,B$7:L$230,11,TRUE)) -> 32.84216497 | V8: 32.7899479
A9: 3 | B9: 0.4285714286 | D9: 2.488752232 | E9: 2.578109941 | F9: 2.628897853 | G9: 2.621637398 | H9: =(-0.00003006*H$2 + 0.0124848506)*$B9^3+(-0.000000811*H$2^2 + 0.0020904273*H$2 - 0.6502866461)*$B9^2+(0.000000029*H$2^3 - 0.000042999*H$2^2 + 0.0194860819*H$2 - 2.5845091041)*$B9+(-0.0000000384*H$2^3 + 0.000053716*H$2^2 - 0.0223500993*H$2 + 4.9852264783) -> 2.536850004 | I9: 2.355057101 | J9: 2.056780115 | L9: 2.590151979 | M9: 0.4285714286 | N9: =-0.00006*L9^2 + 0.0334*L9 + 0.1301 -> 0.2162085429 | O9: =O8+N9 -> 0.6466991268 | P9: 0.7502194612 | Q9: 0.1035203343 | S9: ='3. Herd Input'!F33 -> Porker | T9: =IF('3. Herd Input'!G18="", "", '3. Herd Input'!G18) -> 14 | U9: =IF(T9="","",VLOOKUP(T9,B$7:L$230,11,TRUE)) -> 56.37228815 | V9: 56.29322295
A10: 4 | B10: 0.5714285714 | D10: 2.520757518 | E10: 2.606906733 | F10: 2.657371865 | G10: 2.655781488 | H10: 2.585764171 | I10: 2.430948488 | J10: 2.174963008 | L10: 2.630349411 | M10: 0.5714285714 | N10: 0.2175385461 | O10: =O9+N10 -> 0.8642376729 | P10: 1.00258048 | Q10: 0.1383428075 | S10: ='3. Herd Input'!F34 -> Grower | T10: =IF('3. Herd Input'!G19="", "", '3. Herd Input'!G19) -> 18 | U10: =IF(T10="","",VLOOKUP(T10,B$7:L$230,11,TRUE)) -> 81.93129553 | V10: 81.82461967
A11: 5 | B11: 0.7142857143 | D11: 2.560428677 | E11: 2.645792553 | F11: 2.69819255 | G11: 2.704364384 | H11: 2.65104377 | I11: 2.52496642 | J11: 2.31286805 | L11: 2.685969651 | M11: 0.7142857143 | N11: 0.2193785204 | O11: 1.083616193 | P11: 1.257076008 | Q11: 0.1734598145 | S11: ='3. Herd Input'!F35 -> Finisher | T11: =IF('3. Herd Input'!G20="", "", '3. Herd Input'!G20) -> 22 | U11: =IF(T11="","",VLOOKUP(T11,B$7:L$202,11,TRUE)) -> 106.5218178 | V11: 106.3868116
A12: 6 | B12: 0.8571428571 | D12: 2.607721188 | E12: 2.694696587 | F12: 2.751262803 | G12: 2.767262692 | H12: 2.732539111 | I12: 2.636934919 | J12: 2.470292971 | L12: 2.756876157 | M12: 0.8571428571 | N12: 0.2217236417 | O12: 1.305339835 | P12: 1.514292052 | Q12: 0.2089522167 | S12: ='3. Herd Input'!F36 -> Unallocated | T12: =IF('3. Herd Input'!G21="", "", '3. Herd Input'!G21) ->  | U12: =IF(T12="","",VLOOKUP(T12,B$7:L$202,11,TRUE)) -> 
A13: 7 | B13: 1 | D13: 2.662590529 | E13: 2.753548024 | F13: 2.816485519 | G13: 2.844353014 | H13: 2.830100509 | I13: 2.766678004 | J13: 2.647035499 | L13: 2.842932386 | M13: 1 | N13: 0.2245690058 | O13: 1.529908841 | P13: 1.774808931 | Q13: 0.2449000905 | S13: ='3. Herd Input'!F37 -> Unallocated | T13: =IF('3. Herd Input'!G22="", "", '3. Herd Input'!G22) ->  | U13: =IF(T13="","",VLOOKUP(T13,B$7:L$202,11,TRUE)) -> 
A14: 8 | B14: 1.142857143 | D14: 2.724992178 | E14: 2.822276049 | F14: 2.893763593 | G14: 2.935511954 | H14: 2.943578274 | I14: 2.914019696 | J14: 2.842893363 | L14: 2.944001798 | M14: 1.142857143 | N14: 0.2279096313 | O14: 1.757818472 | P14: 2.039201187 | Q14: 0.2813827147 | S14: Gilt at selection | T14: ='3. Herd Input'!C30 -> 22 | U14: =IF(T14="","",VLOOKUP(T14,B$7:L$230,11,TRUE)) -> 106.5218178 | V14: =IF(T14="", "", (-0.0000300671*L$2 + 0.0124897547)*T14^3+(-0.0000008113*L$2^2 + 0.0020909087*L$2 - 0.65050342)*T14^2+(0.000000029*L$2^3 - 0.0000430323*L$2^2 + 0.0195041468*L$2 - 2.587606895)*T14+(-0.0000000384*L$2^3 + 0.0000537791*L$2^2 - 0.0223853981*L$2 + 4.991589155)) -> 106.3868116
A15: 9 | B15: 1.285714286 | D15: 2.794881614 | E15: 2.900809849 | F15: 2.982999922 | G15: 3.040616117 | H15: 3.07282272 | I15: 3.078784017 | J15: 3.057664293 | L15: =(-0.00003006*L$2 + 0.0124848506)*$B15^3+(-0.000000811*L$2^2 + 0.0020904273*L$2 - 0.6502866461)*$B15^2+(0.000000029*L$2^3 - 0.000042999*L$2^2 + 0.0194860819*L$2 - 2.5845091041)*$B15+(-0.0000000384*L$2^3 + 0.000053716*L$2^2 - 0.0223500993*L$2 + 4.9852264783) -> 3.059947849 | M15: 1.285714286 | N15: 0.2317404613 | O15: 1.989558933 | P15: 2.308037492 | Q15: 0.3184785589 | S15: Gilt at mating | T15: ='3. Herd Input'!C32 -> 30 | U15: =IF(T15="","",VLOOKUP(T15,B$7:L$230,11,TRUE)) -> 140.8079293 | V15: =IF(T15="", "", (-0.0000300671*L$2 + 0.0124897547)*T15^3+(-0.0000008113*L$2^2 + 0.0020909087*L$2 - 0.65050342)*T15^2+(0.000000029*L$2^3 - 0.0000430323*L$2^2 + 0.0195041468*L$2 - 2.587606895)*T15+(-0.0000000384*L$2^3 + 0.0000537791*L$2^2 - 0.0223853981*L$2 + 4.991589155)) -> 140.6142748
A16: 10 | B16: 1.428571429 | D16: 2.872214315 | E16: 2.989078612 | F16: 3.0840974 | G16: 3.159542105 | H16: 3.217684158 | I16: 3.260794986 | J16: 3.291146018 | L16: 3.190633999 | M16: 1.428571429 | N16: 0.2360563668 | O16: 2.2256153 | P16: 2.581880572 | Q16: 0.3562652714 | S16: Boar at selection | T16: ='3. Herd Input'!C31 -> 22 | U16: =IF(T16="","",VLOOKUP(T16,B$7:L$230,11,TRUE)) -> 106.5218178 | V16: =IF(T16="", "", (-0.0000300671*L$2 + 0.0124897547)*T16^3+(-0.0000008113*L$2^2 + 0.0020909087*L$2 - 0.65050342)*T16^2+(0.000000029*L$2^3 - 0.0000430323*L$2^2 + 0.0195041468*L$2 - 2.587606895)*T16+(-0.0000000384*L$2^3 + 0.0000537791*L$2^2 - 0.0223853981*L$2 + 4.991589155)) -> 106.3868116
A17: 11 | B17: 1.571428571 | D17: 2.956945759 | E17: 3.087011524 | F17: 3.196958922 | G17: 3.292166524 | H17: 3.378012901 | I17: 3.459876625 | J17: 3.543136267 | L17: 3.335923705 | M17: 1.571428571 | N17: 0.2408521485 | O17: 2.466467449 | P17: 2.861287117 | Q17: 0.3948196685 | S17: Boar at turnoff | T17: ='5. Herd details'!H10 -> 100.2142857
A18: 12 | B18: 1.714285714 | D18: 3.049031426 | E18: 3.194537773 | F18: 3.321487384 | G18: 3.438365976 | H18: 3.553659261 | I18: 3.675852954 | J18: 3.81343277 | L18: 3.495680424 | M18: 1.714285714 | N18: 0.2461225393 | O18: 2.712589988 | P18: 3.146807711 | Q18: 0.4342177232
A19: 13 | B19: 1.857142857 | D19: 3.148426794 | E19: 3.311586544 | F19: 3.457585682 | G19: 3.598017065 | H19: 3.74447355 | I19: 3.908547994 | J19: 4.101833254 | L19: 3.669767616 | M19: 1.857142857 | N19: 0.2518622067 | O19: 2.964452195 | P19: 3.43898675 | Q19: 0.4745345549 | S19: Weight gain rating | T19: ADG - birth to 100 kg (g/day)
A20: 14 | B20: 2 | D20: 3.255087341 | E20: 3.438087026 | F20: 3.605156711 | G20: 3.770996395 | H20: 3.950306081 | I20: 4.157785766 | J20: 4.408135451 | L20: 3.858048738 | M20: 2 | N20: 0.2580657554 | O20: 3.22251795 | P20: 3.738362369 | Q20: 0.5158444193 | T20: Lower limit | U20: Upper limit
A21: 15 | B21: 2.142857143 | D21: 3.368968544 | E21: 3.573968404 | F21: 3.764103365 | G21: 3.957180571 | H21: 4.171007165 | I21: 4.423390289 | J21: 4.732137087 | L21: 4.060387248 | M21: 2.142857143 | N21: 0.2647277294 | O21: 3.48724568 | P21: 4.045466379 | Q21: 0.558220699 | S21: Poor | T21: 550 | U21: 600
A22: 16 | B22: 2.285714286 | D22: 3.490025884 | E22: 3.719159866 | F22: 3.934328541 | G22: 4.156446195 | H22: 4.406427115 | I22: 4.705185586 | J22: 5.073635894 | L22: 4.276646604 | M22: 2.285714286 | N22: 0.2718426142 | O22: 3.759088294 | P22: 4.360824187 | Q22: 0.6017358935 | S22: Fair | T22: 600 | U22: 650
A23: 17 | B23: 2.428571429 | D23: =(-0.00003006*D$2 + 0.0124848506)*$B23^3+(-0.000000811*D$2^2 + 0.0020904273*D$2 - 0.6502866461)*$B23^2+(0.000000029*D$2^3 - 0.000042999*D$2^2 + 0.0194860819*D$2 - 2.5845091041)*$B23+(-0.0000000384*D$2^3 + 0.000053716*D$2^2 - 0.0223500993*D$2 + 4.9852264783) -> 3.618214839 | E23: 3.873590598 | F23: 4.115735133 | G23: 4.368669872 | H23: 4.656416244 | I23: 5.002995677 | J23: 5.4324296 | L23: 4.506690265 | M23: 2.428571429 | N23: 0.2794048394 | O23: 4.038493133 | P23: 4.684954744 | Q23: 0.6464616109 | S23: Average | T23: 650 | U23: 700
A24: 18 | B24: 2.571428571 | D24: 3.753490886 | E24: 4.037189788 | F24: 4.308226038 | G24: 4.593728206 | H24: 4.920824864 | I24: 5.316644583 | J24: 5.808315934 | L24: 4.750381688 | M24: 2.571428571 | N24: 0.2874087808 | O24: 4.325901914 | P24: 5.018370473 | Q24: 0.6924685589 | S24: Good | T24: 700 | U24: 750
A25: 19 | B25: 2.714285714 | D25: 3.895809504 | E25: 4.209886623 | F25: 4.51170415 | G25: 4.831497799 | H25: 5.199503286 | I25: 5.645956323 | J25: 6.201092626 | L25: 5.007584331 | M25: 2.714285714 | N25: 0.2958487626 | O25: 4.621750677 | P25: 5.361577213 | Q25: 0.7398265366
A26: 20 | B26: 2.857142857 | D26: 4.045126171 | E26: 4.391610288 | F26: 4.726072364 | G26: 5.081855257 | H26: 5.492301823 | I26: 5.990754919 | J26: 6.610557404 | L26: 5.278161652 | M26: 2.857142857 | N26: 0.3047190598 | O26: 4.926469736 | P26: 5.715074163 | Q26: 0.7886044267
A27: 21 | B27: 3 | D27: 4.201396367 | E27: 4.582289972 | F27: 4.951233577 | G27: 5.344677182 | H27: 5.799070787 | I27: 6.350864392 | J27: 7.036507997 | L27: =(-0.00003006*L$2 + 0.0124848506)*$B27^3+(-0.000000811*L$2^2 + 0.0020904273*L$2 - 0.6502866461)*$B27^2+(0.000000029*L$2^3 - 0.000042999*L$2^2 + 0.0194860819*L$2 - 2.5845091041)*$B27+(-0.0000000384*L$2^3 + 0.000053716*L$2^2 - 0.0223500993*L$2 + 4.9852264783) -> 5.56197711 | M27: 3 | N27: 0.3140139001 | O27: 5.240483636 | P27: 6.079353824 | Q27: 0.8388701879
A28: 22 | B28: 3.142857143 | D28: 4.36457557 | E28: 4.781854861 | F28: 5.187090684 | G28: 5.619840179 | H28: 6.119660491 | I28: 6.726108763 | J28: 7.478742136 | L28: 5.858894162 | M28: 3.142857143 | N28: 0.3237274666 | O28: 5.564211103 | P28: 6.454901951 | Q28: 0.8906908479 | S28: National Guidelines standard
A29: 23 | B29: 3.285714286 | D29: 4.534619257 | E29: 4.990234142 | F29: 5.433546579 | G29: 5.907220852 | H29: 6.453921247 | I29: 7.116312051 | J29: 7.937057548 | L29: 6.168776266 | M29: 3.285714286 | N29: 0.3338538993 | O29: 5.898065002 | P29: 6.842197498 | Q29: 0.9441324962 | S29: Age (weeks) | T29: Av age (wk) | U29: Live weight (kg) | V29: Av live weight (kg)
A30: 24 | B30: 3.428571429 | D30: 4.711482908 | E30: 5.207357002 | F30: 5.690504158 | G30: 6.206695803 | H30: 6.801703367 | I30: 7.521298278 | J30: 8.411251964 | L30: 6.491486881 | M30: 3.428571429 | N30: 0.3443872977 | O30: 6.2424523 | P30: 7.241712578 | Q30: 0.9992602778 | S30: 0 | U30: 1.4
A31: 25 | B31: 3.571428571 | D31: 4.895122 | E31: 5.433152628 | F31: 5.957866316 | G31: 6.518141638 | H31: 7.162857163 | I31: 7.940891464 | J31: 8.901123112 | L31: 6.826889464 | M31: 3.571428571 | N31: 0.3553217229 | O31: 6.597774023 | P31: 7.65391241 | Q31: 1.056138387 | S31: 4 | T31: =(S30+S31)/2 -> 2 | U31: 8 | V31: =(U30+U31)/2 -> 4.7
A32: 26 | B32: 3.714285714 | D32: 5.085492013 | E32: 5.667550206 | F32: 6.23553595 | G32: 6.841434959 | H32: 7.537232948 | I32: 8.374915631 | J32: 9.406468722 | L32: 7.174847474 | M32: 3.714285714 | N32: 0.3666511995 | O32: 6.964425222 | P32: 8.079255284 | Q32: 1.114830062 | S32: 7 | T32: 5.5 | U32: 16.5 | V32: 12.25
A33: 27 | B33: 3.857142857 | D33: 5.282548424 | E33: 5.910478924 | F33: 6.523415954 | G33: 7.176452371 | H33: 7.924681034 | I33: 8.823194799 | J33: 9.927086522 | L33: 7.535224368 | M33: 3.857142857 | N33: 0.3783697175 | O33: 7.34279494 | P33: 8.518192517 | Q33: 1.175397578 | S33: 10 | T33: 8.5 | U33: 25 | V33: 20.75
A34: 28 | B34: 4 | D34: 5.486246713 | E34: 6.161867968 | F34: 6.821409223 | G34: 7.523070478 | H34: 8.325051733 | I34: 9.285552988 | J34: 10.46277424 | L34: 7.907883605 | M34: 4 | N34: 0.390471235 | O34: 7.733266175 | P34: 8.971168418 | Q34: 1.237902243 | S34: 13 | T34: 11.5 | U34: 40 | V34: 32.5
A35: 29 | B35: 4.142857143 | D35: 5.696542357 | E35: 6.421646525 | F35: 7.129418653 | G35: 7.881165882 | H35: 8.738195357 | I35: 9.761814219 | J35: 11.01332961 | L35: 8.292688643 | M35: 4.142857143 | N35: 0.4029496796 | O35: 8.136215854 | P35: 9.43862025 | Q35: 1.302404396 | S35: 16 | T35: 14.5 | U35: 55 | V35: 47.5
A36: 30 | B36: 4.285714286 | D36: 5.913390835 | E36: 6.689743783 | F36: 7.447347139 | G36: 8.250615189 | H36: 9.163962219 | I36: 10.25180251 | J36: 11.57855036 | L36: 8.689502938 | M36: 4.285714286 | N36: 0.4157989505 | O36: 8.552014805 | P36: 9.920978199 | Q36: 1.368963394 | S36: 24 | T36: 20 | U36: 100 | V36: 77.5
A37: 31 | B37: 4.428571429 | D37: 6.136747625 | E37: 6.966088928 | F37: 7.775097577 | G37: 8.631295001 | H37: 9.60220263 | I37: 10.75534189 | J37: 12.15823421 | L37: 9.098189951 | M37: 4.428571429 | N37: 0.4290129207 | O37: 8.981027726 | P37: 10.41866534 | Q37: 1.437637619 | S37: 30 | T37: 27 | U37: 130 | V37: 115
A38: 32 | B38: 4.571428571 | D38: 6.366568207 | E38: 7.250611146 | F38: 8.112572861 | G38: 9.023081923 | H38: 10.0527669 | I38: 11.27225637 | J38: 12.75217891 | L38: 9.518613138 | M38: 4.571428571 | N38: 0.4425854391 | O38: 9.423613165 | P38: 10.93209763 | Q38: 1.508484463
A39: 33 | B39: 4.714285714 | D39: 6.602808057 | E39: 7.543239626 | F39: 8.459675888 | G39: 9.425852559 | H39: 10.51550535 | I39: 11.80236998 | J39: 13.36018216 | L39: 9.950635958 | M39: 4.714285714 | N39: 0.4565103316 | O39: 9.880123496 | P39: 11.46168383 | Q39: 1.581560335
A40: 34 | B40: 4.857142857 | D40: 6.845422656 | E40: 7.843903553 | F40: 8.816309553 | G40: 9.839483512 | H40: 10.99026829 | I40: 12.34550674 | J40: 13.98204171 | L40: 10.39412187 | M40: 4.857142857 | N40: 0.4707814042 | O40: 10.3509049 | P40: 12.00782555 | Q40: 1.656920647 | V40: Willis | W40: PRDC
A41: 35 | B41: 5 | D41: 7.09436748 | E41: 8.152532115 | F41: 9.18237675 | G41: 10.26385139 | H41: 11.47690602 | I41: 12.90149066 | J41: 14.61755529 | L41: 10.84893433 | M41: 5 | N41: 0.485392444 | O41: 10.83629734 | P41: 12.57091717 | Q41: 1.734619822 | S41: Entered grower herd ADG | T41: g/day | U41: =L2 -> 675
A42: 36 | B42: 5.142857143 | D42: 7.349598009 | E42: 8.469054499 | F42: 9.557780376 | G42: 10.69883278 | H42: 11.97526887 | I42: 13.47014576 | J42: 15.26652062 | L42: 11.31493679 | M42: 5.142857143 | N42: 0.5003372212 | O42: 11.33663457 | P42: 13.15134585 | Q42: 1.81471128 | S42: Age at 100 kg live weight | T42: weeks | U42: =U49/7 -> 20.86772487
A43: 37 | B43: 5.285714286 | D43: 7.611069722 | E43: 8.793399891 | F43: 9.942423325 | G43: 11.14430431 | H43: 12.48520713 | I43: 14.05129608 | J43: 15.92873543 | L43: 11.79199272 | M43: 5.285714286 | N43: 0.5156094915 | O43: 11.85224406 | P43: 13.7494915 | Q43: 1.897247447 | S43: Entered grower herd FCR | U43: ='8. Feed details'!E7 -> 2.298
A44: 38 | B44: 5.428571429 | D44: 7.878738095 | E44: 9.125497478 | F44: 10.33620849 | G44: 11.60014257 | H44: 13.00657114 | I44: 14.64476562 | J44: 16.60399745 | L44: 12.27996558 | M44: 5.428571429 | N44: 0.531202997 | O44: 12.38344705 | P44: 14.3657268 | Q44: 1.982279743 | S44: S Feed ingested - birth to 100 kg | T44: kg | U44: =VLOOKUP(100,L7:O202, 4, TRUE) -> 195.3173791 | V44: =7*(((0.000000000071189*U41^2 - 0.00000002477377*U41 - 0.000004038661444)*U42^5)/5+((-0.000000001002912*U41^2 - 0.000002881954697*U41 + 0.001438856666767)*U42^4)/4+((-0.000000060875126*U41^2 + 0.000145742239164*U41 - 0.047938044293907)*U42^3)/3+((0.000000001800819*U41^3 - 0.000002774275076*U41^2 + 0.001272505833082*U41 - 0.171629578799318)*U42^2)/2+(-0.000000002188792*U41^3 + 0.000003175842546*U41^2 - 0.001355216082386*U41 + 0.304300173002773)*U42) -> 215.3099236 | W44: =(((0.000000000074714*U41^2 - 0.000000025998608*U41 - 0.000004239537815)*U42^5)/5+((-0.000000001052597*U41^2 - 0.000002884631599*U41 + 0.001451943218464)*U42^4)/4+((-0.000000060110521*U41^2 + 0.000143219408767*U41 - 0.047281786699292)*U42^3)/3+((0.000000001754901*U41^3 - 0.000002711196545*U41^2 + 0.001244663044207*U41 - 0.16807474928646)*U42^2)/2+(-0.000000002118293*U41^3 + 0.00000308257998*U41^2 - 0.00131804463886*U41 + 0.304334263496524)*U42)*7 -> 199.623384
A45: 39 | B45: 5.571428571 | D45: 8.152558609 | E45: 9.465276448 | F45: 10.73903878 | G45: 12.06622417 | H45: 13.53921119 | I45: 15.25037842 | J45: 17.29210442 | L45: 12.77871881 | M45: 5.571428571 | N45: 0.5471114691 | O45: 12.93055852 | P45: 15.00041711 | Q45: 2.069858588 | S45: S Feed wasted - birth to 100 kg | T45: kg | U45: =U48-U44 -> 31.26542088 | V45: =$U43*(100-1.4)-V44 -> 11.27287643 | W45: =$U43*(100-1.4)-W44 -> 26.95941603
A46: 40 | B46: 5.714285714 | D46: 8.432486741 | E46: 9.812665986 | F46: 11.15081707 | G46: 12.5424257 | H46: 14.0829776 | I46: 15.86795848 | J46: 17.99285405 | L46: 13.28811589 | M46: 5.714285714 | N46: 0.5633286292 | O46: 13.49388715 | P46: 15.65392055 | Q46: 2.160033393 | S46: Est feed wastage (formula) | T46: % | U46: =(0.000000001717*U41^3 - 0.000003534482*U41^2 + 0.00208382022*U41 - 0.435320268193)*U43^2+(-0.000000007098*U41^3 + 0.000013738358*U41^2 - 0.007464088382*U41 + 1.851885033944)*U43-1.3415505803 -> 0.1175199224 | V46: =V45/(V44+V45) -> 0.04975168651 | W46: =W45/(W44+W45) -> 0.1189826237
A47: 41 | B47: 5.857142857 | D47: 8.71847797 | E47: 10.16759528 | F47: 11.57144627 | G47: 13.02862378 | H47: 14.63772068 | I47: 16.49732983 | J47: 18.70604408 | L47: 13.80802026 | M47: 5.857142857 | N47: 0.5798481912 | O47: 14.07373534 | P47: 16.32658791 | Q47: 2.252852567
A48: 42 | B48: 6 | D48: 9.010487774 | E48: 10.52999352 | F48: 12.00082926 | G48: 13.52469501 | H48: 15.20329075 | I48: 17.1383165 | J48: 19.43147224 | L48: 14.33829538 | M48: 6 | N48: 0.5966638629 | O48: 14.67039921 | P48: 17.01876272 | Q48: 2.348363509 | S48: S Feed fed - birth to 100 kg | T48: kg | U48: =U43*(100-1.4) -> 226.5828 | V48: =V44+V45 -> 226.5828 | W48: =W44+W45 -> 226.5828
A49: 43 | B49: 6.142857143 | D49: 9.308471631 | E49: 10.89978989 | F49: 12.43886896 | G49: 14.03051599 | H49: 15.77953812 | I49: 17.7907425 | J49: 20.16893626 | L49: 14.87880472 | M49: 6.142857143 | N49: 0.6137693478 | O49: 15.28416855 | P49: 17.73078116 | Q49: 2.44661261 | S49: Age at 100 kg live weight | T49: days | U49: =(100-1.4)/(U41/1000) -> 146.0740741 | V49: =U42*7 -> 146.0740741 | W49: =U42*7 -> 146.0740741
A50: 44 | B50: 6.285714286 | D50: 9.612385021 | E50: 11.27691357 | F50: 12.88546824 | G50: 14.54596332 | H50: 16.36631309 | I50: 18.45443185 | J50: 20.91823387 | L50: 15.42941173 | M50: 6.285714286 | N50: 0.6311583469 | O50: 15.9153269 | P50: 18.46297216 | Q50: 2.547645255 | S50: Av Feed fed - birth to 100 kg | T50: kg/pig/day | U50: =U48/U$49 -> 1.55115 | V50: =V48/V49 -> 1.55115 | W50: =W48/W49 -> 1.55115
A51: 45 | B51: 6.428571429 | D51: 9.922183421 | E51: 11.66129376 | F51: 13.34053001 | G51: 15.07091361 | H51: 16.96346599 | I51: 19.12920857 | J51: 21.67916279 | L51: 15.98997987 | M51: 6.428571429 | N51: 0.6488245602 | O51: 16.56415146 | P51: 19.21565728 | Q51: 2.651505818 | S51: Av Feed ingested - birth to 100 kg | T51: kg/pig/day | U51: =U44/U$49 -> 1.337111875 | V51: =V44/V49 -> 1.473977671 | W51: =W44/W49 -> 1.366590103
A52: 46 | B52: 6.571428571 | D52: 10.23782231 | E52: 12.05285964 | F52: 13.80395716 | G52: 15.60524347 | H52: 17.57084712 | I52: 19.81489669 | J52: 22.45152075 | L52: 16.56037259 | M52: 6.571428571 | N52: 0.6667616881 | O52: 17.23091315 | P52: 19.98915082 | Q52: 2.758237666 | S52: Av Feed wasted - birth to 100 kg | T52: kg/pig/day | U52: =U45/U$49 -> 0.2140381247 | V52: =V45/V49 -> 0.07717232853 | W52: =W45/W49 -> 0.1845598967
A53: 47 | B53: 6.714285714 | D53: 10.55925717 | E53: 12.45154039 | F53: 14.27565259 | G53: 16.14882949 | H53: 18.1883068 | I53: 20.51132023 | J53: 23.23510549 | L53: 17.14045336 | M53: 6.714285714 | N53: 0.6849634338 | O53: 17.91587658 | P53: 20.78375974 | Q53: 2.867883157
A54: 48 | B54: 6.857142857 | D54: 10.88644347 | E54: 12.85726521 | F54: 14.7555192 | G54: 16.70154828 | H54: 18.81569533 | I54: 21.2183032 | J54: 24.02971473 | L54: 17.73008563 | M54: 6.857142857 | N54: 0.703423504 | O54: 18.61930009 | P54: 21.59978373 | Q54: 2.980483644 | S54: FCR (no feed wastage) | U54: =U44/(100-1.4) -> 1.980906482 | V54: =V44/(100-1.4) -> 2.183670624 | W54: =W44/(100-1.4) -> 2.024577931
A55: 49 | B55: 7 | D55: 11.2193367 | E55: 13.26996328 | F55: 15.24345987 | G55: 17.26327645 | H55: 19.45286304 | I55: 21.93566962 | J55: 24.83514621 | L55: 18.32913287 | M55: 7 | N55: 0.7221356111 | O55: 19.3414357 | P55: 22.43751517 | Q55: 3.09607947
A56: 50 | B56: 7.142857143 | D56: 11.55789233 | E56: 13.68956379 | F56: 15.7393775 | G56: 17.8338906 | H56: 20.09966022 | I56: 22.66324353 | J56: 25.65119764 | L56: 18.93745852 | M56: 7.142857143 | N56: 0.7410934745 | O56: 20.08252917 | P56: 23.29723915 | Q56: 3.214709975 | S56: Est feed wastage (interpolated) | T56: % | U56: =U52/U50 -> 0.1379867355
A57: 51 | B57: 7.285714286 | D57: 11.90206584 | E57: 14.11599592 | F57: 16.24317499 | G57: 18.41326732 | H57: 20.75593721 | I57: 23.40084893 | J57: 26.47766677 | L57: 19.55492605 | M57: 7.285714286 | N57: 0.7602908222 | O57: 20.84282 | P57: 24.17923349 | Q57: 3.336413495
A58: 52 | B58: 7.428571429 | D58: 12.25181271 | E58: 14.54918887 | F58: 16.75475524 | G58: 19.00128324 | H58: 21.4215443 | I58: 24.14830985 | J58: 27.31435132 | L58: 20.18139892 | M58: 7.428571429 | N58: 0.7797213922 | O58: 21.62254139 | P58: 25.08376875 | Q58: 3.461227363
A59: 53 | B59: 7.571428571 | D59: 12.60708842 | E59: 14.98907181 | F59: 17.27402113 | G59: 19.59781494 | H59: 22.09633181 | I59: 24.90545031 | J59: 28.16104901 | L59: 20.81674058 | M59: 7.571428571 | N59: 0.799378934 | O59: 22.42192032 | P59: 26.01110823 | Q59: 3.589187911
A60: 54 | B60: 7.714285714 | D60: 12.96784844 | E60: 15.43557394 | F60: 17.80087557 | G60: 20.20273903 | H60: 22.78015005 | I60: 25.67209433 | J60: 29.01755758 | L60: 21.46081449 | M60: 7.714285714 | N60: 0.8192572104 | O60: 23.24117753 | P60: 26.961508 | Q60: 3.720330473
A61: 55 | B61: 7.857142857 | D61: 13.33404826 | E61: 15.88862445 | F61: 18.33522145 | G61: 20.81593212 | H61: 23.47284933 | I61: 26.44806593 | J61: 29.88367476 | L61: 22.11348411 | M61: 7.857142857 | N61: 0.8393499984 | O61: 24.08052753 | P61: 27.93521692 | Q61: 3.854689387
A62: 56 | B62: 8 | D62: 13.70564335 | E62: 16.34815251 | F62: 18.87696166 | G62: 21.43727082 | H62: 24.17427997 | I62: 27.23318913 | J62: 30.75919828 | L62: 22.77461289 | M62: 8 | N62: 0.8596510911 | O62: 24.94017862 | P62: 28.93247662 | Q62: 3.992297997
A63: 57 | B63: 8.142857143 | D63: 14.0825892 | E63: 16.81408732 | F63: 19.42599911 | G63: 22.06663171 | H63: 24.88429228 | I63: 28.02728795 | J63: 31.64392587 | L63: 23.44406431 | M63: 8.142857143 | N63: 0.8801542988 | O63: 25.82033292 | P63: 29.95352158 | Q63: 4.133188658 | S63: FCR rating | T63: FCR - birth to 100 kg live weight
A64: 58 | B64: 8.285714286 | D64: 14.46484127 | E64: 17.28635806 | F64: 19.98223668 | G64: 22.70389142 | H64: 25.60273657 | I64: 28.83018642 | J64: 32.53765524 | L64: 24.1217018 | M64: 8.285714286 | N64: 0.9008534503 | O64: 26.72118637 | P64: 30.99857911 | Q64: 4.277392735 | T64: Lower limit | U64: Upper limit
A65: 59 | B65: 8.428571429 | D65: 14.85235506 | E65: 17.76489392 | F65: 20.54557727 | G65: 23.34892654 | H65: 26.32946316 | I65: 29.64170855 | J65: 33.44018414 | L65: 24.80738884 | M65: 8.428571429 | N65: 0.9217423948 | O65: 27.64292877 | P65: 32.06786937 | Q65: 4.424940608 | S65: Very poor | T65: 3 | U65: 4.5
A66: 60 | B66: 8.571428571 | D66: 15.24508603 | E66: 18.24962409 | F66: 21.11592378 | G66: 24.00161367 | H66: 27.06432234 | I66: 30.46167836 | J66: 34.3513103 | L66: 25.50098888 | M66: 8.571428571 | N66: 0.9428150024 | O66: 28.58574377 | P66: 33.16160545 | Q66: 4.575861678 | S66: Poor | T66: 2.8 | U66: 3
A67: 61 | B67: 8.714285714 | D67: 15.64298966 | E67: 18.74047775 | F67: 21.6931791 | G67: 24.66182943 | H67: 27.80716445 | I67: 31.28991988 | J67: 35.27083144 | L67: 26.20236537 | M67: 8.714285714 | N67: 0.9640651663 | O67: 29.54980893 | P67: 34.2799933 | Q67: 4.730184367 | S67: Fair | T67: 2.6 | U67: 2.8
A68: 62 | B68: 8.857142857 | D68: 16.04602144 | E68: 19.23738409 | F68: 22.27724612 | G68: 25.3294504 | H68: 28.55783979 | I68: 32.12625713 | J68: 36.19854529 | L68: 26.91138178 | M68: 8.857142857 | N68: 0.9854868033 | O68: 30.53529574 | P68: 35.42323186 | Q68: 4.887936124 | S68: Good | T68: 2.3 | U68: 2.6
A69: 63 | B69: 9 | D69: 16.45413684 | E69: 19.7402723 | F69: 22.86802775 | G69: 26.00435321 | H69: 29.31619866 | I69: 32.97051412 | J69: 37.13424957 | L69: 27.62790156 | M69: 9 | N69: 1.007073855 | O69: 31.54236959 | P69: 36.59151302 | Q69: 5.049143427 | S69: Very good | T69: 1.8 | U69: 2.3
A70: 64 | B70: 9.142857143 | D70: 16.86729135 | E70: 20.24907156 | F70: 23.46542688 | G70: 26.68641445 | H70: 30.0820914 | I70: 33.82251488 | J70: 38.07774203 | L70: 28.35178818 | M70: 9.142857143 | N70: 1.028820292 | O70: 32.57118988 | P70: 37.78502167 | Q70: 5.21383179
A71: 65 | B71: 9.285714286 | D71: 17.28544043 | E71: 20.76371107 | F71: 24.0693464 | G71: 27.37551072 | H71: 30.8553683 | I71: 34.68208343 | J71: 39.02882039 | L71: 29.08290508 | M71: =B71 -> 9.285714286 | N71: 1.050720108 | O71: 33.62190999 | P71: =O71/(1-U$56) -> 39.00393576 | Q71: 5.382025765 | S71: HFC
A72: 66 | B72: =A72/7 -> 9.428571429 | D72: 17.70853957 | E72: 21.28412 | F72: 24.67968921 | G72: 28.07151863 | H72: 31.63587967 | I72: 35.54904378 | J72: 39.98728238 | L72: 29.82111573 | M72: 9.428571429 | N72: 1.072767329 | O72: 34.69467732 | P72: 40.24842627 | Q72: =P72-O72 -> 5.553748948 | S72: Good | T72: 3 | U72: 3.44999999
A73: 67 | B73: 9.571428571 | D73: 18.13654425 | E73: 21.81022755 | F73: 25.29635821 | G73: 28.77431478 | H73: =(-0.00003006*H$2 + 0.0124848506)*$B73^3+(-0.000000811*H$2^2 + 0.0020904273*H$2 - 0.6502866461)*$B73^2+(0.000000029*H$2^3 - 0.000042999*H$2^2 + 0.0194860819*H$2 - 2.5845091041)*$B73+(-0.0000000384*H$2^3 + 0.000053716*H$2^2 - 0.0223500993*H$2 + 4.9852264783) -> 32.42347584 | I73: 36.42321997 | J73: 40.95292572 | L73: 30.56628359 | M73: 9.571428571 | N73: =-0.00006*L73^2 + 0.0334*L73 + 0.1301 -> 1.09495601 | O73: 35.78963333 | P73: 41.51865731 | Q73: 5.729023984 | S73: Average | T73: 3.5 | U73: 3.849999999
A74: 68 | B74: 9.714285714 | D74: 18.56940994 | E74: 22.34196291 | F74: 25.91925628 | G74: 29.48377578 | H74: 33.21800711 | I74: 37.304436 | J74: 41.92554815 | L74: 31.31827211 | M74: 9.714285714 | N74: 1.117280238 | O74: =O73+N74 -> 36.90691357 | P74: 42.81478614 | Q74: 5.907872569 | S74: Fair | T74: 3.85 | U74: 4.199999999
A75: 69 | B75: 9.857142857 | D75: 19.00709212 | E75: 22.87925525 | F75: 26.54828633 | G75: 30.19977823 | H75: 34.0193238 | I75: 38.19251591 | J75: 42.9049474 | L75: 32.07694475 | M75: 9.857142857 | N75: 1.139734132 | O75: 38.0466477 | P75: 44.13696316 | Q75: 6.09031546 | S75: Poor | T75: 4.2 | U75: 4.5
A76: 70 | B76: 10 | D76: 19.44954628 | E76: 23.42203376 | F76: 27.18335125 | G76: 30.92219873 | H76: 34.82727622 | I76: 39.0872837 | J76: 43.89092119 | L76: 32.84216497 | M76: 10 | N76: 1.162311842 | O76: 39.20895954 | P76: 45.48533202 | Q76: 6.276372477 | S76: FCR
A77: 71 | B77: 10.14285714 | D77: 19.89672788 | E77: 23.97022764 | F77: 27.82435393 | G77: 31.65091389 | H77: 35.64171467 | I77: 39.98856341 | J77: 44.88326725 | L77: 33.61379623 | M77: 10.14285714 | N77: 1.185007556 | O77: 40.3939671 | P77: 46.86002961 | Q77: 6.466062509 | S77: Good | T77: 1.95 | U77: 2.34999999
A78: 72 | B78: 10.28571429 | D78: 20.34859242 | E78: 24.52376607 | F78: 28.47119727 | G78: 32.38580032 | H78: 36.46248948 | I78: 40.89617905 | J78: 45.88178332 | L78: 34.39170199 | M78: 10.28571429 | N78: 1.207815497 | O78: 41.6017826 | P78: 48.26118612 | Q78: 6.659403522 | S78: Average | T78: 2.35 | U78: 2.55
A79: 73 | B79: 10.42857143 | D79: 20.80509536 | E79: 25.08257824 | F79: 29.12378418 | G79: 33.1267346 | H79: 37.28945095 | I79: 41.80995465 | J79: 46.88626712 | L79: =(-0.00003006*L$2 + 0.0124848506)*$B79^3+(-0.000000811*L$2^2 + 0.0020904273*L$2 - 0.6502866461)*$B79^2+(0.000000029*L$2^3 - 0.000042999*L$2^2 + 0.0194860819*L$2 - 2.5845091041)*$B79+(-0.0000000384*L$2^3 + 0.000053716*L$2^2 - 0.0223500993*L$2 + 4.9852264783) -> 35.1757457 | M79: 10.42857143 | N79: 1.230729921 | O79: 42.83251252 | P79: 49.68892508 | Q79: 6.85641256 | S79: Fair | T79: 2.55 | U79: 2.74999999
A80: 74 | B80: 10.57142857 | D80: 21.26619218 | E80: 25.64659332 | F80: 29.78201753 | G80: 33.87359336 | H80: 38.1224494 | I80: 42.72971422 | J80: 47.89651638 | L80: 35.96579082 | M80: 10.57142857 | N80: 1.253745127 | O80: 44.08625764 | P80: 51.1433634 | Q80: 7.057105756 | S80: Poor | T80: 2.75 | U80: 3
A81: 75 | B81: 10.71428571 | D81: 21.73183837 | E81: 26.21574052 | F81: 30.44580023 | G81: 34.62625319 | H81: 38.96133514 | I81: 43.65528178 | J81: 48.91232883 | L81: 36.76170081 | M81: 10.71428571 | N81: 1.276855448 | O81: 45.36311309 | P81: 52.62461143 | Q81: 7.261498336 | S81: FC (birth to 100 kg)
A82: 76 | B82: 10.85714286 | D82: 22.2019894 | E82: 26.78994902 | F82: 31.11503517 | G82: 35.3845907 | H82: 39.80595848 | I82: 44.58648136 | J82: 49.9335022 | L82: 37.56333913 | M82: 10.85714286 | N82: 1.30005526 | O82: 46.66316835 | P82: 54.13277298 | Q82: 7.469604625 | S82: Good | T82: =T77*1.05 -> 2.0475 | U82: =U77*1.05 -> 2.46749999
A83: 77 | B83: 11 | D83: 22.67660075 | E83: 27.369148 | F83: 31.78962524 | G83: 36.14848249 | H83: 40.65616973 | I83: 45.52313698 | J83: 50.95983422 | L83: 38.37056924 | M83: 11 | N83: 1.323338977 | O83: 47.98650733 | P83: 55.66794538 | Q83: 7.681438053 | S83: Average | T83: =T78*1.05 -> 2.4675 | U83: 2.6775
A84: 78 | B84: 11.14285714 | D84: 23.1556279 | E84: 27.95326665 | F84: 32.46947335 | G84: 36.91780516 | H84: 41.51181921 | I84: 46.46507265 | J84: 51.99112262 | L84: 39.18325459 | M84: 11.14285714 | N84: 1.346701057 | O84: 49.33320839 | P84: 57.23021955 | Q84: 7.897011166 | S84: Fair | T84: =T79*1.05 -> 2.6775 | U84: 2.88749999
A85: 79 | B85: 11.28571429 | D85: 23.63902633 | E85: 28.54223416 | F85: 33.15448239 | G85: 37.69243532 | H85: 42.37275723 | I85: 47.4121124 | J85: 53.02716513 | L85: 40.00125864 | M85: 11.28571429 | N85: 1.370135997 | O85: 50.70334438 | P85: 58.81968001 | Q85: 8.116335625 | S85: Poor | T85: =T80*1.05 -> 2.8875 | U85: 3.15
A86: 80 | B86: 11.42857143 | D86: 24.12675152 | E86: 29.13597971 | F86: 33.84455526 | G86: =(-0.00003006*G$2 + 0.0124848506)*$B86^3+(-0.000000811*G$2^2 + 0.0020904273*G$2 - 0.6502866461)*$B86^2+(0.000000029*G$2^3 - 0.000042999*G$2^2 + 0.0194860819*G$2 - 2.5845091041)*$B86+(-0.0000000384*G$2^3 + 0.000053716*G$2^2 - 0.0223500993*G$2 + 4.9852264783) -> 38.47224957 | H86: 43.2388341 | I86: 48.36408025 | J86: 54.06775947 | L86: 40.82444485 | M86: 11.42857143 | N86: 1.39363834 | O86: 52.09698272 | P86: 60.43640495 | Q86: 8.339422222
A87: 81 | B87: 11.57142857 | D87: =(-0.00003006*D$2 + 0.0124848506)*$B87^3+(-0.000000811*D$2^2 + 0.0020904273*D$2 - 0.6502866461)*$B87^2+(0.000000029*D$2^3 - 0.000042999*D$2^2 + 0.0194860819*D$2 - 2.5845091041)*$B87+(-0.0000000384*D$2^3 + 0.000053716*D$2^2 - 0.0223500993*D$2 + 4.9852264783) -> 24.61875893 | E87: 29.7344325 | F87: 34.53959484 | G87: 39.25712452 | H87: 44.10990013 | I87: 49.32080022 | J87: 55.11270338 | L87: 41.65267668 | M87: 11.57142857 | N87: 1.417202673 | O87: 53.5141854 | P87: 62.08046627 | Q87: 8.566280877
A88: 82 | B88: 11.71428571 | D88: 25.11500406 | E88: 30.3375217 | F88: 35.23950403 | G88: 40.04693677 | H88: 44.98580563 | I88: 50.28209633 | J88: 56.16179458 | L88: 42.48581758 | M88: 11.71428571 | N88: 1.440823625 | O88: 54.95500902 | P88: 63.75192968 | Q88: 8.796920656
A89: 83 | B89: 11.85714286 | D89: 25.61544239 | E89: 30.94517651 | F89: 35.94418574 | G89: 40.84156292 | H89: 45.86640093 | I89: 51.2477926 | J89: 57.21483081 | L89: 43.32373102 | M89: 11.85714286 | N89: 1.464495876 | O89: 56.4195049 | P89: 65.45085467 | Q89: 9.031349769
A90: 84 | B90: 12 | D90: 26.12002938 | E90: 31.55732611 | F90: 36.65354285 | G90: 41.64087958 | H90: 46.75153632 | I90: 52.21771305 | J90: 58.27160979 | L90: 44.16628045 | M90: 12 | N90: 1.488214147 | O90: 57.90771905 | P90: 67.17729463 | Q90: 9.269575583
A91: 85 | B91: 12.14285714 | D91: 26.62872052 | E91: 32.17389969 | F91: 37.36747826 | G91: 42.44476335 | H91: 47.64106212 | I91: 53.19168171 | J91: 59.33192925 | L91: 45.01332933 | M91: 12.14285714 | N91: 1.511973211 | O91: 59.41969226 | P91: 68.93129688 | Q91: 9.511604628
A92: 86 | B92: 12.28571429 | D92: 27.14147128 | E92: 32.79482644 | F92: 38.08589486 | G92: 43.25309084 | H92: 48.53482865 | I92: 54.16952258 | J92: 60.39558692 | L92: 45.86474112 | M92: 12.28571429 | N92: 1.535767885 | O92: 60.95546014 | P92: 70.71290275 | Q92: 9.757442605
A93: 87 | B93: 12.42857143 | D93: 27.65823715 | E93: 33.42003554 | F93: 38.80869556 | G93: 44.06573864 | H93: 49.43268621 | I93: 55.1510597 | J93: 61.46238054 | L93: 46.72037928 | M93: 12.42857143 | N93: 1.559593037 | O93: 62.51505318 | P93: 72.52214757 | Q93: 10.00709439
A94: 88 | B94: 12.57142857 | D94: 28.17897361 | E94: 34.04945618 | F94: 39.53578324 | G94: 44.88258337 | H94: 50.33448512 | I94: 56.13611708 | J94: 62.53210782 | L94: 47.58010726 | M94: 12.57142857 | N94: 1.583443586 | O94: 64.09849676 | P94: 74.35906082 | Q94: 10.26056405
A95: 89 | B95: 12.71428571 | D95: 28.70363612 | E95: 34.68301755 | F95: 40.26706081 | G95: 45.70350162 | H95: 51.2400757 | I95: 57.12451875 | J95: 63.6045665 | L95: 48.44378852 | M95: 12.71428571 | N95: 1.607314498 | O95: 65.70581126 | P95: 76.22366611 | Q95: 10.51785485
A96: 90 | B96: 12.85714286 | D96: 29.23218018 | E96: 35.32064883 | F96: 41.00243115 | G96: 46.52837 | H96: 52.14930824 | I96: 58.11608873 | J96: 64.67955431 | L96: 49.31128652 | M96: 12.85714286 | N96: 1.631200791 | O96: 67.33701205 | P96: 78.1159813 | Q96: 10.77896925
A97: 91 | B97: 13 | D97: 29.76456125 | E97: 35.96227921 | F97: 41.74179716 | G97: 47.35706512 | H97: 53.06203307 | I97: 59.11065103 | J97: 65.75686898 | L97: 50.18246472 | M97: 13 | N97: 1.655097536 | O97: 68.99210959 | P97: 80.0360185 | Q97: 11.04390891
A98: 92 | B98: 13.14285714 | D98: 30.30073482 | E98: 36.60783788 | F98: 42.48506174 | G98: 48.18946357 | H98: 53.9781005 | I98: 60.10802967 | J98: 66.83630824 | L98: 51.05718658 | M98: 13.14285714 | N98: 1.678999854 | O98: 70.67110944 | P98: 81.98378418 | Q98: 11.31267474
A99: 93 | B99: 13.28571429 | D99: 30.84065637 | E99: 37.25725402 | F99: 43.23212779 | G99: 49.02544197 | H99: 54.89736084 | I99: 61.10804869 | J99: 67.91766981 | L99: 51.93531555 | M99: 13.28571429 | N99: 1.702902919 | O99: 72.37401236 | P99: 83.95927921 | Q99: 11.58526685
A100: 94 | B100: 13.42857143 | D100: 31.38428137 | E100: 37.91045682 | F100: 43.98289819 | G100: 49.86487691 | H100: 55.8196644 | I100: 62.11053209 | J100: 69.00075142 | L100: 52.81671509 | M100: 13.42857143 | N100: 1.72680196 | O100: 74.10081432 | P100: 85.96249892 | Q100: 11.8616846
A101: 95 | B101: 13.57142857 | D101: 31.9315653 | E101: 38.56737547 | F101: 44.73727585 | G101: 50.707645 | H101: 56.74486149 | I101: 63.11530391 | J101: 70.08535081 | L101: 53.70124866 | M101: 13.57142857 | N101: 1.750692259 | O101: 75.85150658 | P101: 87.99343317 | Q101: 12.14192658
A102: 96 | B102: 13.71428571 | D102: 32.48246365 | E102: 39.22793916 | F102: 45.49516365 | G102: 51.55362284 | H102: 57.67280243 | I102: 64.12218815 | J102: 71.1712657 | L102: 54.58877973 | M102: 13.71428571 | N102: 1.774569151 | O102: 77.62607573 | P102: 90.05206639 | Q102: 12.42599066
A103: 97 | B103: 13.85714286 | D103: 33.03693188 | E103: 39.89207707 | F103: 46.2564645 | G103: 52.40268704 | H103: 58.60333753 | I103: 65.13100884 | J103: 72.25829383 | L103: 55.47917174 | M103: 13.85714286 | N103: 1.798428026 | O103: 79.42450376 | P103: 92.13837771 | Q103: 12.71387395
A104: 98 | B104: 14 | D104: 33.59492548 | E104: 40.55971839 | F104: 47.02108129 | G104: 53.2547142 | H104: 59.5363171 | I104: 66.14159001 | J104: 73.34623291 | L104: 56.37228815 | M104: 14 | N104: 1.822264332 | O104: 81.24676809 | P104: 94.25234092 | Q104: 13.00557283
A105: 99 | B105: 14.14285714 | D105: 34.15639993 | E105: 41.2307923 | F105: 47.78891692 | G105: 54.10958092 | H105: 60.47159146 | I105: 67.15375566 | J105: 74.43488069 | L105: 57.26799242 | M105: 14.14285714 | N105: 1.84607357 | O105: 83.09284166 | P105: 96.39392464 | Q105: 13.30108298
A106: 100 | B106: 14.28571429 | D106: 34.7213107 | E106: 41.905228 | F106: 48.55987427 | G106: 54.96716381 | H106: 61.4090109 | I106: 68.16732983 | J106: 75.52403488 | L106: 58.16614802 | M106: 14.28571429 | N106: 1.869851297 | O106: 84.96269296 | P106: 98.5630923 | Q106: 13.60039934
A107: 101 | B107: 14.42857143 | D107: 35.28961327 | E107: 42.58295466 | F107: 49.33385625 | G107: 55.82733948 | H107: 62.34842576 | I107: 69.18213654 | J107: 76.61349323 | L107: 59.0666184 | M107: 14.42857143 | N107: 1.89359313 | O107: 86.85628609 | P107: 100.7598023 | Q107: 13.90351618
A108: 102 | B108: 14.57142857 | D108: 35.86126313 | E108: 43.26390148 | F108: 50.11076575 | G108: 56.68998451 | H108: 63.28968634 | I108: 70.19799979 | J108: 77.70305345 | L108: 59.96926701 | M108: 14.57142857 | N108: 1.917294739 | O108: 88.77358083 | P108: 102.9840079 | Q108: 14.21042705
A109: 103 | B109: 14.71428571 | D109: 36.43621575 | E109: 43.94799765 | F109: 50.89050567 | G109: 57.55497553 | H109: 64.23264295 | I109: 71.21474362 | J109: 78.79251328 | L109: 60.87395731 | M109: 14.71428571 | N109: 1.940951854 | O109: 90.71453268 | P109: 105.2356575 | Q109: 14.52112483
A110: 104 | B110: 14.85714286 | D110: 37.0144266 | E110: 44.63517234 | F110: 51.6729789 | G110: 58.42218914 | H110: 65.1771459 | I110: 72.23219205 | J110: 79.88167045 | L110: 61.78055277 | M110: 14.85714286 | N110: 1.964560261 | O110: 92.67909294 | P110: 107.5146947 | Q110: 14.83560173
A111: 105 | B111: 15 | D111: 37.59585117 | E111: 45.32535475 | F111: 52.45808834 | G111: 59.29150192 | H111: 66.12304551 | I111: 73.25016909 | J111: 80.97032268 | L111: 62.68891684 | M111: 15 | N111: 1.988115805 | O111: 94.66720874 | P111: 109.821058 | Q111: 15.15384928
A112: 106 | B112: 15.14285714 | D112: 38.18044493 | E112: 46.01847407 | F112: 53.24573688 | G112: 60.1627905 | H112: 67.07019209 | I112: 74.26849877 | J112: 82.05826771 | L112: 63.59891298 | M112: 15.14285714 | N112: 2.01161439 | O112: 96.67882313 | P112: 112.1546815 | Q112: 15.47585837
A113: 107 | B113: 15.28571429 | D113: 38.76816337 | E113: 46.71445948 | F113: 54.03582742 | G113: 61.03593148 | H113: 68.01843595 | I113: 75.28700511 | J113: 83.14530326 | L113: 64.51040464 | M113: 15.28571429 | N113: 2.035051977 | O113: 98.71387511 | P113: 114.5154943 | Q113: 15.80161922
A114: 108 | B114: 15.42857143 | D114: 39.35896197 | E114: 47.41324016 | F114: 54.82826285 | G114: 61.91080145 | H114: 68.9676274 | I114: 76.30551213 | J114: 84.23122706 | L114: 65.42325529 | M114: 15.42857143 | N114: 2.058424587 | O114: 100.7722997 | P114: 116.9034211 | Q114: 16.13112145
A115: 109 | B115: 15.57142857 | D115: 39.95279619 | E115: 48.11474531 | F115: 55.62294607 | G115: 62.78727703 | H115: 69.91761676 | I115: 77.32384385 | J115: 85.31583685 | L115: 66.33732839 | M115: 15.57142857 | N115: 2.0817283 | O115: 102.854028 | P115: 119.318382 | Q115: 16.46435401
A116: 110 | B116: 15.71428571 | D116: 40.54962152 | E116: 48.81890411 | F116: 56.41977997 | G116: 63.66523481 | H116: 70.86825434 | I116: 78.34182428 | J116: 86.39893034 | L116: 67.25248738 | M116: 15.71428571 | N116: 2.104959255 | O116: 104.9589873 | P116: 121.7602925 | Q116: 16.80130527
A117: 111 | B117: 15.85714286 | D117: 41.14939344 | E117: 49.52564575 | F117: 57.21866745 | G117: 64.5445514 | H117: 71.81939045 | I117: 79.35927746 | J117: 87.48030528 | L117: 68.16859573 | M117: 15.85714286 | N117: 2.128113651 | O117: 107.0871009 | P117: 124.2290639 | Q117: 17.14196297
A118: 112 | B118: 16 | D118: 41.75206742 | E118: 50.23489941 | F118: 58.01951141 | G118: 65.4251034 | H118: 72.7708754 | I118: 80.37602739 | J118: 88.55975939 | L118: 69.0855169 | M118: 16 | N118: 2.151187746 | O118: 109.2382886 | P118: 126.7246029 | Q118: 17.48631426
A119: 113 | B119: 16.14285714 | D119: 42.35759895 | E119: 50.94659429 | F119: 58.82221474 | G119: 66.30676743 | H119: 73.7225595 | I119: 81.39189811 | J119: 89.6370904 | L119: 70.00311435 | M119: 16.14285714 | N119: 2.174177858 | O119: 111.4124665 | P119: 129.2468122 | Q119: 17.83434568
A120: 114 | B120: 16.28571429 | D120: 42.9659435 | E120: 51.66065957 | F120: 59.62668033 | G120: 67.18942007 | H120: 74.67429308 | I120: 82.40671363 | J120: 90.71209603 | L120: 70.92125152 | M120: 16.28571429 | N120: 2.197080366 | O120: 113.6095469 | P120: 131.7955901 | Q120: 18.18604323
A121: 115 | B121: 16.42857143 | D121: 43.57705655 | E121: 52.37702443 | F121: 60.43281108 | G121: 68.07293794 | H121: 75.62592643 | I121: 83.42029798 | J121: 91.78457402 | L121: 71.83979189 | M121: 16.42857143 | N121: 2.219891707 | O121: 115.8294386 | P121: 134.3708309 | Q121: 18.54139229
A122: 116 | B122: 16.57142857 | D122: 44.19089358 | E122: 53.09561806 | F122: 61.24050989 | G122: 68.95719764 | H122: 76.57730987 | I122: 84.43247517 | J122: 92.8543221 | L122: 72.75859891 | M122: 16.57142857 | N122: 2.242608381 | O122: 118.072047 | P122: 136.9724247 | Q122: 18.90037773
A123: 117 | B123: 16.71428571 | D123: 44.80741007 | E123: 53.81636965 | F123: 62.04967965 | G123: 69.84207577 | H123: 77.52829372 | I123: 85.44306922 | J123: 93.92113799 | L123: 73.67753603 | M123: 16.71428571 | N123: 2.265226944 | O123: 120.3372739 | P123: 139.6002577 | Q123: 19.26298384
A124: 118 | B124: 16.85714286 | D124: 45.42656149 | E124: 54.53920839 | F124: 62.86022326 | G124: 70.72744893 | H124: 78.47872828 | I124: 86.45190416 | J124: 94.98481943 | L124: 74.59646672 | M124: 16.85714286 | N124: 2.287744018 | O124: 122.6250179 | P124: 142.2542123 | Q124: 19.62919436
A125: 119 | B125: 17 | D125: 46.04830333 | E125: 55.26406347 | F125: 63.6720436 | G125: 71.61319374 | H125: 79.42846387 | I125: 87.45880401 | J125: 96.04516414 | L125: 75.51525443 | M125: 17 | N125: 2.310156279 | O125: 124.9351742 | P125: 144.9341667 | Q125: 19.99899252
A126: 120 | B126: 17.14285714 | D126: 46.67259107 | E126: 55.99086406 | F126: 64.48504359 | G126: 72.49918679 | H126: 80.37735081 | I126: 88.46359278 | J126: 97.10196986 | L126: 76.43376262 | M126: 17.14285714 | N126: 2.332460468 | O126: 127.2676347 | P126: 147.6399957 | Q126: 20.37236103
A127: 121 | B127: 17.28571429 | D127: 47.29938017 | E127: 56.71953936 | F127: 65.29912611 | G127: 73.38530469 | H127: 81.32523939 | I127: 89.4660945 | J127: 98.15503431 | L127: 77.35185476 | M127: 17.28571429 | N127: 2.354653383 | O127: 129.6222881 | P127: 150.3715701 | Q127: 20.74928207
A128: 122 | B128: 17.42857143 | D128: 47.92862613 | E128: 57.45001856 | F128: 66.11419405 | G128: 74.27142404 | H128: 82.27197994 | I128: 90.46613319 | J128: 99.20415522 | L128: 78.26939429 | M128: 17.42857143 | N128: 2.376731884 | O128: 131.9990199 | P128: 153.1287573 | Q128: 21.12973732
A129: 123 | B129: 17.57142857 | D129: 48.56028441 | E129: 58.18223084 | F129: 66.93015032 | G129: 75.15742144 | H129: 83.21742277 | I129: 91.46353287 | J129: 100.2491303 | L129: 79.18624467 | M129: 17.57142857 | N129: 2.398692891 | O129: 134.3977128 | P129: 155.9114208 | Q129: 21.51370798
A130: 124 | B130: 17.71428571 | D130: 49.1943105 | E130: 58.91610538 | F130: 67.74689781 | G130: 76.04317351 | H130: 84.16141819 | I130: 92.45811756 | J130: 101.2897573 | L130: 80.10226937 | M130: 17.71428571 | N130: 2.420533383 | O130: 136.8182462 | P130: 158.719421 | Q130: 21.90117475
A131: 125 | B131: 17.85714286 | D131: 49.83065988 | E131: 59.65157138 | F131: 68.56433942 | G131: 76.92855684 | H131: 85.1038165 | I131: 93.44971127 | J131: 102.325834 | L131: 81.01733184 | M131: 17.85714286 | N131: 2.4422504 | O131: 139.2604966 | P131: 161.5526145 | Q131: 22.29211788
A132: 126 | B132: 18 | D132: 50.46928802 | E132: 60.38855802 | F132: 69.38237803 | G132: 77.81344803 | H132: 86.04446804 | I132: 94.43813804 | J132: 103.357158 | L132: 81.93129553 | M132: 18 | N132: 2.46384104 | O132: 141.7243376 | P132: 164.4108548 | Q132: 22.68651713
A133: 127 | B133: 18.14285714 | D133: 51.1101504 | E133: 61.12699449 | F133: 70.20091654 | G133: 78.6977237 | H133: 86.9832231 | I133: 95.42322188 | J133: 104.3835272 | L133: 82.84402392 | M133: 18.14285714 | N133: 2.485302461 | O133: 144.2096401 | P133: 167.2939919 | Q133: 23.08435181
A134: 128 | B134: 18.28571429 | D134: 51.7532025 | E134: 61.86680998 | F134: 71.01985786 | G134: 79.58126044 | H134: 87.91993199 | I134: 96.40478682 | J134: 105.4047392 | L134: 83.75538045 | M134: 18.28571429 | N134: 2.506631882 | O134: 146.716272 | P134: 170.2018728 | Q134: 23.4856008
A135: 129 | B135: 18.42857143 | D135: 52.3983998 | E135: 62.60793367 | F135: 71.83910487 | G135: 80.46393486 | H135: 88.85444504 | I135: 97.38265686 | J135: 106.4205917 | L135: 84.66522859 | M135: =B135 -> 18.42857143 | N135: 2.527826579 | O135: 149.2440986 | P135: =O135/(1-U$56) -> 173.1343411 | Q135: 23.89024252
A136: 130 | B136: =A136/7 -> 18.57142857 | D136: 53.04569778 | E136: 63.35029474 | F136: 72.65856048 | G136: 81.34562356 | H136: 89.78661256 | I136: 98.35665604 | J136: 107.4308826 | L136: 85.57343178 | M136: 18.57142857 | N136: 2.548883888 | O136: 151.7929825 | P136: 176.0912375 | Q136: =P136-O136 -> 24.298255
A137: 131 | B137: 18.71428571 | D137: 53.69505192 | E137: 64.0938224 | F137: 73.47812757 | G137: 82.22620314 | H137: =(-0.00003006*H$2 + 0.0124848506)*$B137^3+(-0.000000811*H$2^2 + 0.0020904273*H$2 - 0.6502866461)*$B137^2+(0.000000029*H$2^3 - 0.000042999*H$2^2 + 0.0194860819*H$2 - 2.5845091041)*$B137+(-0.0000000384*H$2^3 + 0.000053716*H$2^2 - 0.0223500993*H$2 + 4.9852264783) -> 90.71628484 | I137: 99.32660838 | J137: 108.4354095 | L137: 86.4798535 | M137: 18.71428571 | N137: =-0.00006*L137^2 + 0.0334*L137 + 0.1301 -> 2.569801203 | O137: 154.3627837 | P137: 179.0723995 | Q137: 24.70961582
A138: 132 | B138: 18.85714286 | D138: 54.34641769 | E138: 64.83844581 | F138: 74.29770904 | G138: 83.10555022 | H138: 91.64331222 | I138: 100.2923379 | J138: 109.4339701 | L138: 87.38435719 | M138: 18.85714286 | N138: 2.590575977 | O138: =O137+N138 -> 156.9533596 | P138: 182.0776618 | Q138: 25.12430215
A139: 133 | B139: 19 | D139: 54.99975057 | E139: 65.58409418 | F139: 75.11720778 | G139: 83.98354139 | H139: 92.56754499 | I139: 101.2536686 | J139: 110.4263622 | L139: 88.28680632 | M139: 19 | N139: 2.611205721 | O139: 159.5645654 | P139: 185.1068562 | Q139: 25.54229079
A140: 134 | B140: 19.14285714 | D140: 55.65500605 | E140: 66.33069668 | F140: 75.9365267 | G140: 84.86005326 | H140: 93.48883348 | I140: 102.2104245 | J140: 111.4123835 | L140: 89.18706434 | M140: 19.14285714 | N140: 2.631688002 | O140: 162.1962534 | P140: 188.1598115 | Q140: 25.96355813
A141: 135 | B141: 19.28571429 | D141: 56.31213959 | E141: 67.07818251 | F141: 76.75556869 | G141: 85.73496242 | H141: 94.40702799 | I141: 103.1624297 | J141: 112.3918318 | L141: 90.08499471 | M141: 19.28571429 | N141: 2.652020447 | O141: 164.8482738 | P141: 191.236354 | Q141: 26.38808019
A142: 136 | B142: 19.42857143 | D142: 56.97110669 | E142: 67.82648085 | F142: 77.57423664 | G142: 86.6081455 | H142: 95.32197884 | I142: 104.1095081 | J142: 113.3645047 | L142: 90.98046089 | M142: 19.42857143 | N142: 2.672200738 | O142: 167.5204745 | P142: 194.3363072 | Q142: 26.81583261
A143: 137 | B143: 19.57142857 | D143: 57.6318628 | E143: 68.57552088 | F143: 78.39243345 | G143: 87.47947908 | H143: 96.23353634 | I143: 105.0514838 | J143: 114.3302 | L143: =(-0.00003006*L$2 + 0.0124848506)*$B143^3+(-0.000000811*L$2^2 + 0.0020904273*L$2 - 0.6502866461)*$B143^2+(0.000000029*L$2^3 - 0.000042999*L$2^2 + 0.0194860819*L$2 - 2.5845091041)*$B143+(-0.0000000384*L$2^3 + 0.000053716*L$2^2 - 0.0223500993*L$2 + 4.9852264783) -> 91.87332634 | M143: 19.57142857 | N143: 2.692226614 | O143: 170.2127012 | P143: 197.4594918 | Q143: 27.24679066
A144: 138 | B144: 19.71428571 | D144: 58.29436343 | E144: 69.3252318 | F144: 79.21006201 | G144: 88.34883977 | H144: 97.1415508 | I144: 105.9881808 | J144: 115.2887155 | L144: 92.76345452 | M144: 19.71428571 | N144: 2.712095871 | O144: 172.924797 | P144: 200.6057263 | Q144: 27.68092929
A145: 139 | B145: 19.85714286 | D145: 58.95856404 | E145: 70.07554279 | F145: 80.02702522 | G145: 89.21610418 | H145: 98.04587253 | I145: 106.9194231 | J145: 116.2398488 | L145: 93.65070888 | M145: 19.85714286 | N145: 2.73180636 | O145: 175.6566034 | P145: 203.7748265 | Q145: 28.11822307
A146: 140 | B146: 20 | D146: 59.62442011 | E146: 70.82638304 | F146: 80.84322598 | G146: 90.08114891 | H146: 98.94635185 | I146: 107.8450348 | J146: 117.1833977 | L146: 94.53495288 | M146: 20 | N146: 2.751355987 | O146: 178.4079594 | P146: 206.9666056 | Q146: 28.55864626
A147: 141 | B147: 20.14285714 | D147: 60.29188712 | E147: 71.57768174 | F147: 81.65856717 | G147: 90.94385057 | H147: 99.84283906 | I147: 108.7648398 | J147: 118.1191599 | L147: 95.41604998 | M147: 20.14285714 | N147: 2.770742714 | O147: 181.1787021 | P147: 210.1808749 | Q147: 29.00217278
A148: 142 | B148: 20.28571429 | D148: 60.96092055 | E148: 72.32936806 | F148: 82.4729517 | G148: 91.80408575 | H148: 100.7351845 | I148: 109.6786622 | J148: 119.0469332 | L148: 96.29386364 | M148: 20.28571429 | N148: 2.789964555 | O148: 183.9686666 | P148: 213.4174429 | Q148: 29.44877623
A149: 143 | B149: 20.42857143 | D149: 61.63147587 | E149: 73.08137121 | F149: 83.28628246 | G149: 92.66173106 | H149: 101.6232384 | I149: 110.586326 | J149: 119.9665152 | L149: 97.16825731 | M149: 20.42857143 | N149: 2.80901958 | O149: 186.7776862 | P149: 216.6761161 | Q149: 29.89842992
A150: 144 | B150: 20.57142857 | D150: 62.30350857 | E150: 73.83362036 | F150: 84.09846235 | G150: 93.51666311 | H150: 102.5068512 | I150: 111.4876552 | J150: 120.8777038 | L150: 98.03909446 | M150: 20.57142857 | N150: 2.827905912 | O150: 189.6055921 | P150: 219.956699 | Q150: 30.35110684
A151: 145 | B151: 20.71428571 | D151: =(-0.00003006*D$2 + 0.0124848506)*$B151^3+(-0.000000811*D$2^2 + 0.0020904273*D$2 - 0.6502866461)*$B151^2+(0.000000029*D$2^3 - 0.000042999*D$2^2 + 0.0194860819*D$2 - 2.5845091041)*$B151+(-0.0000000384*D$2^3 + 0.000053716*D$2^2 - 0.0223500993*D$2 + 4.9852264783) -> 62.97697413 | E151: 74.5860447 | F151: 84.90939425 | G151: 94.3687585 | H151: 103.3858731 | I151: 112.3824739 | J151: 121.7802965 | L151: 98.90623854 | M151: 20.71428571 | N151: 2.846621726 | O151: 192.4522139 | P151: 223.2589936 | Q151: 30.80677968
A152: 146 | B152: 20.85714286 | D152: 63.65182802 | E152: 75.33857342 | F152: 85.71898107 | G152: 95.21789383 | H152: 104.2601545 | I152: 113.2706061 | J152: 122.6740913 | L152: 99.76955301 | M152: 20.85714286 | N152: 2.865165248 | O152: 195.3173791 | P152: 226.5828 | Q152: 31.26542088
A153: 147 | B153: 21 | D153: 64.32802572 | E153: 76.09113571 | F153: 86.52712571 | G153: 96.0639457 | H153: 105.1295457 | I153: 114.1518757 | J153: 123.5588857 | L153: 100.6289013 | M153: 21 | N153: 2.883534757 | O153: 198.2009139 | P153: 229.9279165 | Q153: 31.72700258
A154: 148 | B154: 21.14285714 | D154: 65.00552271 | E154: 76.84366076 | F154: 87.33373105 | G154: 96.90679073 | H154: 105.9938969 | I154: 115.0261068 | J154: 124.4344775 | L154: 101.4841469 | M154: 21.14285714 | N154: 2.901728583 | O154: 201.1026425 | P154: 233.2941391 | Q154: 32.19149666
A155: 149 | B155: 21.28571429 | D155: 65.68427447 | E155: 77.59607774 | F155: 88.13869999 | G155: 97.74630551 | H155: 106.8530586 | I155: 115.8931235 | J155: 125.3006645 | L155: 102.3351533 | M155: 21.28571429 | N155: 2.919745105 | O155: 204.0223876 | P155: 236.6812623 | Q155: 32.65887473
A156: 150 | B156: 21.42857143 | D156: 66.36423647 | E156: 78.34831585 | F156: 88.94193544 | G156: 98.58236665 | H156: 107.7068809 | I156: 116.7527497 | J156: 126.1572444 | L156: 103.1817839 | M156: 21.42857143 | N156: 2.937582751 | O156: 206.9599703 | P156: 240.0890785 | Q156: 33.12910816
A157: 151 | B157: 21.57142857 | D157: 67.0453642 | E157: 79.10030427 | F157: 89.74334027 | G157: 99.41485075 | H157: 108.5552143 | I157: 117.6048095 | J157: 127.0040149 | L157: 104.0239022 | M157: 21.57142857 | N157: 2.95524 | O157: 209.9152103 | P157: 243.5173784 | Q157: 33.60216807
A158: 152 | B158: 21.71428571 | D158: 67.72761313 | E158: 79.8519722 | F158: 90.54281739 | G158: 100.2436344 | H158: 109.397909 | I158: 118.4491268 | J158: 127.8407737 | L158: 104.8613717 | M158: 21.71428571 | N158: 2.972715377 | O158: 212.8879257 | P158: 246.965951 | Q158: 34.07802536
A159: 153 | B159: 21.85714286 | D159: 68.41093874 | E159: 80.60324881 | F159: 91.3402697 | G159: 101.0685943 | H159: 110.2348154 | I159: 119.2855258 | J159: 128.6673186 | L159: 105.6940557 | M159: 21.85714286 | N159: 2.990007455 | O159: 215.8779331 | P159: 250.4345838 | Q159: 34.55665067
A160: 154 | B160: 22 | D160: 69.09529651 | E160: 81.3540633 | F160: 92.13560008 | G160: 101.8896069 | H160: 111.0657837 | I160: 120.1138304 | J160: 129.4834472 | L160: 106.5218178 | M160: 22 | N160: 3.007114854 | O160: 218.885048 | P160: 253.9230624 | Q160: 35.03801445
A161: 155 | B161: 22.14285714 | D161: 69.78064193 | E161: 82.10434485 | F161: 92.92871144 | G161: 102.7065489 | H161: 111.8906642 | I161: 120.9338647 | J161: 130.2889574 | L161: 107.3445214 | M161: 22.14285714 | N161: 3.024036237 | O161: 221.9090842 | P161: 257.4311712 | Q161: 35.52208691
A162: 156 | B162: 22.28571429 | D162: 70.46693045 | E162: 82.85402265 | F162: 93.71950667 | G162: 103.5192968 | H162: 112.7093074 | I162: 121.7454526 | J162: 131.0836469 | L162: 108.1620299 | M162: 22.28571429 | N162: 3.040770316 | O162: 224.9498546 | P162: 260.9586926 | Q162: 36.00883809
A163: 157 | B163: 22.42857143 | D163: 71.15411758 | E163: 83.60302588 | F163: 94.50788867 | G163: 104.3277274 | H163: 113.5215634 | I163: 122.5484183 | J163: 131.8673133 | L163: 108.9742069 | M163: 22.42857143 | N163: 3.057315844 | O163: 228.0071704 | P163: 264.5054082 | Q163: 36.49823779
A164: 158 | B164: 22.57142857 | D164: 71.84215878 | E164: 84.35128373 | F164: 95.29376032 | G164: 105.1317171 | H164: 114.3272827 | I164: 123.3425856 | J164: 132.6397544 | L164: 109.7809158 | M164: 22.57142857 | N164: 3.073671619 | O164: 231.080842 | P164: 268.0710977 | Q164: 36.99025564
A165: 159 | B165: 22.71428571 | D165: 72.53100953 | E165: 85.0987254 | F165: 96.07702454 | G165: 105.9311427 | H165: 115.1263155 | I165: 124.1277787 | J165: 133.400768 | L165: 110.58202 | M165: 22.71428571 | N165: 3.089836479 | O165: 234.1706785 | P165: 271.6555396 | Q165: 37.48486108
A166: 160 | B166: 22.85714286 | D166: 73.22062531 | E166: 85.84528006 | F166: 96.8575842 | G166: 106.7258806 | H166: 115.9185121 | I166: 124.9038215 | J166: 134.1501518 | L166: 111.377383 | M166: 22.85714286 | N166: 3.105809306 | O166: 237.2764878 | P166: 275.2585112 | Q166: 37.98202336
A167: 161 | B167: 23 | D167: 73.9109616 | E167: 86.5908769 | F167: 97.63534221 | G167: 107.5158075 | H167: 116.7037228 | I167: 125.6705381 | J167: 134.8877034 | L167: 112.1668683 | M167: 23 | N167: 3.12158902 | O167: 240.3980768 | P167: 278.8797884 | Q167: 38.48171159
A168: 162 | B168: 23.14285714 | D168: 74.60197387 | E168: 87.33544512 | F168: 98.41020146 | G168: 108.3008 | H168: 117.481798 | I168: 126.4277525 | J168: 135.6132207 | L168: 112.9503393 | M168: 23.14285714 | N168: 3.137174584 | O168: 243.5352514 | P168: 282.5191461 | Q168: 38.98389467
A169: 163 | B169: 23.28571429 | D169: 75.29361762 | E169: 88.07891389 | F169: 99.18206485 | G169: 109.0807348 | H169: 118.252588 | I169: 127.1752887 | J169: 136.3265013 | L169: 113.7276595 | M169: 23.28571429 | N169: 3.152564994 | O169: 246.6878164 | P169: 286.1763578 | Q169: 39.48854138
A170: 164 | B170: 23.42857143 | D170: 75.98584831 | E170: 88.8212124 | F170: 99.95083527 | G170: 109.8554883 | H170: 119.015943 | I170: 127.9129708 | J170: 137.0273431 | L170: 114.4986923 | M170: 23.42857143 | N170: 3.16775929 | O170: 249.8555757 | P170: 289.851196 | Q170: 39.99562031
A171: 165 | B171: 23.57142857 | D171: 76.67862142 | E171: 89.56226984 | F171: 100.7164156 | G171: 110.6249373 | H171: 119.7717135 | I171: 128.6406227 | J171: 137.7155436 | L171: 115.2633012 | M171: 23.57142857 | N171: 3.182756543 | O171: 253.0383322 | P171: 293.5434322 | Q171: 40.50509992
A172: 166 | B172: 23.71428571 | D172: 77.37189243 | E172: 90.3020154 | F172: 101.4787088 | G172: 111.3889583 | H172: 120.5197496 | I172: 129.3580685 | J172: 138.3909007 | L172: 116.0213496 | M172: 23.71428571 | N172: 3.197555863 | O172: 256.2358881 | P172: 297.2528366 | Q172: 41.01694853
A173: 167 | B173: 23.85714286 | D173: 78.06561682 | E173: 91.04037827 | F173: 102.2376177 | G173: 112.1474279 | H173: 121.2599018 | I173: 130.0651322 | J173: 139.053212 | L173: 116.7727011 | M173: 23.85714286 | N173: 3.212156393 | O173: 259.4480445 | P173: 300.9791788 | Q173: 41.53113433
A174: 168 | B174: 24 | D174: 78.75975007 | E174: 91.77728763 | F174: 102.9930452 | G174: 112.9002227 | H174: 121.9920203 | I174: 130.7616378 | J174: 139.7022754 | L174: 117.517219 | M174: 24 | N174: 3.226557309 | O174: 262.6746018 | P174: 304.7222271 | Q174: 42.04762535
A175: 169 | B175: 24.14285714 | D175: 79.45424766 | E175: 92.51267266 | F175: 103.7448942 | G175: 113.6472194 | H175: 122.7159554 | I175: 131.4474094 | J175: 140.3378885 | L175: 118.2547669 | M175: 24.14285714 | N175: 3.24075782 | O175: 265.9153596 | P175: 308.4817491 | Q175: 42.56638951
A176: 170 | B176: 24.28571429 | D176: 80.14906506 | E176: 93.24646256 | F176: 104.4930676 | G176: 114.3882945 | H176: 123.4315575 | I176: 132.1222709 | J176: 140.959849 | L176: 118.9852081 | M176: 24.28571429 | N176: 3.254757166 | O176: 269.1701168 | P176: 312.2575114 | Q176: 43.08739462
A177: 171 | B177: 24.42857143 | D177: 80.84415775 | E177: 93.97858651 | F177: 105.2374683 | G177: 115.1233246 | H177: 124.1386769 | I177: 132.7860464 | J177: 141.5679548 | L177: 119.7084062 | M177: 24.42857143 | N177: 3.268554616 | O177: 272.4386714 | P177: 316.0492798 | Q177: 43.61060836
A178: 172 | B178: 24.57142857 | D178: 81.53948122 | E178: 94.7089737 | F178: 105.9779992 | G178: 115.8521864 | H178: 124.8371638 | I178: 133.4385599 | J178: 142.1620035 | L178: 120.4242245 | M178: 24.57142857 | N178: 3.282149468 | O178: 275.7208209 | P178: 319.8568192 | Q178: 44.13599829
A179: 173 | B179: 24.71428571 | D179: 82.23499094 | E179: 95.43755332 | F179: 106.7145632 | G179: 116.5747564 | H179: 125.5268686 | I179: 134.0796355 | J179: 142.7417928 | L179: 121.1325267 | M179: 24.71428571 | N179: 3.29554105 | O179: 279.0163619 | P179: 323.6798938 | Q179: 44.66353188
A180: 174 | B180: 24.85714286 | D180: 82.93064238 | E180: 96.16425455 | F180: 107.4470632 | G180: 117.2909113 | H180: 126.2076416 | I180: 134.7090971 | J180: 143.3071205 | L180: 121.833176 | M180: 24.85714286 | N180: 3.308728712 | O180: 282.3250906 | P180: 327.5182671 | Q180: 45.19317648
A181: 175 | B181: 25 | D181: 83.62639104 | E181: 96.88900657 | F181: 108.1754021 | G181: 118.0005276 | H181: 126.8793332 | I181: 135.3267687 | J181: 143.8577842 | L181: 122.526036 | M181: 25 | N181: 3.321711833 | O181: 285.6468025 | P181: 331.3717018 | Q181: 45.72489936
A182: 176 | B182: 25.14285714 | D182: 84.32219238 | E182: 97.61173859 | F182: 108.8994828 | G182: 118.703482 | H182: 127.5417935 | I182: 135.9324744 | J182: 144.3935819 | L182: 123.2109702 | M182: 25.14285714 | N182: 3.334489814 | O182: 288.9812923 | P182: 335.2399599 | Q182: 46.25866767
A183: 177 | B183: 25.28571429 | D183: 85.01800188 | E183: 98.33237977 | F183: 109.6192081 | G183: 119.3996511 | H183: 128.194873 | I183: 136.5260383 | J183: 144.9143111 | L183: 123.8878419 | M183: 25.28571429 | N183: 3.347062078 | O183: 292.3283544 | P183: 339.1228028 | Q183: 46.79444848
A184: 178 | B184: 25.42857143 | D184: 85.71377503 | E184: 99.05085932 | F184: 110.334481 | G184: 120.0889114 | H184: 128.838422 | I184: 137.1072843 | J184: 145.4197696 | L184: 124.5565147 | M184: 25.42857143 | N184: 3.35942807 | O184: 295.6877824 | P184: 343.0199912 | Q184: 47.33220879
A185: 179 | B185: 25.57142857 | D185: 86.40946729 | E185: 99.76710642 | F185: 111.0452043 | G185: 120.7711396 | H185: 129.4722907 | I185: 137.6760364 | J185: 145.9097551 | L185: 125.216852 | M185: 25.57142857 | N185: 3.371587255 | O185: 299.0593697 | P185: 346.9312851 | Q185: 47.87191547
A186: 180 | B186: 25.71428571 | D186: 87.10503416 | E186: 100.4810502 | F186: 111.751281 | G186: 121.4462122 | H186: 130.0963295 | I186: 138.2321187 | J186: 146.3840654 | L186: 125.8687172 | M186: 25.71428571 | N186: 3.383539117 | O186: 302.4429088 | P186: 350.8564441 | Q186: 48.41353534
A187: 181 | B187: 25.85714286 | D187: 87.8004311 | E187: 101.19262 | F187: 112.452614 | G187: 122.1140059 | H187: 130.7103887 | I187: 138.7753551 | J187: 146.8424981 | L187: 126.5119739 | M187: 25.85714286 | N187: 3.395283156 | O187: 305.838192 | P187: 354.7952271 | Q187: 48.95703515
A188: 182 | B188: 26 | D188: 88.4956136 | E188: 101.9017448 | F188: 113.1491061 | G188: 122.7743973 | H188: 131.3143186 | I188: 139.3055698 | J188: 147.2848511 | L188: 127.1464855 | M188: 26 | N188: 3.406818888 | O188: 309.2450108 | P188: 358.7473924 | Q188: 49.50238153
A189: 183 | B189: 26.14285714 | D189: 89.19053714 | E189: 102.608354 | F189: 113.8406602 | G189: 123.427263 | H189: 131.9079695 | I189: 139.8225867 | J189: 147.710922 | L189: 127.7721153 | M189: 26.14285714 | N189: 3.418145845 | O189: 312.6631567 | P189: 362.7126978 | Q189: 50.04954108
A190: 184 | B190: 26.28571429 | D190: 89.88515719 | E190: 103.3123766 | F190: 114.5271793 | G190: 124.0724796 | H190: 132.4911917 | I190: 140.3262299 | J190: 148.1205086 | L190: 128.388727 | M190: 26.28571429 | N190: 3.429263569 | O190: 316.0924203 | P190: 366.6909005 | Q190: 50.59848029
A191: 185 | B191: 26.42857143 | D191: 90.57942923 | E191: 104.0137419 | F191: 115.2085663 | G191: 124.7099237 | H191: 133.0638356 | I191: 140.8163234 | J191: 148.5134085 | L191: 128.996184 | M191: 26.42857143 | N191: 3.440171616 | O191: 319.5325919 | P191: 370.6817575 | Q191: 51.14916561
A192: 186 | B192: 26.57142857 | D192: 91.27330874 | E192: 104.7123791 | F192: 115.8847239 | G192: 125.3394718 | H192: 133.6257514 | I192: 141.2926911 | J192: 148.8894196 | L192: 129.5943496 | M192: 26.57142857 | N192: 3.45086955 | O192: 322.9834614 | P192: 374.6850248 | Q192: 51.7015634
A193: 187 | B193: 26.71428571 | D193: 91.96675119 | E193: 105.4082173 | F193: 116.5555552 | G193: 125.9610007 | H193: 134.1767894 | I193: 141.7551572 | J193: 149.2483396 | L193: 130.1830874 | M193: 26.71428571 | N193: 3.461356945 | O193: 326.4448184 | P193: 378.7004583 | Q193: 52.25563996
A194: 188 | B194: 26.85714286 | D194: 92.65971208 | E194: 106.1011857 | F194: 117.220963 | G194: 126.5743869 | H194: 134.7168001 | I194: 142.2035456 | J194: 149.5899661 | L194: 130.7622609 | M194: 26.85714286 | N194: 3.471633381 | O194: 329.9164517 | P194: 382.7278133 | Q194: 52.81136152
A195: 189 | B195: 27 | D195: 93.35214687 | E195: 106.7912136 | F195: 117.8808502 | G195: 127.1795069 | H195: 135.2456336 | I195: 142.6376803 | J195: 149.914097 | L195: 131.3317334 | M195: 27 | N195: 3.481698444 | O195: 333.3981502 | P195: 386.7668444 | Q195: 53.36869425
A196: 190 | B196: 27.14285714 | D196: 94.04401104 | E196: 107.47823 | F196: 118.5351198 | G196: 127.7762375 | H196: 135.7631403 | I196: 143.0573854 | J196: 150.2205299 | L196: 131.8913685 | M196: 27.14285714 | N196: 3.491551722 | O196: 336.8897019 | P196: 390.8173062 | Q196: 53.92760424
A197: 191 | B197: 27.28571429 | D197: 94.73526008 | E197: 108.1621642 | F197: 119.1836745 | G197: 128.3644552 | H197: 136.2691706 | I197: 143.4624849 | J197: 150.5090626 | L197: 132.4410295 | M197: 27.28571429 | N197: 3.501192808 | O197: 340.3908947 | P197: 394.8789522 | Q197: 54.48805752
A198: 192 | B198: 27.42857143 | D198: 95.42584946 | E198: 108.8429454 | F198: 119.8264174 | G198: 128.9440366 | H198: 136.7635746 | I198: 143.8528029 | J198: 150.7794927 | L198: 132.9805801 | M198: 27.42857143 | N198: 3.510621294 | O198: 343.901516 | P198: 398.9515361 | Q198: 55.05002007
A199: 193 | B199: 27.57142857 | D199: 96.11573465 | E199: 109.5205028 | F199: 120.4632512 | G199: 129.5148583 | H199: 137.2462028 | I199: 144.2281632 | J199: 151.0316182 | L199: 133.5098835 | M199: =B199 -> 27.57142857 | N199: 3.51983677 | O199: 347.4213528 | P199: =O199/(1-U$56) -> 403.0348106 | Q199: 55.61345779
A200: 194 | B200: =A200/7 -> 27.71428571 | D200: 96.80487115 | E200: 110.1947655 | F200: 121.0940789 | G200: 130.076797 | H200: 137.7169055 | I200: 144.5883901 | J200: 151.2652365 | L200: 134.0288033 | M200: 27.71428571 | N200: 3.528838824 | O200: 350.9501916 | P200: 407.1285281 | Q200: =P200-O200 -> 56.17833651
... 59 more rows

Sheet 4. Growth chart
A1: Menu

Sheet 5. Herd details
A1: Menu
A2: 5. Herd details
B6: Pig class | C6: Pigs accommodated in piggery | F6: Shed type (waste management system) | G6: Pig age | J6: Pig live weight | M6: SPU factor | N6: SPU factor | O6: SPU factor | P6: SPU factor | Q6: No of SPUs | R6: No of SPUs | S6: No of SPUs | AI6: Shed losses
C7: Calculated values | D7: Entered values | E7: Adopted values | G7: In | H7: Out | I7: Average | J7: In | K7: Out | L7: Average | M7: Standard | N7: Interpolated | O7: Live weight regression | P7: Age regression | Q7: Standard | R7: Interpolated | S7: Live weight regression | T7: Age regression | W7: Pig class | X7: Time | Y7: Weight gain (from birth) | AA7: In piggery start | AB7: Deaths per stage | AC7: Purchased per stage | AD7: Sold per stage | AE7: Gilts out | AF7: Gilts in | AG7: In piggery finish | AI7: TS | AJ7: VS | AK7: N | AL7: TS | AM7: VS | AN7: N
C8: (pigs. stage-1) | D8: (pigs. stage-1) | E8: (pigs. stage-1) | G8: (weeks) | H8: (weeks) | I8: (weeks) | J8: (kg. pig-1) | K8: (kg. pig-1) | L8: (kg. pig-1) | M8: (SPU. pig-1) | N8: (SPU. pig-1) | O8: (SPU. pig-1) | P8: (SPU/pig) | Q8: (SPU) | R8: (SPU) | S8: (SPU) | T8: (SPU) | X8: (weeks/stage) | Y8: g/day | AA8: (pigs/stage) | AB8: (pigs/stage) | AC8: (pigs/stage) | AD8: (pigs/stage) | AE8: (pigs/stage) | AF8: (pigs/stage) | AG8: (pigs/stage) | AI8: (%) | AJ8: (%) | AK8: (%) | AL8: (SPU x %) | AM8: (SPU x %) | AN8: (SPU x %)
B9: Gilts | C9: =(AA9+AG9)/2 -> 102.5374259 | E9: =IF(D9="", C9,D9) -> 102.5374259 | F9: Flushing | G9: ='3. Herd Input'!C30 -> 22 | H9: ='3. Herd Input'!C32 -> 30 | I9: =(G9+H9)/2 -> 26 | J9: =IF(E9=0, 0, 'Growth curve sheet'!V14) -> 106.3868116 | K9: =IF(E9=0,0, '3. Herd Input'!C33) -> 145 | L9: =(J9+K9)/2 -> 125.6934058 | M9: 1.8 | O9: 1.8 | Q9: =E9*M9 -> 184.5673666 | R9: =Q9 -> 184.5673666 | S9: 184.5673666 | T9: 184.5673666 | W9: =B9 -> Gilts | X9: =H9-G9 -> 8 | AA9: =('3. Herd Input'!C59*(1+X29/100)*X9)/(365/7) -> 102.1953731 | AB9: =E29*X9/(365/7) -> 1.100565557 | AC9: ='3. Herd Input'!G41*X9/(365/7) -> 0 | AD9: =G29*X9/(365/7) -> 12.42600562 | AE9: =AF11*X9/X11 -> 86.89585681 | AF9: =('3. Herd Input'!C59*X9/(365/7))-AC9 -> 101.1065335 | AG9: =AA9-AB9-AD9+AC9-AE9+AF9 -> 102.8794787 | AI9: =IF($S9=0, 0, IF($F9="Deep litter", 0, VLOOKUP($F9, '7. Assumptions'!$B$34:$K$35, 4, FALSE))) -> 0.02 | AJ9: =IF($S9=0, 0, IF($F9="Deep litter", 0, VLOOKUP($F9, '7. Assumptions'!$B$34:$K$35, 6, FALSE))) -> 0.03 | AK9: =IF($S9=0, 0, IF($F9="Deep litter", 0, VLOOKUP($F9, '7. Assumptions'!$B$34:$K$35, 8, FALSE))) -> 0.1 | AL9: =$S9*AI9 -> 3.691347333 | AM9: =$S9*AJ9 -> 5.537020999 | AN9: 18.45673666
B10: Boars | C10: =(AA10+AG10)/2 -> 10 | E10: 10 | F10: Flushing | G10: ='3. Herd Input'!C31 -> 22 | H10: ='3. Herd Input'!C31+'3. Herd Input'!C17*365/7 -> 100.2142857 | I10: =(G10+H10)/2 -> 61.10714286 | J10: =IF(E10=0,0,'Growth curve sheet'!V16) -> 106.3868116 | K10: =IF(E10=0,0,'3. Herd Input'!C35) -> 300 | L10: =(J10+K10)/2 -> 203.1934058 | M10: 1.6 | O10: 1.6 | Q10: =E10*M10 -> 16 | R10: 16 | S10: 16 | T10: 16 | W10: =B10 -> Boars | X10: =H10-G10 -> 78.21428571 | AA10: ='3. Herd Input'!C14 -> 10 | AB10: =E30*X10/(365/7) -> 0.78 | AC10: ='3. Herd Input'!G42*X10/(365/7) -> 0 | AD10: =G30*X10/(365/7) -> 9.22 | AG10: ='3. Herd Input'!C14 -> 10 | AI10: =IF($S10=0, 0, IF($F10="Deep litter", 0, VLOOKUP($F10, '7. Assumptions'!$B$34:$K$35, 4, FALSE))) -> 0.02 | AJ10: =IF($S10=0, 0, IF($F10="Deep litter", 0, VLOOKUP($F10, '7. Assumptions'!$B$34:$K$35, 6, FALSE))) -> 0.03 | AK10: =IF($S10=0, 0, IF($F10="Deep litter", 0, VLOOKUP($F10, '7. Assumptions'!$B$34:$K$35, 8, FALSE))) -> 0.1 | AL10: =$S10*AI10 -> 0.32 | AM10: 0.48 | AN10: 1.6
B11: Gestating sows 1 | C11: ='3. Herd Input'!C13-C13 -> 850.9587304 | E11: 850.9587304 | F11: Flushing | J11: =IF(E11=0,0,'3. Herd Input'!C33) -> 145 | K11: =IF(E11=0,0,'3. Herd Input'!C34) -> 200 | L11: =(J11+K11)/2 -> 172.5 | M11: 1.6 | O11: 1.6 | Q11: =E11*M11 -> 1361.533969 | R11: 1361.533969 | S11: 1361.533969 | T11: 1361.533969 | W11: Gestating sows 1 | X11: =(365/7)-X13 -> 44.32571429 | AA11: =E11+E12 -> 850.9587304 | AB11: =E31*X11/(365/7) -> 56.42401929 | AD11: =G31*X11/(365/7) -> 425.0410959 | AF11: =AB11+AD11-AC11 -> 481.4651152 | AG11: =AA11 -> 850.9587304 | AI11: =IF($S11=0, 0, IF($F11="Deep litter", 0, VLOOKUP($F11, '7. Assumptions'!$B$34:$K$35, 4, FALSE))) -> 0.02 | AJ11: =IF($S11=0, 0, IF($F11="Deep litter", 0, VLOOKUP($F11, '7. Assumptions'!$B$34:$K$35, 6, FALSE))) -> 0.03 | AK11: =IF($S11=0, 0, IF($F11="Deep litter", 0, VLOOKUP($F11, '7. Assumptions'!$B$34:$K$35, 8, FALSE))) -> 0.1 | AL11: 27.23067937 | AM11: 40.84601906 | AN11: 136.1533969
B12: Gestating sows 2 | C12: 0 | E12: 0 | F12: Flushing | J12: =IF(E12=0,0,'3. Herd Input'!C34) -> 0 | K12: =IF(E12=0,0,'3. Herd Input'!C35) -> 0 | L12: =(J12+K12)/2 -> 0 | M12: 1.6 | O12: 1.6 | Q12: =E12*M12 -> 0 | R12: =Q12 -> 0 | S12: =R12 -> 0 | T12: =S12 -> 0 | W12: Gestating sows 2 | X12: =(365/7)-X13 -> 44.32571429 | AA12: 0 | AG12: =AA12 -> 0 | AI12: =IF($S12=0, 0, IF($F12="Deep litter", 0, VLOOKUP($F12, '7. Assumptions'!$B$34:$K$35, 4, FALSE))) -> 0 | AJ12: =IF($S12=0, 0, IF($F12="Deep litter", 0, VLOOKUP($F12, '7. Assumptions'!$B$34:$K$35, 6, FALSE))) -> 0 | AK12: =IF($S12=0, 0, IF($F12="Deep litter", 0, VLOOKUP($F12, '7. Assumptions'!$B$34:$K$35, 8, FALSE))) -> 0 | AL12: =$S12*AI12 -> 0 | AM12: =$S12*AJ12 -> 0 | AN12: =$S12*AK12 -> 0
B13: Lactating sows | C13: =(AA13+AG13)/2 -> 149.0412696 | E13: 149.0412696 | F13: Flushing | J13: =IF(E13=0,0,'3. Herd Input'!C34) -> 200 | K13: =IF(E13=0,0,'3. Herd Input'!C33) -> 145 | L13: =(J13+K13)/2 -> 172.5 | M13: 2.5 | O13: 2.5 | Q13: =E13*M13 -> 372.603174 | R13: 372.603174 | S13: 372.603174 | T13: 372.603174 | W13: Lactating sows | X13: ='3. Herd Input'!C25*'3. Herd Input'!C38/7 -> 7.817142857 | AA13: ='3. Herd Input'!C13*'3. Herd Input'!C25*X14/(365/7) -> 149.9178082 | AB13: =E32*X13/(365/7) -> 1.753077239 | AG13: =AA13-AB13 -> 148.164731 | AI13: =IF($S13=0, 0, IF($F13="Deep litter", 0, VLOOKUP($F13, '7. Assumptions'!$B$34:$K$35, 4, FALSE))) -> 0.02 | AJ13: =IF($S13=0, 0, IF($F13="Deep litter", 0, VLOOKUP($F13, '7. Assumptions'!$B$34:$K$35, 6, FALSE))) -> 0.03 | AK13: =IF($S13=0, 0, IF($F13="Deep litter", 0, VLOOKUP($F13, '7. Assumptions'!$B$34:$K$35, 8, FALSE))) -> 0.1 | AL13: 7.45206348 | AM13: 11.17809522 | AN13: 37.2603174
B14: Suckers | C14: =IF('3. Herd Input'!F16<>"", (AA14+AG14)/2,0) -> 1662.888329 | E14: 1662.888329 | F14: Flushing | G14: 0 | H14: =IF('3. Herd Input'!G16<>"", '3. Herd Input'!G16, 0) -> 3.428571429 | I14: =(G14+H14)/2 -> 1.714285714 | J14: =IF(E14=0,0,'3. Herd Input'!G30) -> 1.4 | K14: =IF(H14=0,0,IF('3. Herd Input'!G31="",'3. Herd Input'!I31,'3. Herd Input'!G31)) -> 7 | L14: =IF(K14<>"", (J14+K14)/2,0) -> 4.2 | M14: =IF(K14=0,0, IF(K14<=8,0.1, IF(K14<=25, 0.5, IF(K14<=55, 1, IF(K14<=100, 1.6, 1.8))))) -> 0.1 | N14: =IF(L14=0, 0, IF(L14<4.7, 0.1, IF(L14<16.5, 0.033898*L14 - 0.059322, IF(L14<40, 0.021277*L14 + 0.148936, IF(L14<77.5, 0.016*L14 + 0.36, IF(L14<115, 0.005333*L14 + 1.186667, 1.8)))))) -> 0.1 | O14: =IF(L14=0, 0, 0.0000001837*L14^3 - 0.0001685623*L14^2 + 0.0329143124*L14 - 0.0333791203) -> 0.1019011628 | P14: =IF(I14=0, 0, -0.000132*I14^3 + 0.004419*I14^2 + 0.043493*I14 + 0.003072) -> 0.08995287464 | Q14: =$E14*M14 -> 166.2888329 | R14: 166.2888329 | S14: 169.4502543 | T14: 149.5815854 | W14: Suckers | X14: =IF(H14<>"",H14-G14,"") -> 3.428571429 | Y14: =IF(K14<>"",1000*(K14-J$14)/(H14*7),"") -> 233.3333333 | AA14: =IF(H14<>"", (AA34+Z34)*X14/(365/7),0) -> 1769.030137 | AB14: =IF(K14<>"", E34*X14/(365/7),0) -> 212.2836164 | AC14: =IF(K14<>"", C34*X14/(365/7),0) -> 0 | AD14: =IF(K14<>"", G34*X14/(365/7),0) -> 0 | AG14: =IF(K14<>"", AA14-AB14,0) -> 1556.746521 | AI14: =IF($S14=0, 0, IF($F14="Deep litter", 0, VLOOKUP($F14, '7. Assumptions'!$B$34:$K$35, 4, FALSE))) -> 0.02 | AJ14: =IF($S14=0, 0, IF($F14="Deep litter", 0, VLOOKUP($F14, '7. Assumptions'!$B$34:$K$35, 6, FALSE))) -> 0.03 | AK14: =IF($S14=0, 0, IF($F14="Deep litter", 0, VLOOKUP($F14, '7. Assumptions'!$B$34:$K$35, 8, FALSE))) -> 0.1 | AL14: 3.389005085 | AM14: 5.083507628 | AN14: 16.94502543
B15: ='3. Herd Input'!M17 -> Weaner | C15: =IF('3. Herd Input'!F17<>"", (AA15+AG15)/2,0) -> 2957.369328 | E15: 2957.369328 | F15: Flushing | G15: =IF(H15<>0,H14,0) -> 3.428571429 | H15: =IF('3. Herd Input'!G17<>"", '3. Herd Input'!G17, 0) -> 10 | I15: =IF(H15<>"", (G15+H15)/2,0) -> 6.714285714 | J15: =IF(E15=0,0,IF(K15<>"", K14,"")) -> 7 | K15: =IF(H15=0,0,IF('3. Herd Input'!G32="",'3. Herd Input'!I32,'3. Herd Input'!G32)) -> 35 | L15: 21 | M15: 1 | N15: 0.595753 | O15: 0.5851867115 | P15: 0.4543569563 | Q15: 2957.369328 | R15: 1761.861649 | S15: 1730.613231 | T15: 1343.701326 | W15: Weaner | X15: 6.571428571 | Y15: 480 | AA15: 2983.764164 | AB15: 52.78967368 | AC15: 0 | AD15: 0 | AG15: 2930.974491 | AI15: =IF($S15=0, 0, IF($F15="Deep litter", 0, VLOOKUP($F15, '7. Assumptions'!$B$34:$K$35, 4, FALSE))) -> 0.02 | AJ15: =IF($S15=0, 0, IF($F15="Deep litter", 0, VLOOKUP($F15, '7. Assumptions'!$B$34:$K$35, 6, FALSE))) -> 0.03 | AK15: =IF($S15=0, 0, IF($F15="Deep litter", 0, VLOOKUP($F15, '7. Assumptions'!$B$34:$K$35, 8, FALSE))) -> 0.1 | AL15: 34.61226463 | AM15: 51.91839694 | AN15: 173.0613231
B16: ='3. Herd Input'!M18 -> Porker | C16: =IF('3. Herd Input'!F18<>"", (AA16+AG16)/2,0) -> 1774.464891 | E16: 1774.464891 | F16: Flushing | G16: 10 | H16: =IF('3. Herd Input'!G18<>"", '3. Herd Input'!G18, 0) -> 14 | I16: 12 | J16: =IF(E16=0,0,IF(K16<>"", K15,"")) -> 35 | K16: =IF(H16=0,0,IF('3. Herd Input'!G33="",'3. Herd Input'!I33,'3. Herd Input'!G33)) -> 60 | L16: 47.5 | M16: 1.6 | N16: 1.12 | O16: 1.169419503 | P16: 0.933228 | Q16: 2839.143825 | R16: 1987.400678 | S16: 2075.09385 | T16: 1655.980321 | W16: Porker | X16: 4 | Y16: 597.9591837 | AA16: 1784.071429 | AB16: 19.21307693 | AC16: 0 | AD16: 0 | AG16: 1764.858352 | AI16: =IF($S16=0, 0, IF($F16="Deep litter", 0, VLOOKUP($F16, '7. Assumptions'!$B$34:$K$35, 4, FALSE))) -> 0.02 | AJ16: =IF($S16=0, 0, IF($F16="Deep litter", 0, VLOOKUP($F16, '7. Assumptions'!$B$34:$K$35, 6, FALSE))) -> 0.03 | AK16: =IF($S16=0, 0, IF($F16="Deep litter", 0, VLOOKUP($F16, '7. Assumptions'!$B$34:$K$35, 8, FALSE))) -> 0.1 | AL16: 41.501877 | AM16: 62.2528155 | AN16: 207.509385
B17: ='3. Herd Input'!M19 -> Grower | C17: =IF('3. Herd Input'!F19<>"", (AA17+AG17)/2,0) -> 1755.355269 | E17: 1755.355269 | F17: Flushing | G17: 14 | H17: =IF('3. Herd Input'!G19<>"", '3. Herd Input'!G19, 0) -> 18 | I17: 16 | J17: =IF(E17=0,0, IF(K17<>"", K16,"")) -> 60 | K17: =IF(H17=0,0,IF('3. Herd Input'!G34="",'3. Herd Input'!I34,'3. Herd Input'!G34)) -> 85 | L17: 72.5 | M17: 1.6 | N17: 1.52 | O17: 1.536906991 | P17: 1.289552 | Q17: 2808.56843 | R17: 2668.140009 | S17: 2697.817784 | T17: 2263.621898 | W17: Grower | X17: 4 | Y17: 663.4920635 | AA17: 1764.858352 | AB17: 19.00616687 | AC17: 0 | AD17: 0 | AG17: 1745.852185 | AI17: =IF($S17=0, 0, IF($F17="Deep litter", 0, VLOOKUP($F17, '7. Assumptions'!$B$34:$K$35, 4, FALSE))) -> 0.02 | AJ17: =IF($S17=0, 0, IF($F17="Deep litter", 0, VLOOKUP($F17, '7. Assumptions'!$B$34:$K$35, 6, FALSE))) -> 0.03 | AK17: =IF($S17=0, 0, IF($F17="Deep litter", 0, VLOOKUP($F17, '7. Assumptions'!$B$34:$K$35, 8, FALSE))) -> 0.1 | AL17: 53.95635568 | AM17: 80.93453352 | AN17: 269.7817784
B18: ='3. Herd Input'!M20 -> Finisher | C18: =IF('3. Herd Input'!F20<>"", (AA18+AG18)/2,0) -> 1736.451443 | E18: 1736.451443 | F18: Flushing | G18: 18 | H18: =IF('3. Herd Input'!G20<>"", '3. Herd Input'!G20, 0) -> 22 | I18: 20 | J18: =IF(E18=0,0,IF(K18<>"", K17,"")) -> 85 | K18: =IF(H18=0,0,IF('3. Herd Input'!G35="",'3. Herd Input'!I35,'3. Herd Input'!G35)) -> 110 | L18: 97.5 | M18: 1.8 | N18: 1.7066345 | O18: 1.743635042 | P18: 1.584532 | Q18: 3125.612597 | R18: 2963.48794 | S18: 3027.737584 | T18: 2751.462878 | W18: Finisher | X18: 4 | Y18: 705.1948052 | AA18: 1745.852185 | AB18: 18.80148507 | AC18: 0 | AD18: 1727.0507 | AG18: 1727.0507 | AI18: =IF($S18=0, 0, IF($F18="Deep litter", 0, VLOOKUP($F18, '7. Assumptions'!$B$34:$K$35, 4, FALSE))) -> 0.02 | AJ18: =IF($S18=0, 0, IF($F18="Deep litter", 0, VLOOKUP($F18, '7. Assumptions'!$B$34:$K$35, 6, FALSE))) -> 0.03 | AK18: =IF($S18=0, 0, IF($F18="Deep litter", 0, VLOOKUP($F18, '7. Assumptions'!$B$34:$K$35, 8, FALSE))) -> 0.1 | AL18: 60.55475167 | AM18: 90.83212751 | AN18: 302.7737584
B19: ='3. Herd Input'!M21 -> Unallocated | C19: =IF('3. Herd Input'!F21<>"", (AA19+AG19)/2,0) -> 0 | E19: 0 | G19: 0 | H19: =IF('3. Herd Input'!G21<>"", '3. Herd Input'!G21, 0) -> 0 | I19: 0 | J19: =IF(E19=0, 0, IF(K19<>"", K18,"")) -> 0 | K19: =IF(H19=0,0,IF('3. Herd Input'!G36="",'3. Herd Input'!I36,'3. Herd Input'!G36)) -> 0 | L19: 0 | M19: 0 | N19: 0 | O19: 0 | P19: 0 | Q19: 0 | R19: 0 | S19: 0 | T19: 0 | W19: Unallocated | X19: 0 | AA19: 0 | AB19: 0 | AC19: 0 | AD19: 0 | AG19: 0 | AI19: =IF($S19=0, 0, IF($F19="Deep litter", 0, VLOOKUP($F19, '7. Assumptions'!$B$34:$K$35, 4, FALSE))) -> 0 | AJ19: =IF($S19=0, 0, IF($F19="Deep litter", 0, VLOOKUP($F19, '7. Assumptions'!$B$34:$K$35, 6, FALSE))) -> 0 | AK19: =IF($S19=0, 0, IF($F19="Deep litter", 0, VLOOKUP($F19, '7. Assumptions'!$B$34:$K$35, 8, FALSE))) -> 0 | AL19: 0 | AM19: 0 | AN19: 0
B20: ='3. Herd Input'!M22 -> Unallocated | C20: =IF('3. Herd Input'!F22<>"", (AA20+AG20)/2,0) -> 0 | E20: 0 | F20: Flushing | G20: 0 | H20: =IF('3. Herd Input'!G22<>"", '3. Herd Input'!G22, 0) -> 0 | I20: 0 | J20: =IF(E20=0, 0, IF(K20<>"", K19,"")) -> 0 | K20: =IF(H20=0,0,IF('3. Herd Input'!G37="",'3. Herd Input'!I37,'3. Herd Input'!G37)) -> 0 | L20: 0 | M20: 0 | N20: 0 | O20: 0 | P20: 0 | Q20: 0 | R20: 0 | S20: 0 | T20: 0 | W20: Unallocated | X20: 0 | AA20: 0 | AB20: 0 | AC20: 0 | AD20: 0 | AG20: 0 | AI20: =IF($S20=0, 0, IF($F20="Deep litter", 0, VLOOKUP($F20, '7. Assumptions'!$B$34:$K$35, 4, FALSE))) -> 0 | AJ20: =IF($S20=0, 0, IF($F20="Deep litter", 0, VLOOKUP($F20, '7. Assumptions'!$B$34:$K$35, 6, FALSE))) -> 0 | AK20: =IF($S20=0, 0, IF($F20="Deep litter", 0, VLOOKUP($F20, '7. Assumptions'!$B$34:$K$35, 8, FALSE))) -> 0 | AL20: 0 | AM20: 0 | AN20: 0
W21: ='3. Herd Input'!S16 -> NEGP Sucker | AC21: 0 | AD21: 0
B22: Totals: | C22: =SUM(C9:C20) -> 10999.06668 | E22: =SUM(E9:E20) -> 10999.06668 | Q22: =SUM(Q9:Q20) -> 13831.68752 | R22: =SUM(R9:R20) -> 11481.88362 | S22: =SUM(S9:S20) -> 11635.41721 | T22: =SUM(T9:T20) -> 10099.05252 | W22: ='3. Herd Input'!S17 -> NEGP Weaner | AC22: 0 | AD22: 0 | AI22: Composite shed loss factors: | AL22: =SUM(AL9:AL20)/$S22 -> 0.02 | AM22: =SUM(AM9:AM20)/$S22 -> 0.03 | AN22: =SUM(AN9:AN20)/$S22 -> 0.1
E23: =IF((E11+E12+E13)='3. Herd Input'!C13,"","Error-Sow number incorrect") ->  | W23: ='3. Herd Input'!S18 -> NEGP Grower | AC23: 0 | AD23: 0
W24: ='3. Herd Input'!S19 -> NEGP Finisher | AC24: 0 | AD24: 0
W25: ='3. Herd Input'!S20 -> NEGP Heavy finisher | AC25: 0 | AD25: 0
B26: Pig class | C26: Pigs purchased | E26: Pig mortalities | G26: Pigs sold | J26: Pigs in piggery
C27: Number | D27: Mass | E27: Number | F27: Mass | G27: Number | H27: Live weight | I27: Dressed weight | W27: =B26 -> Pig class | X27: Mortality | Y27: Sold | Z27: Pigs Purchased | AA27: Pigs in from previous stage | AB27: Pigs sold | AC27: Pig mortalities | AD27: Pigs out to next stage | AE27: In - Out
C28: (pigs. yr-1) | D28: (kg. yr-1) | E28: (pigs. yr-1) | F28: (kg. yr-1) | G28: (pigs. yr-1) | H28: (kg. yr-1) | I28: (kg. yr-1) | J28: (kg live weight) | X28: (%) | Y28: (%) | Z28: (pigs/year) | AA28: (pigs/year) | AB28: (pigs/year) | AC28: (pigs/year) | AD28: (pigs/year) | AE28: (pigs/year)
B29: Gilts | C29: ='3. Herd Input'!G41 -> 0 | D29: =C29*J9 -> 0 | E29: =IF($X$9=0, 0, $AA$9*$X$29*(365/7)/($X$9*100)) -> 7.173329076 | F29: =$E$29*$J$9 -> 763.1476086 | G29: =((AA11+AA13)*('3. Herd Input'!C16+'3. Herd Input'!C18)*'3. Herd Input'!C19/10000) -> 80.99092951 | H29: =G29*K9 -> 11743.68478 | I29: =H29*'3. Herd Input'!C$40/100 -> 8925.200431 | J29: =E9*L9 -> 12888.27828 | W29: =B29 -> Gilts | X29: ='3. Herd Input'!G55 -> 1.076923077 | Z29: =C29 -> 0 | AA29: ='3. Herd Input'!C59-'5. Herd details'!Z29+E29 -> 666.1712709 | AB29: =G29 -> 80.99092951 | AC29: =E29 -> 7.173329076 | AD29: =Z29+AA29-AB29-AC29 -> 578.0070123 | AE29: =Z29+AA29-AB29-AC29-AD29 -> 0
B30: Boars | C30: ='3. Herd Input'!G42 -> 0 | D30: =C30*J10 -> 0 | E30: =($Z$30+$AA$30)*$X$30/100 -> 0.52 | F30: =E30*K10 -> 156 | G30: =Z30+AA30-E30 -> 6.146666667 | H30: =G30*K10 -> 1844 | I30: =H30*'3. Herd Input'!C$40/100 -> 1401.44 | J30: =E10*L10 -> 2031.934058 | W30: Boars | X30: ='3. Herd Input'!C18 -> 7.8 | Z30: =C30 -> 0 | AA30: ='3. Herd Input'!C61-'5. Herd details'!Z30 -> 6.666666667 | AB30: 6.146666667 | AC30: 0.52 | AD30: 0 | AE30: =Z30+AA30-AB30-AC30-AD30 -> 4.440892099e-16
B31: Gestating sows | E31: =$X$31*$AA$11/100 -> 66.37478097 | F31: =E31*J11 -> 9624.343241 | G31: ='3. Herd Input'!C16*'3. Herd Input'!C13/100 -> 500 | H31: =G31*J11 -> 72500 | I31: =H31*'3. Herd Input'!C$40/100 -> 55100 | J31: =E11*L11 -> 146790.381 | W31: Gestating sows | X31: ='3. Herd Input'!C18 -> 7.8 | Z31: 0 | AA31: =AD29+AD32 -> 2846.313423 | AB31: 500 | AC31: 66.37478097 | AD31: 2279.938642 | AE31: 0
B32: Lactating sows | E32: =$X$32*$AA$13/100 -> 11.69358904 | F32: =E32*J13 -> 2338.717808 | I32: =H32*'3. Herd Input'!C$40/100 -> 0 | J32: =E13*L13 -> 25709.61901 | W32: Lactating sows | X32: ='3. Herd Input'!C18 -> 7.8 | Z32: 0 | AA32: ='3. Herd Input'!C13*'3. Herd Input'!C25 -> 2280 | AB32: 0 | AC32: 11.69358904 | AD32: 2268.306411 | AE32: 0
W33: Still born | Z33: 0 | AA33: ='3. Herd Input'!C28*'3. Herd Input'!C13*'3. Herd Input'!C25 -> 2006.4 | AB33: 0 | AC33: =AA33 -> 2006.4 | AD33: 0 | AE33: 0
B34: Suckers | E34: =$X34*($AA34+$Z34)/100 -> 3228.48 | F34: =E34*L14 -> 13559.616 | G34: =(Z34+AA34-E34)*Y34/100 -> 0 | H34: =G34*K14 -> 0 | I34: =H34*'3. Herd Input'!C$40/100 -> 0 | J34: =E14*L14 -> 6984.130981 | W34: Suckers | X34: ='3. Herd Input'!G51 -> 12 | Y34: ='3. Herd Input'!G62 -> 0 | Z34: 0 | AA34: ='3. Herd Input'!C25*'3. Herd Input'!C13*'3. Herd Input'!C27 -> 26904 | AB34: 0 | AC34: 3228.48 | AD34: 23675.52 | AE34: 0
B35: ='3. Herd Input'!M17 -> Weaner | C35: ='3. Herd Input'!G43 -> 0 | D35: =C35*J15 -> 0 | E35: =X35*(AA35+Z35)/100 -> 418.8745846 | F35: 8796.366277 | G35: =(Z35+AA35-E35)*Y35/100 -> 0 | H35: 0 | I35: =H35*'3. Herd Input'!C$40/100 -> 0 | J35: 62104.75588 | W35: Weaner | X35: ='3. Herd Input'!G53 -> 1.769230769 | Y35: ='3. Herd Input'!G63 -> 0 | Z35: 0 | AA35: =AD34 -> 23675.52 | AB35: 0 | AC35: 418.8745846 | AD35: 23256.64542 | AE35: 0
B36: ='3. Herd Input'!M18 -> Porker | C36: ='3. Herd Input'!G44 -> 0 | D36: 0 | E36: 250.4561814 | F36: 11896.66862 | G36: =(Z36+AA36-E36)*Y36/100 -> 0 | H36: 0 | I36: =H36*'3. Herd Input'!C$40/100 -> 0 | J36: 84287.08231 | W36: Porker | X36: ='3. Herd Input'!G54 -> 1.076923077 | Y36: ='3. Herd Input'!G64 -> 0 | Z36: 0 | AA36: 23256.64542 | AB36: 0 | AC36: 250.4561814 | AD36: 23006.18923 | AE36: 0
B37: ='3. Herd Input'!M19 -> Grower | C37: ='3. Herd Input'!G45 -> 0 | D37: 0 | E37: 247.758961 | F37: 17962.52467 | G37: =(Z37+AA37-E37)*Y37/100 -> 0 | H37: 0 | I37: =H37*'3. Herd Input'!C$40/100 -> 0 | J37: 127263.257 | W37: Grower | X37: ='3. Herd Input'!G55 -> 1.076923077 | Y37: ='3. Herd Input'!G65 -> 0 | Z37: 0 | AA37: 23006.18923 | AB37: =G37 -> 0 | AC37: 247.758961 | AD37: 22758.43027 | AE37: 0
B38: ='3. Herd Input'!M20 -> Finisher | C38: ='3. Herd Input'!G46 -> 0 | D38: 0 | E38: 245.0907876 | F38: 23896.35179 | G38: =(Z38+AA38-E38)*Y38/100 -> 22513.33949 | H38: 2476467.343 | I38: =H38*'3. Herd Input'!C$40/100 -> 1882115.181 | J38: 169304.0157 | W38: Finisher | X38: ='3. Herd Input'!G56 -> 1.076923077 | Y38: ='3. Herd Input'!G66 -> 100 | Z38: 0 | AA38: 22758.43027 | AB38: 22513.33949 | AC38: 245.0907876 | AD38: =Z38+AA38-AB38-AC38 -> 1.136868377e-12 | AE38: 0
B39: ='3. Herd Input'!M21 -> Unallocated | C39: ='3. Herd Input'!G47 -> 0 | D39: 0 | E39: 0 | F39: 0 | G39: 0 | H39: 0 | I39: =H39*'3. Herd Input'!C$40/100 -> 0 | J39: 0 | W39: Unallocated | X39: ='3. Herd Input'!G57 -> 0 | Y39: ='3. Herd Input'!G67 -> 0 | Z39: 0 | AA39: 1.136868377e-12 | AB39: 0 | AC39: 0 | AD39: =Z39+AA39-AB39-AC39 -> 1.136868377e-12 | AE39: 0
B40: ='3. Herd Input'!M22 -> Unallocated | C40: ='3. Herd Input'!G48 -> 0 | D40: 0 | E40: 0 | F40: 0 | G40: 0 | H40: 0 | I40: =H40*'3. Herd Input'!C$40/100 -> 0 | J40: 0 | W40: Unallocated | X40: ='3. Herd Input'!G58 -> 0 | Y40: ='3. Herd Input'!G68 -> 0 | Z40: 0 | AA40: 1.136868377e-12 | AB40: 0 | AC40: 0 | AD40: =Z40+AA40-AB40-AC40 -> 1.136868377e-12 | AE40: 0
B42: Totals: | C42: =SUM(C29:C40) -> 0 | D42: 0 | E42: 4476.422214 | F42: 88993.73601 | G42: 23100.47708 | H42: 2562555.028 | I42: 1947541.821 | J42: 637363.4542 | Z42: =SUM(Z29:Z40) -> 0 | AA42: 127406.3363 | AB42: 23100.47708 | AC42: 6482.822214 | AD42: 97823.03699 | AE42: 4.440892099e-16
F48: Flushing
F49: Pull plug / Static pit
F50: Deep litter
B52: Pig class | C52: Pigs purchased | E52: Pig mortalities | G52: Pigs sold | J52: Pigs in piggery | L52: Shed type | O52: Pigs in piggery | S52: SPU in Piggery
C53: Number | D53: Mass | E53: Number | F53: Mass | G53: Number | H53: Live weight | I53: Dressed weight | L53: Conventional | O53: =F89+G89 -> 10999.06668 | S53: =I89+J89 -> 11635.41721
C54: (pigs. yr-1) | D54: (kg. yr-1) | E54: (pigs. yr-1) | F54: (kg. yr-1) | G54: (pigs. yr-1) | H54: (kg. yr-1) | I54: (kg. yr-1) | J54: (kg live weight) | L54: Deep litter | O54: =H89 -> 0 | S54: =K89 -> 0
B55: Gilts | C55: ='3. Herd Input'!G41 -> 0 | D55: =C55*J9 -> 0 | E55: =IF($X$9=0, 0, IF(D9>0, ($AA9*(E9/C9)*$X$29*(365/7)/($X$9*100)), $AA$9*$X$29*(365/7)/($X$9*100))) -> 7.173329076 | F55: =$E$55*$J$9 -> 763.1476086 | G55: =IF(D9="",G29,(G29*(D9/C9))) -> 80.99092951 | H55: =G55*K9 -> 11743.68478 | I55: =H55*'3. Herd Input'!C$40/100 -> 8925.200431 | J55: =E9*L9 -> 12888.27828 | L55: Total | O55: =O53+O54 -> 10999.06668 | S55: =S53+S54 -> 11635.41721
B56: Boars | C56: ='3. Herd Input'!G42 -> 0 | D56: =C56*J10 -> 0 | E56: =IF(D10="",(($Z$30+$AA$30)*$X$30/100), ((($Z$30+$AA$30)*$X$30/100)*(D10/C10))) -> 0.52 | F56: =E56*K10 -> 156 | G56: =IF(D10="",G30,(G30*(D10/C10))) -> 6.146666667 | H56: =G56*K10 -> 1844 | I56: =H56*'3. Herd Input'!C$35/100*0.65 -> 3595.8 | J56: =E10*L10 -> 2031.934058
B57: Gestating sows | E57: =IF(AND(D11="", D12=""), ($X$31*$AA$11/100), ($X$31*$AA$11/100)*((D11+D12)/(C11+C12))) -> 66.37478097 | F57: =E57*J11 -> 9624.343241 | G57: =IF(AND(D11="",D12=""),G31,(G31*(D11+D12)/(C11+C12))) -> 500 | H57: =G57*K11 -> 100000 | I57: =G57*'3. Herd Input'!C$36 -> 65000 | J57: =E11*L11 -> 146790.381
B58: Lactating sows | E58: =IF(D13="", ($X$32*$AA$13/100), (($X$32*$AA$13/100)*(D13/C13))) -> 11.69358904 | F58: =E58*J13 -> 2338.717808 | J58: =E12*L13 -> 0
B60: Suckers | E60: =IF(D14="", ($X34*($AA34+$Z34)/100),(($X34*($AA34+$Z34)/100)*(D14/C14))) -> 3228.48 | F60: =E60*L14 -> 13559.616 | G60: =IF(D14="",G34,(G34*(D14/C14))) -> 0 | H60: =G60*K14 -> 0 | I60: =H60*'3. Herd Input'!C$40/100 -> 0 | J60: =E14*L14 -> 6984.130981
B61: ='3. Herd Input'!M17 -> Weaner | C61: ='3. Herd Input'!G43 -> 0 | D61: =C61*J15 -> 0 | E61: 418.8745846 | F61: 8796.366277 | G61: 0 | H61: 0 | I61: =H61*'3. Herd Input'!C$40/100 -> 0 | J61: 62104.75588
B62: ='3. Herd Input'!M18 -> Porker | C62: ='3. Herd Input'!G44 -> 0 | D62: 0 | E62: 250.4561814 | F62: 11896.66862 | G62: 0 | H62: 0 | I62: =H62*'3. Herd Input'!C$40/100 -> 0 | J62: 84287.08231
B63: ='3. Herd Input'!M19 -> Grower | C63: ='3. Herd Input'!G45 -> 0 | D63: 0 | E63: 247.758961 | F63: 17962.52467 | G63: 0 | H63: 0 | I63: =H63*'3. Herd Input'!C$40/100 -> 0 | J63: 127263.257
B64: ='3. Herd Input'!M20 -> Finisher | C64: ='3. Herd Input'!G46 -> 0 | D64: 0 | E64: 245.0907876 | F64: 23896.35179 | G64: 22513.33949 | H64: 2476467.343 | I64: =H64*'3. Herd Input'!C$40/100 -> 1882115.181 | J64: 169304.0157
B65: ='3. Herd Input'!M21 -> Unallocated | C65: ='3. Herd Input'!G47 -> 0 | D65: 0 | E65: 0 | F65: 0 | G65: 0 | H65: 0 | I65: =H65*'3. Herd Input'!C$40/100 -> 0 | J65: 0
B66: ='3. Herd Input'!M22 -> Unallocated | C66: ='3. Herd Input'!G48 -> 0 | D66: 0 | E66: 0 | F66: 0 | G66: 0 | H66: 0 | I66: =H66*'3. Herd Input'!C$40/100 -> 0 | J66: 0
B68: Totals: | C68: =SUM(C55:C66) -> 0 | D68: 0 | E68: 4476.422214 | F68: 88993.73601 | G68: 23100.47708 | H68: 2590055.028 | I68: 1959636.181 | J68: 611653.8352
B71: Backfatters | G71: =SUM(G29:G31) -> 587.1375962 | H71: =SUM(H29:H31) -> 86087.68478 | I71: Flushing
I72: Pull plug / Static pit
I73: Deep litter | W73: Mass Balance
W75: Live weight (kg/yr)
B76: =B6 -> Pig class | C76: Shed Type | D76: Pigs in piggery | E76: =S6 -> No of SPUs | F76: Pigs (Flushing) | G76: Pigs (Pull plug / static pit) | H76: Pigs (Deep litter) | I76: SPU (Flushing) | J76: SPU (Pull plug / static pit) | K76: SPU (Deep litter) | W76: Pig Class | X76: Live weight in | Y76: Live weight out | Z76: Pigs Purchased | AA76: Pigs in from previous stage | AB76: Pigs sold | AC76: Pig mortalities | AD76: Pigs out to next stage
B77: =B9 -> Gilts | C77: =F9 -> Flushing | D77: =E9 -> 102.5374259 | E77: =S9 -> 184.5673666 | F77: =IF(C77="Flushing",D77,0) -> 102.5374259 | G77: =IF(C77="Pull plug / Static pit",D77,0) -> 0 | H77: =IF(C77="Deep litter",D77,0) -> 0 | I77: =IF(C77="Flushing",E77,0) -> 184.5673666 | J77: =IF(C77="Pull plug / static pit",E77,0) -> 0 | K77: =IF(C77="Deep litter",E77,0) -> 0 | Z77: (kg/year) | AA77: (kg/year) | AB77: (kg/year) | AC77: (kg/year) | AD77: (kg/year)
B78: Boars | C78: Flushing | D78: 10 | E78: 16 | F78: =IF(C78="Flushing",D78,0) -> 10 | G78: =IF(C78="Pull plug / Static pit",D78,0) -> 0 | H78: =IF(C78="Deep litter",D78,0) -> 0 | I78: =IF(C78="Flushing",E78,0) -> 16 | J78: =IF(C78="Pull plug / static pit",E78,0) -> 0 | K78: =IF(C78="Deep litter",E78,0) -> 0 | W78: =W29 -> Gilts | X78: =J9 -> 106.3868116 | Y78: 145 | Z78: =Z29*X78 -> 0 | AA78: =AA29*X78 -> 70871.83746 | AB78: =AB29*Y78 -> 11743.68478 | AC78: =AC29*X78 -> 763.1476086 | AD78: =AD29*Y78 -> 83811.01678 | AE78: Pigs in - lwt in, Mortalities - lwt in, Pigs out - Lwt out
B79: Gestating sows 1 | C79: Flushing | D79: 850.9587304 | E79: 1361.533969 | F79: 850.9587304 | G79: 0 | H79: 0 | I79: 1361.533969 | J79: 0 | K79: 0 | W79: =W30 -> Boars | X79: 106.3868116 | Y79: 300 | Z79: =Z30*X79 -> 0 | AA79: =AA30*X79 -> 709.2454104 | AB79: =AB30*Y79 -> 1844 | AC79: =AC30*Y79 -> 156 | AD79: =AD30*Y79 -> 0
B80: Gestating sows 2 | C80: Flushing | D80: 0 | E80: 0 | F80: 0 | G80: 0 | H80: 0 | I80: 0 | J80: 0 | K80: 0 | W80: =W31 -> Gestating sows | X80: 145 | Y80: 200 | Z80: =Z31*X80 -> 0 | AA80: =AA31*X80 -> 412715.4464 | AB80: =AB31*X80 -> 72500 | AC80: =AC31*X80 -> 9624.343241 | AD80: =AD31*Y80 -> 455987.7285
B81: Lactating sows | C81: Flushing | D81: 149.0412696 | E81: 372.603174 | F81: 149.0412696 | G81: 0 | H81: 0 | I81: 372.603174 | J81: 0 | K81: 0 | W81: =W32 -> Lactating sows | X81: =J13 -> 200 | Y81: 145 | Z81: =Z32*X81 -> 0 | AA81: =AA32*X81 -> 456000 | AB81: =AB32*Y81 -> 0 | AC81: =AC32*X81 -> 2338.717808 | AD81: =AD32*Y81 -> 328904.4296
B82: Suckers | C82: Flushing | D82: 1662.888329 | E82: 169.4502543 | F82: 1662.888329 | G82: 0 | H82: 0 | I82: 169.4502543 | J82: 0 | K82: 0 | W82: =W34 -> Suckers | X82: 1.4 | Y82: 7 | Z82: =Z34*X82 -> 0 | AA82: =AA34*X82 -> 37665.6 | AB82: 0 | AC82: =AC34*AVERAGE(X82:Y82) -> 13559.616 | AD82: =AD34*Y82 -> 165728.64
B83: Weaner | C83: Flushing | D83: 2957.369328 | E83: 1730.613231 | F83: 2957.369328 | G83: 0 | H83: 0 | I83: 1730.613231 | J83: 0 | K83: 0 | W83: Weaner | X83: 7 | Y83: 35 | Z83: 0 | AA83: 165728.64 | AB83: 0 | AC83: 8796.366277 | AD83: 813982.5895
B84: Porker | C84: Flushing | D84: 1774.464891 | E84: 2075.09385 | F84: 1774.464891 | G84: 0 | H84: 0 | I84: 2075.09385 | J84: 0 | K84: 0 | W84: Porker | X84: 35 | Y84: 60 | Z84: 0 | AA84: 813982.5895 | AB84: 0 | AC84: 11896.66862 | AD84: 1380371.354
B85: Grower | C85: Flushing | D85: 1755.355269 | E85: 2697.817784 | F85: 1755.355269 | G85: 0 | H85: 0 | I85: 2697.817784 | J85: 0 | K85: 0 | W85: Grower | X85: 60 | Y85: 85 | Z85: 0 | AA85: 1380371.354 | AB85: 0 | AC85: 17962.52467 | AD85: 1934466.573
B86: Finisher | C86: Flushing | D86: 1736.451443 | E86: 3027.737584 | F86: 1736.451443 | G86: 0 | H86: 0 | I86: 3027.737584 | J86: 0 | K86: 0 | W86: Finisher | X86: 85 | Y86: 110 | Z86: 0 | AA86: 1934466.573 | AB86: 2476467.343 | AC86: 23896.35179 | AD86: 1.250555215e-10
B87: Unallocated | C87: 0 | D87: 0 | E87: 0 | F87: 0 | G87: 0 | H87: 0 | I87: 0 | J87: 0 | K87: 0 | W87: Unallocated | X87: 0 | Y87: 0 | Z87: 0 | AA87: 0 | AB87: 0 | AC87: 0 | AD87: 0
B88: Unallocated | C88: Flushing | D88: 0 | E88: 0 | F88: 0 | G88: 0 | H88: 0 | I88: 0 | J88: 0 | K88: 0 | W88: Unallocated | X88: 0 | Y88: 0 | Z88: 0 | AA88: 0 | AB88: 0 | AC88: 0 | AD88: 0
D89: =SUM(D77:D88) -> 10999.06668 | E89: =SUM(E77:E88) -> 11635.41721 | F89: 10999.06668 | G89: 0 | H89: 0 | I89: 11635.41721 | J89: =SUM(J77:J88) -> 0 | K89: =SUM(K77:K88) -> 0
Z90: =SUM(Z78:Z88) -> 0 | AA90: =SUM(AA78:AA88) -> 5272511.286 | AB90: =SUM(AB78:AB88) -> 2562555.028 | AC90: =SUM(AC78:AC88) -> 88993.73601 | AD90: =SUM(AD78:AD88) -> 5163252.332
W92: Fixed solids (kg/yr)
W93: Pig Class | Y93: Feed ingested | Z93: Pigs Purchased | AA93: Pigs in from previous stage | AB93: Pigs sold | AC93: Pig mortalities | AD93: Pigs out to next stage | AE93: Placenta + Milk + Suckers born (alive + stillborn) | AF93: Mass balance | AG93: DMDAMP | AH93: Difference (MB - DMDAMP)
Z94: (kg/year) | AA94: (kg/year) | AB94: (kg/year) | AC94: (kg/year) | AD94: (kg/year)
W95: =W78 -> Gilts | Y95: ='14. DM DAMP'!N51 -> 4484.432206 | Z95: =Z78*'7. Assumptions'!$F$7/1000 -> 0 | AA95: =AA78*'7. Assumptions'!$F$7/1000 -> 2055.283286 | AB95: =AB78*'7. Assumptions'!$F$7/1000 -> 340.5668586 | AC95: =AC78*'7. Assumptions'!$F$7/1000 -> 22.13128065 | AD95: =AD78*'7. Assumptions'!$F$7/1000 -> 2430.519487 | AF95: =Y95+Z95+AA95-AB95-AC95-AD95 -> 3746.497866 | AG95: ='14. DM DAMP'!N129*1000 -> 3821.055896 | AH95: =AF95-AG95 -> -74.55802971
W96: Boars | Y96: ='14. DM DAMP'!O51 -> 407.6280397 | Z96: =Z79*'7. Assumptions'!$F$7/1000 -> 0 | AA96: =AA79*'7. Assumptions'!$F$7/1000 -> 20.5681169 | AB96: =AB79*'7. Assumptions'!$F$7/1000 -> 53.476 | AC96: =AC79*'7. Assumptions'!$F$7/1000 -> 4.524 | AD96: =AD79*'7. Assumptions'!$F$7/1000 -> 0 | AF96: =Y96+Z96+AA96-AB96-AC96-AD96 -> 370.1961567 | AG96: ='14. DM DAMP'!O129*1000 -> 370.1961567 | AH96: =AF96-AG96 -> 0
W97: Gestating sows | Y97: ='14. DM DAMP'!L51 -> 34857.59348 | Z97: =Z80*'7. Assumptions'!$F$7/1000 -> 0 | AA97: =AA80*'7. Assumptions'!$F$7/1000 -> 11968.74794 | AB97: =AB80*'7. Assumptions'!$F$7/1000 -> 2102.5 | AC97: =AC80*'7. Assumptions'!$F$7/1000 -> 279.105954 | AD97: =AD80*'7. Assumptions'!$F$7/1000 -> 13223.64413 | AF97: =Y97+Z97+AA97-AB97-AC97-AD97 -> 31221.09135 | AG97: ='14. DM DAMP'!L129*1000 -> 31217.2437 | AH97: 3.847644529
W98: Lactating sows | Y98: ='14. DM DAMP'!K51 -> 17256.7638 | Z98: =Z81*'7. Assumptions'!$F$7/1000 -> 0 | AA98: =AA81*'7. Assumptions'!$F$7/1000 -> 13224 | AB98: =AB81*'7. Assumptions'!$F$7/1000 -> 0 | AC98: =AC81*'7. Assumptions'!$F$7/1000 -> 67.82281644 | AD98: =AD81*'7. Assumptions'!$F$7/1000 -> 9538.228458 | AE98: ='7. Assumptions'!F32 -> 5749.72224 | AF98: =Y98+Z98+AA98-AB98-AC98-AD98-AE98 -> 15124.99028 | AG98: ='14. DM DAMP'!K129*1000 -> 15155.99655 | AH98: -31.00626605
W99: Suckers | Y99: ='14. DM DAMP'!D51 -> 7176.302863 | Z99: =Z82*'7. Assumptions'!$F$7/1000 -> 0 | AA99: =AA82*'7. Assumptions'!$F$7/1000 -> 1092.3024 | AB99: =AB82*'7. Assumptions'!$F$7/1000 -> 0 | AC99: =AC82*'7. Assumptions'!$F$7/1000 -> 393.228864 | AD99: =AD82*'7. Assumptions'!$F$7/1000 -> 4806.13056 | AF99: =Y99+Z99+AA99-AB99-AC99-AD99 -> 3069.245839 | AG99: ='14. DM DAMP'!D129*1000 -> 3069.245839 | AH99: 0
W100: Weaner | Y100: ='14. DM DAMP'!E51 -> 41388.69044 | Z100: =Z83*'7. Assumptions'!$F$7/1000 -> 0 | AA100: =AA83*'7. Assumptions'!$F$7/1000 -> 4806.13056 | AB100: =AB83*'7. Assumptions'!$F$7/1000 -> 0 | AC100: =AC83*'7. Assumptions'!$F$7/1000 -> 255.094622 | AD100: =AD83*'7. Assumptions'!$F$7/1000 -> 23605.4951 | AF100: 22334.23128 | AG100: ='14. DM DAMP'!E129*1000 -> 22334.23128 | AH100: 0
W101: Porker | Y101: ='14. DM DAMP'!F51 -> 49631.22761 | Z101: =Z84*'7. Assumptions'!$F$7/1000 -> 0 | AA101: =AA84*'7. Assumptions'!$F$7/1000 -> 23605.4951 | AB101: =AB84*'7. Assumptions'!$F$7/1000 -> 0 | AC101: =AC84*'7. Assumptions'!$F$7/1000 -> 345.0033899 | AD101: =AD84*'7. Assumptions'!$F$7/1000 -> 40030.76927 | AF101: 32860.95005 | AG101: ='14. DM DAMP'!F129*1000 -> 32860.95005 | AH101: 0
W102: Grower | Y102: ='14. DM DAMP'!G51 -> 61885.14972 | Z102: =Z85*'7. Assumptions'!$F$7/1000 -> 0 | AA102: =AA85*'7. Assumptions'!$F$7/1000 -> 40030.76927 | AB102: =AB85*'7. Assumptions'!$F$7/1000 -> 0 | AC102: =AC85*'7. Assumptions'!$F$7/1000 -> 520.9132155 | AD102: =AD85*'7. Assumptions'!$F$7/1000 -> 56099.53062 | AF102: 45295.47515 | AG102: ='14. DM DAMP'!G129*1000 -> 45295.47515 | AH102: 0
W103: Finisher | Y103: ='14. DM DAMP'!H51 -> 78592.37104 | Z103: =Z86*'7. Assumptions'!$F$7/1000 -> 0 | AA103: =AA86*'7. Assumptions'!$F$7/1000 -> 56099.53062 | AB103: =AB86*'7. Assumptions'!$F$7/1000 -> 71817.55296 | AC103: =AC86*'7. Assumptions'!$F$7/1000 -> 692.9942018 | AD103: =AD86*'7. Assumptions'!$F$7/1000 -> 3.626610123e-12 | AF103: 62181.3545 | AG103: ='14. DM DAMP'!H129*1000 -> 62181.3545 | AH103: 0
W104: Unallocated | Y104: ='14. DM DAMP'!I51 -> 0 | Z104: =Z87*'7. Assumptions'!$F$7/1000 -> 0 | AA104: =AA87*'7. Assumptions'!$F$7/1000 -> 0 | AB104: =AB87*'7. Assumptions'!$F$7/1000 -> 0 | AC104: =AC87*'7. Assumptions'!$F$7/1000 -> 0 | AD104: =AD87*'7. Assumptions'!$F$7/1000 -> 0 | AF104: 0 | AG104: ='14. DM DAMP'!I129*1000 -> 0 | AH104: 0
W105: =W88 -> Unallocated | Y105: ='14. DM DAMP'!J51 -> 0 | Z105: =Z88*'7. Assumptions'!$F$7/1000 -> 0 | AA105: =AA88*'7. Assumptions'!$F$7/1000 -> 0 | AB105: =AB88*'7. Assumptions'!$F$7/1000 -> 0 | AC105: =AC88*'7. Assumptions'!$F$7/1000 -> 0 | AD105: =AD88*'7. Assumptions'!$F$7/1000 -> 0 | AF105: 0 | AG105: ='14. DM DAMP'!J129*1000 -> 0 | AH105: 0
Y107: =SUM(Y95:Y105) -> 295680.1592 | Z107: 0 | AA107: 152902.8273 | AB107: 74314.09582 | AC107: 2580.818344 | AD107: 149734.3176 | AF107: =SUM(AF95:AF105) -> 216204.0325 | AG107: =SUM(AG95:AG105) -> 216305.7491 | AH107: =AF107-AG107 -> -101.7166512
W109: N (kg/yr)
W110: =B26 -> Pig class | Y110: Feed ingested | Z110: Pigs Purchased | AA110: Pigs in from previous stage | AB110: Pigs sold | AC110: Pig mortalities | AD110: Pigs out to next stage | AE110: Placenta + Milk + Suckers born (alive + stillborn) | AF110: Mass balance | AG110: DMDAMP | AH110: Difference (MB - DMDAMP)
Z111: (kg/year) | AA111: (kg/year) | AB111: (kg/year) | AC111: (kg/year) | AD111: (kg/year)
I112: =I55/H55 -> 0.76 | W112: =W78 -> Gilts | Y112: ='14. DM DAMP'!N53 -> 2041.612218 | Z112: =Z78*'7. Assumptions'!$I$7/1000 -> 0 | AA112: =AA78*'7. Assumptions'!$I$7/1000 -> 1814.319039 | AB112: =AB78*'7. Assumptions'!$I$7/1000 -> 300.6383303 | AC112: =AC78*'7. Assumptions'!$I$7/1000 -> 19.53657878 | AD112: =AD78*'7. Assumptions'!$I$7/1000 -> 2145.56203 | AF112: =Y112+Z112+AA112-AB112-AC112-AD112 -> 1390.194318 | AG112: ='14. DM DAMP'!N131*1000 -> 1456.011062 | AH112: =AF112-AG112 -> -65.81674347
I113: =I56/H56 -> 1.95 | K113: =SUM(I55:I57) -> 77521.00043 | W113: Boars | Y113: ='14. DM DAMP'!O53 -> 185.5067999 | Z113: =Z79*'7. Assumptions'!I$7/1000 -> 0 | AA113: =AA79*'7. Assumptions'!$I$7/1000 -> 18.15668251 | AB113: =AB79*'7. Assumptions'!$I$7/1000 -> 47.2064 | AC113: =AC79*'7. Assumptions'!$I$7/1000 -> 3.9936 | AD113: =AD79*'7. Assumptions'!$I$7/1000 -> 0 | AF113: =Y113+Z113+AA113-AB113-AC113-AD113 -> 152.4634824 | AG113: ='14. DM DAMP'!O131*1000 -> 152.4634824 | AH113: =AF113-AG113 -> 0
I114: 0.65 | W114: Gestating sows | Y114: ='14. DM DAMP'!L53 -> 15639.88957 | Z114: =Z80*'7. Assumptions'!I$7/1000 -> 0 | AA114: =AA80*'7. Assumptions'!$I$7/1000 -> 10565.51543 | AB114: =AB80*'7. Assumptions'!$I$7/1000 -> 1856 | AC114: =AC80*'7. Assumptions'!$I$7/1000 -> 246.383187 | AD114: =AD80*'7. Assumptions'!$I$7/1000 -> 11673.28585 | AF114: =Y114+Z114+AA114-AB114-AC114-AD114 -> 12429.73596 | AG114: ='14. DM DAMP'!L131*1000 -> 12426.33942 | AH114: 3.396541377
H115: =SUM(H55:H57) -> 113587.6848 | I115: =SUM(I55:I57) -> 77521.00043 | W115: Lactating sows | Y115: ='14. DM DAMP'!K53 -> 8515.851286 | Z115: =Z81*'7. Assumptions'!I$7/1000 -> 0 | AA115: =AA81*'7. Assumptions'!$I$7/1000 -> 11673.6 | AB115: =AB81*'7. Assumptions'!$I$7/1000 -> 0 | AC115: =AC81*'7. Assumptions'!$I$7/1000 -> 59.87117589 | AD115: =AD81*'7. Assumptions'!$I$7/1000 -> 8419.953397 | AE115: ='7. Assumptions'!I32 -> 5151.092736 | AF115: =Y115+Z115+AA115-AB115-AC115-AD115-AE115 -> 6558.533977 | AG115: ='14. DM DAMP'!K131*1000 -> 6586.346317 | AH115: -27.81234051
I116: =I115/H115 -> 0.6824771592 | K116: =SUM(I60:I66) -> 1882115.181 | W116: Suckers | Y116: ='14. DM DAMP'!D53 -> 5560.257099 | Z116: =Z82*'7. Assumptions'!I$7/1000 -> 0 | AA116: =AA82*'7. Assumptions'!$I$7/1000 -> 964.23936 | AB116: =AB82*'7. Assumptions'!$I$7/1000 -> 0 | AC116: =AC82*'7. Assumptions'!$I$7/1000 -> 347.1261696 | AD116: =AD82*'7. Assumptions'!$I$7/1000 -> 4242.653184 | AF116: =Y116+Z116+AA116-AB116-AC116-AD116 -> 1934.717106 | AG116: ='14. DM DAMP'!D131*1000 -> 1934.717106 | AH116: 0
W117: Weaner | Y117: ='14. DM DAMP'!E53 -> 28547.75105 | Z117: =Z83*'7. Assumptions'!I$7/1000 -> 0 | AA117: =AA83*'7. Assumptions'!$I$7/1000 -> 4242.653184 | AB117: =AB83*'7. Assumptions'!$I$7/1000 -> 0 | AC117: =AC83*'7. Assumptions'!$I$7/1000 -> 225.1869767 | AD117: =AD83*'7. Assumptions'!$I$7/1000 -> 20837.95429 | AF117: 11727.26297 | AG117: ='14. DM DAMP'!E131*1000 -> 11727.26297 | AH117: 0
K118: =K113/(+K116) -> 0.04118823397 | W118: Porker | Y118: ='14. DM DAMP'!F53 -> 31730.52271 | Z118: =Z84*'7. Assumptions'!I$7/1000 -> 0 | AA118: =AA84*'7. Assumptions'!$I$7/1000 -> 20837.95429 | AB118: =AB84*'7. Assumptions'!$I$7/1000 -> 0 | AC118: =AC84*'7. Assumptions'!$I$7/1000 -> 304.5547166 | AD118: =AD84*'7. Assumptions'!$I$7/1000 -> 35337.50666 | AF118: 16926.41562 | AG118: ='14. DM DAMP'!F131*1000 -> 16926.41562 | AH118: 0
W119: Grower | Y119: ='14. DM DAMP'!G53 -> 34254.08256 | Z119: =Z85*'7. Assumptions'!I$7/1000 -> 0 | AA119: =AA85*'7. Assumptions'!$I$7/1000 -> 35337.50666 | AB119: =AB85*'7. Assumptions'!$I$7/1000 -> 0 | AC119: =AC85*'7. Assumptions'!$I$7/1000 -> 459.8406316 | AD119: =AD85*'7. Assumptions'!$I$7/1000 -> 49522.34427 | AF119: 19609.40432 | AG119: ='14. DM DAMP'!G131*1000 -> 19609.40432 | AH119: 0
W120: Finisher | Y120: ='14. DM DAMP'!H53 -> 42381.28971 | Z120: =Z86*'7. Assumptions'!I$7/1000 -> 0 | AA120: =AA86*'7. Assumptions'!$I$7/1000 -> 49522.34427 | AB120: =AB86*'7. Assumptions'!$I$7/1000 -> 63397.56399 | AC120: =AC86*'7. Assumptions'!$I$7/1000 -> 611.7466057 | AD120: =AD86*'7. Assumptions'!$I$7/1000 -> 3.20142135e-12 | AF120: 27894.32338 | AG120: ='14. DM DAMP'!H131*1000 -> 27894.32338 | AH120: 0
W121: Unallocated | Y121: ='14. DM DAMP'!I53 -> 0 | Z121: =Z87*'7. Assumptions'!I$7/1000 -> 0 | AA121: =AA87*'7. Assumptions'!$I$7/1000 -> 0 | AB121: =AB87*'7. Assumptions'!$I$7/1000 -> 0 | AC121: =AC87*'7. Assumptions'!$I$7/1000 -> 0 | AD121: =AD87*'7. Assumptions'!$I$7/1000 -> 0 | AF121: 0 | AG121: ='14. DM DAMP'!I131*1000 -> 0 | AH121: 0
W122: =W88 -> Unallocated | Y122: ='14. DM DAMP'!J53 -> 0 | Z122: =Z88*'7. Assumptions'!I$7/1000 -> 0 | AA122: =AA88*'7. Assumptions'!$I$7/1000 -> 0 | AB122: =AB88*'7. Assumptions'!$I$7/1000 -> 0 | AC122: =AC88*'7. Assumptions'!$I$7/1000 -> 0 | AD122: =AD88*'7. Assumptions'!$I$7/1000 -> 0 | AF122: 0 | AG122: ='14. DM DAMP'!J131*1000 -> 0 | AH122: 0
Y124: =SUM(Y112:Y122) -> 168856.763 | Z124: 0 | AA124: 134976.2889 | AB124: 65601.40872 | AC124: 2278.239642 | AD124: 132179.2597 | AF124: =SUM(AF112:AF122) -> 98623.05114 | AG124: =SUM(AG112:AG122) -> 98713.28368 | AH124: =AF124-AG124 -> -90.23254261

Sheet 6. Deep litter
A1: Menu
A2: 6. Deep litter sheds
B5: Bedding material | C5: Not applicable
B7: Deep litter usage | D7: kg. SPU-1. day-1
B9: Pig class | C9: No of pigs in piggery | D9: SPU factor | E9: SPU | F9: Shed type | G9: Bedding added | H9: TS added | I9: VS added | J9: N added | K9: P added | L9: K added
C10: (pigs. stage-1) | D10: (SPU. pig-1) | E10: (SPU) | G10: (kg. day-1)
B11: ='5. Herd details'!B9 -> Gilts | C11: ='5. Herd details'!E9 -> 102.5374259 | D11: ='5. Herd details'!O9 -> 1.8 | E11: =C11*D11 -> 184.5673666 | F11: =IF('5. Herd details'!F9="","",'5. Herd details'!F9) -> Flushing | G11: =IF(F11="Deep litter", E11*C$7, 0) -> 0 | H11: =$G11*VLOOKUP($C$5,$C$34:$L$40,6,FALSE) -> 0 | I11: =$G11*VLOOKUP($C$5,$C$34:$L$40,7,FALSE) -> 0 | J11: =$G11*VLOOKUP($C$5,$C$34:$L$40,8,FALSE) -> 0 | K11: =$G11*VLOOKUP($C$5,$C$34:$L$40,9,FALSE) -> 0 | L11: =$G11*VLOOKUP($C$5,$C$34:$L$40,10,FALSE) -> 0
B12: ='5. Herd details'!B10 -> Boars | C12: ='5. Herd details'!E10 -> 10 | D12: ='5. Herd details'!O10 -> 1.6 | E12: =C12*D12 -> 16 | F12: =IF('5. Herd details'!F10="","",'5. Herd details'!F10) -> Flushing | G12: 0 | H12: 0 | I12: 0 | J12: 0 | K12: 0 | L12: 0
B13: ='5. Herd details'!B11 -> Gestating sows 1 | C13: ='5. Herd details'!E11 -> 850.9587304 | D13: ='5. Herd details'!O11 -> 1.6 | E13: 1361.533969 | F13: =IF('5. Herd details'!F11="","",'5. Herd details'!F11) -> Flushing | G13: 0 | H13: 0 | I13: 0 | J13: 0 | K13: 0 | L13: 0
B14: ='5. Herd details'!B12 -> Gestating sows 2 | C14: ='5. Herd details'!E12 -> 0 | D14: ='5. Herd details'!O12 -> 1.6 | E14: =C14*D14 -> 0 | F14: =IF('5. Herd details'!F12="","",'5. Herd details'!F12) -> Flushing | G14: =IF(F14="Deep litter", E14*C$7, 0) -> 0 | H14: 0 | I14: 0 | J14: 0 | K14: 0 | L14: 0
B15: ='5. Herd details'!B13 -> Lactating sows | C15: ='5. Herd details'!E13 -> 149.0412696 | D15: ='5. Herd details'!O13 -> 2.5 | E15: 372.603174 | F15: =IF('5. Herd details'!F13="","",'5. Herd details'!F13) -> Flushing | G15: 0 | H15: 0 | I15: 0 | J15: 0 | K15: 0 | L15: 0
B16: ='5. Herd details'!B14 -> Suckers | C16: ='5. Herd details'!E14 -> 1662.888329 | D16: ='5. Herd details'!O14 -> 0.1019011628 | E16: 169.4502543 | F16: =IF('5. Herd details'!F14="","",'5. Herd details'!F14) -> Flushing | G16: 0 | H16: 0 | I16: 0 | J16: 0 | K16: 0 | L16: 0
B17: ='5. Herd details'!B15 -> Weaner | C17: ='5. Herd details'!E15 -> 2957.369328 | D17: ='5. Herd details'!O15 -> 0.5851867115 | E17: 1730.613231 | F17: =IF('5. Herd details'!F15="","",'5. Herd details'!F15) -> Flushing | G17: 0 | H17: 0 | I17: 0 | J17: 0 | K17: 0 | L17: 0
B18: ='5. Herd details'!B16 -> Porker | C18: ='5. Herd details'!E16 -> 1774.464891 | D18: ='5. Herd details'!O16 -> 1.169419503 | E18: 2075.09385 | F18: =IF('5. Herd details'!F16="","",'5. Herd details'!F16) -> Flushing | G18: 0 | H18: 0 | I18: 0 | J18: 0 | K18: 0 | L18: 0
B19: ='5. Herd details'!B17 -> Grower | C19: ='5. Herd details'!E17 -> 1755.355269 | D19: ='5. Herd details'!O17 -> 1.536906991 | E19: 2697.817784 | F19: =IF('5. Herd details'!F17="","",'5. Herd details'!F17) -> Flushing | G19: 0 | H19: 0 | I19: 0 | J19: 0 | K19: 0 | L19: 0
B20: ='5. Herd details'!B18 -> Finisher | C20: ='5. Herd details'!E18 -> 1736.451443 | D20: ='5. Herd details'!O18 -> 1.743635042 | E20: 3027.737584 | F20: =IF('5. Herd details'!F18="","",'5. Herd details'!F18) -> Flushing | G20: 0 | H20: 0 | I20: 0 | J20: 0 | K20: 0 | L20: 0
B21: ='5. Herd details'!B19 -> Unallocated | C21: ='5. Herd details'!E19 -> 0 | D21: ='5. Herd details'!O19 -> 0 | E21: 0 | F21: =IF('5. Herd details'!F19="","",'5. Herd details'!F19) ->  | G21: 0 | H21: 0 | I21: 0 | J21: 0 | K21: 0 | L21: 0
B22: ='5. Herd details'!B20 -> Unallocated | C22: ='5. Herd details'!E20 -> 0 | D22: ='5. Herd details'!O20 -> 0 | E22: 0 | F22: =IF('5. Herd details'!F20="","",'5. Herd details'!F20) -> Flushing | G22: 0 | H22: 0 | I22: 0 | J22: 0 | K22: 0 | L22: 0
B24: ='5. Herd details'!B22 -> Totals: | C24: =SUM(C11:C22) -> 10999.06668 | E24: =SUM(E11:E22) -> 11635.41721 | G24: =SUM(G11:G22) -> 0 | H24: 0 | I24: 0 | J24: 0 | K24: 0 | L24: 0
C33: Bedding Materials | G33: Ash (%) | H33: DM (%) | I33: VS (%) | J33: N (%) | K33: P (%) | L33: K (%)
C34: Not applicable
C35: ='12. Diet ingredient data'!B138 -> Hardwood sawdust | G35: ='12. Diet ingredient data'!E138 -> 0 | H35: ='12. Diet ingredient data'!C138 -> 0.9 | I35: =H35-G35 -> 0.9 | J35: ='12. Diet ingredient data'!J138 -> 0.00198 | K35: ='12. Diet ingredient data'!K138 -> 9e-05 | L35: ='12. Diet ingredient data'!N138 -> 0.00045
C36: ='12. Diet ingredient data'!B139 -> Softwood sawdust/shavings | G36: ='12. Diet ingredient data'!E139 -> 0 | H36: ='12. Diet ingredient data'!C139 -> 0.9 | I36: 0.9 | J36: ='12. Diet ingredient data'!J139 -> 0.00126 | K36: ='12. Diet ingredient data'!K139 -> 9e-05 | L36: ='12. Diet ingredient data'!N139 -> 0.00027
C37: ='12. Diet ingredient data'!B140 -> Rice Hulls | G37: ='12. Diet ingredient data'!E140 -> 0.05 | H37: ='12. Diet ingredient data'!C140 -> 0.92 | I37: 0.87 | J37: ='12. Diet ingredient data'!J140 -> 0.004876 | K37: ='12. Diet ingredient data'!K140 -> 0.000736 | L37: ='12. Diet ingredient data'!N140 -> 0.012144
C38: ='12. Diet ingredient data'!B141 -> Barley straw | G38: ='12. Diet ingredient data'!E141 -> 0.06 | H38: ='12. Diet ingredient data'!C141 -> 0.91 | I38: 0.85 | J38: ='12. Diet ingredient data'!J141 -> 0.006279 | K38: ='12. Diet ingredient data'!K141 -> 0.000637 | L38: ='12. Diet ingredient data'!N141 -> 0.021567
C39: ='12. Diet ingredient data'!B142 -> Wheat straw | G39: ='12. Diet ingredient data'!E142 -> 0.0585 | H39: ='12. Diet ingredient data'!C142 -> 0.89 | I39: 0.8315 | J39: ='12. Diet ingredient data'!J142 -> 0.005162 | K39: ='12. Diet ingredient data'!K142 -> 0.003649 | L39: ='12. Diet ingredient data'!N142 -> 0.004539
C40: ='12. Diet ingredient data'!B143 -> Shredded paper | G40: ='12. Diet ingredient data'!E143 -> 0 | H40: ='12. Diet ingredient data'!C143 -> 0.9 | I40: 0.9 | J40: ='12. Diet ingredient data'!J143 -> 0 | K40: ='12. Diet ingredient data'!K143 -> 9e-05 | L40: ='12. Diet ingredient data'!N143 -> 0
I90: Not applicable
I91: Hardwood sawdust
I92: Softwood sawdust/shavings
I93: Rice Hulls
I94: Barley straw
I95: Wheat straw
I96: Shredded paper

Sheet SPU (hidden)
A1: SPU calculation sheet
A2: SPU standard
E3: x | F3: y
A4: Pig class | B4: End age (weeks) | C4: Av age (wk) | D4: End live weight (kg) | E4: Av live weight (kg) | F4: SPU factor standard | G4: Calc SPU factor live weight | H4: Calc SPU factor age
B5: 0 | D5: 1.4
A6: Sucker | B6: 4 | C6: =(B5+B6)/2 -> 2 | D6: 8 | E6: =(D5+D6)/2 -> 4.7 | F6: 0.1 | G6: =0.0000001837*E6^3 - 0.0001685623*E6^2 + 0.0329143124*E6 - 0.0333791203 -> 0.1176136791 | H6: =-0.000132*C6^3 + 0.004419*C6^2 + 0.043493*C6 + 0.003072 -> 0.106678
A7: Weaner | B7: 10 | C7: =(B6+B7)/2 -> 7 | D7: 25 | E7: =(D6+D7)/2 -> 16.5 | F7: 0.5 | G7: =0.0000001837*E7^3 - 0.0001685623*E7^2 + 0.0329143124*E7 - 0.0333791203 -> 0.4646411515 | H7: =-0.000132*C7^3 + 0.004419*C7^2 + 0.043493*C7 + 0.003072 -> 0.478778
A8: Grower | B8: 16 | C8: =(B7+B8)/2 -> 13 | D8: 55 | E8: =(D7+D8)/2 -> 40 | F8: 1 | G8: =0.0000001837*E8^3 - 0.0001685623*E8^2 + 0.0329143124*E8 - 0.0333791203 -> 1.025250496 | H8: =-0.000132*C8^3 + 0.004419*C8^2 + 0.043493*C8 + 0.003072 -> 1.025288
A9: Finisher | B9: 24 | C9: =(B8+B9)/2 -> 20 | D9: 100 | E9: =(D8+D9)/2 -> 77.5 | F9: 1.6 | G9: =0.0000001837*E9^3 - 0.0001685623*E9^2 + 0.0329143124*E9 - 0.0333791203 -> 1.590562256 | H9: =-0.000132*C9^3 + 0.004419*C9^2 + 0.043493*C9 + 0.003072 -> 1.584532
A10: Heavy finisher | B10: 30 | C10: =(B9+B10)/2 -> 27 | D10: 130 | E10: =(D9+D10)/2 -> 115 | F10: 1.8 | G10: =0.0000001837*E10^3 - 0.0001685623*E10^2 + 0.0329143124*E10 - 0.0333791203 -> 1.801915126 | H10: =-0.000132*C10^3 + 0.004419*C10^2 + 0.043493*C10 + 0.003072 -> 1.800678
J47: Pig class | K47: End live weight (kg) | L47: Av live weight (kg) | M47: SPU factor standard
K48: 1.4
J49: Sucker | K49: 8 | L49: =(K48+K49)/2 -> 4.7 | M49: 0.1
J50: Weaner | K50: 25 | L50: =(K49+K50)/2 -> 16.5 | M50: 0.5 | O50: y = 0.033898x - 0.059322
J51: Grower | K51: 55 | L51: =(K50+K51)/2 -> 40 | M51: 1 | O51: y = 0.021277x + 0.148936
J52: Finisher | K52: 100 | L52: =(K51+K52)/2 -> 77.5 | M52: 1.6 | O52: y = 0.016000x + 0.360000
J53: Heavy finisher | K53: 130 | L53: =(K52+K53)/2 -> 115 | M53: 1.8 | O53: y = 0.005333x + 1.186667
J58: Live weight | K58: Linear interpolated SPU factor
J59: 2 | K59: =IF(J59<4.7, 0.1, IF(J59<16.5, 0.033898*J59 - 0.059322, IF(J59<40, 0.021277*J59 + 0.148936, IF(J59<77.5, 0.016*J59 + 0.36, IF(J59<115, 0.005333*J59 + 1.186667, 1.8))))) -> 0.1
J60: 3 | K60: 0.1
J61: 4 | K61: 0.1
J62: 5 | K62: 0.110168
J63: 6 | K63: 0.144066
J64: 7 | K64: 0.177964
J65: 8 | K65: =IF(J65<4.7, 0.1, IF(J65<16.5, 0.033898*J65 - 0.059322, IF(J65<40, 0.021277*J65 + 0.148936, IF(J65<77.5, 0.016*J65 + 0.36, IF(J65<115, 0.005333*J65 + 1.186667, 1.8))))) -> 0.211862
J66: 9 | K66: 0.24576
J67: 10 | K67: 0.279658
J68: 11 | K68: 0.313556
J69: 12 | K69: 0.347454
J70: 13 | K70: 0.381352
J71: 14 | K71: 0.41525
J72: 15 | K72: 0.449148
J73: 16 | K73: 0.483046
J74: 17 | K74: 0.510645
J75: 18 | K75: 0.531922
J76: 19 | K76: 0.553199
J77: 20 | K77: 0.574476
J78: 21 | K78: 0.595753
J79: 22 | K79: 0.61703
J80: 23 | K80: 0.638307
J81: 24 | K81: 0.659584
J82: 25 | K82: 0.680861
J83: 26 | K83: 0.702138
J84: 27 | K84: 0.723415
J85: 28 | K85: 0.744692
J86: 29 | K86: 0.765969
J87: 30 | K87: 0.787246
J88: 31 | K88: 0.808523
J89: 32 | K89: 0.8298
J90: 33 | K90: 0.851077
J91: 34 | K91: 0.872354
J92: 35 | K92: 0.893631
J93: 36 | K93: 0.914908
J94: 37 | K94: 0.936185
J95: 38 | K95: 0.957462
J96: 39 | K96: 0.978739
J97: 40 | K97: 1
J98: 41 | K98: 1.016
J99: 42 | K99: 1.032
J100: 43 | K100: 1.048
J101: 44 | K101: 1.064
J102: 45 | K102: 1.08
J103: 46 | K103: 1.096
J104: 47 | K104: 1.112
J105: 48 | K105: 1.128
J106: 49 | K106: 1.144
J107: 50 | K107: 1.16
J108: 51 | K108: 1.176
J109: 52 | K109: 1.192
J110: 53 | K110: 1.208
J111: 54 | K111: 1.224
J112: 55 | K112: 1.24
J113: 56 | K113: 1.256
J114: 57 | K114: 1.272
J115: 58 | K115: 1.288
J116: 59 | K116: 1.304
J117: 60 | K117: 1.32
J118: 61 | K118: 1.336
J119: 62 | K119: 1.352
J120: 63 | K120: 1.368
J121: 64 | K121: 1.384
J122: 65 | K122: 1.4
J123: 66 | K123: 1.416
J124: 67 | K124: 1.432
J125: 68 | K125: 1.448
J126: 69 | K126: 1.464
J127: 70 | K127: 1.48
J128: 71 | K128: 1.496
J129: 72 | K129: =IF(J129<4.7, 0.1, IF(J129<16.5, 0.033898*J129 - 0.059322, IF(J129<40, 0.021277*J129 + 0.148936, IF(J129<77.5, 0.016*J129 + 0.36, IF(J129<115, 0.005333*J129 + 1.186667, 1.8))))) -> 1.512
J130: 73 | K130: 1.528
J131: 74 | K131: 1.544
J132: 75 | K132: 1.56
J133: 76 | K133: 1.576
J134: 77 | K134: 1.592
J135: 78 | K135: 1.602641
J136: 79 | K136: 1.607974
J137: 80 | K137: 1.613307
J138: 81 | K138: 1.61864
J139: 82 | K139: 1.623973
J140: 83 | K140: 1.629306
J141: 84 | K141: 1.634639
J142: 85 | K142: 1.639972
J143: 86 | K143: 1.645305
J144: 87 | K144: 1.650638
J145: 88 | K145: 1.655971
J146: 89 | K146: 1.661304
J147: 90 | K147: 1.666637
J148: 91 | K148: 1.67197
J149: 92 | K149: 1.677303
J150: 93 | K150: 1.682636
J151: 94 | K151: 1.687969
J152: 95 | K152: 1.693302
J153: 96 | K153: 1.698635
J154: 97 | K154: 1.703968
J155: 98 | K155: 1.709301
J156: 99 | K156: 1.714634
J157: 100 | K157: 1.719967
J158: 101 | K158: 1.7253
J159: 102 | K159: 1.730633
J160: 103 | K160: 1.735966
J161: 104 | K161: 1.741299
J162: 105 | K162: 1.746632
J163: 106 | K163: 1.751965
J164: 107 | K164: 1.757298
J165: 108 | K165: 1.762631
J166: 109 | K166: 1.767964
J167: 110 | K167: 1.773297
J168: 111 | K168: 1.77863
J169: 112 | K169: 1.783963
J170: 113 | K170: 1.789296
J171: 114 | K171: 1.794629
J172: 115 | K172: 1.8
J173: 116 | K173: 1.8
J174: 117 | K174: 1.8
J175: 118 | K175: 1.8
J176: 119 | K176: 1.8
J177: 120 | K177: 1.8
J178: 121 | K178: 1.8
J179: 122 | K179: 1.8
J180: 123 | K180: 1.8
J181: 124 | K181: 1.8
J182: 125 | K182: 1.8
J183: 126 | K183: 1.8
J184: 127 | K184: 1.8
J185: 128 | K185: 1.8
J186: 129 | K186: 1.8
J187: 130 | K187: 1.8
J188: 131 | K188: 1.8
J189: 132 | K189: 1.8
J190: 133 | K190: 1.8
J191: 134 | K191: 1.8
J192: 135 | K192: 1.8
J193: 136 | K193: =IF(J193<4.7, 0.1, IF(J193<16.5, 0.033898*J193 - 0.059322, IF(J193<40, 0.021277*J193 + 0.148936, IF(J193<77.5, 0.016*J193 + 0.36, IF(J193<115, 0.005333*J193 + 1.186667, 1.8))))) -> 1.8
J194: 137 | K194: =IF(J194<4.7, 0.1, IF(J194<16.5, 0.033898*J194 - 0.059322, IF(J194<40, 0.021277*J194 + 0.148936, IF(J194<77.5, 0.016*J194 + 0.36, IF(J194<115, 0.005333*J194 + 1.186667, 1.8))))) -> 1.8
J195: 138 | K195: =IF(J195<4.7, 0.1, IF(J195<16.5, 0.033898*J195 - 0.059322, IF(J195<40, 0.021277*J195 + 0.148936, IF(J195<77.5, 0.016*J195 + 0.36, IF(J195<115, 0.005333*J195 + 1.186667, 1.8))))) -> 1.8
J196: 139 | K196: =IF(J196<4.7, 0.1, IF(J196<16.5, 0.033898*J196 - 0.059322, IF(J196<40, 0.021277*J196 + 0.148936, IF(J196<77.5, 0.016*J196 + 0.36, IF(J196<115, 0.005333*J196 + 1.186667, 1.8))))) -> 1.8
J197: 140 | K197: =IF(J197<4.7, 0.1, IF(J197<16.5, 0.033898*J197 - 0.059322, IF(J197<40, 0.021277*J197 + 0.148936, IF(J197<77.5, 0.016*J197 + 0.36, IF(J197<115, 0.005333*J197 + 1.186667, 1.8))))) -> 1.8

Sheet 7. Assumptions
A1: Menu
A2: 7. Assumptions
B5: Parameter | C5: Units | D5: Value | E5: TS | F5: FS | G5: VS | H5: Protein | I5: N | J5: P | K5: K
B7: Carcass composition 1 | C7: g. kg-1 | E7: 300 | F7: 29 | G7: =E7-F7 -> 271 | I7: 25.6 | J7: 4.5 | K7: 2.4
B9: Placenta | C9: kg. sow place-1. farrowing-1 | D9: 3 | E9: =$D9*E7/1000 -> 0.9 | F9: =$D9*F7/1000 -> 0.087 | G9: =$D9*G7/1000 -> 0.813 | I9: =$D9*I7/1000 -> 0.0768 | J9: =$D9*J7/1000 -> 0.0135 | K9: =$D9*K7/1000 -> 0.0072
C10: kg. year-1 | D10: =D9*'3. Herd Input'!$C$13*'3. Herd Input'!$C$25 -> 6840 | E10: =E9*'3. Herd Input'!$C$13*'3. Herd Input'!$C$25 -> 2052 | F10: =F9*'3. Herd Input'!$C$13*'3. Herd Input'!$C$25 -> 198.36 | G10: =G9*'3. Herd Input'!$C$13*'3. Herd Input'!$C$25 -> 1853.64 | I10: =I9*'3. Herd Input'!$C$13*'3. Herd Input'!$C$25 -> 175.104 | J10: =J9*'3. Herd Input'!$C$13*'3. Herd Input'!$C$25 -> 30.78 | K10: =K9*'3. Herd Input'!$C$13*'3. Herd Input'!$C$25 -> 16.416
B12: Milk composition 2 | C12: % | E12: 0.2 | F12: =E12-G12 -> 0.01 | G12: 0.19 | H12: =I12*6.25 -> 0.05625 | I12: 0.009 | J12: 0.0015 | K12: 0.0007
L13: Ref:
C14: % | E14: 0.2 | F14: 0.01 | G14: 0.19 | H14: 0.05625 | I14: 0.009 | J14: 0.0015 | K14: 0.0007 | L14: 1
C15: % | E15: 0.19 | F15: 0.008 | G15: =E15-F15 -> 0.182 | H15: 0.06 | I15: =H15/6.25 -> 0.0096 | L15: 2
C16: % | E16: 0.187 | F16: 0.00843 | G16: =E16-F16 -> 0.17857 | J16: 0.00151 | K16: 0.000748 | L16: 3
C17: % | E17: 0.158 | H17: =I17*6.25 -> 0.04375 | I17: 0.007 | L17: 4
B19: Average lactation length | C19: days | D19: ='3. Herd Input'!C38 -> 24 | E19: (From 'Herd input' sheet)
B21: Sucker sow milk intake | C21: kg. sow place-1. day-1 | D21: 8 | E21: =$D21*E12 -> 1.6 | F21: =$D21*F12 -> 0.08 | G21: =$D21*G12 -> 1.52 | I21: =$D21*I12 -> 0.072 | J21: =$D21*J12 -> 0.012 | K21: =$D21*K12 -> 0.0056
C22: kg. sow place-1. farrowing-1 | D22: =$D19*D21 -> 192 | E22: =$D19*E21 -> 38.4 | F22: =$D19*F21 -> 1.92 | G22: =$D19*G21 -> 36.48 | I22: =$D19*I21 -> 1.728 | J22: =$D19*J21 -> 0.288 | K22: =$D19*K21 -> 0.1344
C23: kg. year-1 | D23: =D22*'3. Herd Input'!$C$13*'3. Herd Input'!$C$25 -> 437760 | E23: =E22*'3. Herd Input'!$C$13*'3. Herd Input'!$C$25 -> 87552 | F23: =F22*'3. Herd Input'!$C$13*'3. Herd Input'!$C$25 -> 4377.6 | G23: =G22*'3. Herd Input'!$C$13*'3. Herd Input'!$C$25 -> 83174.4 | I23: =I22*'3. Herd Input'!$C$13*'3. Herd Input'!$C$25 -> 3939.84 | J23: =J22*'3. Herd Input'!$C$13*'3. Herd Input'!$C$25 -> 656.64 | K23: =K22*'3. Herd Input'!$C$13*'3. Herd Input'!$C$25 -> 306.432
B25: Gestation period | C25: days | D25: 114
B27: Suckers | C27: kg/sow place/farrowing | D27: =('3. Herd Input'!C27+'3. Herd Input'!C28)*'3. Herd Input'!G30 -> 17.752 | E27: =$D27*E7/1000 -> 5.3256 | F27: =$D27*F7/1000 -> 0.514808 | G27: =$D27*G7/1000 -> 4.810792 | I27: =$D27*I7/1000 -> 0.4544512 | J27: =$D27*J7/1000 -> 0.079884 | K27: =$D27*K7/1000 -> 0.0426048
C28: kg/year | D28: =D27*'3. Herd Input'!$C$13*'3. Herd Input'!$C$25 -> 40474.56 | E28: =E27*'3. Herd Input'!$C$13*'3. Herd Input'!$C$25 -> 12142.368 | F28: =F27*'3. Herd Input'!$C$13*'3. Herd Input'!$C$25 -> 1173.76224 | G28: =G27*'3. Herd Input'!$C$13*'3. Herd Input'!$C$25 -> 10968.60576 | I28: =I27*'3. Herd Input'!$C$13*'3. Herd Input'!$C$25 -> 1036.148736 | J28: =J27*'3. Herd Input'!$C$13*'3. Herd Input'!$C$25 -> 182.13552 | K28: =K27*'3. Herd Input'!$C$13*'3. Herd Input'!$C$25 -> 97.138944
B30: Suckers + Milk + placenta | C30: kg. sow place-1. farrowing-1 | D30: =D9+D22+D27 -> 212.752 | E30: =E9+E22+E27 -> 44.6256 | F30: =F9+F22+F27 -> 2.521808 | G30: =G9+G22+G27 -> 42.103792 | I30: =I9+I22+I27 -> 2.2592512 | J30: =J9+J22+J27 -> 0.381384 | K30: =K9+K22+K27 -> 0.1842048
C31: kg. sow place-1. day-1 | D31: =D30/$D19 -> 8.864666667 | E31: =E30/$D19 -> 1.8594 | F31: =F30/$D19 -> 0.1050753333 | G31: =G30/$D19 -> 1.754324667 | I31: =I30/$D19 -> 0.09413546667 | J31: =J30/$D19 -> 0.015891 | K31: =K30/$D19 -> 0.0076752
C32: kg. year-1 | D32: =D10+D23+D28 -> 485074.56 | E32: =E10+E23+E28 -> 101746.368 | F32: 5749.72224 | G32: 95996.64576 | I32: 5151.092736 | J32: 869.55552 | K32: 419.986944
B33: Shed losses
B34: Flushing | C34: % | E34: 0.02 | F34: 0 | G34: 0.03 | I34: 0.1 | J34: 0 | K34: 0
B35: Pull plug / Static pit | C35: % | E35: 0.1 | F35: 0 | G35: 0.12 | I35: 0.1 | J35: 0 | K35: 0
B36: Deep litter | C36: % | E36: 0.2 | F36: 0 | G36: 0.25 | I36: 0.17 | J36: 0 | K36: 0
B38: Deep litter moisture content | C38: % | D38: 0.4
B39: Allocation of nutrients to sludge
B40: To sludge | C40: % | I40: 0.235 | J40: 0.9 | K40: 0.1
B42: From PigBal 5 with Standard Diet A using weight categories from NEGIP 2025 (below)
B43: Predicted solids and nutrient output | E43: TS | F43: FS | G43: VS | I43: N | J43: P | K43: K
B44: Gilt | C44: kg. pig-1. yr-1 | E44: 193.4203117 | F44: 39.566808 | G44: 153.0668312 | I44: 13.72296886 | J44: 4.202231901 | K44: 4.105255772
B45: Boar | C45: kg. pig-1. yr-1 | E45: 185.4215183 | F45: 39.1650264 | G45: 145.5393864 | I45: 14.60042984 | J45: 4.446033414 | K45: 4.116597527
B46: Dry sow 1 | C46: kg. pig-1. yr-1 | E46: 178.4360706 | F46: 38.84072482 | G46: 138.9397913 | I46: 14.01306777 | J46: 4.458846183 | K46: 5.342412988
B47: Lac sow | C47: kg. pig-1. yr-1 | E47: 453.2904353 | F47: 107.7838864 | G47: 344.1146529 | I47: 42.47879887 | J47: 10.81814012 | K47: 16.12192751
B48: Sucker | C48: kg. pig-1. yr-1 | E48: 8.16700849 | F48: 2.072866788 | G48: 6.072990884 | I48: 1.205508488 | J48: 0.2537985948 | K48: 0.2972089928
B49: Weaner | C49: kg. pig-1. yr-1 | E49: 44.06237578 | F49: 6.521227705 | G49: 37.28716882 | I49: 3.115892868 | J49: 0.7309821513 | K49: 1.113015862
B50: Grower | C50: kg. pig-1. yr-1 | E50: 97.00669296 | F50: 16.98958106 | G50: 79.53693512 | I50: 7.900436105 | J50: 1.827421054 | K50: 2.944131738
B51: Finisher | C51: kg. pig-1. yr-1 | E51: 181.0055741 | F51: 31.56279975 | G51: 148.5426627 | I51: 12.92278855 | J51: 3.554050815 | K51: 4.429526581
B52: Heavy finisher | C52: kg. pig-1. yr-1 (estimated regression eqns) | E52: =O65 -> 216.867261 | F52: =P65 -> 40.644887 | G52: 176.222375 | I52: 22.321151 | J52: 6.718807 | K52: 4.893326
B54: National Environmental Guidelines for Indoor Piggeries: Table 5.1
B55: Pig class | D55: Live weight range (kg) | F55: Age range (weeks) | J55: SPU factor
D56: Entry | E56: Exit | F56: Entry | G56: Exit | J56: (SPU. Pig-1)
B57: Gilt | D57: 100 | E57: 160 | F57: 24 | G57: 30 | J57: 1.8
B58: Boar | D58: 100 | E58: 300 | F58: 24 | G58: 128 | J58: 1.6
B59: Dry sow | D59: 160 | E59: 230 | J59: 1.6
B60: Lac sow | D60: 160 | E60: 230 | J60: 2.5 | N60: Av lwt | O60: TS | P60: FS | Q60: VS | S60: N | T60: P | U60: K
B61: Sucker | D61: 1.4 | E61: 8 | F61: 0 | G61: 4 | J61: 0.1 | N61: =(D61+E61)/2 -> 4.7 | O61: =E48 -> 8.16700849 | P61: =F48 -> 2.072866788 | Q61: 6.072990884 | S61: 1.205508488 | T61: 0.2537985948 | U61: 0.2972089928
B62: Weaner | D62: 8 | E62: 25 | F62: 4 | G62: 10 | J62: 0.5 | N62: =(D62+E62)/2 -> 16.5 | O62: =E49 -> 44.06237578 | P62: 6.521227705 | Q62: 37.28716882 | S62: 3.115892868 | T62: 0.7309821513 | U62: 1.113015862
B63: Grower | D63: 25 | E63: 55 | F63: 10 | G63: 16 | J63: 1 | N63: =(D63+E63)/2 -> 40 | O63: =E50 -> 97.00669296 | P63: 16.98958106 | Q63: 79.53693512 | S63: 7.900436105 | T63: 1.827421054 | U63: 2.944131738
B64: Finisher | D64: 55 | E64: 100 | F64: 16 | G64: 24 | J64: 1.6 | N64: =(D64+E64)/2 -> 77.5 | O64: =E51 -> 181.0055741 | P64: 31.56279975 | Q64: 148.5426627 | S64: 12.92278855 | T64: 3.554050815 | U64: 4.429526581
B65: Heavy finisher | D65: 100 | E65: 130 | F65: 24 | G65: 30 | J65: 1.8 | N65: =(D65+E65)/2 -> 115 | O65: =-0.011986*N65^2 + 3.276163*N65 - 1.376634 -> 216.867261 | P65: =-0.001848*N65^2 + 0.586788*N65 - 2.395933 -> 40.644887 | Q65: =-0.010138*N65^2 + 2.689375*N65 + 1.0193 -> 176.222375 | S65: =-0.000156*N65^2 + 0.20263*N65 + 1.081801 -> 22.321151 | T65: =-0.000209*N65^2 + 0.083044*N65 - 0.067228 -> 6.718807 | U65: =-0.000295*N65^2 + 0.078282*N65 - 0.207729 -> 4.893326
B68: References:
A69: 1 | B69: Mahan and Shields (1998), Field et al. (1974)
A70: 2 | B70: Hurley (1997), Csapó et al. (1996), Lewis et al. (1978), Eliasson and Isberg (2011)
A71: 3 | B71: Effluent at Work
C73: Sucker feed | D73: Feed ingested (kg/pig/day)
C74: Age (weeks) | D74: Milk | E74: Creep | F74: Total
C75: 0
C76: 1 | D76: 0.8 | E76: 0 | F76: =SUM(D76:E76) -> 0.8
C77: 2 | D77: 0.8 | E77: 0 | F77: =SUM(D77:E77) -> 0.8
C78: 3 | D78: 0.8 | E78: 0.08 | F78: =SUM(D78:E78) -> 0.88
C79: 4 | D79: 0.8 | E79: 0.12 | F79: =SUM(D79:E79) -> 0.92
C80: Total | D80: =AVERAGE(D76:D79) -> 0.8 | E80: =AVERAGE(E76:E79) -> 0.05 | F80: =AVERAGE(F76:F79) -> 0.85
D81: =D80/F80 -> 0.9411764706 | E81: =E80/F80 -> 0.05882352941

Sheet 8. Feed details
A1: Menu
A2: 8. Feed details
B5: Grower herd | J5: Rating: | K5: Note: The user may enter either the daily feed ingested per pig for each pig class, or the annual total tonnage of feed fed to each pig class. Alternatively, if these cells are left blank, the default values for the breeder pigs and calculated values for the grower pigs will be used.
B6: Average daily live weight gain (ADG): | E6: ='3. Herd Input'!G25 -> 675 | F6: (g. day-1) [birth to 100 kg live weight] | J6: =IF(E6<550, "Outside normal range", IF(E6<'Growth curve sheet'!U21, 'Growth curve sheet'!S21,IF(E6<'Growth curve sheet'!U22,'Growth curve sheet'!S22,IF(E6<'Growth curve sheet'!U23, 'Growth curve sheet'!S23,IF(E6>800, "Outside normal range", 'Growth curve sheet'!S24))))) -> Average
B7: Feed conversion [birth to 100 kg liveweight]: | E7: 2.298 | F7: (kg feed fed / kg live weight gain) [birth to 100 kg live weight] | J7: =IF(E7<'Growth curve sheet'!T82, "Outside range", IF(E7<'Growth curve sheet'!U82, 'Growth curve sheet'!S82,IF(E7<'Growth curve sheet'!U83,'Growth curve sheet'!S83,IF(E7<'Growth curve sheet'!U84, 'Growth curve sheet'!S84,IF(E7>'Growth curve sheet'!U85, "Outside range", 'Growth curve sheet'!S85))))) -> Good
B8: Estimated feed wastage (%): | E8: ='Growth curve sheet'!V46 -> 0.04975168651 | F8: (based on feed intake estimates derived from Willis, 2025)
B10: Pig class | C10: Pigs accomodated in piggery | D10: Average pig live weight | E10: Feed wastage | F10: Daily feed ingested | H10: Annual feed fed | J10: Daily feed fed | K10: Daily feed ingested | L10: Adopted values
F11: Calculated / default values | G11: Entered values | H11: Calculated / default values | I11: Entered values | L11: Daily feed ingested | M11: Annual feed fed
C12: (pigs. stage-1) | D12: (kg. pig-1) | E12: (% as fed) | F12: (kg. pig-1. day-1) | G12: (kg. pig-1. day-1) | H12: (t. yr-1) | I12: (t. yr-1) | J12: (kg. pig-1. day-1) | K12: (kg. pig-1. day-1) | L12: (kg. pig-1. day-1) | M12: (t. yr-1)
B13: Gilts | C13: ='5. Herd details'!E9 -> 102.5374259 | D13: ='5. Herd details'!L9 -> 125.6934058 | E13: 0.05 | F13: 2.5 | H13: =(F13*365*C13)/(1000*(1-E13)) -> 98.48989594 | J13: =IF(C13=0, 0, IF(I13="", (H13*1000/365)/C13, (I13*1000/365)/C13)) -> 2.631578947 | K13: =J13*(1-E13) -> 2.5 | L13: =IF(I13<>"",K13,IF(G13<>"",G13,F13)) -> 2.5 | M13: =(L13/(1-E13))*C13*365/1000 -> 98.48989594
B14: Boars | C14: ='5. Herd details'!E10 -> 10 | D14: ='5. Herd details'!L10 -> 203.1934058 | E14: 0.05 | F14: 2.3 | H14: =(F14*365*C14)/(1000*(1-E14)) -> 8.836842105 | J14: =IF(C14=0, 0, IF(I14="", (H14*1000/365)/C14, (I14*1000/365)/C14)) -> 2.421052632 | K14: =J14*(1-E14) -> 2.3 | L14: =IF(I14<>"",K14,IF(G14<>"",G14,F14)) -> 2.3 | M14: =(L14/(1-E14))*C14*365/1000 -> 8.836842105
B15: Gestating sows | C15: ='5. Herd details'!E11 -> 850.9587304 | D15: ='5. Herd details'!L11 -> 172.5 | E15: 0.05 | F15: 2.3 | H15: 751.9787939 | J15: 2.421052632 | K15: 2.3 | L15: 2.3 | M15: 751.9787939
B16: Lactating sows | C16: ='5. Herd details'!E13 -> 149.0412696 | D16: ='5. Herd details'!L13 -> 172.5 | E16: 0.05 | F16: 6.3 | H16: 360.7583152 | J16: 6.631578947 | K16: 6.3 | L16: 6.3 | M16: 360.7583152
B17: Suckers 1 | C17: ='5. Herd details'!E14 -> 1662.888329 | D17: ='5. Herd details'!L14 -> 4.2 | E17: 0.05 | F17: 0.018 | H17: 11.5001856 | J17: 0.01894736842 | K17: 0.018 | L17: 0.018 | M17: 11.5001856
B18: ='3. Herd Input'!M17 -> Weaner | C18: ='5. Herd details'!E15 -> 2957.369328 | D18: ='5. Herd details'!L15 -> 21 | E18: 0.05 | F18: =IF(C18=0, 0, -0.00007*D18^2 + 0.0355*D18 + 0.1379) -> 0.85253 | H18: 968.6892806 | J18: 0.8974 | K18: 0.85253 | L18: 0.85253 | M18: 968.6892806
B19: ='3. Herd Input'!M18 -> Porker | C19: ='5. Herd details'!E16 -> 1774.464891 | D19: ='5. Herd details'!L16 -> 47.5 | E19: 0.05 | F19: =IF(C19=0, 0, -0.00007*D19^2 + 0.0355*D19 + 0.1379) -> 1.6662125 | H19: 1135.970513 | J19: 1.753907895 | K19: 1.6662125 | L19: 1.6662125 | M19: 1135.970513
B20: ='3. Herd Input'!M19 -> Grower | C20: ='5. Herd details'!E17 -> 1755.355269 | D20: ='5. Herd details'!L17 -> 72.5 | E20: 0.05 | F20: 2.3437125 | H20: 1580.66058 | J20: 2.467065789 | K20: 2.3437125 | L20: 2.3437125 | M20: 1580.66058
B21: ='3. Herd Input'!M20 -> Finisher | C21: ='5. Herd details'!E18 -> 1736.451443 | D21: ='5. Herd details'!L18 -> 97.5 | E21: 0.05 | F21: 2.9337125 | H21: 1957.264206 | J21: 3.088118421 | K21: 2.9337125 | L21: 2.9337125 | M21: 1957.264206
B22: ='3. Herd Input'!M21 -> Unallocated | C22: ='5. Herd details'!E19 -> 0 | D22: ='5. Herd details'!L19 -> 0 | F22: 0 | H22: 0 | J22: 0 | K22: 0 | L22: 0 | M22: 0
B23: ='3. Herd Input'!M22 -> Unallocated | C23: ='5. Herd details'!E20 -> 0 | D23: ='5. Herd details'!L20 -> 0 | F23: 0 | H23: 0 | J23: 0 | K23: 0 | L23: 0 | M23: 0
B25: Totals: | C25: =SUM(C13:C23) -> 10999.06668 | H25: =SUM(H13:H23) -> 6874.148612 | I25: =SUM(I13:I23) -> 0 | M25: =SUM(M13:M23) -> 6874.148612
B27: 1 Sucker feed is considered to be creep feed only and does not include milk supplied by the sow. | H27: 2 All feed quantities are expressed on an 'as-fed' basis
B29: Whole piggery Herd Feed Conversion (HFC): | F29: HFC | J29: Ratings
B30: Total feed fed: | C30: =M25 -> 6874.148612 | D30: t. yr-1 (as fed)
B31: Total pigs sold: | C31: ='5. Herd details'!H42 -> 2562555.028 | D31: kg live weight. yr-1 | F31: =C30*1000/C31 -> 2.682536975 | G31: kg feed fed / kg live weight sold
B32: Total pigs sold: | C32: ='5. Herd details'!I42 -> 1947541.821 | D32: kg dressed weight. yr-1 | F32: =C30*1000/C32 -> 3.529653914 | G32: kg feed fed / kg dressed weight sold | J32: =IF(F32<'Growth curve sheet'!T72, "Outside normal range", IF(F32<'Growth curve sheet'!U72, 'Growth curve sheet'!S72,IF(F32<'Growth curve sheet'!U73,'Growth curve sheet'!S73,IF(F32<'Growth curve sheet'!U74, 'Growth curve sheet'!S74,IF(F32>'Growth curve sheet'!U75, "Outside normal range", 'Growth curve sheet'!S75))))) -> Average
B34: Grower herd Feed Conversion Ratio (FCR) [wean to finish]: | F34: FCR
B35: Grower herd feed fed: | C35: =SUM(M18:M23) -> 5642.58458 | D35: t. yr-1 (as fed)
B36: Grower pig liveweight gain: | C36: =SUM('5. Herd details'!H61:H66)-('5. Herd details'!AA15*52.1/'5. Herd details'!X15*'5. Herd details'!J15) -> 2310874.919 | D36: kg live weight. yr-1 | F36: =C35*1000/C36 -> 2.441752487 | G36: kg feed fed / kg liveweight gain [wean to finish] | J36: =IF(F36<'Growth curve sheet'!T77, "Outside normal range", IF(F36<'Growth curve sheet'!U77, 'Growth curve sheet'!S77,IF(F36<'Growth curve sheet'!U78,'Growth curve sheet'!S78,IF(F36<'Growth curve sheet'!U79, 'Growth curve sheet'!S79,IF(F36>'Growth curve sheet'!U80, "Outside normal range", 'Growth curve sheet'!S80))))) -> Average
B37: Grower pig liveweight gain: | C37: =C36*'3. Herd Input'!C40/100 -> 1756264.938 | D37: kg dressed weight. yr-1 | F37: =C35*1000/C37 -> 3.21283222 | G37: kg feed fed / kg dressed weight gain
B39: Feed Break-down: | F39: Percentage
B40: Breeder feed | C40: =SUM(M13:M17) -> 1231.564033 | D40: t. yr-1 (as fed) | F40: =C40/$M$25 -> 0.1791587733
B41: Grower feed | C41: =SUM(M18:M23) -> 5642.58458 | D41: t. yr-1 (as fed) | F41: =C41/$M$25 -> 0.8208412267
B46: Pig live weight (kg) | C46: Feed Intake (kg/d) | D46: Calc feed intake (kg/d)
A47: 1.06 | B47: 6.1 | C47: =0.2*A47 -> 0.212 | D47: =-0.00007*B47^2 + 0.0351*B47+0.1366 -> 0.3481053
B48: 8.25 | C48: =0.4*A47 -> 0.424 | D48: =-0.00007*B48^2 + 0.0351*B48+0.1366 -> 0.421410625
B49: 10.85 | C49: =0.55*A47 -> 0.583 | D49: 0.509194425
B50: 13.95 | C50: =0.65*A47 -> 0.689 | D50: 0.612622825
B51: 17.55 | C51: =0.75*A47 -> 0.795 | D51: 0.731044825
B52: 21.65 | C52: =0.85*A47 -> 0.901 | D52: 0.863704425
B53: 26.25 | C53: =0.95*A47 -> 1.007 | D53: 1.009740625
B54: 31.2 | C54: =1.09*A47 -> 1.1554 | D54: 1.1635792
B55: 36.55 | C55: =1.25*A47 -> 1.325 | D55: 1.325991825
B56: 42.2 | C56: =1.4*A47 -> 1.484 | D56: 1.4931612
B57: 48.15 | C57: =1.62*A47 -> 1.7172 | D57: 1.664375425
B58: 54.25 | C58: =1.75*A47 -> 1.855 | D58: 1.834760625
B59: 60.55 | C59: =1.9*A47 -> 2.014 | D59: 2.005263825
B60: 66.9 | C60: =2.05*A47 -> 2.173 | D60: 2.1714973
B61: 73.25 | C61: =2.2*A47 -> 2.332 | D61: 2.332085625
B62: 79.55 | C62: =2.4*A47 -> 2.544 | D62: 2.485830825
B63: 85.75 | C63: =2.55*A47 -> 2.703 | D63: 2.631710625
B64: 91.85 | C64: =2.7*A47 -> 2.862 | D64: 2.769985425
B65: 97.75 | C65: =2.8*A47 -> 2.968 | D65: 2.898770625
B66: 103.5 | C66: =2.9*A47 -> 3.074 | D66: 3.0195925
B67: 109 | C67: =3*A47 -> 3.18 | D67: 3.13083
B68: 114.3 | C68: =3.1*A47 -> 3.286 | D68: 3.2340157
B69: 119.35 | C69: =3.2*A47 -> 3.392 | D69: 3.328675425
B70: 124.15 | C70: =3.3*A47 -> 3.498 | D70: 3.415339425
B72: Source: S Willis pers comm - January 2025
A74: Old | B74: y = -0.0001534x2 + 0.0453863x + 0.0323195
A75: new | B75: y = -0.00006x2 + 0.0334x + 0.1301
B76: Pig live weight (kg) | D76: Calc feed intake (kg/d)
B77: 5 | D77: =-0.00007*B77^2 + 0.0355*B77 + 0.1379 -> 0.31365
B78: 10 | D78: =-0.00007*B78^2 + 0.0355*B78 + 0.1379 -> 0.4859
B79: 15 | D79: 0.65465
B80: 20 | D80: 0.8199
B81: 25 | D81: 0.98165
B82: 30 | D82: 1.1399
B83: 35 | D83: 1.29465
B84: 40 | D84: 1.4459
B85: 45 | D85: 1.59365
B86: 50 | D86: 1.7379 | G86: National Guidelines
B87: 55 | D87: 1.87865 | G87: Live weight range (kg) | I87: Av live weight (kg) | J87: Old PigBal feed intake (kg/day)
B88: 60 | D88: 2.0159 | F88: Sucker | G88: 1.4 | H88: 8 | I88: =AVERAGE(G88:H88) -> 4.7 | J88: 0.2
B89: 65 | D89: 2.14965 | F89: Weaner | G89: 8 | H89: 25 | I89: =AVERAGE(G89:H89) -> 16.5 | J89: 0.6
B90: 70 | D90: 2.2799 | F90: Grower | G90: 25 | H90: 55 | I90: =AVERAGE(G90:H90) -> 40 | J90: 1.5
B91: 75 | D91: 2.40665 | F91: Finisher | G91: 55 | H91: 100 | I91: =AVERAGE(G91:H91) -> 77.5 | J91: 2.3
B92: 80 | D92: 2.5299 | F92: Heavy Finisher | G92: 100 | H92: 130 | I92: =AVERAGE(G92:H92) -> 115
B93: 85 | D93: 2.64965
B94: 90 | D94: 2.7659
B95: 95 | D95: 2.87865
B96: 100 | D96: 2.9879
B97: 105 | D97: 3.09365
B98: 110 | D98: 3.1959
B99: 115 | D99: 3.29465
B100: 120 | D100: 3.3899
B101: 125 | D101: 3.48165

Sheet 9. Water
A1: Menu
A2: 9. Water
B5: Drinking water and wastage
B7: Pig class | C7: No of pigs | D7: Feed ingested (as fed) | E7: Wf 1 | F7: Tf 1 | G7: Calculated water intake | J7: Drinking water wastage | N7: Water intake + wastage | Q7: Cooling water flowrate 2 | R7: Cooling water use | U7: NEGP pig class | W7: Shed type | X7: Waste to effluent | Y7: Waste to litter
C8: (pigs. stage-1) | D8: (kg. pig-1. day-1) | G8: (L. pig-1. day-1) | H8: (L. day-1) | I8: (L. yr-1) | J8: (%) | K8: (L. pig-1. day-1) | L8: (L/day) | M8: (L. yr-1) | N8: (L. pig-1. day-1) | O8: (L/day) | P8: (L. yr-1) | Q8: (mL. hr-1. pig-1) | R8: (L. yr-1) | X8: (L. yr-1) | Y8: (L. yr-1)
B9: Gilts | C9: ='5. Herd details'!E9 -> 102.5374259 | D9: ='8. Feed details'!L13 -> 2.5 | E9: =Examples!E133 -> 2.5 | F9: =Examples!F133 -> 1.2 | G9: =D9*E9*F9 -> 7.5 | H9: =G9*C9 -> 769.0306943 | I9: =H9*365 -> 280696.2034 | J9: 0.25 | K9: =J9*G9 -> 1.875 | L9: =K9*C9 -> 192.2576736 | M9: =L9*365 -> 70174.05085 | N9: =G9+K9 -> 9.375 | O9: =H9+L9 -> 961.2883679 | P9: =I9+M9 -> 350870.2543 | Q9: 300 | R9: =Q9*C9*J$26/1000 -> 16611.063 | U9: =B9 -> Gilts | W9: ='5. Herd details'!F9 -> Flushing | X9: =IF(W9="Deep litter", 0, M9) -> 70174.05085 | Y9: =IF(W9="Deep litter", M9, 0) -> 0
B10: Boars | C10: ='5. Herd details'!E10 -> 10 | D10: ='8. Feed details'!L14 -> 2.3 | E10: =Examples!E134 -> 2.5 | F10: =Examples!F134 -> 1.2 | G10: =D10*E10*F10 -> 6.9 | H10: =G10*C10 -> 69 | I10: =H10*365 -> 25185 | J10: 0.25 | K10: =J10*G10 -> 1.725 | L10: =K10*C10 -> 17.25 | M10: =L10*365 -> 6296.25 | N10: =G10+K10 -> 8.625 | O10: =H10+L10 -> 86.25 | P10: =I10+M10 -> 31481.25 | Q10: 300 | R10: 1620 | U10: =B10 -> Boars | W10: ='5. Herd details'!F10 -> Flushing | X10: 6296.25 | Y10: 0
B11: Gestating sows | C11: ='5. Herd details'!E11 -> 850.9587304 | D11: ='8. Feed details'!L15 -> 2.3 | E11: =Examples!E135 -> 2.8 | F11: =Examples!F135 -> 1.5 | G11: 9.66 | H11: 8220.261336 | I11: 3000395.388 | J11: 0.25 | K11: 2.415 | L11: 2055.065334 | M11: 750098.8469 | N11: 12.075 | O11: 10275.32667 | P11: 3750494.234 | Q11: 300 | R11: 137855.3143 | U11: =B11 -> Gestating sows | W11: ='5. Herd details'!F11 -> Flushing | X11: 750098.8469 | Y11: 0
B12: Lactating sows | C12: ='5. Herd details'!E13 -> 149.0412696 | D12: ='8. Feed details'!L16 -> 6.3 | E12: =Examples!E136 -> 4.5 | F12: =Examples!F136 -> 1.6 | G12: 45.36 | H12: 6760.511989 | I12: 2467586.876 | J12: 0.25 | K12: 11.34 | L12: 1690.127997 | M12: 616896.719 | N12: 56.7 | O12: 8450.639986 | P12: 3084483.595 | Q12: 300 | R12: 24144.68568 | U12: =B12 -> Lactating sows | W12: ='5. Herd details'!F13 -> Flushing | X12: 616896.719 | Y12: 0
B13: Suckers | C13: ='5. Herd details'!E14 -> 1662.888329 | D13: ='8. Feed details'!L17 -> 0.018 | E13: =Examples!E137 -> 4 | F13: =Examples!F137 -> 1 | G13: 0.072 | H13: 119.7279597 | I13: 43700.70528 | J13: 0.25 | K13: 0.018 | L13: 29.93198992 | M13: 10925.17632 | N13: 0.09 | O13: 149.6599496 | P13: 54625.8816 | Q13: 0 | R13: 0 | U13: =B13 -> Suckers | W13: ='5. Herd details'!F14 -> Flushing | X13: 10925.17632 | Y13: 0
B14: ='3. Herd Input'!M17 -> Weaner | C14: ='5. Herd details'!E15 -> 2957.369328 | D14: ='8. Feed details'!L18 -> 0.85253 | E14: =Examples!E138 -> 3 | F14: =Examples!F138 -> 1 | G14: 2.55759 | H14: 7563.738218 | I14: 2760764.45 | J14: 0.25 | K14: 0.6393975 | L14: 1890.934555 | M14: 690191.1124 | N14: 3.1969875 | O14: 9454.672773 | P14: 3450955.562 | Q14: =IF(C14=0,0,VLOOKUP(U14, U$25:V$28, 2, FALSE)) -> 300 | R14: 479093.8311 | U14: ='14. DM DAMP'!E227 -> Grower | W14: ='5. Herd details'!F15 -> Flushing | X14: 690191.1124 | Y14: 0
B15: ='3. Herd Input'!M18 -> Porker | C15: ='5. Herd details'!E16 -> 1774.464891 | D15: ='8. Feed details'!L19 -> 1.6662125 | E15: =Examples!E139 -> 2.5 | F15: =Examples!F139 -> 1.2 | G15: 4.9986375 | H15: 8869.906745 | I15: 3237515.962 | J15: 0.25 | K15: 1.249659375 | L15: 2217.476686 | M15: 809378.9905 | N15: 6.248296875 | O15: 11087.38343 | P15: 4046894.952 | Q15: 300 | R15: 287463.3123 | U15: ='14. DM DAMP'!F227 -> Finisher | W15: ='5. Herd details'!F16 -> Flushing | X15: 809378.9905 | Y15: 0
B16: ='3. Herd Input'!M19 -> Grower | C16: ='5. Herd details'!E17 -> 1755.355269 | D16: ='8. Feed details'!L20 -> 2.3437125 | E16: =Examples!E140 -> 2.5 | F16: =Examples!F140 -> 1.4 | G16: 8.20299375 | H16: 14399.1683 | I16: 5255696.429 | J16: 0.25 | K16: 2.050748438 | L16: 3599.792075 | M16: 1313924.107 | N16: 10.25374219 | O16: 17998.96037 | P16: 6569620.536 | Q16: 300 | R16: 284367.5535 | U16: ='14. DM DAMP'!G227 -> Finisher | W16: ='5. Herd details'!F17 -> Flushing | X16: 1313924.107 | Y16: 0
B17: ='3. Herd Input'!M20 -> Finisher | C17: ='5. Herd details'!E18 -> 1736.451443 | D17: ='8. Feed details'!L21 -> 2.9337125 | E17: =Examples!E141 -> 2.5 | F17: =Examples!F141 -> 1.4 | G17: 10.26799375 | H17: 17829.87256 | I17: 6507903.485 | J17: 0.25 | K17: 2.566998437 | L17: 4457.46814 | M17: 1626975.871 | N17: 12.83499219 | O17: 22287.3407 | P17: 8134879.356 | Q17: 300 | R17: 281305.1337 | U17: ='14. DM DAMP'!H227 -> Heavy finisher | W17: ='5. Herd details'!F18 -> Flushing | X17: 1626975.871 | Y17: 0
B18: ='3. Herd Input'!M21 -> Unallocated | C18: ='5. Herd details'!E19 -> 0 | D18: ='8. Feed details'!L22 -> 0 | E18: =Examples!E142 -> 2.5 | F18: =Examples!F142 -> 1.4 | G18: 0 | H18: 0 | I18: 0 | K18: 0 | L18: 0 | M18: 0 | N18: 0 | O18: 0 | P18: 0 | Q18: 0 | R18: 0 | U18: ='14. DM DAMP'!I227 ->  | W18: ='5. Herd details'!F19 -> 0 | X18: 0 | Y18: 0
B19: ='3. Herd Input'!M22 -> Unallocated | C19: ='5. Herd details'!E20 -> 0 | D19: ='8. Feed details'!L23 -> 0 | E19: =Examples!E143 -> 2.5 | F19: =Examples!F143 -> 1.4 | G19: 0 | H19: 0 | I19: 0 | K19: 0 | L19: 0 | M19: 0 | N19: 0 | O19: 0 | P19: 0 | Q19: 0 | R19: 0 | U19: ='14. DM DAMP'!J227 ->  | W19: ='5. Herd details'!F20 -> Flushing | X19: 0 | Y19: 0
B21: Totals: | C21: =SUM(C9:C19) -> 10999.06668 | H21: =SUM(H9:H19) -> 64601.2178 | I21: =SUM(I9:I19) -> 23579444.5 | L21: =SUM(L9:L19) -> 16150.30445 | M21: =SUM(M9:M19) -> 5894861.124 | O21: =SUM(O9:O19) -> 80751.52225 | P21: =SUM(P9:P19) -> 29474305.62 | R21: =SUM(R9:R19) -> 1512460.894 | X21: =SUM(X9:X19) -> 5894861.124 | Y21: =SUM(Y9:Y19) -> 0
E23: 1 Wiedemann et al. (2012) | Q23: 2 Taylor, Kruger and Ferrier (1994)
B24: Cleaning water | U24: NEGP pig class | V24: Cooling water flowrate
B25: Daily flushing volume | E25: L. day-1 | G25: Spray and drip cooling water | U25: Weaner | V25: 65
B26: Daily hosing volume | E26: L. day-1 | G26: Water cooling operation time | J26: 540 | K26: hr. yr-1 | U26: Grower | V26: 300
B27: Calculated effluent TS conc | D27: =D31/K41 -> 0.01999726065 | U27: Finisher | V27: 300
B28: Cleaning system | D28: Medium flush | G28: Clean water requirement | J28: (ML. yr-1) | K28: (L. day-1) | U28: Heavy finisher | V28: 300
B29: Shed effluent TS conc | D29: =IF(D28="", "", VLOOKUP(D28,U31:X33,3,FALSE)) -> 0.02 | E29: % | G29: Drinking | J29: =I21/1000000 -> 23.5794445 | K29: =J29*1000000/365 -> 64601.2178
G30: Drinker waste | J30: =M21/1000000 -> 5.894861124 | K30: =J30*1000000/365 -> 16150.30445 | W30: TS | X30: VS
B31: Manure + waste feed TS (after shed losses) | D31: ='14. DM DAMP'!P168 -> 3563.353891 | E31: kg. day-1 | G31: Cleaning | J31: =(1-D44)*D41*365/1000000 -> 23.06505285 | K31: =J31*1000000/365 -> 63191.9256 | U31: High flush | W31: 0.01 | X31: =0.7*W31 -> 0.007
B32: Manure + waste feed VS (after shed losses) | D32: ='14. DM DAMP'!P170 -> 2910.796352 | E32: kg. day-1 | G32: Cooling | J32: =R21/1000000 -> 1.512460894 | K32: =J32*1000000/365 -> 4143.728476 | U32: Medium flush | W32: 0.02 | X32: =0.7*W32 -> 0.014
B33: Manure + waste feed N (after shed losses) | D33: ='14. DM DAMP'!P171 -> 265.3162563 | E33: kg. day-1 | G33: Total: | J33: =SUM(J29:J32) -> 54.05181936 | K33: =SUM(K29:K32) -> 148087.1763 | U33: Low flush | W33: 0.03 | X33: =0.7*W33 -> 0.021
B34: Manure + waste feed P (after shed losses) | D34: ='14. DM DAMP'!P172 -> 69.02088525 | E34: kg. day-1
B35: Manure + waste feed K (after shed losses) | D35: ='14. DM DAMP'!P173 -> 92.75426034 | E35: kg. day-1 | G35: Effluent discharged to primary anaerobic pond | W35: Shed effluent | AA35: Recycled effluent
B36: Est total effluent out of shed | D36: =IF(D28="", "", D31/D29) -> 178167.6946 | E36: L. day-1 | J36: Volume | K36: Volume | M36: TS | N36: VS | O36: TS (kg. day-1) | P36: N | Q36: P | R36: K | W36: TS | X36: VS | Y36: VS/TS | AA36: TS | AB36: VS | AC36: VS/TS
B37: Est total water out of shed | D37: =IF(D28="", "", (D31/D29)-D31) -> 174604.3407 | E37: L. day-1 | J37: (ML. yr-1) | K37: (L. day-1) | M37: (kg. day-1) | N37: (kg. day-1) | O37: =E44*E41*X48 ->  | P37: (kg. day-1) | Q37: (kg. day-1) | R37: (kg. day-1) | U37: Grantham | W37: 2.99 | X37: 2.09 | Y37: =X37/W37 -> 0.6989966555 | AA37: 0.38 | AB37: 0.14 | AC37: =AB37/AA37 -> 0.3684210526
B38: Manure + waste feed moisture content | D38: 0.9 | E38: % | G38: Flushing / hosing water | J38: =D42 -> 46.13010569 | K38: =J38*1000000/365 -> 126383.8512 | M38: =D44*D41*W48*(1-M44) -> 0 | N38: =D44*D41*W49*(1-N44) -> 0 | P38: =D44*D41*W50*(1-P44)/1000000 -> 0 | Q38: =D44*D41*W51/1000000 -> 0 | R38: =D44*D41*W52/1000000 -> 0 | U38: Reed - grower/finisher | W38: 2.43 | X38: 1.81 | Y38: =X38/W38 -> 0.7448559671
B39: Manure + waste feed water | D39: =D38*D31/(1-D38) -> 32070.18502 | E39: L. day-1 | G39: Manure + waste feed | J39: =365.25*(D31/(1-D38))/1000000 -> 13.01515009 | K39: =J39*1000000/365 -> 35657.94545 | M39: =D31 -> 3563.353891 | N39: =D32 -> 2910.796352 | P39: =D33 -> 265.3162563 | Q39: =D34 -> 69.02088525 | R39: =D35 -> 92.75426034 | U39: Reed - all | W39: 1.39 | X39: 0.92 | Y39: 0.6618705036 | AA39: 0.7 | AB39: 0.31 | AC39: =AB39/AA39 -> 0.4428571429
B40: Drinker waste water | D40: =X21/365 -> 16150.30445 | E40: L. day-1 | G40: Drinker waste water | J40: =365*D40/1000000 -> 5.894861124 | K40: =J40*1000000/365 -> 16150.30445 | M40: 0 | N40: 0 | P40: 0 | Q40: 0 | R40: 0 | W40: 1.69 | X40: 1.19 | Y40: 0.7041420118
B41: Flushing / hosing water | D41: =IF(AND(D25="", D26=""), D37-D39-D40, D25+D26) -> 126383.8512 | E41: L. day-1 | G41: Total: | J41: =SUM(J38:J40) -> 65.0401169 | K41: =SUM(K38:K40) -> 178192.1011 | M41: =SUM(M38:M40) -> 3563.353891 | N41: 2910.796352 | O41: 0 | P41: 265.3162563 | Q41: 69.02088525 | R41: 92.75426034 | U41: Summerhill | W41: 2.4 | X41: 1.98 | Y41: 0.825 | AA41: 0.4670480484 | AB41: 0.1365522088 | AC41: =AB41/AA41 -> 0.2923729352
D42: =D41*365/1000000 -> 46.13010569 | E42: ML. yr-1 | M42: =M41/$K41 -> 0.01999726065 | N42: =N41/$K41 -> 0.01633515927 | P42: =P41/$K41 -> 0.001488933879 | Q42: =Q41/$K41 -> 0.0003873397576 | R42: =R41/$K41 -> 0.0005205295845 | AA42: 0.5078111507 | AB42: 0.2184182688 | AC42: =AB42/AA42 -> 0.4301171184
D43: =D41/C21 -> 11.49041594 | E43: L. pig-1. day-1 | U43: Nat Gdl - low flush | W43: 3.1 | Y43: 0
B44: % flushing and hosing water from recycled effluent | D44: 0.5 | E44: % | G44: Composite shed loss factors: | M44: ='5. Herd details'!AL22 -> 0.02 | N44: ='5. Herd details'!AM22 -> 0.03 | P44: ='5. Herd details'!AN22 -> 0.1 | Q44: 0 | R44: 0 | U44: Nat Gdl - high flush | W44: 1.2 | Y44: 0
B45: flushing water / (flushing + hosing water) | D45: =IF(AND(D25="", D26=""), "", D25/(D25+D26)) -> 
U46: The recycled effluent solids and nutrient concentrations have been set to 0 to avoid overestimation of loading rates.
U47: It is assumed that the recycled effluent is thoroughly treated prior to reuse and no further reductions in solids and nutrient concentrations occur in the primary pond.
D48: 0.5 | U48: Recycled effluent TS conc | W48: 0 | X48: % | Y48: 0.0046
U49: Recycled effluent VS conc | W49: 0 | X49: % | Y49: 0.0015
U50: Recycled effluent N conc | W50: 0 | X50: mg/L | Y50: 600.1336416
U51: Recycled effluent P conc | W51: 0 | X51: mg/L | Y51: 53.06690542
C52: High flush | U52: Recycled effluent K conc | W52: 0 | X52: mg/L | Y52: 463.1062526
C53: Medium flush
C54: Low flush
I163: High flush
I164: Medium flush
I165: Low flush

Sheet 10. Effluent pre-treatment
A1: Menu
A2: 10. Effluent pre-treatment
B5: Effluent pre-treatment system | D5: None
B7: Parameter | C7: Units | D7: TS | E7: VS | F7: N | G7: P | H7: K
B9: Effluent discharged from sheds | C9: kg. day-1 | D9: ='9. Water'!M41 -> 3563.353891 | E9: ='9. Water'!N41 -> 2910.796352 | F9: ='9. Water'!P41 -> 265.3162563 | G9: ='9. Water'!Q41 -> 69.02088525 | H9: ='9. Water'!R41 -> 92.75426034
B11: Typical pre-treatment removal rates | C11: % | D11: =VLOOKUP($D5, $B36:$H43,3,FALSE) -> 0 | E11: =VLOOKUP($D5, $B36:$H43,4,FALSE) -> 0 | F11: =VLOOKUP($D5, $B36:$H43,5,FALSE) -> 0 | G11: =VLOOKUP($D5, $B36:$H43,6,FALSE) -> 0 | H11: =VLOOKUP($D5, $B36:$H43,7,FALSE) -> 0
B13: Known pre-treatment removal rates | C13: %
B15: Adopted pre-treatment removal rates | C15: % | D15: =IF(D13<>"", D13, D11) -> 0 | E15: =IF(E13<>"", E13, E11) -> 0 | F15: =IF(F13<>"", F13, F11) -> 0 | G15: =IF(G13<>"", G13, G11) -> 0 | H15: =IF(H13<>"", H13, H11) -> 0
B17: Separated solids | C17: kg. day-1 | D17: =D9-D20 -> 0 | E17: =E9-E20 -> 0 | F17: =F9-F20 -> 0 | G17: =G9-G20 -> 0 | H17: =H9-H20 -> 0
C18: t. yr-1 | D18: =D17*365/1000 -> 0 | E18: =E17*365/1000 -> 0 | F18: =F17*365/1000 -> 0 | G18: =G17*365/1000 -> 0 | H18: =H17*365/1000 -> 0
B20: Effluent entering primary pond | C20: kg. day-1 | D20: =D9*(1-D15) -> 3563.353891 | E20: =E9*(1-E15) -> 2910.796352 | F20: =F9*(1-F15) -> 265.3162563 | G20: =G9*(1-G15) -> 69.02088525 | H20: =H9*(1-H15) -> 92.75426034
C21: t. yr-1 | D21: =365*D20/1000 -> 1300.62417 | E21: =365*E20/1000 -> 1062.440668 | F21: =365*F20/1000 -> 96.84043356 | G21: =365*G20/1000 -> 25.19262312 | H21: =365*H20/1000 -> 33.85530503
B35: Effluent pre-treatment system | D35: TS | E35: VS | F35: N | G35: P | H35: K | J35: References
B36: None | D36: 0 | E36: 0 | F36: 0 | G36: 0 | H36: 0
B37: Settling Basin | D37: 0.55 | E37: 0.7 | F37: 0.2 | G37: 0.4 | H37: 0.03 | J37: Kruger et al (1995)
B38: SEPS | D38: 0.77 | E38: 0.82 | F38: 0.36 | G38: 0.89 | H38: 0.04 | J38: Kruger & Payne (2008)
B39: Static rundown screen | D39: 0.2 | E39: 0.25 | F39: 0.08 | G39: 0.11 | H39: 0 | J39: Original PigBal & Skerman & Collman (2006)
B40: Vibrating screen | D40: 0.2 | E40: 0.25 | F40: 0.08 | G40: 0.11 | H40: 0 | J40: Original PigBal & Skerman & Collman (2006)
B41: Screw press separator | D41: 0.32 | E41: 0.37 | F41: 0.37 | G41: 0.41 | H41: 0.08 | J41: McGahan et al (2002)
B42: Baleen filter screen | D42: 0.3 | E42: 0.37 | F42: 0.12 | G42: 0.17 | H42: 0 | J42: NEGP factored
B43: Rotating screen | D43: 0.15 | E43: 0.2 | F43: 0.05 | G43: 0.1 | H43: 0 | J43: NEGP factored

Sheet 11. Pond design
A1: Menu
A2: 11. Anaerobic pond design
B5: Effluent TS entering primary pond | C5: ='10. Effluent pre-treatment'!D20 -> 3563.353891 | D5: kg TS. day-1
B6: Effluent VS entering primary pond | C6: ='10. Effluent pre-treatment'!E20 -> 2910.796352 | D6: kg VS. day-1 | F6: Latitude | G6: Longitude | U6: =C39*C40 -> 12494.25287 | V6: =C45*C46 -> 6703.053161
B7: Piggery State/Territory | F7: (dec degrees) | U7: =(U6+V6)/2 -> 9598.653017
B8: Piggery locality | F8: =IF(C8="", "", VLOOKUP(C8, $B77:$E237, 2, FALSE)) ->  | G8: =IF(C8="", "", VLOOKUP(C8, $B77:$E237, 3, FALSE)) ->  | U8: =(C35+C38)*U7 -> 52792.59159
B9: Suggested anaerobic pond activity ratio, k | C9: =IF(C8="", "", VLOOKUP('11. Pond design'!C8,B77:E237,4,FALSE)) ->  | D9: (based on selected locality) | F9: =IF(C8="", "", VLOOKUP(C8, 'K values'!B2:F691, 5, FALSE)) -> 
B10: Climate (Table 12.2 NEGIP) | C10: Warm | U10: 67370.43215
B11: Suggested anaerobic pond activity ratio, k | C11: =IF(C10="", "", VLOOKUP(C10,B64:D66,3,FALSE)) -> 0.8 | D11: (based on selected climate)
B12: User selected anaerobic pond activity ratio, k
B14: Pond design philosophy | C14: Conventional 'large'
B15: Suggested max baseline VS loading rate | C15: =VLOOKUP(C14,B70:D72,3,FALSE) -> 0.1 | D15: kg VS. m-3. day-1 | K15: =C39 -> 160 | L15: x | M15: =C40 -> 78.08908046
B16: Suggested adjusted max VS loading rate | C16: =IF(C12<>"", C12*C15, IF(C8<>"", C9*C15, C11*C15)) -> 0.08 | D16: kg VS. m-3. day-1 | Q16: Embankment crest level
B17: Suggested min active treatment volume (based on VS loading) | C17: =C6/C16 -> 36384.95439 | D17: m3
B18: Suggested minimum hydraulic retention time (HRT) | C18: 40 | D18: days | I18: =C38 -> 0.5
B19: Effluent volume discharged to pond | C19: ='9. Water'!K41/1000 -> 178.1921011 | D19: m3. day-1 | K19: =C41 -> 157.5 | L19: x | M19: =C42 -> 75.58908046 | O19: Full storage level
B20: Suggested min active treatment volume (based on HRT) | C20: =C18*C19 -> 7127.684044 | D20: m3
B21: Suggested min active treatment volume (based on VS loading and HRT) | C21: =MAX(C17,C20) -> 36384.95439 | D21: m3 | F21: Va | G21: =C29 -> 37090.72443 | H21: m3 | P21: =C49 -> 3.775528327
Q22: =C35 -> 5
B23: Sludge accumulation rate | C23: 0.00137 | D23: m3. kg TS-1 | I23: 1
B24: Desludging interval | C24: 5 | D24: years | F24: Vs | G24: =C25 -> 8909.275567 | H24: m3 | I24: =C36 -> 2.5 | J24: L | P24: =C48 -> 1.224471673
B25: Suggested sludge storage volume, Vs | C25: =C24*C5*365*C23 -> 8909.275567 | D25: m3 | I25: =C37 -> 2.5 | J25: B | N25: Base
B26: Suggested treatment + sludge volume, Vt | C26: =C21+C25 -> 45294.22996 | D26: m3
F27: Vt | G27: =C28 -> 46000 | H27: m3 | K27: =C45 -> 132.5 | L27: x | M27: =C46 -> 50.58908046
B28: User selected total pond volume, Vt | C28: 46000 | D28: m3
B29: Resulting active treatment volume, Va | C29: =C28-C25 -> 37090.72443 | D29: m3 | F29: Schematic drawing - not to scale | R29: All dimensions in metres (m)
B30: Minimum anaerobic pond VS loading rate | C30: =C6/C28 -> 0.06327818155 | D30: kg VS. m-3. day-1
B31: Maximum anaerobic pond VS loading rate | C31: =C6/C29 -> 0.07847774332 | D31: kg VS. m-3. day-1
B32: Minimum hydraulic retention time (HRT) | C32: =1000*C29/'9. Water'!K41 -> 208.1502165 | D32: days | F32: Note: Effluent which overflows from primary anaerobic ponds is unsuitable for direct discharge into the environment or natural watercourses. Overflow from primary ponds should generally be directed into a secondary treatment or holding pond where the effluent is temporarily stored prior to carefully managed irrigation onto land growing crop or pasture. Most conventional piggeries require at least one anaerobic treatment pond and one secondary treatment or holding pond. In some cases, the overflow from the secondary pond may be directed into one or more subsequent ponds for further treatment or to provide additional effluent holding capacity. The final pond in the effluent treatment / storage system may be referred to as a wet weather storage pond.
B33: Maximum hydraulic retention time (HRT) | C33: =1000*C28/'9. Water'!K41 -> 258.1483675 | D33: days
B34: =IF(C28>C26, "", "WARNING: Excessive VS loading rate or insufficient HRT") -> 
B35: Total storage depth | C35: 5 | D35: m
B36: Batter - lengthwise, (1 vertical : Z horizontal) | C36: 2.5
B37: Batter - breadthwise, (1 vertical : Z horizontal) | C37: 2.5
B38: Freeboard - full storage level to crest | C38: 0.5 | D38: m
B39: Length - at embankment crest | C39: 160 | D39: m | F39: In general, the second and any subsequent ponds should be designed to store all effluent discharged from the primary pond until the land is sufficiently dry to receive the irrigated effluent, or until agronomic conditions are favourable. In winter-dominant rainfall areas, secondary / holding ponds may be required to store all effluent discharged from the primary pond for a period of up to six months, from late autumn until early spring. Secondary / holding ponds are generally designed using a (preferably daily) water balance approach, based on limiting overflows from secondary / holding ponds to a minimum interval of 10 years, on average, using historical rainfall and evaporation data for the piggery site. Various computer models may be used for this purpose. At environmentally sensitive sites, the minimum overflow interval may be increased to further reduce the potential for environmental harm.
B40: Breadth - at embankment crest | C40: =C42+2*C37*C38 -> 78.08908046 | D40: m
B41: Length - at full storage level | C41: =C39-2*C36*C38 -> 157.5 | D41: m
B42: Breadth - at full storage level | C42: =(C28+C37*C35^2*C41-(4/3)*C36*C37*C35^3)/(C41*C35-C36*C35^2) -> 75.58908046 | D42: m
B43: Length - at top of sludge storage | C43: =C41-2*C36*C49 -> 138.6223584 | D43: m
B44: Breadth - at top of sludge storage | C44: =C42-2*C37*C49 -> 56.71143883 | D44: m
B45: Length - at base | C45: =C41-2*C36*C35 -> 132.5 | D45: m
B46: Breadth - at base | C46: =C42-2*C37*C35 -> 50.58908046 | D46: m
B47: =IF(OR(C45<0,C46< 0), "WARNING - Negative dimensions. Adjust storage depth or length.", "") -> 
B48: Max sludge depth - above base | C48: ='Pond depth calc'!C74 -> 1.224471673 | D48: m
B49: Min depth to top of sludge - below bywash level | C49: =C35-C48 -> 3.775528327 | D49: m | H49: Vol check
H50: Total storage vol | K50: =(C35/6)*(C41*C42+C45*C46+(C41+C45)*(C42+C46)) -> 46000
B51: Liner area - to bywash level | C51: =C45*C46+(C42+C46)*C35*SQRT(1+C36^2)+(C41+C45)*C35*SQRT(1+C37^2) -> 12306.02313 | D51: m2 | H51: Active treatment vol | K51: =(C49/6)*(C41*C42+C43*C44+(C41+C43)*(C42+C44)) -> 37090.72443
B52: Cover additional anchorage allowance | C52: 3 | D52: m | H52: Sludge storage vol | K52: =(C48/6)*(C43*C44+C45*C46+(C43+C45)*(C44+C46)) -> 8909.275567
B53: Cover length | C53: =C41+2*SQRT(1+C36^2)*C38+C52*2 -> 166.1925824 | D53: m
B54: Cover breadth | C54: =C42+2*SQRT(1+C37^2)*C38+C52*2 -> 84.28166286 | D54: m
B55: Cover area - trenched into bank | C55: =C53*C54 -> 14006.9872 | D55: m2
B63: Climate | D63: Anaerobic activity ratio (k)
B64: Cool | D64: 0.6
B65: Warm | D65: 0.8
B66: Hot | D66: 1
B69: Pond design | D69: Baseline VS loading rate (kg VS. m-3. d-1)
B70: Conventional 'large' | D70: 0.1
B71: Maximum loading | D71: 0.75
B72: Covered anaerobic pond | D72: 0.4
A76: State | B76: Location | C76: Latitude | D76: Longitude | E76: K Value
A77: =IF($C$7="Australian Capital Territory", 'K values'!G2, IF($C$7="New South Wales", 'K values'!M2, IF($C$7="Northern Territory", 'K values'!S2, IF($C$7="Queensland", 'K values'!Y2, IF($C$7="South Australia", 'K values'!AE2, IF($C$7="Tasmania", 'K values'!AK2, IF($C$7="Victoria", 'K values'!AQ2, IF($C$7="Western Australia", 'K values'!AW2, "")))))))) ->  | B77: =IF($C$7="Australian Capital Territory", 'K values'!H2, IF($C$7="New South Wales", 'K values'!N2, IF($C$7="Northern Territory", 'K values'!T2, IF($C$7="Queensland", 'K values'!Z2, IF($C$7="South Australia", 'K values'!AF2, IF($C$7="Tasmania", 'K values'!AL2, IF($C$7="Victoria", 'K values'!AR2, IF($C$7="Western Australia", 'K values'!AX2, "")))))))) ->  | C77: =IF($C$7="Australian Capital Territory", 'K values'!I2, IF($C$7="New South Wales", 'K values'!O2, IF($C$7="Northern Territory", 'K values'!U2, IF($C$7="Queensland", 'K values'!AA2, IF($C$7="South Australia", 'K values'!AG2, IF($C$7="Tasmania", 'K values'!AM2, IF($C$7="Victoria", 'K values'!AS2, IF($C$7="Western Australia", 'K values'!AY2, "")))))))) ->  | D77: =IF($C$7="Australian Capital Territory", 'K values'!J2, IF($C$7="New South Wales", 'K values'!P2, IF($C$7="Northern Territory", 'K values'!V2, IF($C$7="Queensland", 'K values'!AB2, IF($C$7="South Australia", 'K values'!AH2, IF($C$7="Tasmania", 'K values'!AN2, IF($C$7="Victoria", 'K values'!AT2, IF($C$7="Western Australia", 'K values'!AZ2, "")))))))) ->  | E77: =IF($C$7="Australian Capital Territory", 'K values'!K2, IF($C$7="New South Wales", 'K values'!Q2, IF($C$7="Northern Territory", 'K values'!W2, IF($C$7="Queensland", 'K values'!AC2, IF($C$7="South Australia", 'K values'!AI2, IF($C$7="Tasmania", 'K values'!AO2, IF($C$7="Victoria", 'K values'!AU2, IF($C$7="Western Australia", 'K values'!BA2, "")))))))) -> 
A78: =IF($C$7="Australian Capital Territory", 'K values'!G3, IF($C$7="New South Wales", 'K values'!M3, IF($C$7="Northern Territory", 'K values'!S3, IF($C$7="Queensland", 'K values'!Y3, IF($C$7="South Australia", 'K values'!AE3, IF($C$7="Tasmania", 'K values'!AK3, IF($C$7="Victoria", 'K values'!AQ3, IF($C$7="Western Australia", 'K values'!AW3, "")))))))) ->  | B78: =IF($C$7="Australian Capital Territory", 'K values'!H3, IF($C$7="New South Wales", 'K values'!N3, IF($C$7="Northern Territory", 'K values'!T3, IF($C$7="Queensland", 'K values'!Z3, IF($C$7="South Australia", 'K values'!AF3, IF($C$7="Tasmania", 'K values'!AL3, IF($C$7="Victoria", 'K values'!AR3, IF($C$7="Western Australia", 'K values'!AX3, "")))))))) ->  | C78: =IF($C$7="Australian Capital Territory", 'K values'!I3, IF($C$7="New South Wales", 'K values'!O3, IF($C$7="Northern Territory", 'K values'!U3, IF($C$7="Queensland", 'K values'!AA3, IF($C$7="South Australia", 'K values'!AG3, IF($C$7="Tasmania", 'K values'!AM3, IF($C$7="Victoria", 'K values'!AS3, IF($C$7="Western Australia", 'K values'!AY3, "")))))))) ->  | D78: =IF($C$7="Australian Capital Territory", 'K values'!J3, IF($C$7="New South Wales", 'K values'!P3, IF($C$7="Northern Territory", 'K values'!V3, IF($C$7="Queensland", 'K values'!AB3, IF($C$7="South Australia", 'K values'!AH3, IF($C$7="Tasmania", 'K values'!AN3, IF($C$7="Victoria", 'K values'!AT3, IF($C$7="Western Australia", 'K values'!AZ3, "")))))))) ->  | E78: =IF($C$7="Australian Capital Territory", 'K values'!K3, IF($C$7="New South Wales", 'K values'!Q3, IF($C$7="Northern Territory", 'K values'!W3, IF($C$7="Queensland", 'K values'!AC3, IF($C$7="South Australia", 'K values'!AI3, IF($C$7="Tasmania", 'K values'!AO3, IF($C$7="Victoria", 'K values'!AU3, IF($C$7="Western Australia", 'K values'!BA3, "")))))))) -> 
A79: =IF($C$7="Australian Capital Territory", 'K values'!G4, IF($C$7="New South Wales", 'K values'!M4, IF($C$7="Northern Territory", 'K values'!S4, IF($C$7="Queensland", 'K values'!Y4, IF($C$7="South Australia", 'K values'!AE4, IF($C$7="Tasmania", 'K values'!AK4, IF($C$7="Victoria", 'K values'!AQ4, IF($C$7="Western Australia", 'K values'!AW4, "")))))))) ->  | B79: =IF($C$7="Australian Capital Territory", 'K values'!H4, IF($C$7="New South Wales", 'K values'!N4, IF($C$7="Northern Territory", 'K values'!T4, IF($C$7="Queensland", 'K values'!Z4, IF($C$7="South Australia", 'K values'!AF4, IF($C$7="Tasmania", 'K values'!AL4, IF($C$7="Victoria", 'K values'!AR4, IF($C$7="Western Australia", 'K values'!AX4, "")))))))) ->  | C79: =IF($C$7="Australian Capital Territory", 'K values'!I4, IF($C$7="New South Wales", 'K values'!O4, IF($C$7="Northern Territory", 'K values'!U4, IF($C$7="Queensland", 'K values'!AA4, IF($C$7="South Australia", 'K values'!AG4, IF($C$7="Tasmania", 'K values'!AM4, IF($C$7="Victoria", 'K values'!AS4, IF($C$7="Western Australia", 'K values'!AY4, "")))))))) ->  | D79: =IF($C$7="Australian Capital Territory", 'K values'!J4, IF($C$7="New South Wales", 'K values'!P4, IF($C$7="Northern Territory", 'K values'!V4, IF($C$7="Queensland", 'K values'!AB4, IF($C$7="South Australia", 'K values'!AH4, IF($C$7="Tasmania", 'K values'!AN4, IF($C$7="Victoria", 'K values'!AT4, IF($C$7="Western Australia", 'K values'!AZ4, "")))))))) ->  | E79: =IF($C$7="Australian Capital Territory", 'K values'!K4, IF($C$7="New South Wales", 'K values'!Q4, IF($C$7="Northern Territory", 'K values'!W4, IF($C$7="Queensland", 'K values'!AC4, IF($C$7="South Australia", 'K values'!AI4, IF($C$7="Tasmania", 'K values'!AO4, IF($C$7="Victoria", 'K values'!AU4, IF($C$7="Western Australia", 'K values'!BA4, "")))))))) -> 
A80: =IF($C$7="Australian Capital Territory", 'K values'!G5, IF($C$7="New South Wales", 'K values'!M5, IF($C$7="Northern Territory", 'K values'!S5, IF($C$7="Queensland", 'K values'!Y5, IF($C$7="South Australia", 'K values'!AE5, IF($C$7="Tasmania", 'K values'!AK5, IF($C$7="Victoria", 'K values'!AQ5, IF($C$7="Western Australia", 'K values'!AW5, "")))))))) ->  | B80: =IF($C$7="Australian Capital Territory", 'K values'!H5, IF($C$7="New South Wales", 'K values'!N5, IF($C$7="Northern Territory", 'K values'!T5, IF($C$7="Queensland", 'K values'!Z5, IF($C$7="South Australia", 'K values'!AF5, IF($C$7="Tasmania", 'K values'!AL5, IF($C$7="Victoria", 'K values'!AR5, IF($C$7="Western Australia", 'K values'!AX5, "")))))))) ->  | C80: =IF($C$7="Australian Capital Territory", 'K values'!I5, IF($C$7="New South Wales", 'K values'!O5, IF($C$7="Northern Territory", 'K values'!U5, IF($C$7="Queensland", 'K values'!AA5, IF($C$7="South Australia", 'K values'!AG5, IF($C$7="Tasmania", 'K values'!AM5, IF($C$7="Victoria", 'K values'!AS5, IF($C$7="Western Australia", 'K values'!AY5, "")))))))) ->  | D80: =IF($C$7="Australian Capital Territory", 'K values'!J5, IF($C$7="New South Wales", 'K values'!P5, IF($C$7="Northern Territory", 'K values'!V5, IF($C$7="Queensland", 'K values'!AB5, IF($C$7="South Australia", 'K values'!AH5, IF($C$7="Tasmania", 'K values'!AN5, IF($C$7="Victoria", 'K values'!AT5, IF($C$7="Western Australia", 'K values'!AZ5, "")))))))) ->  | E80: =IF($C$7="Australian Capital Territory", 'K values'!K5, IF($C$7="New South Wales", 'K values'!Q5, IF($C$7="Northern Territory", 'K values'!W5, IF($C$7="Queensland", 'K values'!AC5, IF($C$7="South Australia", 'K values'!AI5, IF($C$7="Tasmania", 'K values'!AO5, IF($C$7="Victoria", 'K values'!AU5, IF($C$7="Western Australia", 'K values'!BA5, "")))))))) -> 
A81: =IF($C$7="Australian Capital Territory", 'K values'!G6, IF($C$7="New South Wales", 'K values'!M6, IF($C$7="Northern Territory", 'K values'!S6, IF($C$7="Queensland", 'K values'!Y6, IF($C$7="South Australia", 'K values'!AE6, IF($C$7="Tasmania", 'K values'!AK6, IF($C$7="Victoria", 'K values'!AQ6, IF($C$7="Western Australia", 'K values'!AW6, "")))))))) ->  | B81: =IF($C$7="Australian Capital Territory", 'K values'!H6, IF($C$7="New South Wales", 'K values'!N6, IF($C$7="Northern Territory", 'K values'!T6, IF($C$7="Queensland", 'K values'!Z6, IF($C$7="South Australia", 'K values'!AF6, IF($C$7="Tasmania", 'K values'!AL6, IF($C$7="Victoria", 'K values'!AR6, IF($C$7="Western Australia", 'K values'!AX6, "")))))))) ->  | C81: =IF($C$7="Australian Capital Territory", 'K values'!I6, IF($C$7="New South Wales", 'K values'!O6, IF($C$7="Northern Territory", 'K values'!U6, IF($C$7="Queensland", 'K values'!AA6, IF($C$7="South Australia", 'K values'!AG6, IF($C$7="Tasmania", 'K values'!AM6, IF($C$7="Victoria", 'K values'!AS6, IF($C$7="Western Australia", 'K values'!AY6, "")))))))) ->  | D81: =IF($C$7="Australian Capital Territory", 'K values'!J6, IF($C$7="New South Wales", 'K values'!P6, IF($C$7="Northern Territory", 'K values'!V6, IF($C$7="Queensland", 'K values'!AB6, IF($C$7="South Australia", 'K values'!AH6, IF($C$7="Tasmania", 'K values'!AN6, IF($C$7="Victoria", 'K values'!AT6, IF($C$7="Western Australia", 'K values'!AZ6, "")))))))) ->  | E81: =IF($C$7="Australian Capital Territory", 'K values'!K6, IF($C$7="New South Wales", 'K values'!Q6, IF($C$7="Northern Territory", 'K values'!W6, IF($C$7="Queensland", 'K values'!AC6, IF($C$7="South Australia", 'K values'!AI6, IF($C$7="Tasmania", 'K values'!AO6, IF($C$7="Victoria", 'K values'!AU6, IF($C$7="Western Australia", 'K values'!BA6, "")))))))) -> 
A82: =IF($C$7="Australian Capital Territory", 'K values'!G7, IF($C$7="New South Wales", 'K values'!M7, IF($C$7="Northern Territory", 'K values'!S7, IF($C$7="Queensland", 'K values'!Y7, IF($C$7="South Australia", 'K values'!AE7, IF($C$7="Tasmania", 'K values'!AK7, IF($C$7="Victoria", 'K values'!AQ7, IF($C$7="Western Australia", 'K values'!AW7, "")))))))) ->  | B82: =IF($C$7="Australian Capital Territory", 'K values'!H7, IF($C$7="New South Wales", 'K values'!N7, IF($C$7="Northern Territory", 'K values'!T7, IF($C$7="Queensland", 'K values'!Z7, IF($C$7="South Australia", 'K values'!AF7, IF($C$7="Tasmania", 'K values'!AL7, IF($C$7="Victoria", 'K values'!AR7, IF($C$7="Western Australia", 'K values'!AX7, "")))))))) ->  | C82: =IF($C$7="Australian Capital Territory", 'K values'!I7, IF($C$7="New South Wales", 'K values'!O7, IF($C$7="Northern Territory", 'K values'!U7, IF($C$7="Queensland", 'K values'!AA7, IF($C$7="South Australia", 'K values'!AG7, IF($C$7="Tasmania", 'K values'!AM7, IF($C$7="Victoria", 'K values'!AS7, IF($C$7="Western Australia", 'K values'!AY7, "")))))))) ->  | D82: =IF($C$7="Australian Capital Territory", 'K values'!J7, IF($C$7="New South Wales", 'K values'!P7, IF($C$7="Northern Territory", 'K values'!V7, IF($C$7="Queensland", 'K values'!AB7, IF($C$7="South Australia", 'K values'!AH7, IF($C$7="Tasmania", 'K values'!AN7, IF($C$7="Victoria", 'K values'!AT7, IF($C$7="Western Australia", 'K values'!AZ7, "")))))))) ->  | E82: =IF($C$7="Australian Capital Territory", 'K values'!K7, IF($C$7="New South Wales", 'K values'!Q7, IF($C$7="Northern Territory", 'K values'!W7, IF($C$7="Queensland", 'K values'!AC7, IF($C$7="South Australia", 'K values'!AI7, IF($C$7="Tasmania", 'K values'!AO7, IF($C$7="Victoria", 'K values'!AU7, IF($C$7="Western Australia", 'K values'!BA7, "")))))))) -> 
A83: =IF($C$7="Australian Capital Territory", 'K values'!G8, IF($C$7="New South Wales", 'K values'!M8, IF($C$7="Northern Territory", 'K values'!S8, IF($C$7="Queensland", 'K values'!Y8, IF($C$7="South Australia", 'K values'!AE8, IF($C$7="Tasmania", 'K values'!AK8, IF($C$7="Victoria", 'K values'!AQ8, IF($C$7="Western Australia", 'K values'!AW8, "")))))))) ->  | B83: =IF($C$7="Australian Capital Territory", 'K values'!H8, IF($C$7="New South Wales", 'K values'!N8, IF($C$7="Northern Territory", 'K values'!T8, IF($C$7="Queensland", 'K values'!Z8, IF($C$7="South Australia", 'K values'!AF8, IF($C$7="Tasmania", 'K values'!AL8, IF($C$7="Victoria", 'K values'!AR8, IF($C$7="Western Australia", 'K values'!AX8, "")))))))) ->  | C83: =IF($C$7="Australian Capital Territory", 'K values'!I8, IF($C$7="New South Wales", 'K values'!O8, IF($C$7="Northern Territory", 'K values'!U8, IF($C$7="Queensland", 'K values'!AA8, IF($C$7="South Australia", 'K values'!AG8, IF($C$7="Tasmania", 'K values'!AM8, IF($C$7="Victoria", 'K values'!AS8, IF($C$7="Western Australia", 'K values'!AY8, "")))))))) ->  | D83: =IF($C$7="Australian Capital Territory", 'K values'!J8, IF($C$7="New South Wales", 'K values'!P8, IF($C$7="Northern Territory", 'K values'!V8, IF($C$7="Queensland", 'K values'!AB8, IF($C$7="South Australia", 'K values'!AH8, IF($C$7="Tasmania", 'K values'!AN8, IF($C$7="Victoria", 'K values'!AT8, IF($C$7="Western Australia", 'K values'!AZ8, "")))))))) ->  | E83: =IF($C$7="Australian Capital Territory", 'K values'!K8, IF($C$7="New South Wales", 'K values'!Q8, IF($C$7="Northern Territory", 'K values'!W8, IF($C$7="Queensland", 'K values'!AC8, IF($C$7="South Australia", 'K values'!AI8, IF($C$7="Tasmania", 'K values'!AO8, IF($C$7="Victoria", 'K values'!AU8, IF($C$7="Western Australia", 'K values'!BA8, "")))))))) -> 
A84: =IF($C$7="Australian Capital Territory", 'K values'!G9, IF($C$7="New South Wales", 'K values'!M9, IF($C$7="Northern Territory", 'K values'!S9, IF($C$7="Queensland", 'K values'!Y9, IF($C$7="South Australia", 'K values'!AE9, IF($C$7="Tasmania", 'K values'!AK9, IF($C$7="Victoria", 'K values'!AQ9, IF($C$7="Western Australia", 'K values'!AW9, "")))))))) ->  | B84: =IF($C$7="Australian Capital Territory", 'K values'!H9, IF($C$7="New South Wales", 'K values'!N9, IF($C$7="Northern Territory", 'K values'!T9, IF($C$7="Queensland", 'K values'!Z9, IF($C$7="South Australia", 'K values'!AF9, IF($C$7="Tasmania", 'K values'!AL9, IF($C$7="Victoria", 'K values'!AR9, IF($C$7="Western Australia", 'K values'!AX9, "")))))))) ->  | C84: =IF($C$7="Australian Capital Territory", 'K values'!I9, IF($C$7="New South Wales", 'K values'!O9, IF($C$7="Northern Territory", 'K values'!U9, IF($C$7="Queensland", 'K values'!AA9, IF($C$7="South Australia", 'K values'!AG9, IF($C$7="Tasmania", 'K values'!AM9, IF($C$7="Victoria", 'K values'!AS9, IF($C$7="Western Australia", 'K values'!AY9, "")))))))) ->  | D84: =IF($C$7="Australian Capital Territory", 'K values'!J9, IF($C$7="New South Wales", 'K values'!P9, IF($C$7="Northern Territory", 'K values'!V9, IF($C$7="Queensland", 'K values'!AB9, IF($C$7="South Australia", 'K values'!AH9, IF($C$7="Tasmania", 'K values'!AN9, IF($C$7="Victoria", 'K values'!AT9, IF($C$7="Western Australia", 'K values'!AZ9, "")))))))) ->  | E84: =IF($C$7="Australian Capital Territory", 'K values'!K9, IF($C$7="New South Wales", 'K values'!Q9, IF($C$7="Northern Territory", 'K values'!W9, IF($C$7="Queensland", 'K values'!AC9, IF($C$7="South Australia", 'K values'!AI9, IF($C$7="Tasmania", 'K values'!AO9, IF($C$7="Victoria", 'K values'!AU9, IF($C$7="Western Australia", 'K values'!BA9, "")))))))) -> 
A85: =IF($C$7="Australian Capital Territory", 'K values'!G10, IF($C$7="New South Wales", 'K values'!M10, IF($C$7="Northern Territory", 'K values'!S10, IF($C$7="Queensland", 'K values'!Y10, IF($C$7="South Australia", 'K values'!AE10, IF($C$7="Tasmania", 'K values'!AK10, IF($C$7="Victoria", 'K values'!AQ10, IF($C$7="Western Australia", 'K values'!AW10, "")))))))) ->  | B85: =IF($C$7="Australian Capital Territory", 'K values'!H10, IF($C$7="New South Wales", 'K values'!N10, IF($C$7="Northern Territory", 'K values'!T10, IF($C$7="Queensland", 'K values'!Z10, IF($C$7="South Australia", 'K values'!AF10, IF($C$7="Tasmania", 'K values'!AL10, IF($C$7="Victoria", 'K values'!AR10, IF($C$7="Western Australia", 'K values'!AX10, "")))))))) ->  | C85: =IF($C$7="Australian Capital Territory", 'K values'!I10, IF($C$7="New South Wales", 'K values'!O10, IF($C$7="Northern Territory", 'K values'!U10, IF($C$7="Queensland", 'K values'!AA10, IF($C$7="South Australia", 'K values'!AG10, IF($C$7="Tasmania", 'K values'!AM10, IF($C$7="Victoria", 'K values'!AS10, IF($C$7="Western Australia", 'K values'!AY10, "")))))))) ->  | D85: =IF($C$7="Australian Capital Territory", 'K values'!J10, IF($C$7="New South Wales", 'K values'!P10, IF($C$7="Northern Territory", 'K values'!V10, IF($C$7="Queensland", 'K values'!AB10, IF($C$7="South Australia", 'K values'!AH10, IF($C$7="Tasmania", 'K values'!AN10, IF($C$7="Victoria", 'K values'!AT10, IF($C$7="Western Australia", 'K values'!AZ10, "")))))))) ->  | E85: =IF($C$7="Australian Capital Territory", 'K values'!K10, IF($C$7="New South Wales", 'K values'!Q10, IF($C$7="Northern Territory", 'K values'!W10, IF($C$7="Queensland", 'K values'!AC10, IF($C$7="South Australia", 'K values'!AI10, IF($C$7="Tasmania", 'K values'!AO10, IF($C$7="Victoria", 'K values'!AU10, IF($C$7="Western Australia", 'K values'!BA10, "")))))))) -> 
A86: =IF($C$7="Australian Capital Territory", 'K values'!G11, IF($C$7="New South Wales", 'K values'!M11, IF($C$7="Northern Territory", 'K values'!S11, IF($C$7="Queensland", 'K values'!Y11, IF($C$7="South Australia", 'K values'!AE11, IF($C$7="Tasmania", 'K values'!AK11, IF($C$7="Victoria", 'K values'!AQ11, IF($C$7="Western Australia", 'K values'!AW11, "")))))))) ->  | B86: =IF($C$7="Australian Capital Territory", 'K values'!H11, IF($C$7="New South Wales", 'K values'!N11, IF($C$7="Northern Territory", 'K values'!T11, IF($C$7="Queensland", 'K values'!Z11, IF($C$7="South Australia", 'K values'!AF11, IF($C$7="Tasmania", 'K values'!AL11, IF($C$7="Victoria", 'K values'!AR11, IF($C$7="Western Australia", 'K values'!AX11, "")))))))) ->  | C86: =IF($C$7="Australian Capital Territory", 'K values'!I11, IF($C$7="New South Wales", 'K values'!O11, IF($C$7="Northern Territory", 'K values'!U11, IF($C$7="Queensland", 'K values'!AA11, IF($C$7="South Australia", 'K values'!AG11, IF($C$7="Tasmania", 'K values'!AM11, IF($C$7="Victoria", 'K values'!AS11, IF($C$7="Western Australia", 'K values'!AY11, "")))))))) ->  | D86: =IF($C$7="Australian Capital Territory", 'K values'!J11, IF($C$7="New South Wales", 'K values'!P11, IF($C$7="Northern Territory", 'K values'!V11, IF($C$7="Queensland", 'K values'!AB11, IF($C$7="South Australia", 'K values'!AH11, IF($C$7="Tasmania", 'K values'!AN11, IF($C$7="Victoria", 'K values'!AT11, IF($C$7="Western Australia", 'K values'!AZ11, "")))))))) ->  | E86: =IF($C$7="Australian Capital Territory", 'K values'!K11, IF($C$7="New South Wales", 'K values'!Q11, IF($C$7="Northern Territory", 'K values'!W11, IF($C$7="Queensland", 'K values'!AC11, IF($C$7="South Australia", 'K values'!AI11, IF($C$7="Tasmania", 'K values'!AO11, IF($C$7="Victoria", 'K values'!AU11, IF($C$7="Western Australia", 'K values'!BA11, "")))))))) -> 
A87: =IF($C$7="Australian Capital Territory", 'K values'!G12, IF($C$7="New South Wales", 'K values'!M12, IF($C$7="Northern Territory", 'K values'!S12, IF($C$7="Queensland", 'K values'!Y12, IF($C$7="South Australia", 'K values'!AE12, IF($C$7="Tasmania", 'K values'!AK12, IF($C$7="Victoria", 'K values'!AQ12, IF($C$7="Western Australia", 'K values'!AW12, "")))))))) ->  | B87: =IF($C$7="Australian Capital Territory", 'K values'!H12, IF($C$7="New South Wales", 'K values'!N12, IF($C$7="Northern Territory", 'K values'!T12, IF($C$7="Queensland", 'K values'!Z12, IF($C$7="South Australia", 'K values'!AF12, IF($C$7="Tasmania", 'K values'!AL12, IF($C$7="Victoria", 'K values'!AR12, IF($C$7="Western Australia", 'K values'!AX12, "")))))))) ->  | C87: =IF($C$7="Australian Capital Territory", 'K values'!I12, IF($C$7="New South Wales", 'K values'!O12, IF($C$7="Northern Territory", 'K values'!U12, IF($C$7="Queensland", 'K values'!AA12, IF($C$7="South Australia", 'K values'!AG12, IF($C$7="Tasmania", 'K values'!AM12, IF($C$7="Victoria", 'K values'!AS12, IF($C$7="Western Australia", 'K values'!AY12, "")))))))) ->  | D87: =IF($C$7="Australian Capital Territory", 'K values'!J12, IF($C$7="New South Wales", 'K values'!P12, IF($C$7="Northern Territory", 'K values'!V12, IF($C$7="Queensland", 'K values'!AB12, IF($C$7="South Australia", 'K values'!AH12, IF($C$7="Tasmania", 'K values'!AN12, IF($C$7="Victoria", 'K values'!AT12, IF($C$7="Western Australia", 'K values'!AZ12, "")))))))) ->  | E87: =IF($C$7="Australian Capital Territory", 'K values'!K12, IF($C$7="New South Wales", 'K values'!Q12, IF($C$7="Northern Territory", 'K values'!W12, IF($C$7="Queensland", 'K values'!AC12, IF($C$7="South Australia", 'K values'!AI12, IF($C$7="Tasmania", 'K values'!AO12, IF($C$7="Victoria", 'K values'!AU12, IF($C$7="Western Australia", 'K values'!BA12, "")))))))) -> 
A88: =IF($C$7="Australian Capital Territory", 'K values'!G13, IF($C$7="New South Wales", 'K values'!M13, IF($C$7="Northern Territory", 'K values'!S13, IF($C$7="Queensland", 'K values'!Y13, IF($C$7="South Australia", 'K values'!AE13, IF($C$7="Tasmania", 'K values'!AK13, IF($C$7="Victoria", 'K values'!AQ13, IF($C$7="Western Australia", 'K values'!AW13, "")))))))) ->  | B88: =IF($C$7="Australian Capital Territory", 'K values'!H13, IF($C$7="New South Wales", 'K values'!N13, IF($C$7="Northern Territory", 'K values'!T13, IF($C$7="Queensland", 'K values'!Z13, IF($C$7="South Australia", 'K values'!AF13, IF($C$7="Tasmania", 'K values'!AL13, IF($C$7="Victoria", 'K values'!AR13, IF($C$7="Western Australia", 'K values'!AX13, "")))))))) ->  | C88: =IF($C$7="Australian Capital Territory", 'K values'!I13, IF($C$7="New South Wales", 'K values'!O13, IF($C$7="Northern Territory", 'K values'!U13, IF($C$7="Queensland", 'K values'!AA13, IF($C$7="South Australia", 'K values'!AG13, IF($C$7="Tasmania", 'K values'!AM13, IF($C$7="Victoria", 'K values'!AS13, IF($C$7="Western Australia", 'K values'!AY13, "")))))))) ->  | D88: =IF($C$7="Australian Capital Territory", 'K values'!J13, IF($C$7="New South Wales", 'K values'!P13, IF($C$7="Northern Territory", 'K values'!V13, IF($C$7="Queensland", 'K values'!AB13, IF($C$7="South Australia", 'K values'!AH13, IF($C$7="Tasmania", 'K values'!AN13, IF($C$7="Victoria", 'K values'!AT13, IF($C$7="Western Australia", 'K values'!AZ13, "")))))))) ->  | E88: =IF($C$7="Australian Capital Territory", 'K values'!K13, IF($C$7="New South Wales", 'K values'!Q13, IF($C$7="Northern Territory", 'K values'!W13, IF($C$7="Queensland", 'K values'!AC13, IF($C$7="South Australia", 'K values'!AI13, IF($C$7="Tasmania", 'K values'!AO13, IF($C$7="Victoria", 'K values'!AU13, IF($C$7="Western Australia", 'K values'!BA13, "")))))))) -> 
A89: =IF($C$7="Australian Capital Territory", 'K values'!G14, IF($C$7="New South Wales", 'K values'!M14, IF($C$7="Northern Territory", 'K values'!S14, IF($C$7="Queensland", 'K values'!Y14, IF($C$7="South Australia", 'K values'!AE14, IF($C$7="Tasmania", 'K values'!AK14, IF($C$7="Victoria", 'K values'!AQ14, IF($C$7="Western Australia", 'K values'!AW14, "")))))))) ->  | B89: =IF($C$7="Australian Capital Territory", 'K values'!H14, IF($C$7="New South Wales", 'K values'!N14, IF($C$7="Northern Territory", 'K values'!T14, IF($C$7="Queensland", 'K values'!Z14, IF($C$7="South Australia", 'K values'!AF14, IF($C$7="Tasmania", 'K values'!AL14, IF($C$7="Victoria", 'K values'!AR14, IF($C$7="Western Australia", 'K values'!AX14, "")))))))) ->  | C89: =IF($C$7="Australian Capital Territory", 'K values'!I14, IF($C$7="New South Wales", 'K values'!O14, IF($C$7="Northern Territory", 'K values'!U14, IF($C$7="Queensland", 'K values'!AA14, IF($C$7="South Australia", 'K values'!AG14, IF($C$7="Tasmania", 'K values'!AM14, IF($C$7="Victoria", 'K values'!AS14, IF($C$7="Western Australia", 'K values'!AY14, "")))))))) ->  | D89: =IF($C$7="Australian Capital Territory", 'K values'!J14, IF($C$7="New South Wales", 'K values'!P14, IF($C$7="Northern Territory", 'K values'!V14, IF($C$7="Queensland", 'K values'!AB14, IF($C$7="South Australia", 'K values'!AH14, IF($C$7="Tasmania", 'K values'!AN14, IF($C$7="Victoria", 'K values'!AT14, IF($C$7="Western Australia", 'K values'!AZ14, "")))))))) ->  | E89: =IF($C$7="Australian Capital Territory", 'K values'!K14, IF($C$7="New South Wales", 'K values'!Q14, IF($C$7="Northern Territory", 'K values'!W14, IF($C$7="Queensland", 'K values'!AC14, IF($C$7="South Australia", 'K values'!AI14, IF($C$7="Tasmania", 'K values'!AO14, IF($C$7="Victoria", 'K values'!AU14, IF($C$7="Western Australia", 'K values'!BA14, "")))))))) -> 
A90: =IF($C$7="Australian Capital Territory", 'K values'!G15, IF($C$7="New South Wales", 'K values'!M15, IF($C$7="Northern Territory", 'K values'!S15, IF($C$7="Queensland", 'K values'!Y15, IF($C$7="South Australia", 'K values'!AE15, IF($C$7="Tasmania", 'K values'!AK15, IF($C$7="Victoria", 'K values'!AQ15, IF($C$7="Western Australia", 'K values'!AW15, "")))))))) ->  | B90: =IF($C$7="Australian Capital Territory", 'K values'!H15, IF($C$7="New South Wales", 'K values'!N15, IF($C$7="Northern Territory", 'K values'!T15, IF($C$7="Queensland", 'K values'!Z15, IF($C$7="South Australia", 'K values'!AF15, IF($C$7="Tasmania", 'K values'!AL15, IF($C$7="Victoria", 'K values'!AR15, IF($C$7="Western Australia", 'K values'!AX15, "")))))))) ->  | C90: =IF($C$7="Australian Capital Territory", 'K values'!I15, IF($C$7="New South Wales", 'K values'!O15, IF($C$7="Northern Territory", 'K values'!U15, IF($C$7="Queensland", 'K values'!AA15, IF($C$7="South Australia", 'K values'!AG15, IF($C$7="Tasmania", 'K values'!AM15, IF($C$7="Victoria", 'K values'!AS15, IF($C$7="Western Australia", 'K values'!AY15, "")))))))) ->  | D90: =IF($C$7="Australian Capital Territory", 'K values'!J15, IF($C$7="New South Wales", 'K values'!P15, IF($C$7="Northern Territory", 'K values'!V15, IF($C$7="Queensland", 'K values'!AB15, IF($C$7="South Australia", 'K values'!AH15, IF($C$7="Tasmania", 'K values'!AN15, IF($C$7="Victoria", 'K values'!AT15, IF($C$7="Western Australia", 'K values'!AZ15, "")))))))) ->  | E90: =IF($C$7="Australian Capital Territory", 'K values'!K15, IF($C$7="New South Wales", 'K values'!Q15, IF($C$7="Northern Territory", 'K values'!W15, IF($C$7="Queensland", 'K values'!AC15, IF($C$7="South Australia", 'K values'!AI15, IF($C$7="Tasmania", 'K values'!AO15, IF($C$7="Victoria", 'K values'!AU15, IF($C$7="Western Australia", 'K values'!BA15, "")))))))) -> 
A91: =IF($C$7="Australian Capital Territory", 'K values'!G16, IF($C$7="New South Wales", 'K values'!M16, IF($C$7="Northern Territory", 'K values'!S16, IF($C$7="Queensland", 'K values'!Y16, IF($C$7="South Australia", 'K values'!AE16, IF($C$7="Tasmania", 'K values'!AK16, IF($C$7="Victoria", 'K values'!AQ16, IF($C$7="Western Australia", 'K values'!AW16, "")))))))) ->  | B91: =IF($C$7="Australian Capital Territory", 'K values'!H16, IF($C$7="New South Wales", 'K values'!N16, IF($C$7="Northern Territory", 'K values'!T16, IF($C$7="Queensland", 'K values'!Z16, IF($C$7="South Australia", 'K values'!AF16, IF($C$7="Tasmania", 'K values'!AL16, IF($C$7="Victoria", 'K values'!AR16, IF($C$7="Western Australia", 'K values'!AX16, "")))))))) ->  | C91: =IF($C$7="Australian Capital Territory", 'K values'!I16, IF($C$7="New South Wales", 'K values'!O16, IF($C$7="Northern Territory", 'K values'!U16, IF($C$7="Queensland", 'K values'!AA16, IF($C$7="South Australia", 'K values'!AG16, IF($C$7="Tasmania", 'K values'!AM16, IF($C$7="Victoria", 'K values'!AS16, IF($C$7="Western Australia", 'K values'!AY16, "")))))))) ->  | D91: =IF($C$7="Australian Capital Territory", 'K values'!J16, IF($C$7="New South Wales", 'K values'!P16, IF($C$7="Northern Territory", 'K values'!V16, IF($C$7="Queensland", 'K values'!AB16, IF($C$7="South Australia", 'K values'!AH16, IF($C$7="Tasmania", 'K values'!AN16, IF($C$7="Victoria", 'K values'!AT16, IF($C$7="Western Australia", 'K values'!AZ16, "")))))))) ->  | E91: =IF($C$7="Australian Capital Territory", 'K values'!K16, IF($C$7="New South Wales", 'K values'!Q16, IF($C$7="Northern Territory", 'K values'!W16, IF($C$7="Queensland", 'K values'!AC16, IF($C$7="South Australia", 'K values'!AI16, IF($C$7="Tasmania", 'K values'!AO16, IF($C$7="Victoria", 'K values'!AU16, IF($C$7="Western Australia", 'K values'!BA16, "")))))))) -> 
A92: =IF($C$7="Australian Capital Territory", 'K values'!G17, IF($C$7="New South Wales", 'K values'!M17, IF($C$7="Northern Territory", 'K values'!S17, IF($C$7="Queensland", 'K values'!Y17, IF($C$7="South Australia", 'K values'!AE17, IF($C$7="Tasmania", 'K values'!AK17, IF($C$7="Victoria", 'K values'!AQ17, IF($C$7="Western Australia", 'K values'!AW17, "")))))))) ->  | B92: =IF($C$7="Australian Capital Territory", 'K values'!H17, IF($C$7="New South Wales", 'K values'!N17, IF($C$7="Northern Territory", 'K values'!T17, IF($C$7="Queensland", 'K values'!Z17, IF($C$7="South Australia", 'K values'!AF17, IF($C$7="Tasmania", 'K values'!AL17, IF($C$7="Victoria", 'K values'!AR17, IF($C$7="Western Australia", 'K values'!AX17, "")))))))) ->  | C92: =IF($C$7="Australian Capital Territory", 'K values'!I17, IF($C$7="New South Wales", 'K values'!O17, IF($C$7="Northern Territory", 'K values'!U17, IF($C$7="Queensland", 'K values'!AA17, IF($C$7="South Australia", 'K values'!AG17, IF($C$7="Tasmania", 'K values'!AM17, IF($C$7="Victoria", 'K values'!AS17, IF($C$7="Western Australia", 'K values'!AY17, "")))))))) ->  | D92: =IF($C$7="Australian Capital Territory", 'K values'!J17, IF($C$7="New South Wales", 'K values'!P17, IF($C$7="Northern Territory", 'K values'!V17, IF($C$7="Queensland", 'K values'!AB17, IF($C$7="South Australia", 'K values'!AH17, IF($C$7="Tasmania", 'K values'!AN17, IF($C$7="Victoria", 'K values'!AT17, IF($C$7="Western Australia", 'K values'!AZ17, "")))))))) ->  | E92: =IF($C$7="Australian Capital Territory", 'K values'!K17, IF($C$7="New South Wales", 'K values'!Q17, IF($C$7="Northern Territory", 'K values'!W17, IF($C$7="Queensland", 'K values'!AC17, IF($C$7="South Australia", 'K values'!AI17, IF($C$7="Tasmania", 'K values'!AO17, IF($C$7="Victoria", 'K values'!AU17, IF($C$7="Western Australia", 'K values'!BA17, "")))))))) -> 
A93: =IF($C$7="Australian Capital Territory", 'K values'!G18, IF($C$7="New South Wales", 'K values'!M18, IF($C$7="Northern Territory", 'K values'!S18, IF($C$7="Queensland", 'K values'!Y18, IF($C$7="South Australia", 'K values'!AE18, IF($C$7="Tasmania", 'K values'!AK18, IF($C$7="Victoria", 'K values'!AQ18, IF($C$7="Western Australia", 'K values'!AW18, "")))))))) ->  | B93: =IF($C$7="Australian Capital Territory", 'K values'!H18, IF($C$7="New South Wales", 'K values'!N18, IF($C$7="Northern Territory", 'K values'!T18, IF($C$7="Queensland", 'K values'!Z18, IF($C$7="South Australia", 'K values'!AF18, IF($C$7="Tasmania", 'K values'!AL18, IF($C$7="Victoria", 'K values'!AR18, IF($C$7="Western Australia", 'K values'!AX18, "")))))))) ->  | C93: =IF($C$7="Australian Capital Territory", 'K values'!I18, IF($C$7="New South Wales", 'K values'!O18, IF($C$7="Northern Territory", 'K values'!U18, IF($C$7="Queensland", 'K values'!AA18, IF($C$7="South Australia", 'K values'!AG18, IF($C$7="Tasmania", 'K values'!AM18, IF($C$7="Victoria", 'K values'!AS18, IF($C$7="Western Australia", 'K values'!AY18, "")))))))) ->  | D93: =IF($C$7="Australian Capital Territory", 'K values'!J18, IF($C$7="New South Wales", 'K values'!P18, IF($C$7="Northern Territory", 'K values'!V18, IF($C$7="Queensland", 'K values'!AB18, IF($C$7="South Australia", 'K values'!AH18, IF($C$7="Tasmania", 'K values'!AN18, IF($C$7="Victoria", 'K values'!AT18, IF($C$7="Western Australia", 'K values'!AZ18, "")))))))) ->  | E93: =IF($C$7="Australian Capital Territory", 'K values'!K18, IF($C$7="New South Wales", 'K values'!Q18, IF($C$7="Northern Territory", 'K values'!W18, IF($C$7="Queensland", 'K values'!AC18, IF($C$7="South Australia", 'K values'!AI18, IF($C$7="Tasmania", 'K values'!AO18, IF($C$7="Victoria", 'K values'!AU18, IF($C$7="Western Australia", 'K values'!BA18, "")))))))) -> 
A94: =IF($C$7="Australian Capital Territory", 'K values'!G19, IF($C$7="New South Wales", 'K values'!M19, IF($C$7="Northern Territory", 'K values'!S19, IF($C$7="Queensland", 'K values'!Y19, IF($C$7="South Australia", 'K values'!AE19, IF($C$7="Tasmania", 'K values'!AK19, IF($C$7="Victoria", 'K values'!AQ19, IF($C$7="Western Australia", 'K values'!AW19, "")))))))) ->  | B94: =IF($C$7="Australian Capital Territory", 'K values'!H19, IF($C$7="New South Wales", 'K values'!N19, IF($C$7="Northern Territory", 'K values'!T19, IF($C$7="Queensland", 'K values'!Z19, IF($C$7="South Australia", 'K values'!AF19, IF($C$7="Tasmania", 'K values'!AL19, IF($C$7="Victoria", 'K values'!AR19, IF($C$7="Western Australia", 'K values'!AX19, "")))))))) ->  | C94: =IF($C$7="Australian Capital Territory", 'K values'!I19, IF($C$7="New South Wales", 'K values'!O19, IF($C$7="Northern Territory", 'K values'!U19, IF($C$7="Queensland", 'K values'!AA19, IF($C$7="South Australia", 'K values'!AG19, IF($C$7="Tasmania", 'K values'!AM19, IF($C$7="Victoria", 'K values'!AS19, IF($C$7="Western Australia", 'K values'!AY19, "")))))))) ->  | D94: =IF($C$7="Australian Capital Territory", 'K values'!J19, IF($C$7="New South Wales", 'K values'!P19, IF($C$7="Northern Territory", 'K values'!V19, IF($C$7="Queensland", 'K values'!AB19, IF($C$7="South Australia", 'K values'!AH19, IF($C$7="Tasmania", 'K values'!AN19, IF($C$7="Victoria", 'K values'!AT19, IF($C$7="Western Australia", 'K values'!AZ19, "")))))))) ->  | E94: =IF($C$7="Australian Capital Territory", 'K values'!K19, IF($C$7="New South Wales", 'K values'!Q19, IF($C$7="Northern Territory", 'K values'!W19, IF($C$7="Queensland", 'K values'!AC19, IF($C$7="South Australia", 'K values'!AI19, IF($C$7="Tasmania", 'K values'!AO19, IF($C$7="Victoria", 'K values'!AU19, IF($C$7="Western Australia", 'K values'!BA19, "")))))))) -> 
A95: =IF($C$7="Australian Capital Territory", 'K values'!G20, IF($C$7="New South Wales", 'K values'!M20, IF($C$7="Northern Territory", 'K values'!S20, IF($C$7="Queensland", 'K values'!Y20, IF($C$7="South Australia", 'K values'!AE20, IF($C$7="Tasmania", 'K values'!AK20, IF($C$7="Victoria", 'K values'!AQ20, IF($C$7="Western Australia", 'K values'!AW20, "")))))))) ->  | B95: =IF($C$7="Australian Capital Territory", 'K values'!H20, IF($C$7="New South Wales", 'K values'!N20, IF($C$7="Northern Territory", 'K values'!T20, IF($C$7="Queensland", 'K values'!Z20, IF($C$7="South Australia", 'K values'!AF20, IF($C$7="Tasmania", 'K values'!AL20, IF($C$7="Victoria", 'K values'!AR20, IF($C$7="Western Australia", 'K values'!AX20, "")))))))) ->  | C95: =IF($C$7="Australian Capital Territory", 'K values'!I20, IF($C$7="New South Wales", 'K values'!O20, IF($C$7="Northern Territory", 'K values'!U20, IF($C$7="Queensland", 'K values'!AA20, IF($C$7="South Australia", 'K values'!AG20, IF($C$7="Tasmania", 'K values'!AM20, IF($C$7="Victoria", 'K values'!AS20, IF($C$7="Western Australia", 'K values'!AY20, "")))))))) ->  | D95: =IF($C$7="Australian Capital Territory", 'K values'!J20, IF($C$7="New South Wales", 'K values'!P20, IF($C$7="Northern Territory", 'K values'!V20, IF($C$7="Queensland", 'K values'!AB20, IF($C$7="South Australia", 'K values'!AH20, IF($C$7="Tasmania", 'K values'!AN20, IF($C$7="Victoria", 'K values'!AT20, IF($C$7="Western Australia", 'K values'!AZ20, "")))))))) ->  | E95: =IF($C$7="Australian Capital Territory", 'K values'!K20, IF($C$7="New South Wales", 'K values'!Q20, IF($C$7="Northern Territory", 'K values'!W20, IF($C$7="Queensland", 'K values'!AC20, IF($C$7="South Australia", 'K values'!AI20, IF($C$7="Tasmania", 'K values'!AO20, IF($C$7="Victoria", 'K values'!AU20, IF($C$7="Western Australia", 'K values'!BA20, "")))))))) -> 
A96: =IF($C$7="Australian Capital Territory", 'K values'!G21, IF($C$7="New South Wales", 'K values'!M21, IF($C$7="Northern Territory", 'K values'!S21, IF($C$7="Queensland", 'K values'!Y21, IF($C$7="South Australia", 'K values'!AE21, IF($C$7="Tasmania", 'K values'!AK21, IF($C$7="Victoria", 'K values'!AQ21, IF($C$7="Western Australia", 'K values'!AW21, "")))))))) ->  | B96: =IF($C$7="Australian Capital Territory", 'K values'!H21, IF($C$7="New South Wales", 'K values'!N21, IF($C$7="Northern Territory", 'K values'!T21, IF($C$7="Queensland", 'K values'!Z21, IF($C$7="South Australia", 'K values'!AF21, IF($C$7="Tasmania", 'K values'!AL21, IF($C$7="Victoria", 'K values'!AR21, IF($C$7="Western Australia", 'K values'!AX21, "")))))))) ->  | C96: =IF($C$7="Australian Capital Territory", 'K values'!I21, IF($C$7="New South Wales", 'K values'!O21, IF($C$7="Northern Territory", 'K values'!U21, IF($C$7="Queensland", 'K values'!AA21, IF($C$7="South Australia", 'K values'!AG21, IF($C$7="Tasmania", 'K values'!AM21, IF($C$7="Victoria", 'K values'!AS21, IF($C$7="Western Australia", 'K values'!AY21, "")))))))) ->  | D96: =IF($C$7="Australian Capital Territory", 'K values'!J21, IF($C$7="New South Wales", 'K values'!P21, IF($C$7="Northern Territory", 'K values'!V21, IF($C$7="Queensland", 'K values'!AB21, IF($C$7="South Australia", 'K values'!AH21, IF($C$7="Tasmania", 'K values'!AN21, IF($C$7="Victoria", 'K values'!AT21, IF($C$7="Western Australia", 'K values'!AZ21, "")))))))) ->  | E96: =IF($C$7="Australian Capital Territory", 'K values'!K21, IF($C$7="New South Wales", 'K values'!Q21, IF($C$7="Northern Territory", 'K values'!W21, IF($C$7="Queensland", 'K values'!AC21, IF($C$7="South Australia", 'K values'!AI21, IF($C$7="Tasmania", 'K values'!AO21, IF($C$7="Victoria", 'K values'!AU21, IF($C$7="Western Australia", 'K values'!BA21, "")))))))) -> 
A97: =IF($C$7="Australian Capital Territory", 'K values'!G22, IF($C$7="New South Wales", 'K values'!M22, IF($C$7="Northern Territory", 'K values'!S22, IF($C$7="Queensland", 'K values'!Y22, IF($C$7="South Australia", 'K values'!AE22, IF($C$7="Tasmania", 'K values'!AK22, IF($C$7="Victoria", 'K values'!AQ22, IF($C$7="Western Australia", 'K values'!AW22, "")))))))) ->  | B97: =IF($C$7="Australian Capital Territory", 'K values'!H22, IF($C$7="New South Wales", 'K values'!N22, IF($C$7="Northern Territory", 'K values'!T22, IF($C$7="Queensland", 'K values'!Z22, IF($C$7="South Australia", 'K values'!AF22, IF($C$7="Tasmania", 'K values'!AL22, IF($C$7="Victoria", 'K values'!AR22, IF($C$7="Western Australia", 'K values'!AX22, "")))))))) ->  | C97: =IF($C$7="Australian Capital Territory", 'K values'!I22, IF($C$7="New South Wales", 'K values'!O22, IF($C$7="Northern Territory", 'K values'!U22, IF($C$7="Queensland", 'K values'!AA22, IF($C$7="South Australia", 'K values'!AG22, IF($C$7="Tasmania", 'K values'!AM22, IF($C$7="Victoria", 'K values'!AS22, IF($C$7="Western Australia", 'K values'!AY22, "")))))))) ->  | D97: =IF($C$7="Australian Capital Territory", 'K values'!J22, IF($C$7="New South Wales", 'K values'!P22, IF($C$7="Northern Territory", 'K values'!V22, IF($C$7="Queensland", 'K values'!AB22, IF($C$7="South Australia", 'K values'!AH22, IF($C$7="Tasmania", 'K values'!AN22, IF($C$7="Victoria", 'K values'!AT22, IF($C$7="Western Australia", 'K values'!AZ22, "")))))))) ->  | E97: =IF($C$7="Australian Capital Territory", 'K values'!K22, IF($C$7="New South Wales", 'K values'!Q22, IF($C$7="Northern Territory", 'K values'!W22, IF($C$7="Queensland", 'K values'!AC22, IF($C$7="South Australia", 'K values'!AI22, IF($C$7="Tasmania", 'K values'!AO22, IF($C$7="Victoria", 'K values'!AU22, IF($C$7="Western Australia", 'K values'!BA22, "")))))))) -> 
A98: =IF($C$7="Australian Capital Territory", 'K values'!G23, IF($C$7="New South Wales", 'K values'!M23, IF($C$7="Northern Territory", 'K values'!S23, IF($C$7="Queensland", 'K values'!Y23, IF($C$7="South Australia", 'K values'!AE23, IF($C$7="Tasmania", 'K values'!AK23, IF($C$7="Victoria", 'K values'!AQ23, IF($C$7="Western Australia", 'K values'!AW23, "")))))))) ->  | B98: =IF($C$7="Australian Capital Territory", 'K values'!H23, IF($C$7="New South Wales", 'K values'!N23, IF($C$7="Northern Territory", 'K values'!T23, IF($C$7="Queensland", 'K values'!Z23, IF($C$7="South Australia", 'K values'!AF23, IF($C$7="Tasmania", 'K values'!AL23, IF($C$7="Victoria", 'K values'!AR23, IF($C$7="Western Australia", 'K values'!AX23, "")))))))) ->  | C98: =IF($C$7="Australian Capital Territory", 'K values'!I23, IF($C$7="New South Wales", 'K values'!O23, IF($C$7="Northern Territory", 'K values'!U23, IF($C$7="Queensland", 'K values'!AA23, IF($C$7="South Australia", 'K values'!AG23, IF($C$7="Tasmania", 'K values'!AM23, IF($C$7="Victoria", 'K values'!AS23, IF($C$7="Western Australia", 'K values'!AY23, "")))))))) ->  | D98: =IF($C$7="Australian Capital Territory", 'K values'!J23, IF($C$7="New South Wales", 'K values'!P23, IF($C$7="Northern Territory", 'K values'!V23, IF($C$7="Queensland", 'K values'!AB23, IF($C$7="South Australia", 'K values'!AH23, IF($C$7="Tasmania", 'K values'!AN23, IF($C$7="Victoria", 'K values'!AT23, IF($C$7="Western Australia", 'K values'!AZ23, "")))))))) ->  | E98: =IF($C$7="Australian Capital Territory", 'K values'!K23, IF($C$7="New South Wales", 'K values'!Q23, IF($C$7="Northern Territory", 'K values'!W23, IF($C$7="Queensland", 'K values'!AC23, IF($C$7="South Australia", 'K values'!AI23, IF($C$7="Tasmania", 'K values'!AO23, IF($C$7="Victoria", 'K values'!AU23, IF($C$7="Western Australia", 'K values'!BA23, "")))))))) -> 
A99: =IF($C$7="Australian Capital Territory", 'K values'!G24, IF($C$7="New South Wales", 'K values'!M24, IF($C$7="Northern Territory", 'K values'!S24, IF($C$7="Queensland", 'K values'!Y24, IF($C$7="South Australia", 'K values'!AE24, IF($C$7="Tasmania", 'K values'!AK24, IF($C$7="Victoria", 'K values'!AQ24, IF($C$7="Western Australia", 'K values'!AW24, "")))))))) ->  | B99: =IF($C$7="Australian Capital Territory", 'K values'!H24, IF($C$7="New South Wales", 'K values'!N24, IF($C$7="Northern Territory", 'K values'!T24, IF($C$7="Queensland", 'K values'!Z24, IF($C$7="South Australia", 'K values'!AF24, IF($C$7="Tasmania", 'K values'!AL24, IF($C$7="Victoria", 'K values'!AR24, IF($C$7="Western Australia", 'K values'!AX24, "")))))))) ->  | C99: =IF($C$7="Australian Capital Territory", 'K values'!I24, IF($C$7="New South Wales", 'K values'!O24, IF($C$7="Northern Territory", 'K values'!U24, IF($C$7="Queensland", 'K values'!AA24, IF($C$7="South Australia", 'K values'!AG24, IF($C$7="Tasmania", 'K values'!AM24, IF($C$7="Victoria", 'K values'!AS24, IF($C$7="Western Australia", 'K values'!AY24, "")))))))) ->  | D99: =IF($C$7="Australian Capital Territory", 'K values'!J24, IF($C$7="New South Wales", 'K values'!P24, IF($C$7="Northern Territory", 'K values'!V24, IF($C$7="Queensland", 'K values'!AB24, IF($C$7="South Australia", 'K values'!AH24, IF($C$7="Tasmania", 'K values'!AN24, IF($C$7="Victoria", 'K values'!AT24, IF($C$7="Western Australia", 'K values'!AZ24, "")))))))) ->  | E99: =IF($C$7="Australian Capital Territory", 'K values'!K24, IF($C$7="New South Wales", 'K values'!Q24, IF($C$7="Northern Territory", 'K values'!W24, IF($C$7="Queensland", 'K values'!AC24, IF($C$7="South Australia", 'K values'!AI24, IF($C$7="Tasmania", 'K values'!AO24, IF($C$7="Victoria", 'K values'!AU24, IF($C$7="Western Australia", 'K values'!BA24, "")))))))) -> 
A100: =IF($C$7="Australian Capital Territory", 'K values'!G25, IF($C$7="New South Wales", 'K values'!M25, IF($C$7="Northern Territory", 'K values'!S25, IF($C$7="Queensland", 'K values'!Y25, IF($C$7="South Australia", 'K values'!AE25, IF($C$7="Tasmania", 'K values'!AK25, IF($C$7="Victoria", 'K values'!AQ25, IF($C$7="Western Australia", 'K values'!AW25, "")))))))) ->  | B100: =IF($C$7="Australian Capital Territory", 'K values'!H25, IF($C$7="New South Wales", 'K values'!N25, IF($C$7="Northern Territory", 'K values'!T25, IF($C$7="Queensland", 'K values'!Z25, IF($C$7="South Australia", 'K values'!AF25, IF($C$7="Tasmania", 'K values'!AL25, IF($C$7="Victoria", 'K values'!AR25, IF($C$7="Western Australia", 'K values'!AX25, "")))))))) ->  | C100: =IF($C$7="Australian Capital Territory", 'K values'!I25, IF($C$7="New South Wales", 'K values'!O25, IF($C$7="Northern Territory", 'K values'!U25, IF($C$7="Queensland", 'K values'!AA25, IF($C$7="South Australia", 'K values'!AG25, IF($C$7="Tasmania", 'K values'!AM25, IF($C$7="Victoria", 'K values'!AS25, IF($C$7="Western Australia", 'K values'!AY25, "")))))))) ->  | D100: =IF($C$7="Australian Capital Territory", 'K values'!J25, IF($C$7="New South Wales", 'K values'!P25, IF($C$7="Northern Territory", 'K values'!V25, IF($C$7="Queensland", 'K values'!AB25, IF($C$7="South Australia", 'K values'!AH25, IF($C$7="Tasmania", 'K values'!AN25, IF($C$7="Victoria", 'K values'!AT25, IF($C$7="Western Australia", 'K values'!AZ25, "")))))))) ->  | E100: =IF($C$7="Australian Capital Territory", 'K values'!K25, IF($C$7="New South Wales", 'K values'!Q25, IF($C$7="Northern Territory", 'K values'!W25, IF($C$7="Queensland", 'K values'!AC25, IF($C$7="South Australia", 'K values'!AI25, IF($C$7="Tasmania", 'K values'!AO25, IF($C$7="Victoria", 'K values'!AU25, IF($C$7="Western Australia", 'K values'!BA25, "")))))))) -> 
A101: =IF($C$7="Australian Capital Territory", 'K values'!G26, IF($C$7="New South Wales", 'K values'!M26, IF($C$7="Northern Territory", 'K values'!S26, IF($C$7="Queensland", 'K values'!Y26, IF($C$7="South Australia", 'K values'!AE26, IF($C$7="Tasmania", 'K values'!AK26, IF($C$7="Victoria", 'K values'!AQ26, IF($C$7="Western Australia", 'K values'!AW26, "")))))))) ->  | B101: =IF($C$7="Australian Capital Territory", 'K values'!H26, IF($C$7="New South Wales", 'K values'!N26, IF($C$7="Northern Territory", 'K values'!T26, IF($C$7="Queensland", 'K values'!Z26, IF($C$7="South Australia", 'K values'!AF26, IF($C$7="Tasmania", 'K values'!AL26, IF($C$7="Victoria", 'K values'!AR26, IF($C$7="Western Australia", 'K values'!AX26, "")))))))) ->  | C101: =IF($C$7="Australian Capital Territory", 'K values'!I26, IF($C$7="New South Wales", 'K values'!O26, IF($C$7="Northern Territory", 'K values'!U26, IF($C$7="Queensland", 'K values'!AA26, IF($C$7="South Australia", 'K values'!AG26, IF($C$7="Tasmania", 'K values'!AM26, IF($C$7="Victoria", 'K values'!AS26, IF($C$7="Western Australia", 'K values'!AY26, "")))))))) ->  | D101: =IF($C$7="Australian Capital Territory", 'K values'!J26, IF($C$7="New South Wales", 'K values'!P26, IF($C$7="Northern Territory", 'K values'!V26, IF($C$7="Queensland", 'K values'!AB26, IF($C$7="South Australia", 'K values'!AH26, IF($C$7="Tasmania", 'K values'!AN26, IF($C$7="Victoria", 'K values'!AT26, IF($C$7="Western Australia", 'K values'!AZ26, "")))))))) ->  | E101: =IF($C$7="Australian Capital Territory", 'K values'!K26, IF($C$7="New South Wales", 'K values'!Q26, IF($C$7="Northern Territory", 'K values'!W26, IF($C$7="Queensland", 'K values'!AC26, IF($C$7="South Australia", 'K values'!AI26, IF($C$7="Tasmania", 'K values'!AO26, IF($C$7="Victoria", 'K values'!AU26, IF($C$7="Western Australia", 'K values'!BA26, "")))))))) -> 
A102: =IF($C$7="Australian Capital Territory", 'K values'!G27, IF($C$7="New South Wales", 'K values'!M27, IF($C$7="Northern Territory", 'K values'!S27, IF($C$7="Queensland", 'K values'!Y27, IF($C$7="South Australia", 'K values'!AE27, IF($C$7="Tasmania", 'K values'!AK27, IF($C$7="Victoria", 'K values'!AQ27, IF($C$7="Western Australia", 'K values'!AW27, "")))))))) ->  | B102: =IF($C$7="Australian Capital Territory", 'K values'!H27, IF($C$7="New South Wales", 'K values'!N27, IF($C$7="Northern Territory", 'K values'!T27, IF($C$7="Queensland", 'K values'!Z27, IF($C$7="South Australia", 'K values'!AF27, IF($C$7="Tasmania", 'K values'!AL27, IF($C$7="Victoria", 'K values'!AR27, IF($C$7="Western Australia", 'K values'!AX27, "")))))))) ->  | C102: =IF($C$7="Australian Capital Territory", 'K values'!I27, IF($C$7="New South Wales", 'K values'!O27, IF($C$7="Northern Territory", 'K values'!U27, IF($C$7="Queensland", 'K values'!AA27, IF($C$7="South Australia", 'K values'!AG27, IF($C$7="Tasmania", 'K values'!AM27, IF($C$7="Victoria", 'K values'!AS27, IF($C$7="Western Australia", 'K values'!AY27, "")))))))) ->  | D102: =IF($C$7="Australian Capital Territory", 'K values'!J27, IF($C$7="New South Wales", 'K values'!P27, IF($C$7="Northern Territory", 'K values'!V27, IF($C$7="Queensland", 'K values'!AB27, IF($C$7="South Australia", 'K values'!AH27, IF($C$7="Tasmania", 'K values'!AN27, IF($C$7="Victoria", 'K values'!AT27, IF($C$7="Western Australia", 'K values'!AZ27, "")))))))) ->  | E102: =IF($C$7="Australian Capital Territory", 'K values'!K27, IF($C$7="New South Wales", 'K values'!Q27, IF($C$7="Northern Territory", 'K values'!W27, IF($C$7="Queensland", 'K values'!AC27, IF($C$7="South Australia", 'K values'!AI27, IF($C$7="Tasmania", 'K values'!AO27, IF($C$7="Victoria", 'K values'!AU27, IF($C$7="Western Australia", 'K values'!BA27, "")))))))) -> 
A103: =IF($C$7="Australian Capital Territory", 'K values'!G28, IF($C$7="New South Wales", 'K values'!M28, IF($C$7="Northern Territory", 'K values'!S28, IF($C$7="Queensland", 'K values'!Y28, IF($C$7="South Australia", 'K values'!AE28, IF($C$7="Tasmania", 'K values'!AK28, IF($C$7="Victoria", 'K values'!AQ28, IF($C$7="Western Australia", 'K values'!AW28, "")))))))) ->  | B103: =IF($C$7="Australian Capital Territory", 'K values'!H28, IF($C$7="New South Wales", 'K values'!N28, IF($C$7="Northern Territory", 'K values'!T28, IF($C$7="Queensland", 'K values'!Z28, IF($C$7="South Australia", 'K values'!AF28, IF($C$7="Tasmania", 'K values'!AL28, IF($C$7="Victoria", 'K values'!AR28, IF($C$7="Western Australia", 'K values'!AX28, "")))))))) ->  | C103: =IF($C$7="Australian Capital Territory", 'K values'!I28, IF($C$7="New South Wales", 'K values'!O28, IF($C$7="Northern Territory", 'K values'!U28, IF($C$7="Queensland", 'K values'!AA28, IF($C$7="South Australia", 'K values'!AG28, IF($C$7="Tasmania", 'K values'!AM28, IF($C$7="Victoria", 'K values'!AS28, IF($C$7="Western Australia", 'K values'!AY28, "")))))))) ->  | D103: =IF($C$7="Australian Capital Territory", 'K values'!J28, IF($C$7="New South Wales", 'K values'!P28, IF($C$7="Northern Territory", 'K values'!V28, IF($C$7="Queensland", 'K values'!AB28, IF($C$7="South Australia", 'K values'!AH28, IF($C$7="Tasmania", 'K values'!AN28, IF($C$7="Victoria", 'K values'!AT28, IF($C$7="Western Australia", 'K values'!AZ28, "")))))))) ->  | E103: =IF($C$7="Australian Capital Territory", 'K values'!K28, IF($C$7="New South Wales", 'K values'!Q28, IF($C$7="Northern Territory", 'K values'!W28, IF($C$7="Queensland", 'K values'!AC28, IF($C$7="South Australia", 'K values'!AI28, IF($C$7="Tasmania", 'K values'!AO28, IF($C$7="Victoria", 'K values'!AU28, IF($C$7="Western Australia", 'K values'!BA28, "")))))))) -> 
A104: =IF($C$7="Australian Capital Territory", 'K values'!G29, IF($C$7="New South Wales", 'K values'!M29, IF($C$7="Northern Territory", 'K values'!S29, IF($C$7="Queensland", 'K values'!Y29, IF($C$7="South Australia", 'K values'!AE29, IF($C$7="Tasmania", 'K values'!AK29, IF($C$7="Victoria", 'K values'!AQ29, IF($C$7="Western Australia", 'K values'!AW29, "")))))))) ->  | B104: =IF($C$7="Australian Capital Territory", 'K values'!H29, IF($C$7="New South Wales", 'K values'!N29, IF($C$7="Northern Territory", 'K values'!T29, IF($C$7="Queensland", 'K values'!Z29, IF($C$7="South Australia", 'K values'!AF29, IF($C$7="Tasmania", 'K values'!AL29, IF($C$7="Victoria", 'K values'!AR29, IF($C$7="Western Australia", 'K values'!AX29, "")))))))) ->  | C104: =IF($C$7="Australian Capital Territory", 'K values'!I29, IF($C$7="New South Wales", 'K values'!O29, IF($C$7="Northern Territory", 'K values'!U29, IF($C$7="Queensland", 'K values'!AA29, IF($C$7="South Australia", 'K values'!AG29, IF($C$7="Tasmania", 'K values'!AM29, IF($C$7="Victoria", 'K values'!AS29, IF($C$7="Western Australia", 'K values'!AY29, "")))))))) ->  | D104: =IF($C$7="Australian Capital Territory", 'K values'!J29, IF($C$7="New South Wales", 'K values'!P29, IF($C$7="Northern Territory", 'K values'!V29, IF($C$7="Queensland", 'K values'!AB29, IF($C$7="South Australia", 'K values'!AH29, IF($C$7="Tasmania", 'K values'!AN29, IF($C$7="Victoria", 'K values'!AT29, IF($C$7="Western Australia", 'K values'!AZ29, "")))))))) ->  | E104: =IF($C$7="Australian Capital Territory", 'K values'!K29, IF($C$7="New South Wales", 'K values'!Q29, IF($C$7="Northern Territory", 'K values'!W29, IF($C$7="Queensland", 'K values'!AC29, IF($C$7="South Australia", 'K values'!AI29, IF($C$7="Tasmania", 'K values'!AO29, IF($C$7="Victoria", 'K values'!AU29, IF($C$7="Western Australia", 'K values'!BA29, "")))))))) -> 
A105: =IF($C$7="Australian Capital Territory", 'K values'!G30, IF($C$7="New South Wales", 'K values'!M30, IF($C$7="Northern Territory", 'K values'!S30, IF($C$7="Queensland", 'K values'!Y30, IF($C$7="South Australia", 'K values'!AE30, IF($C$7="Tasmania", 'K values'!AK30, IF($C$7="Victoria", 'K values'!AQ30, IF($C$7="Western Australia", 'K values'!AW30, "")))))))) ->  | B105: =IF($C$7="Australian Capital Territory", 'K values'!H30, IF($C$7="New South Wales", 'K values'!N30, IF($C$7="Northern Territory", 'K values'!T30, IF($C$7="Queensland", 'K values'!Z30, IF($C$7="South Australia", 'K values'!AF30, IF($C$7="Tasmania", 'K values'!AL30, IF($C$7="Victoria", 'K values'!AR30, IF($C$7="Western Australia", 'K values'!AX30, "")))))))) ->  | C105: =IF($C$7="Australian Capital Territory", 'K values'!I30, IF($C$7="New South Wales", 'K values'!O30, IF($C$7="Northern Territory", 'K values'!U30, IF($C$7="Queensland", 'K values'!AA30, IF($C$7="South Australia", 'K values'!AG30, IF($C$7="Tasmania", 'K values'!AM30, IF($C$7="Victoria", 'K values'!AS30, IF($C$7="Western Australia", 'K values'!AY30, "")))))))) ->  | D105: =IF($C$7="Australian Capital Territory", 'K values'!J30, IF($C$7="New South Wales", 'K values'!P30, IF($C$7="Northern Territory", 'K values'!V30, IF($C$7="Queensland", 'K values'!AB30, IF($C$7="South Australia", 'K values'!AH30, IF($C$7="Tasmania", 'K values'!AN30, IF($C$7="Victoria", 'K values'!AT30, IF($C$7="Western Australia", 'K values'!AZ30, "")))))))) ->  | E105: =IF($C$7="Australian Capital Territory", 'K values'!K30, IF($C$7="New South Wales", 'K values'!Q30, IF($C$7="Northern Territory", 'K values'!W30, IF($C$7="Queensland", 'K values'!AC30, IF($C$7="South Australia", 'K values'!AI30, IF($C$7="Tasmania", 'K values'!AO30, IF($C$7="Victoria", 'K values'!AU30, IF($C$7="Western Australia", 'K values'!BA30, "")))))))) -> 
A106: =IF($C$7="Australian Capital Territory", 'K values'!G31, IF($C$7="New South Wales", 'K values'!M31, IF($C$7="Northern Territory", 'K values'!S31, IF($C$7="Queensland", 'K values'!Y31, IF($C$7="South Australia", 'K values'!AE31, IF($C$7="Tasmania", 'K values'!AK31, IF($C$7="Victoria", 'K values'!AQ31, IF($C$7="Western Australia", 'K values'!AW31, "")))))))) ->  | B106: =IF($C$7="Australian Capital Territory", 'K values'!H31, IF($C$7="New South Wales", 'K values'!N31, IF($C$7="Northern Territory", 'K values'!T31, IF($C$7="Queensland", 'K values'!Z31, IF($C$7="South Australia", 'K values'!AF31, IF($C$7="Tasmania", 'K values'!AL31, IF($C$7="Victoria", 'K values'!AR31, IF($C$7="Western Australia", 'K values'!AX31, "")))))))) ->  | C106: =IF($C$7="Australian Capital Territory", 'K values'!I31, IF($C$7="New South Wales", 'K values'!O31, IF($C$7="Northern Territory", 'K values'!U31, IF($C$7="Queensland", 'K values'!AA31, IF($C$7="South Australia", 'K values'!AG31, IF($C$7="Tasmania", 'K values'!AM31, IF($C$7="Victoria", 'K values'!AS31, IF($C$7="Western Australia", 'K values'!AY31, "")))))))) ->  | D106: =IF($C$7="Australian Capital Territory", 'K values'!J31, IF($C$7="New South Wales", 'K values'!P31, IF($C$7="Northern Territory", 'K values'!V31, IF($C$7="Queensland", 'K values'!AB31, IF($C$7="South Australia", 'K values'!AH31, IF($C$7="Tasmania", 'K values'!AN31, IF($C$7="Victoria", 'K values'!AT31, IF($C$7="Western Australia", 'K values'!AZ31, "")))))))) ->  | E106: =IF($C$7="Australian Capital Territory", 'K values'!K31, IF($C$7="New South Wales", 'K values'!Q31, IF($C$7="Northern Territory", 'K values'!W31, IF($C$7="Queensland", 'K values'!AC31, IF($C$7="South Australia", 'K values'!AI31, IF($C$7="Tasmania", 'K values'!AO31, IF($C$7="Victoria", 'K values'!AU31, IF($C$7="Western Australia", 'K values'!BA31, "")))))))) -> 
A107: =IF($C$7="Australian Capital Territory", 'K values'!G32, IF($C$7="New South Wales", 'K values'!M32, IF($C$7="Northern Territory", 'K values'!S32, IF($C$7="Queensland", 'K values'!Y32, IF($C$7="South Australia", 'K values'!AE32, IF($C$7="Tasmania", 'K values'!AK32, IF($C$7="Victoria", 'K values'!AQ32, IF($C$7="Western Australia", 'K values'!AW32, "")))))))) ->  | B107: =IF($C$7="Australian Capital Territory", 'K values'!H32, IF($C$7="New South Wales", 'K values'!N32, IF($C$7="Northern Territory", 'K values'!T32, IF($C$7="Queensland", 'K values'!Z32, IF($C$7="South Australia", 'K values'!AF32, IF($C$7="Tasmania", 'K values'!AL32, IF($C$7="Victoria", 'K values'!AR32, IF($C$7="Western Australia", 'K values'!AX32, "")))))))) ->  | C107: =IF($C$7="Australian Capital Territory", 'K values'!I32, IF($C$7="New South Wales", 'K values'!O32, IF($C$7="Northern Territory", 'K values'!U32, IF($C$7="Queensland", 'K values'!AA32, IF($C$7="South Australia", 'K values'!AG32, IF($C$7="Tasmania", 'K values'!AM32, IF($C$7="Victoria", 'K values'!AS32, IF($C$7="Western Australia", 'K values'!AY32, "")))))))) ->  | D107: =IF($C$7="Australian Capital Territory", 'K values'!J32, IF($C$7="New South Wales", 'K values'!P32, IF($C$7="Northern Territory", 'K values'!V32, IF($C$7="Queensland", 'K values'!AB32, IF($C$7="South Australia", 'K values'!AH32, IF($C$7="Tasmania", 'K values'!AN32, IF($C$7="Victoria", 'K values'!AT32, IF($C$7="Western Australia", 'K values'!AZ32, "")))))))) ->  | E107: =IF($C$7="Australian Capital Territory", 'K values'!K32, IF($C$7="New South Wales", 'K values'!Q32, IF($C$7="Northern Territory", 'K values'!W32, IF($C$7="Queensland", 'K values'!AC32, IF($C$7="South Australia", 'K values'!AI32, IF($C$7="Tasmania", 'K values'!AO32, IF($C$7="Victoria", 'K values'!AU32, IF($C$7="Western Australia", 'K values'!BA32, "")))))))) -> 
A108: =IF($C$7="Australian Capital Territory", 'K values'!G33, IF($C$7="New South Wales", 'K values'!M33, IF($C$7="Northern Territory", 'K values'!S33, IF($C$7="Queensland", 'K values'!Y33, IF($C$7="South Australia", 'K values'!AE33, IF($C$7="Tasmania", 'K values'!AK33, IF($C$7="Victoria", 'K values'!AQ33, IF($C$7="Western Australia", 'K values'!AW33, "")))))))) ->  | B108: =IF($C$7="Australian Capital Territory", 'K values'!H33, IF($C$7="New South Wales", 'K values'!N33, IF($C$7="Northern Territory", 'K values'!T33, IF($C$7="Queensland", 'K values'!Z33, IF($C$7="South Australia", 'K values'!AF33, IF($C$7="Tasmania", 'K values'!AL33, IF($C$7="Victoria", 'K values'!AR33, IF($C$7="Western Australia", 'K values'!AX33, "")))))))) ->  | C108: =IF($C$7="Australian Capital Territory", 'K values'!I33, IF($C$7="New South Wales", 'K values'!O33, IF($C$7="Northern Territory", 'K values'!U33, IF($C$7="Queensland", 'K values'!AA33, IF($C$7="South Australia", 'K values'!AG33, IF($C$7="Tasmania", 'K values'!AM33, IF($C$7="Victoria", 'K values'!AS33, IF($C$7="Western Australia", 'K values'!AY33, "")))))))) ->  | D108: =IF($C$7="Australian Capital Territory", 'K values'!J33, IF($C$7="New South Wales", 'K values'!P33, IF($C$7="Northern Territory", 'K values'!V33, IF($C$7="Queensland", 'K values'!AB33, IF($C$7="South Australia", 'K values'!AH33, IF($C$7="Tasmania", 'K values'!AN33, IF($C$7="Victoria", 'K values'!AT33, IF($C$7="Western Australia", 'K values'!AZ33, "")))))))) ->  | E108: =IF($C$7="Australian Capital Territory", 'K values'!K33, IF($C$7="New South Wales", 'K values'!Q33, IF($C$7="Northern Territory", 'K values'!W33, IF($C$7="Queensland", 'K values'!AC33, IF($C$7="South Australia", 'K values'!AI33, IF($C$7="Tasmania", 'K values'!AO33, IF($C$7="Victoria", 'K values'!AU33, IF($C$7="Western Australia", 'K values'!BA33, "")))))))) -> 
A109: =IF($C$7="Australian Capital Territory", 'K values'!G34, IF($C$7="New South Wales", 'K values'!M34, IF($C$7="Northern Territory", 'K values'!S34, IF($C$7="Queensland", 'K values'!Y34, IF($C$7="South Australia", 'K values'!AE34, IF($C$7="Tasmania", 'K values'!AK34, IF($C$7="Victoria", 'K values'!AQ34, IF($C$7="Western Australia", 'K values'!AW34, "")))))))) ->  | B109: =IF($C$7="Australian Capital Territory", 'K values'!H34, IF($C$7="New South Wales", 'K values'!N34, IF($C$7="Northern Territory", 'K values'!T34, IF($C$7="Queensland", 'K values'!Z34, IF($C$7="South Australia", 'K values'!AF34, IF($C$7="Tasmania", 'K values'!AL34, IF($C$7="Victoria", 'K values'!AR34, IF($C$7="Western Australia", 'K values'!AX34, "")))))))) ->  | C109: =IF($C$7="Australian Capital Territory", 'K values'!I34, IF($C$7="New South Wales", 'K values'!O34, IF($C$7="Northern Territory", 'K values'!U34, IF($C$7="Queensland", 'K values'!AA34, IF($C$7="South Australia", 'K values'!AG34, IF($C$7="Tasmania", 'K values'!AM34, IF($C$7="Victoria", 'K values'!AS34, IF($C$7="Western Australia", 'K values'!AY34, "")))))))) ->  | D109: =IF($C$7="Australian Capital Territory", 'K values'!J34, IF($C$7="New South Wales", 'K values'!P34, IF($C$7="Northern Territory", 'K values'!V34, IF($C$7="Queensland", 'K values'!AB34, IF($C$7="South Australia", 'K values'!AH34, IF($C$7="Tasmania", 'K values'!AN34, IF($C$7="Victoria", 'K values'!AT34, IF($C$7="Western Australia", 'K values'!AZ34, "")))))))) ->  | E109: =IF($C$7="Australian Capital Territory", 'K values'!K34, IF($C$7="New South Wales", 'K values'!Q34, IF($C$7="Northern Territory", 'K values'!W34, IF($C$7="Queensland", 'K values'!AC34, IF($C$7="South Australia", 'K values'!AI34, IF($C$7="Tasmania", 'K values'!AO34, IF($C$7="Victoria", 'K values'!AU34, IF($C$7="Western Australia", 'K values'!BA34, "")))))))) -> 
A110: =IF($C$7="Australian Capital Territory", 'K values'!G35, IF($C$7="New South Wales", 'K values'!M35, IF($C$7="Northern Territory", 'K values'!S35, IF($C$7="Queensland", 'K values'!Y35, IF($C$7="South Australia", 'K values'!AE35, IF($C$7="Tasmania", 'K values'!AK35, IF($C$7="Victoria", 'K values'!AQ35, IF($C$7="Western Australia", 'K values'!AW35, "")))))))) ->  | B110: =IF($C$7="Australian Capital Territory", 'K values'!H35, IF($C$7="New South Wales", 'K values'!N35, IF($C$7="Northern Territory", 'K values'!T35, IF($C$7="Queensland", 'K values'!Z35, IF($C$7="South Australia", 'K values'!AF35, IF($C$7="Tasmania", 'K values'!AL35, IF($C$7="Victoria", 'K values'!AR35, IF($C$7="Western Australia", 'K values'!AX35, "")))))))) ->  | C110: =IF($C$7="Australian Capital Territory", 'K values'!I35, IF($C$7="New South Wales", 'K values'!O35, IF($C$7="Northern Territory", 'K values'!U35, IF($C$7="Queensland", 'K values'!AA35, IF($C$7="South Australia", 'K values'!AG35, IF($C$7="Tasmania", 'K values'!AM35, IF($C$7="Victoria", 'K values'!AS35, IF($C$7="Western Australia", 'K values'!AY35, "")))))))) ->  | D110: =IF($C$7="Australian Capital Territory", 'K values'!J35, IF($C$7="New South Wales", 'K values'!P35, IF($C$7="Northern Territory", 'K values'!V35, IF($C$7="Queensland", 'K values'!AB35, IF($C$7="South Australia", 'K values'!AH35, IF($C$7="Tasmania", 'K values'!AN35, IF($C$7="Victoria", 'K values'!AT35, IF($C$7="Western Australia", 'K values'!AZ35, "")))))))) ->  | E110: =IF($C$7="Australian Capital Territory", 'K values'!K35, IF($C$7="New South Wales", 'K values'!Q35, IF($C$7="Northern Territory", 'K values'!W35, IF($C$7="Queensland", 'K values'!AC35, IF($C$7="South Australia", 'K values'!AI35, IF($C$7="Tasmania", 'K values'!AO35, IF($C$7="Victoria", 'K values'!AU35, IF($C$7="Western Australia", 'K values'!BA35, "")))))))) -> 
A111: =IF($C$7="Australian Capital Territory", 'K values'!G36, IF($C$7="New South Wales", 'K values'!M36, IF($C$7="Northern Territory", 'K values'!S36, IF($C$7="Queensland", 'K values'!Y36, IF($C$7="South Australia", 'K values'!AE36, IF($C$7="Tasmania", 'K values'!AK36, IF($C$7="Victoria", 'K values'!AQ36, IF($C$7="Western Australia", 'K values'!AW36, "")))))))) ->  | B111: =IF($C$7="Australian Capital Territory", 'K values'!H36, IF($C$7="New South Wales", 'K values'!N36, IF($C$7="Northern Territory", 'K values'!T36, IF($C$7="Queensland", 'K values'!Z36, IF($C$7="South Australia", 'K values'!AF36, IF($C$7="Tasmania", 'K values'!AL36, IF($C$7="Victoria", 'K values'!AR36, IF($C$7="Western Australia", 'K values'!AX36, "")))))))) ->  | C111: =IF($C$7="Australian Capital Territory", 'K values'!I36, IF($C$7="New South Wales", 'K values'!O36, IF($C$7="Northern Territory", 'K values'!U36, IF($C$7="Queensland", 'K values'!AA36, IF($C$7="South Australia", 'K values'!AG36, IF($C$7="Tasmania", 'K values'!AM36, IF($C$7="Victoria", 'K values'!AS36, IF($C$7="Western Australia", 'K values'!AY36, "")))))))) ->  | D111: =IF($C$7="Australian Capital Territory", 'K values'!J36, IF($C$7="New South Wales", 'K values'!P36, IF($C$7="Northern Territory", 'K values'!V36, IF($C$7="Queensland", 'K values'!AB36, IF($C$7="South Australia", 'K values'!AH36, IF($C$7="Tasmania", 'K values'!AN36, IF($C$7="Victoria", 'K values'!AT36, IF($C$7="Western Australia", 'K values'!AZ36, "")))))))) ->  | E111: =IF($C$7="Australian Capital Territory", 'K values'!K36, IF($C$7="New South Wales", 'K values'!Q36, IF($C$7="Northern Territory", 'K values'!W36, IF($C$7="Queensland", 'K values'!AC36, IF($C$7="South Australia", 'K values'!AI36, IF($C$7="Tasmania", 'K values'!AO36, IF($C$7="Victoria", 'K values'!AU36, IF($C$7="Western Australia", 'K values'!BA36, "")))))))) -> 
A112: =IF($C$7="Australian Capital Territory", 'K values'!G37, IF($C$7="New South Wales", 'K values'!M37, IF($C$7="Northern Territory", 'K values'!S37, IF($C$7="Queensland", 'K values'!Y37, IF($C$7="South Australia", 'K values'!AE37, IF($C$7="Tasmania", 'K values'!AK37, IF($C$7="Victoria", 'K values'!AQ37, IF($C$7="Western Australia", 'K values'!AW37, "")))))))) ->  | B112: =IF($C$7="Australian Capital Territory", 'K values'!H37, IF($C$7="New South Wales", 'K values'!N37, IF($C$7="Northern Territory", 'K values'!T37, IF($C$7="Queensland", 'K values'!Z37, IF($C$7="South Australia", 'K values'!AF37, IF($C$7="Tasmania", 'K values'!AL37, IF($C$7="Victoria", 'K values'!AR37, IF($C$7="Western Australia", 'K values'!AX37, "")))))))) ->  | C112: =IF($C$7="Australian Capital Territory", 'K values'!I37, IF($C$7="New South Wales", 'K values'!O37, IF($C$7="Northern Territory", 'K values'!U37, IF($C$7="Queensland", 'K values'!AA37, IF($C$7="South Australia", 'K values'!AG37, IF($C$7="Tasmania", 'K values'!AM37, IF($C$7="Victoria", 'K values'!AS37, IF($C$7="Western Australia", 'K values'!AY37, "")))))))) ->  | D112: =IF($C$7="Australian Capital Territory", 'K values'!J37, IF($C$7="New South Wales", 'K values'!P37, IF($C$7="Northern Territory", 'K values'!V37, IF($C$7="Queensland", 'K values'!AB37, IF($C$7="South Australia", 'K values'!AH37, IF($C$7="Tasmania", 'K values'!AN37, IF($C$7="Victoria", 'K values'!AT37, IF($C$7="Western Australia", 'K values'!AZ37, "")))))))) ->  | E112: =IF($C$7="Australian Capital Territory", 'K values'!K37, IF($C$7="New South Wales", 'K values'!Q37, IF($C$7="Northern Territory", 'K values'!W37, IF($C$7="Queensland", 'K values'!AC37, IF($C$7="South Australia", 'K values'!AI37, IF($C$7="Tasmania", 'K values'!AO37, IF($C$7="Victoria", 'K values'!AU37, IF($C$7="Western Australia", 'K values'!BA37, "")))))))) -> 
A113: =IF($C$7="Australian Capital Territory", 'K values'!G38, IF($C$7="New South Wales", 'K values'!M38, IF($C$7="Northern Territory", 'K values'!S38, IF($C$7="Queensland", 'K values'!Y38, IF($C$7="South Australia", 'K values'!AE38, IF($C$7="Tasmania", 'K values'!AK38, IF($C$7="Victoria", 'K values'!AQ38, IF($C$7="Western Australia", 'K values'!AW38, "")))))))) ->  | B113: =IF($C$7="Australian Capital Territory", 'K values'!H38, IF($C$7="New South Wales", 'K values'!N38, IF($C$7="Northern Territory", 'K values'!T38, IF($C$7="Queensland", 'K values'!Z38, IF($C$7="South Australia", 'K values'!AF38, IF($C$7="Tasmania", 'K values'!AL38, IF($C$7="Victoria", 'K values'!AR38, IF($C$7="Western Australia", 'K values'!AX38, "")))))))) ->  | C113: =IF($C$7="Australian Capital Territory", 'K values'!I38, IF($C$7="New South Wales", 'K values'!O38, IF($C$7="Northern Territory", 'K values'!U38, IF($C$7="Queensland", 'K values'!AA38, IF($C$7="South Australia", 'K values'!AG38, IF($C$7="Tasmania", 'K values'!AM38, IF($C$7="Victoria", 'K values'!AS38, IF($C$7="Western Australia", 'K values'!AY38, "")))))))) ->  | D113: =IF($C$7="Australian Capital Territory", 'K values'!J38, IF($C$7="New South Wales", 'K values'!P38, IF($C$7="Northern Territory", 'K values'!V38, IF($C$7="Queensland", 'K values'!AB38, IF($C$7="South Australia", 'K values'!AH38, IF($C$7="Tasmania", 'K values'!AN38, IF($C$7="Victoria", 'K values'!AT38, IF($C$7="Western Australia", 'K values'!AZ38, "")))))))) ->  | E113: =IF($C$7="Australian Capital Territory", 'K values'!K38, IF($C$7="New South Wales", 'K values'!Q38, IF($C$7="Northern Territory", 'K values'!W38, IF($C$7="Queensland", 'K values'!AC38, IF($C$7="South Australia", 'K values'!AI38, IF($C$7="Tasmania", 'K values'!AO38, IF($C$7="Victoria", 'K values'!AU38, IF($C$7="Western Australia", 'K values'!BA38, "")))))))) -> 
A114: =IF($C$7="Australian Capital Territory", 'K values'!G39, IF($C$7="New South Wales", 'K values'!M39, IF($C$7="Northern Territory", 'K values'!S39, IF($C$7="Queensland", 'K values'!Y39, IF($C$7="South Australia", 'K values'!AE39, IF($C$7="Tasmania", 'K values'!AK39, IF($C$7="Victoria", 'K values'!AQ39, IF($C$7="Western Australia", 'K values'!AW39, "")))))))) ->  | B114: =IF($C$7="Australian Capital Territory", 'K values'!H39, IF($C$7="New South Wales", 'K values'!N39, IF($C$7="Northern Territory", 'K values'!T39, IF($C$7="Queensland", 'K values'!Z39, IF($C$7="South Australia", 'K values'!AF39, IF($C$7="Tasmania", 'K values'!AL39, IF($C$7="Victoria", 'K values'!AR39, IF($C$7="Western Australia", 'K values'!AX39, "")))))))) ->  | C114: =IF($C$7="Australian Capital Territory", 'K values'!I39, IF($C$7="New South Wales", 'K values'!O39, IF($C$7="Northern Territory", 'K values'!U39, IF($C$7="Queensland", 'K values'!AA39, IF($C$7="South Australia", 'K values'!AG39, IF($C$7="Tasmania", 'K values'!AM39, IF($C$7="Victoria", 'K values'!AS39, IF($C$7="Western Australia", 'K values'!AY39, "")))))))) ->  | D114: =IF($C$7="Australian Capital Territory", 'K values'!J39, IF($C$7="New South Wales", 'K values'!P39, IF($C$7="Northern Territory", 'K values'!V39, IF($C$7="Queensland", 'K values'!AB39, IF($C$7="South Australia", 'K values'!AH39, IF($C$7="Tasmania", 'K values'!AN39, IF($C$7="Victoria", 'K values'!AT39, IF($C$7="Western Australia", 'K values'!AZ39, "")))))))) ->  | E114: =IF($C$7="Australian Capital Territory", 'K values'!K39, IF($C$7="New South Wales", 'K values'!Q39, IF($C$7="Northern Territory", 'K values'!W39, IF($C$7="Queensland", 'K values'!AC39, IF($C$7="South Australia", 'K values'!AI39, IF($C$7="Tasmania", 'K values'!AO39, IF($C$7="Victoria", 'K values'!AU39, IF($C$7="Western Australia", 'K values'!BA39, "")))))))) -> 
A115: =IF($C$7="Australian Capital Territory", 'K values'!G40, IF($C$7="New South Wales", 'K values'!M40, IF($C$7="Northern Territory", 'K values'!S40, IF($C$7="Queensland", 'K values'!Y40, IF($C$7="South Australia", 'K values'!AE40, IF($C$7="Tasmania", 'K values'!AK40, IF($C$7="Victoria", 'K values'!AQ40, IF($C$7="Western Australia", 'K values'!AW40, "")))))))) ->  | B115: =IF($C$7="Australian Capital Territory", 'K values'!H40, IF($C$7="New South Wales", 'K values'!N40, IF($C$7="Northern Territory", 'K values'!T40, IF($C$7="Queensland", 'K values'!Z40, IF($C$7="South Australia", 'K values'!AF40, IF($C$7="Tasmania", 'K values'!AL40, IF($C$7="Victoria", 'K values'!AR40, IF($C$7="Western Australia", 'K values'!AX40, "")))))))) ->  | C115: =IF($C$7="Australian Capital Territory", 'K values'!I40, IF($C$7="New South Wales", 'K values'!O40, IF($C$7="Northern Territory", 'K values'!U40, IF($C$7="Queensland", 'K values'!AA40, IF($C$7="South Australia", 'K values'!AG40, IF($C$7="Tasmania", 'K values'!AM40, IF($C$7="Victoria", 'K values'!AS40, IF($C$7="Western Australia", 'K values'!AY40, "")))))))) ->  | D115: =IF($C$7="Australian Capital Territory", 'K values'!J40, IF($C$7="New South Wales", 'K values'!P40, IF($C$7="Northern Territory", 'K values'!V40, IF($C$7="Queensland", 'K values'!AB40, IF($C$7="South Australia", 'K values'!AH40, IF($C$7="Tasmania", 'K values'!AN40, IF($C$7="Victoria", 'K values'!AT40, IF($C$7="Western Australia", 'K values'!AZ40, "")))))))) ->  | E115: =IF($C$7="Australian Capital Territory", 'K values'!K40, IF($C$7="New South Wales", 'K values'!Q40, IF($C$7="Northern Territory", 'K values'!W40, IF($C$7="Queensland", 'K values'!AC40, IF($C$7="South Australia", 'K values'!AI40, IF($C$7="Tasmania", 'K values'!AO40, IF($C$7="Victoria", 'K values'!AU40, IF($C$7="Western Australia", 'K values'!BA40, "")))))))) -> 
A116: =IF($C$7="Australian Capital Territory", 'K values'!G41, IF($C$7="New South Wales", 'K values'!M41, IF($C$7="Northern Territory", 'K values'!S41, IF($C$7="Queensland", 'K values'!Y41, IF($C$7="South Australia", 'K values'!AE41, IF($C$7="Tasmania", 'K values'!AK41, IF($C$7="Victoria", 'K values'!AQ41, IF($C$7="Western Australia", 'K values'!AW41, "")))))))) ->  | B116: =IF($C$7="Australian Capital Territory", 'K values'!H41, IF($C$7="New South Wales", 'K values'!N41, IF($C$7="Northern Territory", 'K values'!T41, IF($C$7="Queensland", 'K values'!Z41, IF($C$7="South Australia", 'K values'!AF41, IF($C$7="Tasmania", 'K values'!AL41, IF($C$7="Victoria", 'K values'!AR41, IF($C$7="Western Australia", 'K values'!AX41, "")))))))) ->  | C116: =IF($C$7="Australian Capital Territory", 'K values'!I41, IF($C$7="New South Wales", 'K values'!O41, IF($C$7="Northern Territory", 'K values'!U41, IF($C$7="Queensland", 'K values'!AA41, IF($C$7="South Australia", 'K values'!AG41, IF($C$7="Tasmania", 'K values'!AM41, IF($C$7="Victoria", 'K values'!AS41, IF($C$7="Western Australia", 'K values'!AY41, "")))))))) ->  | D116: =IF($C$7="Australian Capital Territory", 'K values'!J41, IF($C$7="New South Wales", 'K values'!P41, IF($C$7="Northern Territory", 'K values'!V41, IF($C$7="Queensland", 'K values'!AB41, IF($C$7="South Australia", 'K values'!AH41, IF($C$7="Tasmania", 'K values'!AN41, IF($C$7="Victoria", 'K values'!AT41, IF($C$7="Western Australia", 'K values'!AZ41, "")))))))) ->  | E116: =IF($C$7="Australian Capital Territory", 'K values'!K41, IF($C$7="New South Wales", 'K values'!Q41, IF($C$7="Northern Territory", 'K values'!W41, IF($C$7="Queensland", 'K values'!AC41, IF($C$7="South Australia", 'K values'!AI41, IF($C$7="Tasmania", 'K values'!AO41, IF($C$7="Victoria", 'K values'!AU41, IF($C$7="Western Australia", 'K values'!BA41, "")))))))) -> 
A117: =IF($C$7="Australian Capital Territory", 'K values'!G42, IF($C$7="New South Wales", 'K values'!M42, IF($C$7="Northern Territory", 'K values'!S42, IF($C$7="Queensland", 'K values'!Y42, IF($C$7="South Australia", 'K values'!AE42, IF($C$7="Tasmania", 'K values'!AK42, IF($C$7="Victoria", 'K values'!AQ42, IF($C$7="Western Australia", 'K values'!AW42, "")))))))) ->  | B117: =IF($C$7="Australian Capital Territory", 'K values'!H42, IF($C$7="New South Wales", 'K values'!N42, IF($C$7="Northern Territory", 'K values'!T42, IF($C$7="Queensland", 'K values'!Z42, IF($C$7="South Australia", 'K values'!AF42, IF($C$7="Tasmania", 'K values'!AL42, IF($C$7="Victoria", 'K values'!AR42, IF($C$7="Western Australia", 'K values'!AX42, "")))))))) ->  | C117: =IF($C$7="Australian Capital Territory", 'K values'!I42, IF($C$7="New South Wales", 'K values'!O42, IF($C$7="Northern Territory", 'K values'!U42, IF($C$7="Queensland", 'K values'!AA42, IF($C$7="South Australia", 'K values'!AG42, IF($C$7="Tasmania", 'K values'!AM42, IF($C$7="Victoria", 'K values'!AS42, IF($C$7="Western Australia", 'K values'!AY42, "")))))))) ->  | D117: =IF($C$7="Australian Capital Territory", 'K values'!J42, IF($C$7="New South Wales", 'K values'!P42, IF($C$7="Northern Territory", 'K values'!V42, IF($C$7="Queensland", 'K values'!AB42, IF($C$7="South Australia", 'K values'!AH42, IF($C$7="Tasmania", 'K values'!AN42, IF($C$7="Victoria", 'K values'!AT42, IF($C$7="Western Australia", 'K values'!AZ42, "")))))))) ->  | E117: =IF($C$7="Australian Capital Territory", 'K values'!K42, IF($C$7="New South Wales", 'K values'!Q42, IF($C$7="Northern Territory", 'K values'!W42, IF($C$7="Queensland", 'K values'!AC42, IF($C$7="South Australia", 'K values'!AI42, IF($C$7="Tasmania", 'K values'!AO42, IF($C$7="Victoria", 'K values'!AU42, IF($C$7="Western Australia", 'K values'!BA42, "")))))))) -> 
A118: =IF($C$7="Australian Capital Territory", 'K values'!G43, IF($C$7="New South Wales", 'K values'!M43, IF($C$7="Northern Territory", 'K values'!S43, IF($C$7="Queensland", 'K values'!Y43, IF($C$7="South Australia", 'K values'!AE43, IF($C$7="Tasmania", 'K values'!AK43, IF($C$7="Victoria", 'K values'!AQ43, IF($C$7="Western Australia", 'K values'!AW43, "")))))))) ->  | B118: =IF($C$7="Australian Capital Territory", 'K values'!H43, IF($C$7="New South Wales", 'K values'!N43, IF($C$7="Northern Territory", 'K values'!T43, IF($C$7="Queensland", 'K values'!Z43, IF($C$7="South Australia", 'K values'!AF43, IF($C$7="Tasmania", 'K values'!AL43, IF($C$7="Victoria", 'K values'!AR43, IF($C$7="Western Australia", 'K values'!AX43, "")))))))) ->  | C118: =IF($C$7="Australian Capital Territory", 'K values'!I43, IF($C$7="New South Wales", 'K values'!O43, IF($C$7="Northern Territory", 'K values'!U43, IF($C$7="Queensland", 'K values'!AA43, IF($C$7="South Australia", 'K values'!AG43, IF($C$7="Tasmania", 'K values'!AM43, IF($C$7="Victoria", 'K values'!AS43, IF($C$7="Western Australia", 'K values'!AY43, "")))))))) ->  | D118: =IF($C$7="Australian Capital Territory", 'K values'!J43, IF($C$7="New South Wales", 'K values'!P43, IF($C$7="Northern Territory", 'K values'!V43, IF($C$7="Queensland", 'K values'!AB43, IF($C$7="South Australia", 'K values'!AH43, IF($C$7="Tasmania", 'K values'!AN43, IF($C$7="Victoria", 'K values'!AT43, IF($C$7="Western Australia", 'K values'!AZ43, "")))))))) ->  | E118: =IF($C$7="Australian Capital Territory", 'K values'!K43, IF($C$7="New South Wales", 'K values'!Q43, IF($C$7="Northern Territory", 'K values'!W43, IF($C$7="Queensland", 'K values'!AC43, IF($C$7="South Australia", 'K values'!AI43, IF($C$7="Tasmania", 'K values'!AO43, IF($C$7="Victoria", 'K values'!AU43, IF($C$7="Western Australia", 'K values'!BA43, "")))))))) -> 
A119: =IF($C$7="Australian Capital Territory", 'K values'!G44, IF($C$7="New South Wales", 'K values'!M44, IF($C$7="Northern Territory", 'K values'!S44, IF($C$7="Queensland", 'K values'!Y44, IF($C$7="South Australia", 'K values'!AE44, IF($C$7="Tasmania", 'K values'!AK44, IF($C$7="Victoria", 'K values'!AQ44, IF($C$7="Western Australia", 'K values'!AW44, "")))))))) ->  | B119: =IF($C$7="Australian Capital Territory", 'K values'!H44, IF($C$7="New South Wales", 'K values'!N44, IF($C$7="Northern Territory", 'K values'!T44, IF($C$7="Queensland", 'K values'!Z44, IF($C$7="South Australia", 'K values'!AF44, IF($C$7="Tasmania", 'K values'!AL44, IF($C$7="Victoria", 'K values'!AR44, IF($C$7="Western Australia", 'K values'!AX44, "")))))))) ->  | C119: =IF($C$7="Australian Capital Territory", 'K values'!I44, IF($C$7="New South Wales", 'K values'!O44, IF($C$7="Northern Territory", 'K values'!U44, IF($C$7="Queensland", 'K values'!AA44, IF($C$7="South Australia", 'K values'!AG44, IF($C$7="Tasmania", 'K values'!AM44, IF($C$7="Victoria", 'K values'!AS44, IF($C$7="Western Australia", 'K values'!AY44, "")))))))) ->  | D119: =IF($C$7="Australian Capital Territory", 'K values'!J44, IF($C$7="New South Wales", 'K values'!P44, IF($C$7="Northern Territory", 'K values'!V44, IF($C$7="Queensland", 'K values'!AB44, IF($C$7="South Australia", 'K values'!AH44, IF($C$7="Tasmania", 'K values'!AN44, IF($C$7="Victoria", 'K values'!AT44, IF($C$7="Western Australia", 'K values'!AZ44, "")))))))) ->  | E119: =IF($C$7="Australian Capital Territory", 'K values'!K44, IF($C$7="New South Wales", 'K values'!Q44, IF($C$7="Northern Territory", 'K values'!W44, IF($C$7="Queensland", 'K values'!AC44, IF($C$7="South Australia", 'K values'!AI44, IF($C$7="Tasmania", 'K values'!AO44, IF($C$7="Victoria", 'K values'!AU44, IF($C$7="Western Australia", 'K values'!BA44, "")))))))) -> 
A120: =IF($C$7="Australian Capital Territory", 'K values'!G45, IF($C$7="New South Wales", 'K values'!M45, IF($C$7="Northern Territory", 'K values'!S45, IF($C$7="Queensland", 'K values'!Y45, IF($C$7="South Australia", 'K values'!AE45, IF($C$7="Tasmania", 'K values'!AK45, IF($C$7="Victoria", 'K values'!AQ45, IF($C$7="Western Australia", 'K values'!AW45, "")))))))) ->  | B120: =IF($C$7="Australian Capital Territory", 'K values'!H45, IF($C$7="New South Wales", 'K values'!N45, IF($C$7="Northern Territory", 'K values'!T45, IF($C$7="Queensland", 'K values'!Z45, IF($C$7="South Australia", 'K values'!AF45, IF($C$7="Tasmania", 'K values'!AL45, IF($C$7="Victoria", 'K values'!AR45, IF($C$7="Western Australia", 'K values'!AX45, "")))))))) ->  | C120: =IF($C$7="Australian Capital Territory", 'K values'!I45, IF($C$7="New South Wales", 'K values'!O45, IF($C$7="Northern Territory", 'K values'!U45, IF($C$7="Queensland", 'K values'!AA45, IF($C$7="South Australia", 'K values'!AG45, IF($C$7="Tasmania", 'K values'!AM45, IF($C$7="Victoria", 'K values'!AS45, IF($C$7="Western Australia", 'K values'!AY45, "")))))))) ->  | D120: =IF($C$7="Australian Capital Territory", 'K values'!J45, IF($C$7="New South Wales", 'K values'!P45, IF($C$7="Northern Territory", 'K values'!V45, IF($C$7="Queensland", 'K values'!AB45, IF($C$7="South Australia", 'K values'!AH45, IF($C$7="Tasmania", 'K values'!AN45, IF($C$7="Victoria", 'K values'!AT45, IF($C$7="Western Australia", 'K values'!AZ45, "")))))))) ->  | E120: =IF($C$7="Australian Capital Territory", 'K values'!K45, IF($C$7="New South Wales", 'K values'!Q45, IF($C$7="Northern Territory", 'K values'!W45, IF($C$7="Queensland", 'K values'!AC45, IF($C$7="South Australia", 'K values'!AI45, IF($C$7="Tasmania", 'K values'!AO45, IF($C$7="Victoria", 'K values'!AU45, IF($C$7="Western Australia", 'K values'!BA45, "")))))))) -> 
A121: =IF($C$7="Australian Capital Territory", 'K values'!G46, IF($C$7="New South Wales", 'K values'!M46, IF($C$7="Northern Territory", 'K values'!S46, IF($C$7="Queensland", 'K values'!Y46, IF($C$7="South Australia", 'K values'!AE46, IF($C$7="Tasmania", 'K values'!AK46, IF($C$7="Victoria", 'K values'!AQ46, IF($C$7="Western Australia", 'K values'!AW46, "")))))))) ->  | B121: =IF($C$7="Australian Capital Territory", 'K values'!H46, IF($C$7="New South Wales", 'K values'!N46, IF($C$7="Northern Territory", 'K values'!T46, IF($C$7="Queensland", 'K values'!Z46, IF($C$7="South Australia", 'K values'!AF46, IF($C$7="Tasmania", 'K values'!AL46, IF($C$7="Victoria", 'K values'!AR46, IF($C$7="Western Australia", 'K values'!AX46, "")))))))) ->  | C121: =IF($C$7="Australian Capital Territory", 'K values'!I46, IF($C$7="New South Wales", 'K values'!O46, IF($C$7="Northern Territory", 'K values'!U46, IF($C$7="Queensland", 'K values'!AA46, IF($C$7="South Australia", 'K values'!AG46, IF($C$7="Tasmania", 'K values'!AM46, IF($C$7="Victoria", 'K values'!AS46, IF($C$7="Western Australia", 'K values'!AY46, "")))))))) ->  | D121: =IF($C$7="Australian Capital Territory", 'K values'!J46, IF($C$7="New South Wales", 'K values'!P46, IF($C$7="Northern Territory", 'K values'!V46, IF($C$7="Queensland", 'K values'!AB46, IF($C$7="South Australia", 'K values'!AH46, IF($C$7="Tasmania", 'K values'!AN46, IF($C$7="Victoria", 'K values'!AT46, IF($C$7="Western Australia", 'K values'!AZ46, "")))))))) ->  | E121: =IF($C$7="Australian Capital Territory", 'K values'!K46, IF($C$7="New South Wales", 'K values'!Q46, IF($C$7="Northern Territory", 'K values'!W46, IF($C$7="Queensland", 'K values'!AC46, IF($C$7="South Australia", 'K values'!AI46, IF($C$7="Tasmania", 'K values'!AO46, IF($C$7="Victoria", 'K values'!AU46, IF($C$7="Western Australia", 'K values'!BA46, "")))))))) -> 
A122: =IF($C$7="Australian Capital Territory", 'K values'!G47, IF($C$7="New South Wales", 'K values'!M47, IF($C$7="Northern Territory", 'K values'!S47, IF($C$7="Queensland", 'K values'!Y47, IF($C$7="South Australia", 'K values'!AE47, IF($C$7="Tasmania", 'K values'!AK47, IF($C$7="Victoria", 'K values'!AQ47, IF($C$7="Western Australia", 'K values'!AW47, "")))))))) ->  | B122: =IF($C$7="Australian Capital Territory", 'K values'!H47, IF($C$7="New South Wales", 'K values'!N47, IF($C$7="Northern Territory", 'K values'!T47, IF($C$7="Queensland", 'K values'!Z47, IF($C$7="South Australia", 'K values'!AF47, IF($C$7="Tasmania", 'K values'!AL47, IF($C$7="Victoria", 'K values'!AR47, IF($C$7="Western Australia", 'K values'!AX47, "")))))))) ->  | C122: =IF($C$7="Australian Capital Territory", 'K values'!I47, IF($C$7="New South Wales", 'K values'!O47, IF($C$7="Northern Territory", 'K values'!U47, IF($C$7="Queensland", 'K values'!AA47, IF($C$7="South Australia", 'K values'!AG47, IF($C$7="Tasmania", 'K values'!AM47, IF($C$7="Victoria", 'K values'!AS47, IF($C$7="Western Australia", 'K values'!AY47, "")))))))) ->  | D122: =IF($C$7="Australian Capital Territory", 'K values'!J47, IF($C$7="New South Wales", 'K values'!P47, IF($C$7="Northern Territory", 'K values'!V47, IF($C$7="Queensland", 'K values'!AB47, IF($C$7="South Australia", 'K values'!AH47, IF($C$7="Tasmania", 'K values'!AN47, IF($C$7="Victoria", 'K values'!AT47, IF($C$7="Western Australia", 'K values'!AZ47, "")))))))) ->  | E122: =IF($C$7="Australian Capital Territory", 'K values'!K47, IF($C$7="New South Wales", 'K values'!Q47, IF($C$7="Northern Territory", 'K values'!W47, IF($C$7="Queensland", 'K values'!AC47, IF($C$7="South Australia", 'K values'!AI47, IF($C$7="Tasmania", 'K values'!AO47, IF($C$7="Victoria", 'K values'!AU47, IF($C$7="Western Australia", 'K values'!BA47, "")))))))) -> 
A123: =IF($C$7="Australian Capital Territory", 'K values'!G48, IF($C$7="New South Wales", 'K values'!M48, IF($C$7="Northern Territory", 'K values'!S48, IF($C$7="Queensland", 'K values'!Y48, IF($C$7="South Australia", 'K values'!AE48, IF($C$7="Tasmania", 'K values'!AK48, IF($C$7="Victoria", 'K values'!AQ48, IF($C$7="Western Australia", 'K values'!AW48, "")))))))) ->  | B123: =IF($C$7="Australian Capital Territory", 'K values'!H48, IF($C$7="New South Wales", 'K values'!N48, IF($C$7="Northern Territory", 'K values'!T48, IF($C$7="Queensland", 'K values'!Z48, IF($C$7="South Australia", 'K values'!AF48, IF($C$7="Tasmania", 'K values'!AL48, IF($C$7="Victoria", 'K values'!AR48, IF($C$7="Western Australia", 'K values'!AX48, "")))))))) ->  | C123: =IF($C$7="Australian Capital Territory", 'K values'!I48, IF($C$7="New South Wales", 'K values'!O48, IF($C$7="Northern Territory", 'K values'!U48, IF($C$7="Queensland", 'K values'!AA48, IF($C$7="South Australia", 'K values'!AG48, IF($C$7="Tasmania", 'K values'!AM48, IF($C$7="Victoria", 'K values'!AS48, IF($C$7="Western Australia", 'K values'!AY48, "")))))))) ->  | D123: =IF($C$7="Australian Capital Territory", 'K values'!J48, IF($C$7="New South Wales", 'K values'!P48, IF($C$7="Northern Territory", 'K values'!V48, IF($C$7="Queensland", 'K values'!AB48, IF($C$7="South Australia", 'K values'!AH48, IF($C$7="Tasmania", 'K values'!AN48, IF($C$7="Victoria", 'K values'!AT48, IF($C$7="Western Australia", 'K values'!AZ48, "")))))))) ->  | E123: =IF($C$7="Australian Capital Territory", 'K values'!K48, IF($C$7="New South Wales", 'K values'!Q48, IF($C$7="Northern Territory", 'K values'!W48, IF($C$7="Queensland", 'K values'!AC48, IF($C$7="South Australia", 'K values'!AI48, IF($C$7="Tasmania", 'K values'!AO48, IF($C$7="Victoria", 'K values'!AU48, IF($C$7="Western Australia", 'K values'!BA48, "")))))))) -> 
A124: =IF($C$7="Australian Capital Territory", 'K values'!G49, IF($C$7="New South Wales", 'K values'!M49, IF($C$7="Northern Territory", 'K values'!S49, IF($C$7="Queensland", 'K values'!Y49, IF($C$7="South Australia", 'K values'!AE49, IF($C$7="Tasmania", 'K values'!AK49, IF($C$7="Victoria", 'K values'!AQ49, IF($C$7="Western Australia", 'K values'!AW49, "")))))))) ->  | B124: =IF($C$7="Australian Capital Territory", 'K values'!H49, IF($C$7="New South Wales", 'K values'!N49, IF($C$7="Northern Territory", 'K values'!T49, IF($C$7="Queensland", 'K values'!Z49, IF($C$7="South Australia", 'K values'!AF49, IF($C$7="Tasmania", 'K values'!AL49, IF($C$7="Victoria", 'K values'!AR49, IF($C$7="Western Australia", 'K values'!AX49, "")))))))) ->  | C124: =IF($C$7="Australian Capital Territory", 'K values'!I49, IF($C$7="New South Wales", 'K values'!O49, IF($C$7="Northern Territory", 'K values'!U49, IF($C$7="Queensland", 'K values'!AA49, IF($C$7="South Australia", 'K values'!AG49, IF($C$7="Tasmania", 'K values'!AM49, IF($C$7="Victoria", 'K values'!AS49, IF($C$7="Western Australia", 'K values'!AY49, "")))))))) ->  | D124: =IF($C$7="Australian Capital Territory", 'K values'!J49, IF($C$7="New South Wales", 'K values'!P49, IF($C$7="Northern Territory", 'K values'!V49, IF($C$7="Queensland", 'K values'!AB49, IF($C$7="South Australia", 'K values'!AH49, IF($C$7="Tasmania", 'K values'!AN49, IF($C$7="Victoria", 'K values'!AT49, IF($C$7="Western Australia", 'K values'!AZ49, "")))))))) ->  | E124: =IF($C$7="Australian Capital Territory", 'K values'!K49, IF($C$7="New South Wales", 'K values'!Q49, IF($C$7="Northern Territory", 'K values'!W49, IF($C$7="Queensland", 'K values'!AC49, IF($C$7="South Australia", 'K values'!AI49, IF($C$7="Tasmania", 'K values'!AO49, IF($C$7="Victoria", 'K values'!AU49, IF($C$7="Western Australia", 'K values'!BA49, "")))))))) -> 
A125: =IF($C$7="Australian Capital Territory", 'K values'!G50, IF($C$7="New South Wales", 'K values'!M50, IF($C$7="Northern Territory", 'K values'!S50, IF($C$7="Queensland", 'K values'!Y50, IF($C$7="South Australia", 'K values'!AE50, IF($C$7="Tasmania", 'K values'!AK50, IF($C$7="Victoria", 'K values'!AQ50, IF($C$7="Western Australia", 'K values'!AW50, "")))))))) ->  | B125: =IF($C$7="Australian Capital Territory", 'K values'!H50, IF($C$7="New South Wales", 'K values'!N50, IF($C$7="Northern Territory", 'K values'!T50, IF($C$7="Queensland", 'K values'!Z50, IF($C$7="South Australia", 'K values'!AF50, IF($C$7="Tasmania", 'K values'!AL50, IF($C$7="Victoria", 'K values'!AR50, IF($C$7="Western Australia", 'K values'!AX50, "")))))))) ->  | C125: =IF($C$7="Australian Capital Territory", 'K values'!I50, IF($C$7="New South Wales", 'K values'!O50, IF($C$7="Northern Territory", 'K values'!U50, IF($C$7="Queensland", 'K values'!AA50, IF($C$7="South Australia", 'K values'!AG50, IF($C$7="Tasmania", 'K values'!AM50, IF($C$7="Victoria", 'K values'!AS50, IF($C$7="Western Australia", 'K values'!AY50, "")))))))) ->  | D125: =IF($C$7="Australian Capital Territory", 'K values'!J50, IF($C$7="New South Wales", 'K values'!P50, IF($C$7="Northern Territory", 'K values'!V50, IF($C$7="Queensland", 'K values'!AB50, IF($C$7="South Australia", 'K values'!AH50, IF($C$7="Tasmania", 'K values'!AN50, IF($C$7="Victoria", 'K values'!AT50, IF($C$7="Western Australia", 'K values'!AZ50, "")))))))) ->  | E125: =IF($C$7="Australian Capital Territory", 'K values'!K50, IF($C$7="New South Wales", 'K values'!Q50, IF($C$7="Northern Territory", 'K values'!W50, IF($C$7="Queensland", 'K values'!AC50, IF($C$7="South Australia", 'K values'!AI50, IF($C$7="Tasmania", 'K values'!AO50, IF($C$7="Victoria", 'K values'!AU50, IF($C$7="Western Australia", 'K values'!BA50, "")))))))) -> 
A126: =IF($C$7="Australian Capital Territory", 'K values'!G51, IF($C$7="New South Wales", 'K values'!M51, IF($C$7="Northern Territory", 'K values'!S51, IF($C$7="Queensland", 'K values'!Y51, IF($C$7="South Australia", 'K values'!AE51, IF($C$7="Tasmania", 'K values'!AK51, IF($C$7="Victoria", 'K values'!AQ51, IF($C$7="Western Australia", 'K values'!AW51, "")))))))) ->  | B126: =IF($C$7="Australian Capital Territory", 'K values'!H51, IF($C$7="New South Wales", 'K values'!N51, IF($C$7="Northern Territory", 'K values'!T51, IF($C$7="Queensland", 'K values'!Z51, IF($C$7="South Australia", 'K values'!AF51, IF($C$7="Tasmania", 'K values'!AL51, IF($C$7="Victoria", 'K values'!AR51, IF($C$7="Western Australia", 'K values'!AX51, "")))))))) ->  | C126: =IF($C$7="Australian Capital Territory", 'K values'!I51, IF($C$7="New South Wales", 'K values'!O51, IF($C$7="Northern Territory", 'K values'!U51, IF($C$7="Queensland", 'K values'!AA51, IF($C$7="South Australia", 'K values'!AG51, IF($C$7="Tasmania", 'K values'!AM51, IF($C$7="Victoria", 'K values'!AS51, IF($C$7="Western Australia", 'K values'!AY51, "")))))))) ->  | D126: =IF($C$7="Australian Capital Territory", 'K values'!J51, IF($C$7="New South Wales", 'K values'!P51, IF($C$7="Northern Territory", 'K values'!V51, IF($C$7="Queensland", 'K values'!AB51, IF($C$7="South Australia", 'K values'!AH51, IF($C$7="Tasmania", 'K values'!AN51, IF($C$7="Victoria", 'K values'!AT51, IF($C$7="Western Australia", 'K values'!AZ51, "")))))))) ->  | E126: =IF($C$7="Australian Capital Territory", 'K values'!K51, IF($C$7="New South Wales", 'K values'!Q51, IF($C$7="Northern Territory", 'K values'!W51, IF($C$7="Queensland", 'K values'!AC51, IF($C$7="South Australia", 'K values'!AI51, IF($C$7="Tasmania", 'K values'!AO51, IF($C$7="Victoria", 'K values'!AU51, IF($C$7="Western Australia", 'K values'!BA51, "")))))))) -> 
A127: =IF($C$7="Australian Capital Territory", 'K values'!G52, IF($C$7="New South Wales", 'K values'!M52, IF($C$7="Northern Territory", 'K values'!S52, IF($C$7="Queensland", 'K values'!Y52, IF($C$7="South Australia", 'K values'!AE52, IF($C$7="Tasmania", 'K values'!AK52, IF($C$7="Victoria", 'K values'!AQ52, IF($C$7="Western Australia", 'K values'!AW52, "")))))))) ->  | B127: =IF($C$7="Australian Capital Territory", 'K values'!H52, IF($C$7="New South Wales", 'K values'!N52, IF($C$7="Northern Territory", 'K values'!T52, IF($C$7="Queensland", 'K values'!Z52, IF($C$7="South Australia", 'K values'!AF52, IF($C$7="Tasmania", 'K values'!AL52, IF($C$7="Victoria", 'K values'!AR52, IF($C$7="Western Australia", 'K values'!AX52, "")))))))) ->  | C127: =IF($C$7="Australian Capital Territory", 'K values'!I52, IF($C$7="New South Wales", 'K values'!O52, IF($C$7="Northern Territory", 'K values'!U52, IF($C$7="Queensland", 'K values'!AA52, IF($C$7="South Australia", 'K values'!AG52, IF($C$7="Tasmania", 'K values'!AM52, IF($C$7="Victoria", 'K values'!AS52, IF($C$7="Western Australia", 'K values'!AY52, "")))))))) ->  | D127: =IF($C$7="Australian Capital Territory", 'K values'!J52, IF($C$7="New South Wales", 'K values'!P52, IF($C$7="Northern Territory", 'K values'!V52, IF($C$7="Queensland", 'K values'!AB52, IF($C$7="South Australia", 'K values'!AH52, IF($C$7="Tasmania", 'K values'!AN52, IF($C$7="Victoria", 'K values'!AT52, IF($C$7="Western Australia", 'K values'!AZ52, "")))))))) ->  | E127: =IF($C$7="Australian Capital Territory", 'K values'!K52, IF($C$7="New South Wales", 'K values'!Q52, IF($C$7="Northern Territory", 'K values'!W52, IF($C$7="Queensland", 'K values'!AC52, IF($C$7="South Australia", 'K values'!AI52, IF($C$7="Tasmania", 'K values'!AO52, IF($C$7="Victoria", 'K values'!AU52, IF($C$7="Western Australia", 'K values'!BA52, "")))))))) -> 
A128: =IF($C$7="Australian Capital Territory", 'K values'!G53, IF($C$7="New South Wales", 'K values'!M53, IF($C$7="Northern Territory", 'K values'!S53, IF($C$7="Queensland", 'K values'!Y53, IF($C$7="South Australia", 'K values'!AE53, IF($C$7="Tasmania", 'K values'!AK53, IF($C$7="Victoria", 'K values'!AQ53, IF($C$7="Western Australia", 'K values'!AW53, "")))))))) ->  | B128: =IF($C$7="Australian Capital Territory", 'K values'!H53, IF($C$7="New South Wales", 'K values'!N53, IF($C$7="Northern Territory", 'K values'!T53, IF($C$7="Queensland", 'K values'!Z53, IF($C$7="South Australia", 'K values'!AF53, IF($C$7="Tasmania", 'K values'!AL53, IF($C$7="Victoria", 'K values'!AR53, IF($C$7="Western Australia", 'K values'!AX53, "")))))))) ->  | C128: =IF($C$7="Australian Capital Territory", 'K values'!I53, IF($C$7="New South Wales", 'K values'!O53, IF($C$7="Northern Territory", 'K values'!U53, IF($C$7="Queensland", 'K values'!AA53, IF($C$7="South Australia", 'K values'!AG53, IF($C$7="Tasmania", 'K values'!AM53, IF($C$7="Victoria", 'K values'!AS53, IF($C$7="Western Australia", 'K values'!AY53, "")))))))) ->  | D128: =IF($C$7="Australian Capital Territory", 'K values'!J53, IF($C$7="New South Wales", 'K values'!P53, IF($C$7="Northern Territory", 'K values'!V53, IF($C$7="Queensland", 'K values'!AB53, IF($C$7="South Australia", 'K values'!AH53, IF($C$7="Tasmania", 'K values'!AN53, IF($C$7="Victoria", 'K values'!AT53, IF($C$7="Western Australia", 'K values'!AZ53, "")))))))) ->  | E128: =IF($C$7="Australian Capital Territory", 'K values'!K53, IF($C$7="New South Wales", 'K values'!Q53, IF($C$7="Northern Territory", 'K values'!W53, IF($C$7="Queensland", 'K values'!AC53, IF($C$7="South Australia", 'K values'!AI53, IF($C$7="Tasmania", 'K values'!AO53, IF($C$7="Victoria", 'K values'!AU53, IF($C$7="Western Australia", 'K values'!BA53, "")))))))) -> 
A129: =IF($C$7="Australian Capital Territory", 'K values'!G54, IF($C$7="New South Wales", 'K values'!M54, IF($C$7="Northern Territory", 'K values'!S54, IF($C$7="Queensland", 'K values'!Y54, IF($C$7="South Australia", 'K values'!AE54, IF($C$7="Tasmania", 'K values'!AK54, IF($C$7="Victoria", 'K values'!AQ54, IF($C$7="Western Australia", 'K values'!AW54, "")))))))) ->  | B129: =IF($C$7="Australian Capital Territory", 'K values'!H54, IF($C$7="New South Wales", 'K values'!N54, IF($C$7="Northern Territory", 'K values'!T54, IF($C$7="Queensland", 'K values'!Z54, IF($C$7="South Australia", 'K values'!AF54, IF($C$7="Tasmania", 'K values'!AL54, IF($C$7="Victoria", 'K values'!AR54, IF($C$7="Western Australia", 'K values'!AX54, "")))))))) ->  | C129: =IF($C$7="Australian Capital Territory", 'K values'!I54, IF($C$7="New South Wales", 'K values'!O54, IF($C$7="Northern Territory", 'K values'!U54, IF($C$7="Queensland", 'K values'!AA54, IF($C$7="South Australia", 'K values'!AG54, IF($C$7="Tasmania", 'K values'!AM54, IF($C$7="Victoria", 'K values'!AS54, IF($C$7="Western Australia", 'K values'!AY54, "")))))))) ->  | D129: =IF($C$7="Australian Capital Territory", 'K values'!J54, IF($C$7="New South Wales", 'K values'!P54, IF($C$7="Northern Territory", 'K values'!V54, IF($C$7="Queensland", 'K values'!AB54, IF($C$7="South Australia", 'K values'!AH54, IF($C$7="Tasmania", 'K values'!AN54, IF($C$7="Victoria", 'K values'!AT54, IF($C$7="Western Australia", 'K values'!AZ54, "")))))))) ->  | E129: =IF($C$7="Australian Capital Territory", 'K values'!K54, IF($C$7="New South Wales", 'K values'!Q54, IF($C$7="Northern Territory", 'K values'!W54, IF($C$7="Queensland", 'K values'!AC54, IF($C$7="South Australia", 'K values'!AI54, IF($C$7="Tasmania", 'K values'!AO54, IF($C$7="Victoria", 'K values'!AU54, IF($C$7="Western Australia", 'K values'!BA54, "")))))))) -> 
A130: =IF($C$7="Australian Capital Territory", 'K values'!G55, IF($C$7="New South Wales", 'K values'!M55, IF($C$7="Northern Territory", 'K values'!S55, IF($C$7="Queensland", 'K values'!Y55, IF($C$7="South Australia", 'K values'!AE55, IF($C$7="Tasmania", 'K values'!AK55, IF($C$7="Victoria", 'K values'!AQ55, IF($C$7="Western Australia", 'K values'!AW55, "")))))))) ->  | B130: =IF($C$7="Australian Capital Territory", 'K values'!H55, IF($C$7="New South Wales", 'K values'!N55, IF($C$7="Northern Territory", 'K values'!T55, IF($C$7="Queensland", 'K values'!Z55, IF($C$7="South Australia", 'K values'!AF55, IF($C$7="Tasmania", 'K values'!AL55, IF($C$7="Victoria", 'K values'!AR55, IF($C$7="Western Australia", 'K values'!AX55, "")))))))) ->  | C130: =IF($C$7="Australian Capital Territory", 'K values'!I55, IF($C$7="New South Wales", 'K values'!O55, IF($C$7="Northern Territory", 'K values'!U55, IF($C$7="Queensland", 'K values'!AA55, IF($C$7="South Australia", 'K values'!AG55, IF($C$7="Tasmania", 'K values'!AM55, IF($C$7="Victoria", 'K values'!AS55, IF($C$7="Western Australia", 'K values'!AY55, "")))))))) ->  | D130: =IF($C$7="Australian Capital Territory", 'K values'!J55, IF($C$7="New South Wales", 'K values'!P55, IF($C$7="Northern Territory", 'K values'!V55, IF($C$7="Queensland", 'K values'!AB55, IF($C$7="South Australia", 'K values'!AH55, IF($C$7="Tasmania", 'K values'!AN55, IF($C$7="Victoria", 'K values'!AT55, IF($C$7="Western Australia", 'K values'!AZ55, "")))))))) ->  | E130: =IF($C$7="Australian Capital Territory", 'K values'!K55, IF($C$7="New South Wales", 'K values'!Q55, IF($C$7="Northern Territory", 'K values'!W55, IF($C$7="Queensland", 'K values'!AC55, IF($C$7="South Australia", 'K values'!AI55, IF($C$7="Tasmania", 'K values'!AO55, IF($C$7="Victoria", 'K values'!AU55, IF($C$7="Western Australia", 'K values'!BA55, "")))))))) -> 
A131: =IF($C$7="Australian Capital Territory", 'K values'!G56, IF($C$7="New South Wales", 'K values'!M56, IF($C$7="Northern Territory", 'K values'!S56, IF($C$7="Queensland", 'K values'!Y56, IF($C$7="South Australia", 'K values'!AE56, IF($C$7="Tasmania", 'K values'!AK56, IF($C$7="Victoria", 'K values'!AQ56, IF($C$7="Western Australia", 'K values'!AW56, "")))))))) ->  | B131: =IF($C$7="Australian Capital Territory", 'K values'!H56, IF($C$7="New South Wales", 'K values'!N56, IF($C$7="Northern Territory", 'K values'!T56, IF($C$7="Queensland", 'K values'!Z56, IF($C$7="South Australia", 'K values'!AF56, IF($C$7="Tasmania", 'K values'!AL56, IF($C$7="Victoria", 'K values'!AR56, IF($C$7="Western Australia", 'K values'!AX56, "")))))))) ->  | C131: =IF($C$7="Australian Capital Territory", 'K values'!I56, IF($C$7="New South Wales", 'K values'!O56, IF($C$7="Northern Territory", 'K values'!U56, IF($C$7="Queensland", 'K values'!AA56, IF($C$7="South Australia", 'K values'!AG56, IF($C$7="Tasmania", 'K values'!AM56, IF($C$7="Victoria", 'K values'!AS56, IF($C$7="Western Australia", 'K values'!AY56, "")))))))) ->  | D131: =IF($C$7="Australian Capital Territory", 'K values'!J56, IF($C$7="New South Wales", 'K values'!P56, IF($C$7="Northern Territory", 'K values'!V56, IF($C$7="Queensland", 'K values'!AB56, IF($C$7="South Australia", 'K values'!AH56, IF($C$7="Tasmania", 'K values'!AN56, IF($C$7="Victoria", 'K values'!AT56, IF($C$7="Western Australia", 'K values'!AZ56, "")))))))) ->  | E131: =IF($C$7="Australian Capital Territory", 'K values'!K56, IF($C$7="New South Wales", 'K values'!Q56, IF($C$7="Northern Territory", 'K values'!W56, IF($C$7="Queensland", 'K values'!AC56, IF($C$7="South Australia", 'K values'!AI56, IF($C$7="Tasmania", 'K values'!AO56, IF($C$7="Victoria", 'K values'!AU56, IF($C$7="Western Australia", 'K values'!BA56, "")))))))) -> 
A132: =IF($C$7="Australian Capital Territory", 'K values'!G57, IF($C$7="New South Wales", 'K values'!M57, IF($C$7="Northern Territory", 'K values'!S57, IF($C$7="Queensland", 'K values'!Y57, IF($C$7="South Australia", 'K values'!AE57, IF($C$7="Tasmania", 'K values'!AK57, IF($C$7="Victoria", 'K values'!AQ57, IF($C$7="Western Australia", 'K values'!AW57, "")))))))) ->  | B132: =IF($C$7="Australian Capital Territory", 'K values'!H57, IF($C$7="New South Wales", 'K values'!N57, IF($C$7="Northern Territory", 'K values'!T57, IF($C$7="Queensland", 'K values'!Z57, IF($C$7="South Australia", 'K values'!AF57, IF($C$7="Tasmania", 'K values'!AL57, IF($C$7="Victoria", 'K values'!AR57, IF($C$7="Western Australia", 'K values'!AX57, "")))))))) ->  | C132: =IF($C$7="Australian Capital Territory", 'K values'!I57, IF($C$7="New South Wales", 'K values'!O57, IF($C$7="Northern Territory", 'K values'!U57, IF($C$7="Queensland", 'K values'!AA57, IF($C$7="South Australia", 'K values'!AG57, IF($C$7="Tasmania", 'K values'!AM57, IF($C$7="Victoria", 'K values'!AS57, IF($C$7="Western Australia", 'K values'!AY57, "")))))))) ->  | D132: =IF($C$7="Australian Capital Territory", 'K values'!J57, IF($C$7="New South Wales", 'K values'!P57, IF($C$7="Northern Territory", 'K values'!V57, IF($C$7="Queensland", 'K values'!AB57, IF($C$7="South Australia", 'K values'!AH57, IF($C$7="Tasmania", 'K values'!AN57, IF($C$7="Victoria", 'K values'!AT57, IF($C$7="Western Australia", 'K values'!AZ57, "")))))))) ->  | E132: =IF($C$7="Australian Capital Territory", 'K values'!K57, IF($C$7="New South Wales", 'K values'!Q57, IF($C$7="Northern Territory", 'K values'!W57, IF($C$7="Queensland", 'K values'!AC57, IF($C$7="South Australia", 'K values'!AI57, IF($C$7="Tasmania", 'K values'!AO57, IF($C$7="Victoria", 'K values'!AU57, IF($C$7="Western Australia", 'K values'!BA57, "")))))))) -> 
A133: =IF($C$7="Australian Capital Territory", 'K values'!G58, IF($C$7="New South Wales", 'K values'!M58, IF($C$7="Northern Territory", 'K values'!S58, IF($C$7="Queensland", 'K values'!Y58, IF($C$7="South Australia", 'K values'!AE58, IF($C$7="Tasmania", 'K values'!AK58, IF($C$7="Victoria", 'K values'!AQ58, IF($C$7="Western Australia", 'K values'!AW58, "")))))))) ->  | B133: =IF($C$7="Australian Capital Territory", 'K values'!H58, IF($C$7="New South Wales", 'K values'!N58, IF($C$7="Northern Territory", 'K values'!T58, IF($C$7="Queensland", 'K values'!Z58, IF($C$7="South Australia", 'K values'!AF58, IF($C$7="Tasmania", 'K values'!AL58, IF($C$7="Victoria", 'K values'!AR58, IF($C$7="Western Australia", 'K values'!AX58, "")))))))) ->  | C133: =IF($C$7="Australian Capital Territory", 'K values'!I58, IF($C$7="New South Wales", 'K values'!O58, IF($C$7="Northern Territory", 'K values'!U58, IF($C$7="Queensland", 'K values'!AA58, IF($C$7="South Australia", 'K values'!AG58, IF($C$7="Tasmania", 'K values'!AM58, IF($C$7="Victoria", 'K values'!AS58, IF($C$7="Western Australia", 'K values'!AY58, "")))))))) ->  | D133: =IF($C$7="Australian Capital Territory", 'K values'!J58, IF($C$7="New South Wales", 'K values'!P58, IF($C$7="Northern Territory", 'K values'!V58, IF($C$7="Queensland", 'K values'!AB58, IF($C$7="South Australia", 'K values'!AH58, IF($C$7="Tasmania", 'K values'!AN58, IF($C$7="Victoria", 'K values'!AT58, IF($C$7="Western Australia", 'K values'!AZ58, "")))))))) ->  | E133: =IF($C$7="Australian Capital Territory", 'K values'!K58, IF($C$7="New South Wales", 'K values'!Q58, IF($C$7="Northern Territory", 'K values'!W58, IF($C$7="Queensland", 'K values'!AC58, IF($C$7="South Australia", 'K values'!AI58, IF($C$7="Tasmania", 'K values'!AO58, IF($C$7="Victoria", 'K values'!AU58, IF($C$7="Western Australia", 'K values'!BA58, "")))))))) -> 
A134: =IF($C$7="Australian Capital Territory", 'K values'!G59, IF($C$7="New South Wales", 'K values'!M59, IF($C$7="Northern Territory", 'K values'!S59, IF($C$7="Queensland", 'K values'!Y59, IF($C$7="South Australia", 'K values'!AE59, IF($C$7="Tasmania", 'K values'!AK59, IF($C$7="Victoria", 'K values'!AQ59, IF($C$7="Western Australia", 'K values'!AW59, "")))))))) ->  | B134: =IF($C$7="Australian Capital Territory", 'K values'!H59, IF($C$7="New South Wales", 'K values'!N59, IF($C$7="Northern Territory", 'K values'!T59, IF($C$7="Queensland", 'K values'!Z59, IF($C$7="South Australia", 'K values'!AF59, IF($C$7="Tasmania", 'K values'!AL59, IF($C$7="Victoria", 'K values'!AR59, IF($C$7="Western Australia", 'K values'!AX59, "")))))))) ->  | C134: =IF($C$7="Australian Capital Territory", 'K values'!I59, IF($C$7="New South Wales", 'K values'!O59, IF($C$7="Northern Territory", 'K values'!U59, IF($C$7="Queensland", 'K values'!AA59, IF($C$7="South Australia", 'K values'!AG59, IF($C$7="Tasmania", 'K values'!AM59, IF($C$7="Victoria", 'K values'!AS59, IF($C$7="Western Australia", 'K values'!AY59, "")))))))) ->  | D134: =IF($C$7="Australian Capital Territory", 'K values'!J59, IF($C$7="New South Wales", 'K values'!P59, IF($C$7="Northern Territory", 'K values'!V59, IF($C$7="Queensland", 'K values'!AB59, IF($C$7="South Australia", 'K values'!AH59, IF($C$7="Tasmania", 'K values'!AN59, IF($C$7="Victoria", 'K values'!AT59, IF($C$7="Western Australia", 'K values'!AZ59, "")))))))) ->  | E134: =IF($C$7="Australian Capital Territory", 'K values'!K59, IF($C$7="New South Wales", 'K values'!Q59, IF($C$7="Northern Territory", 'K values'!W59, IF($C$7="Queensland", 'K values'!AC59, IF($C$7="South Australia", 'K values'!AI59, IF($C$7="Tasmania", 'K values'!AO59, IF($C$7="Victoria", 'K values'!AU59, IF($C$7="Western Australia", 'K values'!BA59, "")))))))) -> 
A135: =IF($C$7="Australian Capital Territory", 'K values'!G60, IF($C$7="New South Wales", 'K values'!M60, IF($C$7="Northern Territory", 'K values'!S60, IF($C$7="Queensland", 'K values'!Y60, IF($C$7="South Australia", 'K values'!AE60, IF($C$7="Tasmania", 'K values'!AK60, IF($C$7="Victoria", 'K values'!AQ60, IF($C$7="Western Australia", 'K values'!AW60, "")))))))) ->  | B135: =IF($C$7="Australian Capital Territory", 'K values'!H60, IF($C$7="New South Wales", 'K values'!N60, IF($C$7="Northern Territory", 'K values'!T60, IF($C$7="Queensland", 'K values'!Z60, IF($C$7="South Australia", 'K values'!AF60, IF($C$7="Tasmania", 'K values'!AL60, IF($C$7="Victoria", 'K values'!AR60, IF($C$7="Western Australia", 'K values'!AX60, "")))))))) ->  | C135: =IF($C$7="Australian Capital Territory", 'K values'!I60, IF($C$7="New South Wales", 'K values'!O60, IF($C$7="Northern Territory", 'K values'!U60, IF($C$7="Queensland", 'K values'!AA60, IF($C$7="South Australia", 'K values'!AG60, IF($C$7="Tasmania", 'K values'!AM60, IF($C$7="Victoria", 'K values'!AS60, IF($C$7="Western Australia", 'K values'!AY60, "")))))))) ->  | D135: =IF($C$7="Australian Capital Territory", 'K values'!J60, IF($C$7="New South Wales", 'K values'!P60, IF($C$7="Northern Territory", 'K values'!V60, IF($C$7="Queensland", 'K values'!AB60, IF($C$7="South Australia", 'K values'!AH60, IF($C$7="Tasmania", 'K values'!AN60, IF($C$7="Victoria", 'K values'!AT60, IF($C$7="Western Australia", 'K values'!AZ60, "")))))))) ->  | E135: =IF($C$7="Australian Capital Territory", 'K values'!K60, IF($C$7="New South Wales", 'K values'!Q60, IF($C$7="Northern Territory", 'K values'!W60, IF($C$7="Queensland", 'K values'!AC60, IF($C$7="South Australia", 'K values'!AI60, IF($C$7="Tasmania", 'K values'!AO60, IF($C$7="Victoria", 'K values'!AU60, IF($C$7="Western Australia", 'K values'!BA60, "")))))))) -> 
A136: =IF($C$7="Australian Capital Territory", 'K values'!G61, IF($C$7="New South Wales", 'K values'!M61, IF($C$7="Northern Territory", 'K values'!S61, IF($C$7="Queensland", 'K values'!Y61, IF($C$7="South Australia", 'K values'!AE61, IF($C$7="Tasmania", 'K values'!AK61, IF($C$7="Victoria", 'K values'!AQ61, IF($C$7="Western Australia", 'K values'!AW61, "")))))))) ->  | B136: =IF($C$7="Australian Capital Territory", 'K values'!H61, IF($C$7="New South Wales", 'K values'!N61, IF($C$7="Northern Territory", 'K values'!T61, IF($C$7="Queensland", 'K values'!Z61, IF($C$7="South Australia", 'K values'!AF61, IF($C$7="Tasmania", 'K values'!AL61, IF($C$7="Victoria", 'K values'!AR61, IF($C$7="Western Australia", 'K values'!AX61, "")))))))) ->  | C136: =IF($C$7="Australian Capital Territory", 'K values'!I61, IF($C$7="New South Wales", 'K values'!O61, IF($C$7="Northern Territory", 'K values'!U61, IF($C$7="Queensland", 'K values'!AA61, IF($C$7="South Australia", 'K values'!AG61, IF($C$7="Tasmania", 'K values'!AM61, IF($C$7="Victoria", 'K values'!AS61, IF($C$7="Western Australia", 'K values'!AY61, "")))))))) ->  | D136: =IF($C$7="Australian Capital Territory", 'K values'!J61, IF($C$7="New South Wales", 'K values'!P61, IF($C$7="Northern Territory", 'K values'!V61, IF($C$7="Queensland", 'K values'!AB61, IF($C$7="South Australia", 'K values'!AH61, IF($C$7="Tasmania", 'K values'!AN61, IF($C$7="Victoria", 'K values'!AT61, IF($C$7="Western Australia", 'K values'!AZ61, "")))))))) ->  | E136: =IF($C$7="Australian Capital Territory", 'K values'!K61, IF($C$7="New South Wales", 'K values'!Q61, IF($C$7="Northern Territory", 'K values'!W61, IF($C$7="Queensland", 'K values'!AC61, IF($C$7="South Australia", 'K values'!AI61, IF($C$7="Tasmania", 'K values'!AO61, IF($C$7="Victoria", 'K values'!AU61, IF($C$7="Western Australia", 'K values'!BA61, "")))))))) -> 
A137: =IF($C$7="Australian Capital Territory", 'K values'!G62, IF($C$7="New South Wales", 'K values'!M62, IF($C$7="Northern Territory", 'K values'!S62, IF($C$7="Queensland", 'K values'!Y62, IF($C$7="South Australia", 'K values'!AE62, IF($C$7="Tasmania", 'K values'!AK62, IF($C$7="Victoria", 'K values'!AQ62, IF($C$7="Western Australia", 'K values'!AW62, "")))))))) ->  | B137: =IF($C$7="Australian Capital Territory", 'K values'!H62, IF($C$7="New South Wales", 'K values'!N62, IF($C$7="Northern Territory", 'K values'!T62, IF($C$7="Queensland", 'K values'!Z62, IF($C$7="South Australia", 'K values'!AF62, IF($C$7="Tasmania", 'K values'!AL62, IF($C$7="Victoria", 'K values'!AR62, IF($C$7="Western Australia", 'K values'!AX62, "")))))))) ->  | C137: =IF($C$7="Australian Capital Territory", 'K values'!I62, IF($C$7="New South Wales", 'K values'!O62, IF($C$7="Northern Territory", 'K values'!U62, IF($C$7="Queensland", 'K values'!AA62, IF($C$7="South Australia", 'K values'!AG62, IF($C$7="Tasmania", 'K values'!AM62, IF($C$7="Victoria", 'K values'!AS62, IF($C$7="Western Australia", 'K values'!AY62, "")))))))) ->  | D137: =IF($C$7="Australian Capital Territory", 'K values'!J62, IF($C$7="New South Wales", 'K values'!P62, IF($C$7="Northern Territory", 'K values'!V62, IF($C$7="Queensland", 'K values'!AB62, IF($C$7="South Australia", 'K values'!AH62, IF($C$7="Tasmania", 'K values'!AN62, IF($C$7="Victoria", 'K values'!AT62, IF($C$7="Western Australia", 'K values'!AZ62, "")))))))) ->  | E137: =IF($C$7="Australian Capital Territory", 'K values'!K62, IF($C$7="New South Wales", 'K values'!Q62, IF($C$7="Northern Territory", 'K values'!W62, IF($C$7="Queensland", 'K values'!AC62, IF($C$7="South Australia", 'K values'!AI62, IF($C$7="Tasmania", 'K values'!AO62, IF($C$7="Victoria", 'K values'!AU62, IF($C$7="Western Australia", 'K values'!BA62, "")))))))) -> 
A138: =IF($C$7="Australian Capital Territory", 'K values'!G63, IF($C$7="New South Wales", 'K values'!M63, IF($C$7="Northern Territory", 'K values'!S63, IF($C$7="Queensland", 'K values'!Y63, IF($C$7="South Australia", 'K values'!AE63, IF($C$7="Tasmania", 'K values'!AK63, IF($C$7="Victoria", 'K values'!AQ63, IF($C$7="Western Australia", 'K values'!AW63, "")))))))) ->  | B138: =IF($C$7="Australian Capital Territory", 'K values'!H63, IF($C$7="New South Wales", 'K values'!N63, IF($C$7="Northern Territory", 'K values'!T63, IF($C$7="Queensland", 'K values'!Z63, IF($C$7="South Australia", 'K values'!AF63, IF($C$7="Tasmania", 'K values'!AL63, IF($C$7="Victoria", 'K values'!AR63, IF($C$7="Western Australia", 'K values'!AX63, "")))))))) ->  | C138: =IF($C$7="Australian Capital Territory", 'K values'!I63, IF($C$7="New South Wales", 'K values'!O63, IF($C$7="Northern Territory", 'K values'!U63, IF($C$7="Queensland", 'K values'!AA63, IF($C$7="South Australia", 'K values'!AG63, IF($C$7="Tasmania", 'K values'!AM63, IF($C$7="Victoria", 'K values'!AS63, IF($C$7="Western Australia", 'K values'!AY63, "")))))))) ->  | D138: =IF($C$7="Australian Capital Territory", 'K values'!J63, IF($C$7="New South Wales", 'K values'!P63, IF($C$7="Northern Territory", 'K values'!V63, IF($C$7="Queensland", 'K values'!AB63, IF($C$7="South Australia", 'K values'!AH63, IF($C$7="Tasmania", 'K values'!AN63, IF($C$7="Victoria", 'K values'!AT63, IF($C$7="Western Australia", 'K values'!AZ63, "")))))))) ->  | E138: =IF($C$7="Australian Capital Territory", 'K values'!K63, IF($C$7="New South Wales", 'K values'!Q63, IF($C$7="Northern Territory", 'K values'!W63, IF($C$7="Queensland", 'K values'!AC63, IF($C$7="South Australia", 'K values'!AI63, IF($C$7="Tasmania", 'K values'!AO63, IF($C$7="Victoria", 'K values'!AU63, IF($C$7="Western Australia", 'K values'!BA63, "")))))))) -> 
A139: =IF($C$7="Australian Capital Territory", 'K values'!G64, IF($C$7="New South Wales", 'K values'!M64, IF($C$7="Northern Territory", 'K values'!S64, IF($C$7="Queensland", 'K values'!Y64, IF($C$7="South Australia", 'K values'!AE64, IF($C$7="Tasmania", 'K values'!AK64, IF($C$7="Victoria", 'K values'!AQ64, IF($C$7="Western Australia", 'K values'!AW64, "")))))))) ->  | B139: =IF($C$7="Australian Capital Territory", 'K values'!H64, IF($C$7="New South Wales", 'K values'!N64, IF($C$7="Northern Territory", 'K values'!T64, IF($C$7="Queensland", 'K values'!Z64, IF($C$7="South Australia", 'K values'!AF64, IF($C$7="Tasmania", 'K values'!AL64, IF($C$7="Victoria", 'K values'!AR64, IF($C$7="Western Australia", 'K values'!AX64, "")))))))) ->  | C139: =IF($C$7="Australian Capital Territory", 'K values'!I64, IF($C$7="New South Wales", 'K values'!O64, IF($C$7="Northern Territory", 'K values'!U64, IF($C$7="Queensland", 'K values'!AA64, IF($C$7="South Australia", 'K values'!AG64, IF($C$7="Tasmania", 'K values'!AM64, IF($C$7="Victoria", 'K values'!AS64, IF($C$7="Western Australia", 'K values'!AY64, "")))))))) ->  | D139: =IF($C$7="Australian Capital Territory", 'K values'!J64, IF($C$7="New South Wales", 'K values'!P64, IF($C$7="Northern Territory", 'K values'!V64, IF($C$7="Queensland", 'K values'!AB64, IF($C$7="South Australia", 'K values'!AH64, IF($C$7="Tasmania", 'K values'!AN64, IF($C$7="Victoria", 'K values'!AT64, IF($C$7="Western Australia", 'K values'!AZ64, "")))))))) ->  | E139: =IF($C$7="Australian Capital Territory", 'K values'!K64, IF($C$7="New South Wales", 'K values'!Q64, IF($C$7="Northern Territory", 'K values'!W64, IF($C$7="Queensland", 'K values'!AC64, IF($C$7="South Australia", 'K values'!AI64, IF($C$7="Tasmania", 'K values'!AO64, IF($C$7="Victoria", 'K values'!AU64, IF($C$7="Western Australia", 'K values'!BA64, "")))))))) -> 
